Workbook

Sheet Sample Report (hidden)
A2: Date
A3: Hen
A4: Program
A5: Start at 999999
A6: Sequence component 1 | B6: Time 1 | C6: Seqeunce Component 2 | D6: Time 2 | E6: Seqeunce Component 3 | F6: Time 3 | G6: Correct 0 = No 1=Yes | J6: Seqeunce | K6: Time
A7: 12 | B7: 7 | C7: 12 | D7: 42 | E7: 13 | F7: 18 | G7: if 77 new line, if 31 or 41 = yes new line on 77, | J7: =string of Seqeunce compponent 1, 2 & 3 | K7: =time 3
A8: This continues until ther is a 1 on its own to indicate start of summary data
J9: 10-19 =1
A10: Summary Data | J10: 20-29 =2
A11: Correct | B11: Incorrect | C11: Rft | D11: total | E11: Av Correct | F11: Av Incorrect | G11: Percent correct | H11: Time | J11: in this example the seqeunce would be 111
A12: 40 | B12: 33 | C12: 40 | D12: 73 | E12: 23.95 | F12: 15 | G12: 54 | H12: 806

Sheet Summary
A2: Day | B2: Date | C2: Average Response Rate | D2: Target % | E2: RF for non correct sequence | F2: U Value | K2: Block 1 | L2: Block 2 | M2: Block 3 | N2: Block 4 | O2: Block 5 | P2: Block 6
A3: 1 | B3: ='!N20192T.AYL'!B2:C2 -> <date> | C3: =('!N20192T.AYL'!F181/60)/'!N20192T.AYL'!Q3 -> 2.142857143 | D3: ='!N20192T.AYL'!N20/'!N20192T.AYL'!Q3 -> 0.06857142857 | E3: =SUM('!N20192T.AYL'!L20:Q20)/'!N20192T.AYL'!Q3 -> 1.04 | F3: ='!N20192T.AYL'!Q16 -> 0.1933680873 | J3: Average Response Rate | K3: =AVERAGE(C3:C7) -> 2.331636136 | L3: =AVERAGE(C8:C12) -> 3.264333107 | M3: =AVERAGE(C13:C17) -> 2.431103795 | N3: =AVERAGE(C18:C22) -> 2.040784139 | O3: =AVERAGE(C23:C27) -> 1.971884765 | P3: =AVERAGE(C28:C32) -> 1.558174846
A4: 2 | B4: ='!N202B0T.AYL'!B2:C2 -> <date> | C4: =('!N202B0T.AYL'!F143/60)/'!N202B0T.AYL'!Q3 -> 2.913381995 | D4: ='!N202B0T.AYL'!N20/'!N202B0T.AYL'!Q3 -> 0.05109489051 | E4: =SUM('!N202B0T.AYL'!L20:Q20)/'!N202B0T.AYL'!Q3 -> 1.197080292 | F4: ='!N202B0T.AYL'!Q16 -> 0.1518272371 | J4: Target % | K4: =AVERAGE(D3:D7) -> 0.1268631548 | L4: =AVERAGE(D8:D12) -> 0.2173409642 | M4: =AVERAGE(D13:D17) -> 0.55825417 | N4: =AVERAGE(D18:D22) -> 0.6422531886 | O4: =AVERAGE(D23:D27) -> 0.4384858613 | P4: =AVERAGE(D28:D32) -> 0.5776850152
A5: 3 | B5: ='!N20385T.AYL'!B2:C2 -> <date> | C5: =('!N20385T.AYL'!F180/60)/'!N20385T.AYL'!Q3 -> 2.07940613 | D5: ='!N20385T.AYL'!N20/'!N20385T.AYL'!Q3 -> 0.1034482759 | E5: =SUM('!N20385T.AYL'!L20:Q20)/'!N20385T.AYL'!Q3 -> 1.074712644 | F5: ='!N20385T.AYL'!Q16 -> 0.115430301 | J5: CCRF | K5: =AVERAGE(E3:E7) -> 1.226372343 | L5: =AVERAGE(E8:E12) -> 1.915799314 | M5: =AVERAGE(E13:E17) -> 3.655727963 | N5: =AVERAGE(E18:E22) -> 4.670774774 | O5: =AVERAGE(E23:E27) -> 2.158195523 | P5: =AVERAGE(E28:E32) -> 3.831163391
A6: 4 | B6: ='!N204A1T.AYL'!B2:C2 -> <date> | C6: =('!N204A1T.AYL'!F144/60)/'!N204A1T.AYL'!Q3 -> 2.167874396 | D6: ='!N204A1T.AYL'!N20/'!N204A1T.AYL'!Q3 -> 0.1739130435 | E6: =SUM('!N204A1T.AYL'!L20:Q20)/'!N204A1T.AYL'!Q3 -> 1.311594203 | F6: ='!N204A1T.AYL'!Q16 -> 0.1916627945 | J6: U Value | K6: =AVERAGE(F3:F7) -> 0.1607198003 | L6: =AVERAGE(F8:F12) -> 0.2579760867 | M6: =AVERAGE(F13:F17) -> 0.2316491135 | N6: =AVERAGE(F18:F22) -> 0.2012463167 | O6: =AVERAGE(F23:F27) -> 0.1739062011 | P6: =AVERAGE(F28:F32) -> 0.1883527787
A7: 5 | B7: ='!N20592T.AYL'!B2:C2 -> <date> | C7: =('!N20592T.AYL'!F124/60)/'!N20592T.AYL'!Q3 -> 2.354661017 | D7: ='!N20592T.AYL'!N20/'!N20592T.AYL'!Q3 -> 0.2372881356 | E7: =SUM('!N20592T.AYL'!L20:Q20)/'!N20592T.AYL'!Q3 -> 1.508474576 | F7: ='!N20592T.AYL'!Q16 -> 0.1513105814
A8: 6 | B8: ='!N206A3T.AYL'!B2:C2 -> <date> | C8: =('!N206A3T.AYL'!F129/60)/'!N206A3T.AYL'!Q3 -> 2.891598916 | D8: ='!N206A3T.AYL'!N20/'!N206A3T.AYL'!Q3 -> 0.1544715447 | E8: =SUM('!N206A3T.AYL'!L20:Q20)/'!N206A3T.AYL'!Q3 -> 1.390243902 | F8: ='!N206A3T.AYL'!Q16 -> 0.1084765194
A9: 7 | B9: ='!N207A1T.AYL'!B2:C2 -> <date> | C9: =('!N207A1T.AYL'!F98/60)/'!N207A1T.AYL'!Q3 -> 3.417028986 | D9: ='!N207A1T.AYL'!N20/'!N207A1T.AYL'!Q3 -> 0.25 | E9: =SUM('!N207A1T.AYL'!L20:Q20)/'!N207A1T.AYL'!Q3 -> 1.793478261 | F9: ='!N207A1T.AYL'!Q16 -> 0.2101124382 | G9: =K3 -> 2.331636136 | H9: =L3 -> 3.264333107 | I9: 2.431103795 | J9: 2.040784139 | K9: 1.971884765 | L9: 1.558174846 | M9: =K4 -> 0.1268631548 | N9: =L4 -> 0.2173409642 | O9: 0.55825417 | P9: 0.6422531886 | Q9: 0.4384858613 | R9: 0.5776850152 | S9: =K6 -> 0.1607198003 | T9: =L6 -> 0.2579760867 | U9: 0.2316491135 | V9: 0.2012463167 | W9: 0.1739062011 | X9: 0.1883527787
A10: 8 | B10: ='!N20893T.AYL'!B2:C2 -> <date> | C10: =('!N20893T.AYL'!F97/60)/'!N20893T.AYL'!Q3 -> 4.325543478 | D10: ='!N20893T.AYL'!N20/'!N20893T.AYL'!Q3 -> 0.152173913 | E10: =SUM('!N20893T.AYL'!L20:Q20)/'!N20893T.AYL'!Q3 -> 1.695652174 | F10: ='!N20893T.AYL'!Q16 -> 0.15919084
A11: 9 | B11: ='!N20994T.AYL'!B2:C2 -> <date> | C11: =('!N20994T.AYL'!F115/60)/'!N20994T.AYL'!Q3 -> 2.499847095 | D11: ='!N20994T.AYL'!N20/'!N20994T.AYL'!Q3 -> 0.247706422 | E11: =SUM('!N20994T.AYL'!L20:Q20)/'!N20994T.AYL'!Q3 -> 1.605504587 | F11: ='!N20994T.AYL'!Q16 -> 0.4104141315
A12: 10 | B12: ='!N21094T.AYL'!B2:C2 -> <date> | C12: =('!N21094T.AYL'!F91/60)/'!N21094T.AYL'!Q3 -> 3.187647059 | D12: ='!N21094T.AYL'!N20/'!N21094T.AYL'!Q3 -> 0.2823529412 | E12: =SUM('!N21094T.AYL'!L20:Q20)/'!N21094T.AYL'!Q3 -> 3.094117647 | F12: ='!N21094T.AYL'!Q16 -> 0.4016865044
A13: 11 | B13: ='!N211A5T.AYL'!B2:C2 -> <date> | C13: =('!N211A5T.AYL'!F80/60)/'!N211A5T.AYL'!Q3 -> 3.790990991 | D13: ='!N211A5T.AYL'!N20/'!N211A5T.AYL'!Q3 -> 0.3648648649 | E13: =SUM('!N211A5T.AYL'!L20:Q20)/'!N211A5T.AYL'!Q3 -> 2.202702703 | F13: ='!N211A5T.AYL'!Q16 -> 0.2355616299
A14: 12 | B14: ='!N212A0T.AYL'!B2:C2 -> <date> | C14: =('!N212A0T.AYL'!F80/60)/'!N212A0T.AYL'!Q3 -> 1.84481982 | D14: ='!N212A0T.AYL'!N20/'!N212A0T.AYL'!Q3 -> 0.5135135135 | E14: =SUM('!N212A0T.AYL'!L20:Q20)/'!N212A0T.AYL'!Q3 -> 2.351351351 | F14: ='!N212A0T.AYL'!Q16 -> 0.2003882348
A15: 13 | B15: ='!N213A3T.AYL'!B2:C2 -> <date> | C15: =('!N213A3T.AYL'!F61/60)/'!N213A3T.AYL'!Q3 -> 2.831818182 | D15: ='!N213A3T.AYL'!N20/'!N213A3T.AYL'!Q3 -> 0.6545454545 | E15: =SUM('!N213A3T.AYL'!L20:Q20)/'!N213A3T.AYL'!Q3 -> 4.818181818 | F15: ='!N213A3T.AYL'!Q16 -> 0.2635546607
A16: 14 | B16: ='!N21491T.AYL'!B2:C2 -> <date> | C16: =('!N21491T.AYL'!F64/60)/'!N21491T.AYL'!Q3 -> 1.797413793 | D16: ='!N21491T.AYL'!N20/'!N21491T.AYL'!Q3 -> 0.6551724138 | E16: =SUM('!N21491T.AYL'!L20:Q20)/'!N21491T.AYL'!Q3 -> 4.620689655 | F16: ='!N21491T.AYL'!Q16 -> 0.2220049432
A17: 15 | B17: ='!N21592T.AYL'!B2:C2 -> <date> | C17: =('!N21592T.AYL'!F69/60)/'!N21592T.AYL'!Q3 -> 1.89047619 | D17: ='!N21592T.AYL'!N20/'!N21592T.AYL'!Q3 -> 0.6031746032 | E17: =SUM('!N21592T.AYL'!L20:Q20)/'!N21592T.AYL'!Q3 -> 4.285714286 | F17: ='!N21592T.AYL'!Q16 -> 0.2367360989
A18: 16 | B18: ='!N216A1T.AYL'!B2:C2 -> <date> | C18: =('!N216A1T.AYL'!F59/60)/'!N216A1T.AYL'!Q3 -> 2.064779874 | D18: ='!N216A1T.AYL'!N20/'!N216A1T.AYL'!Q3 -> 0.7169811321 | E18: =SUM('!N216A1T.AYL'!L20:Q20)/'!N216A1T.AYL'!Q3 -> 5.226415094 | F18: ='!N216A1T.AYL'!Q16 -> 0.1980350528
A19: 17 | B19: ='!N21793T.AYL'!B2:C2 -> <date> | C19: =('!N21793T.AYL'!F67/60)/'!N21793T.AYL'!Q3 -> 2.117759563 | D19: ='!N21793T.AYL'!N20/'!N21793T.AYL'!Q3 -> 0.5737704918 | E19: =SUM('!N21793T.AYL'!L20:Q20)/'!N21793T.AYL'!Q3 -> 4.360655738 | F19: ='!N21793T.AYL'!Q16 -> 0.2377988517
A20: 18 | B20: ='!N218A1T.AYL'!B2:C2 -> <date> | C20: =('!N218A1T.AYL'!F64/60)/'!N218A1T.AYL'!Q3 -> 2.187643678 | D20: ='!N218A1T.AYL'!N20/'!N218A1T.AYL'!Q3 -> 0.6551724138 | E20: =SUM('!N218A1T.AYL'!L20:Q20)/'!N218A1T.AYL'!Q3 -> 4.620689655 | F20: ='!N218A1T.AYL'!Q16 -> 0.1755077728
A21: 19 | B21: ='!N219A4T.AYL'!B2:C2 -> <date> | C21: =('!N219A4T.AYL'!F64/60)/'!N219A4T.AYL'!Q3 -> 1.907183908 | D21: ='!N219A4T.AYL'!N20/'!N219A4T.AYL'!Q3 -> 0.6551724138 | E21: =SUM('!N219A4T.AYL'!L20:Q20)/'!N219A4T.AYL'!Q3 -> 4.620689655 | F21: ='!N219A4T.AYL'!Q16 -> 0.202655394
A22: 20 | B22: ='!N22094T.AYL'!B2:C2 -> <date> | C22: =('!N22094T.AYL'!F65/60)/'!N22094T.AYL'!Q3 -> 1.926553672 | D22: ='!N22094T.AYL'!N20/'!N22094T.AYL'!Q3 -> 0.6101694915 | E22: =SUM('!N22094T.AYL'!L20:Q20)/'!N22094T.AYL'!Q3 -> 4.525423729 | F22: ='!N22094T.AYL'!Q16 -> 0.1922345121
A23: 21 | B23: ='!N221A1T.AYL'!B2:C2 -> <date> | C23: =('!N221A1T.AYL'!F86/60)/'!N221A1T.AYL'!Q3 -> 1.93 | D23: ='!N221A1T.AYL'!N20/'!N221A1T.AYL'!Q3 -> 0.4375 | E23: =SUM('!N221A1T.AYL'!L20:Q20)/'!N221A1T.AYL'!Q3 -> 2.1625 | F23: ='!N221A1T.AYL'!Q16 -> 0.1878325752
A24: 22 | B24: ='!N222A1T.AYL'!B2:C2 -> <date> | C24: =('!N222A1T.AYL'!F91/60)/'!N222A1T.AYL'!Q3 -> 2.054509804 | D24: ='!N222A1T.AYL'!N20/'!N222A1T.AYL'!Q3 -> 0.3764705882 | E24: =SUM('!N222A1T.AYL'!L20:Q20)/'!N222A1T.AYL'!Q3 -> 2.011764706 | F24: ='!N222A1T.AYL'!Q16 -> 0.1716314996
A25: 23 | B25: ='!N22395T.AYL'!B2:C2 -> <date> | C25: =('!N22395T.AYL'!F79/60)/'!N22395T.AYL'!Q3 -> 1.998173516 | D25: ='!N22395T.AYL'!N20/'!N22395T.AYL'!Q3 -> 0.5068493151 | E25: =SUM('!N22395T.AYL'!L20:Q20)/'!N22395T.AYL'!Q3 -> 2.356164384 | F25: ='!N22395T.AYL'!Q16 -> 0.1615335982
A26: 24 | B26: ='!N22490T.AYL'!B2:C2 -> <date> | C26: =('!N22490T.AYL'!F85/60)/'!N22490T.AYL'!Q3 -> 2.02257384 | D26: ='!N22490T.AYL'!N20/'!N22490T.AYL'!Q3 -> 0.4430379747 | E26: =SUM('!N22490T.AYL'!L20:Q20)/'!N22490T.AYL'!Q3 -> 2.17721519 | F26: ='!N22490T.AYL'!Q16 -> 0.1944064219
A27: 25 | B27: ='!N225A0T.AYL'!B2:C2 -> <date> | C27: =('!N225A0T.AYL'!F90/60)/'!N225A0T.AYL'!Q3 -> 1.854166667 | D27: ='!N225A0T.AYL'!N20/'!N225A0T.AYL'!Q3 -> 0.4285714286 | E27: =SUM('!N225A0T.AYL'!L20:Q20)/'!N225A0T.AYL'!Q3 -> 2.083333333 | F27: ='!N225A0T.AYL'!Q16 -> 0.1541269106
A28: 26 | B28: ='!N22684T.AYL'!B2:C2 -> <date> | C28: =('!N22684T.AYL'!F83/60)/'!N22684T.AYL'!Q3 -> 0 | D28: ='!N22684T.AYL'!N20/'!N22684T.AYL'!Q3 -> 0.5064935065 | E28: =SUM('!N22684T.AYL'!L20:Q20)/'!N22684T.AYL'!Q3 -> 3.584415584 | F28: ='!N22684T.AYL'!Q16 -> 0.1909304815
A29: 27 | B29: ='!N227A3T.AYL'!B2:C2 -> <date> | C29: =('!N227A3T.AYL'!F71/60)/'!N227A3T.AYL'!Q3 -> 1.895128205 | D29: ='!N227A3T.AYL'!N20/'!N227A3T.AYL'!Q3 -> 0.5538461538 | E29: =SUM('!N227A3T.AYL'!L20:Q20)/'!N227A3T.AYL'!Q3 -> 2.6 | F29: ='!N227A3T.AYL'!Q16 -> 0.1914775756
A30: 28 | B30: ='!N30194T.AYL'!B2:C2 -> <date> | C30: =('!N30194T.AYL'!F67/60)/'!N30194T.AYL'!Q3 -> 1.946448087 | D30: ='!N30194T.AYL'!N20/'!N30194T.AYL'!Q3 -> 0.6229508197 | E30: =SUM('!N30194T.AYL'!L20:Q20)/'!N30194T.AYL'!Q3 -> 4.409836066 | F30: ='!N30194T.AYL'!Q16 -> 0.1775861805
A31: 29 | B31: ='!N30295T.AYL'!B2:C2 -> <date> | C31: =('!N30295T.AYL'!F65/60)/'!N30295T.AYL'!Q3 -> 1.870621469 | D31: ='!N30295T.AYL'!N20/'!N30295T.AYL'!Q3 -> 0.6610169492 | E31: =SUM('!N30295T.AYL'!L20:Q20)/'!N30295T.AYL'!Q3 -> 4.576271186 | F31: ='!N30295T.AYL'!Q16 -> 0.1840709655
A32: 30 | B32: ='!N30494T.AYL'!B2:C2 -> <date> | C32: =('!N30494T.AYL'!F74/60)/'!N30494T.AYL'!Q3 -> 2.078676471 | D32: ='!N30494T.AYL'!N20/'!N30494T.AYL'!Q3 -> 0.5441176471 | E32: =SUM('!N30494T.AYL'!L20:Q20)/'!N30494T.AYL'!Q3 -> 3.985294118 | F32: ='!N30494T.AYL'!Q16 -> 0.1976986904

Sheet Start
F1: Use Folder 51 | H1: Auto Clean Up | J1: Correct sequence
F2: FALSE | H2: TRUE | J2: 211
A4: Working with Folder | G4: Process All/Or Pick A number: ALL or an integer
A5: F:\Possum Chapter\Raw Data\Taylor\repeat phase 1 ANY\ | G5: ALL
A6: Filenames:
A7: !N216A1T.AYL | G7: Paint Cells
A8: !N21793T.AYL | G8: FALSE
A9: !N218A1T.AYL
A10: !N219A4T.AYL
A11: !N22094T.AYL
A12: !N221A1T.AYL
A13: !N222A1T.AYL
A14: !N22395T.AYL
A15: !N22490T.AYL
A16: !N225A0T.AYL
A17: !N22684T.AYL
A18: !N227A3T.AYL
A19: !N30194T.AYL
A20: !N30295T.AYL
A21: !N30494T.AYL
A22: !N20192T.AYL
A23: !N202B0T.AYL
A24: !N20385T.AYL
A25: !N204A1T.AYL
A26: !N20592T.AYL
A27: !N206A3T.AYL
A28: !N207A1T.AYL
A29: !N20893T.AYL
A30: !N20994T.AYL
A31: !N21094T.AYL
A32: !N211A5T.AYL
A33: !N212A0T.AYL
A34: !N213A3T.AYL
A35: !N21491T.AYL
A36: !N21592T.AYL

Sheet !N20192T.AYL
A1: Report for:!N20192T.AYL
A2: Date: | B2: <date>
A3: Hen: | B3: <hen> | F3: Correct Sequence | G3: =Start!J2 -> 211 | P3: Total Sequences in Data | Q3: =4994-COUNTBLANK(L7:L5000) -> 175 | V3: Total Sequences in Block Data | W3: =COUNTA(L7:L35) -> 29 | AA3: Total Sequences in Block Data | AB3: =COUNTA(L36:L64) -> 29 | AF3: Total Sequences in Block Data | AG3: =COUNTA(L65:L94) -> 30 | AK3: Total Sequences in Block Data | AL3: =COUNTA(L95:L123) -> 29 | AP3: Total Sequences in Block Data | AQ3: =COUNTA(L124:L152) -> 29 | AU3: Total Sequences in Block Data | AV3: =COUNTA(L153:L181) -> 29
P4: Total Sequences in Summary | Q4: =SUM(O7:O14) -> 175 | V4: Total Sequences in Block Summary | W4: =SUM(U7:U14) -> 29 | AA4: Total Sequences in Block Summary | AB4: =SUM(Z7:Z14) -> 29 | AF4: Total Sequences in Block Summary | AG4: =SUM(AE7:AE14) -> 30 | AK4: Total Sequences in Block Summary | AL4: =SUM(AJ7:AJ14) -> 29 | AP4: Total Sequences in Block Summary | AQ4: =SUM(AO7:AO14) -> 29 | AU4: Total Sequences in Block Summary | AV4: =SUM(AT7:AT14) -> 29
T5: Block 1 | Y5: Block 2 | AD5: Block 3 | AI5: Block 4 | AN5: Block 5 | AS5: Block 6
A6: Sequence Component 1 | B6: Time 1 | C6: Sequence Component 2 | D6: Time 2 | E6: Sequence Component 3 | F6: Time 3 | G6: Sequence Component 4 | H6: Time 4 | I6: Sequence Component 5 | J6: Time 5 | K6: Correct? 0=No 1=Yes | L6: Sequence | N6: Frequency | P6: Relative Frequency | Q6: Variability | T6: Frequency | V6: Relative Frequency | W6: Variability | Y6: Frequency | AA6: Relative Frequency | AB6: Variability | AD6: Frequency | AF6: Relative Frequency | AG6: Variability | AI6: Frequency | AK6: Relative Frequency | AL6: Variability | AN6: Frequency | AP6: Relative Frequency | AQ6: Variability | AS6: Frequency | AU6: Relative Frequency | AV6: Variability
A7: 12 | B7: 9 | C7: 13 | D7: 12 | E7: 24 | F7: 29 | K7: 0 | L7: 112 | N7: 111 | O7: =COUNTIF($L$7:$L$500,N7) -> 109 | P7: =O7/$Q$4 -> 0.6228571429 | Q7: =IF(P7=0,0,(P7*((LOG(P7))/LOG(2)))) -> -0.4254281131 | T7: =N7 -> 111 | U7: =COUNTIF(L7:L35,T7) -> 14 | V7: =U7/(W4-U11) -> 0.5185185185 | W7: =IF(V7=0,0,(V7*((LOG(V7))/LOG(2)))) -> -0.4913131897 | Y7: =N7 -> 111 | Z7: =COUNTIF(L36:L64,Y7) -> 13 | AA7: =Z7/(AB4-Z11) -> 0.5 | AB7: =IF(AA7=0,0,(AA7*((LOG(AA7))/LOG(2)))) -> -0.5 | AD7: =N7 -> 111 | AE7: =COUNTIF(L65:L94,AD7) -> 18 | AF7: =AE7/(AG4-AE11) -> 0.6206896552 | AG7: =IF(AF7=0,0,(AF7*((LOG(AF7))/LOG(2)))) -> -0.4270692375 | AI7: =N7 -> 111 | AJ7: =COUNTIF(L95:L123,AI7) -> 18 | AK7: =AJ7/(AL4-AJ11) -> 0.6428571429 | AL7: =IF(AK7=0,0,(AK7*((LOG(AK7))/LOG(2)))) -> -0.4097763775 | AN7: =N7 -> 111 | AO7: =COUNTIF(L124:L152,AN7) -> 24 | AP7: =AO7/(AQ4-AO11) -> 0.8888888889 | AQ7: =IF(AP7=0,0,(AP7*((LOG(AP7))/LOG(2)))) -> -0.1510444457 | AS7: =N7 -> 111 | AT7: =COUNTIF(L153:L181,AS7) -> 22 | AU7: =AT7/(AV4-AT11) -> 0.8461538462 | AV7: =IF(AU7=0,0,(AU7*((LOG(AU7))/LOG(2)))) -> -0.2039299303
A8: 12 | B8: 125 | C8: 13 | D8: 130 | E8: 13 | F8: 134 | K8: 0 | L8: 111 | N8: 112 | O8: 47 | P8: 0.2685714286 | Q8: -0.5093785499 | T8: 112 | U8: =COUNTIF(L7:L35,T8) -> 10 | V8: =U8/(W4-U11) -> 0.3703703704 | W8: =IF(V8=0,0,(V8*((LOG(V8))/LOG(2)))) -> -0.5307257064 | Y8: 112 | Z8: =COUNTIF(L36:L64,Y8) -> 13 | AA8: =Z8/(AB4-Z11) -> 0.5 | AB8: =IF(AA8=0,0,(AA8*((LOG(AA8))/LOG(2)))) -> -0.5 | AD8: 112 | AE8: =COUNTIF(L65:L94,AD8) -> 9 | AF8: =AE8/(AG4-AE11) -> 0.3103448276 | AG8: =IF(AF8=0,0,(AF8*((LOG(AF8))/LOG(2)))) -> -0.5238794463 | AI8: 112 | AJ8: =COUNTIF(L95:L123,AI8) -> 8 | AK8: =AJ8/(AL4-AJ11) -> 0.2857142857 | AL8: =IF(AK8=0,0,(AK8*((LOG(AK8))/LOG(2)))) -> -0.5163871206 | AN8: 112 | AO8: =COUNTIF(L124:L152,AN8) -> 3 | AP8: =AO8/(AQ4-AO11) -> 0.1111111111 | AQ8: =IF(AP8=0,0,(AP8*((LOG(AP8))/LOG(2)))) -> -0.352213889 | AS8: 112 | AT8: =COUNTIF(L153:L181,AS8) -> 4 | AU8: =AT8/(AV4-AT11) -> 0.1538461538 | AV8: =IF(AU8=0,0,(AU8*((LOG(AU8))/LOG(2)))) -> -0.4154522643
A9: 12 | B9: 233 | C9: 13 | D9: 237 | E9: 24 | F9: 259 | K9: 0 | L9: 112 | N9: 121 | O9: 2 | P9: 0.01142857143 | Q9: -0.07372812699 | T9: 121 | U9: =COUNTIF(L7:L35,T9) -> 1 | V9: =U9/(W4-U11) -> 0.03703703704 | W9: =IF(V9=0,0,(V9*((LOG(V9))/LOG(2)))) -> -0.1761069445 | Y9: 121 | Z9: =COUNTIF(L36:L64,Y9) -> 0 | AA9: =Z9/(AB4-Z11) -> 0 | AB9: =IF(AA9=0,0,(AA9*((LOG(AA9))/LOG(2)))) -> 0 | AD9: 121 | AE9: =COUNTIF(L65:L94,AD9) -> 1 | AF9: =AE9/(AG4-AE11) -> 0.03448275862 | AG9: =IF(AF9=0,0,(AF9*((LOG(AF9))/LOG(2)))) -> -0.167516586 | AI9: 121 | AJ9: =COUNTIF(L95:L123,AI9) -> 0 | AK9: =AJ9/(AL4-AJ11) -> 0 | AL9: =IF(AK9=0,0,(AK9*((LOG(AK9))/LOG(2)))) -> 0 | AN9: 121 | AO9: =COUNTIF(L124:L152,AN9) -> 0 | AP9: =AO9/(AQ4-AO11) -> 0 | AQ9: =IF(AP9=0,0,(AP9*((LOG(AP9))/LOG(2)))) -> 0 | AS9: 121 | AT9: =COUNTIF(L153:L181,AS9) -> 0 | AU9: =AT9/(AV4-AT11) -> 0 | AV9: =IF(AU9=0,0,(AU9*((LOG(AU9))/LOG(2)))) -> 0
A10: 12 | B10: 357 | C10: 13 | D10: 361 | E10: 13 | F10: 365 | K10: 0 | L10: 111 | N10: 122 | O10: 4 | P10: 0.02285714286 | Q10: -0.1245991111 | T10: 122 | U10: =COUNTIF(L7:L35,T10) -> 2 | V10: =U10/(W4-U11) -> 0.07407407407 | W10: =IF(V10=0,0,(V10*((LOG(V10))/LOG(2)))) -> -0.278139815 | Y10: 122 | Z10: =COUNTIF(L36:L64,Y10) -> 0 | AA10: =Z10/(AB4-Z11) -> 0 | AB10: =IF(AA10=0,0,(AA10*((LOG(AA10))/LOG(2)))) -> 0 | AD10: 122 | AE10: =COUNTIF(L65:L94,AD10) -> 1 | AF10: =AE10/(AG4-AE11) -> 0.03448275862 | AG10: =IF(AF10=0,0,(AF10*((LOG(AF10))/LOG(2)))) -> -0.167516586 | AI10: 122 | AJ10: =COUNTIF(L95:L123,AI10) -> 1 | AK10: =AJ10/(AL4-AJ11) -> 0.03571428571 | AL10: =IF(AK10=0,0,(AK10*((LOG(AK10))/LOG(2)))) -> -0.1716912472 | AN10: 122 | AO10: =COUNTIF(L124:L152,AN10) -> 0 | AP10: =AO10/(AQ4-AO11) -> 0 | AQ10: =IF(AP10=0,0,(AP10*((LOG(AP10))/LOG(2)))) -> 0 | AS10: 122 | AT10: =COUNTIF(L153:L181,AS10) -> 0 | AU10: =AT10/(AV4-AT11) -> 0 | AV10: =IF(AU10=0,0,(AU10*((LOG(AU10))/LOG(2)))) -> 0
A11: 12 | B11: 464 | C11: 13 | D11: 468 | E11: 13 | F11: 471 | K11: 0 | L11: 111 | N11: 211 | O11: 12 | P11: 0.06857142857 | Q11: -0.2651141905 | T11: 211 | U11: =COUNTIF(L7:L35,T11) -> 2 | Y11: 211 | Z11: =COUNTIF(L36:L64,Y11) -> 3 | AD11: 211 | AE11: =COUNTIF(L65:L94,AD11) -> 1 | AI11: 211 | AJ11: =COUNTIF(L95:L123,AI11) -> 1 | AN11: 211 | AO11: =COUNTIF(L124:L152,AN11) -> 2 | AS11: 211 | AT11: =COUNTIF(L153:L181,AS11) -> 3
A12: 12 | B12: 573 | C12: 13 | D12: 576 | E12: 13 | F12: 582 | K12: 0 | L12: 111 | N12: 212 | O12: 1 | P12: 0.005714285714 | Q12: -0.04257834921 | T12: 212 | U12: =COUNTIF(L7:L35,T12) -> 0 | V12: =U12/(W4-U11) -> 0 | W12: =IF(V12=0,0,(V12*((LOG(V12))/LOG(2)))) -> 0 | Y12: 212 | Z12: =COUNTIF(L36:L64,Y12) -> 0 | AA12: =Z12/(AB4-Z11) -> 0 | AB12: =IF(AA12=0,0,(AA12*((LOG(AA12))/LOG(2)))) -> 0 | AD12: 212 | AE12: =COUNTIF(L65:L94,AD12) -> 0 | AF12: =AE12/(AG4-AE11) -> 0 | AG12: =IF(AF12=0,0,(AF12*((LOG(AF12))/LOG(2)))) -> 0 | AI12: 212 | AJ12: =COUNTIF(L95:L123,AI12) -> 1 | AK12: =AJ12/(AL4-AJ11) -> 0.03571428571 | AL12: =IF(AK12=0,0,(AK12*((LOG(AK12))/LOG(2)))) -> -0.1716912472 | AN12: 212 | AO12: =COUNTIF(L124:L152,AN12) -> 0 | AP12: =AO12/(AQ4-AO11) -> 0 | AQ12: =IF(AP12=0,0,(AP12*((LOG(AP12))/LOG(2)))) -> 0 | AS12: 212 | AT12: =COUNTIF(L153:L181,AS12) -> 0 | AU12: =AT12/(AV4-AT11) -> 0 | AV12: =IF(AU12=0,0,(AU12*((LOG(AU12))/LOG(2)))) -> 0
A13: 12 | B13: 682 | C13: 13 | D13: 684 | E13: 13 | F13: 687 | K13: 0 | L13: 111 | N13: 221 | O13: 0 | P13: 0 | Q13: 0 | T13: 221 | U13: =COUNTIF(L7:L35,T13) -> 0 | V13: =U13/(W4-U11) -> 0 | W13: =IF(V13=0,0,(V13*((LOG(V13))/LOG(2)))) -> 0 | Y13: 221 | Z13: =COUNTIF(L36:L64,Y13) -> 0 | AA13: =Z13/(AB4-Z11) -> 0 | AB13: =IF(AA13=0,0,(AA13*((LOG(AA13))/LOG(2)))) -> 0 | AD13: 221 | AE13: =COUNTIF(L65:L94,AD13) -> 0 | AF13: =AE13/(AG4-AE11) -> 0 | AG13: =IF(AF13=0,0,(AF13*((LOG(AF13))/LOG(2)))) -> 0 | AI13: 221 | AJ13: =COUNTIF(L95:L123,AI13) -> 0 | AK13: =AJ13/(AL4-AJ11) -> 0 | AL13: =IF(AK13=0,0,(AK13*((LOG(AK13))/LOG(2)))) -> 0 | AN13: 221 | AO13: =COUNTIF(L124:L152,AN13) -> 0 | AP13: =AO13/(AQ4-AO11) -> 0 | AQ13: =IF(AP13=0,0,(AP13*((LOG(AP13))/LOG(2)))) -> 0 | AS13: 221 | AT13: =COUNTIF(L153:L181,AS13) -> 0 | AU13: =AT13/(AV4-AT11) -> 0 | AV13: =IF(AU13=0,0,(AU13*((LOG(AU13))/LOG(2)))) -> 0
A14: 12 | B14: 785 | C14: 13 | D14: 788 | E14: 13 | F14: 792 | K14: 0 | L14: 111 | N14: 222 | O14: 0 | P14: 0 | Q14: 0 | T14: 222 | U14: =COUNTIF(L7:L35,T14) -> 0 | V14: =U14/(W4-U11) -> 0 | W14: =IF(V14=0,0,(V14*((LOG(V14))/LOG(2)))) -> 0 | Y14: 222 | Z14: =COUNTIF(L36:L64,Y14) -> 0 | AA14: =Z14/(AB4-Z11) -> 0 | AB14: =IF(AA14=0,0,(AA14*((LOG(AA14))/LOG(2)))) -> 0 | AD14: 222 | AE14: =COUNTIF(L65:L94,AD14) -> 0 | AF14: =AE14/(AG4-AE11) -> 0 | AG14: =IF(AF14=0,0,(AF14*((LOG(AF14))/LOG(2)))) -> 0 | AI14: 222 | AJ14: =COUNTIF(L95:L123,AI14) -> 0 | AK14: =AJ14/(AL4-AJ11) -> 0 | AL14: =IF(AK14=0,0,(AK14*((LOG(AK14))/LOG(2)))) -> 0 | AN14: 222 | AO14: =COUNTIF(L124:L152,AN14) -> 0 | AP14: =AO14/(AQ4-AO11) -> 0 | AQ14: =IF(AP14=0,0,(AP14*((LOG(AP14))/LOG(2)))) -> 0 | AS14: 222 | AT14: =COUNTIF(L153:L181,AS14) -> 0 | AU14: =AT14/(AV4-AT11) -> 0 | AV14: =IF(AU14=0,0,(AU14*((LOG(AU14))/LOG(2)))) -> 0
A15: 12 | B15: 890 | C15: 13 | D15: 893 | E15: 13 | F15: 899 | K15: 0 | L15: 111 | P15: =SUM(P7:P14) -> 1 | Q15: =-SUM(Q7:Q14) -> 1.440826441 | V15: =SUM(V7:V14) -> 1 | W15: =-SUM(W7:W14) -> 1.476285656 | AA15: =SUM(AA7:AA14) -> 1 | AB15: =-SUM(AB7:AB14) -> 1 | AF15: =SUM(AF7:AF14) -> 1 | AG15: =-SUM(AG7:AG14) -> 1.285981856 | AK15: =SUM(AK7:AK14) -> 1 | AL15: =-SUM(AL7:AL14) -> 1.269545993 | AP15: =SUM(AP7:AP14) -> 1 | AQ15: =-SUM(AQ7:AQ14) -> 0.5032583348 | AU15: =SUM(AU7:AU14) -> 1 | AV15: =-SUM(AV7:AV14) -> 0.6193821947
A16: 12 | B16: 997 | C16: 13 | D16: 999 | E16: 13 | F16: 1003 | K16: 0 | L16: 111 | P16: U= | Q16: =Q15/(LOG(Q4)/LOG(2)) -> 0.1933680873 | V16: U1= | W16: =W15/(LOG(W4)/LOG(2)) -> 0.303888726 | AA16: U2= | AB16: =AB15/(LOG(AB4)/LOG(2)) -> 0.2058468325 | AF16: U3= | AG16: =AG15/(LOG(AG4)/LOG(2)) -> 0.2620767329 | AK16: U4= | AL16: =AL15/(LOG(AL4)/LOG(2)) -> 0.2613320212 | AP16: U5= | AQ16: =AQ15/(LOG(AQ4)/LOG(2)) -> 0.1035941341 | AU16: U6= | AV16: =AV15/(LOG(AV4)/LOG(2)) -> 0.1274978629
A17: 21 | B17: 1097 | C17: 11 | D17: 1104 | E17: 11 | F17: 1111 | K17: 0 | L17: 211
A18: 12 | B18: 1251 | C18: 24 | D18: 1280 | E18: 24 | F18: 1303 | K18: 0 | L18: 122
A19: 12 | B19: 1403 | C19: 13 | D19: 1409 | E19: 13 | F19: 1415 | K19: 0 | L19: 111 | N19: Total Target Seq
A20: 12 | B20: 1515 | C20: 13 | D20: 1519 | E20: 24 | F20: 1527 | K20: 0 | L20: 112 | N20: =COUNTIF(L7:L181,G3) -> 12 | P20: 29 | Q20: 29 | R20: 30 | S20: 29 | T20: 29 | U20: 29
A21: 12 | B21: 1629 | C21: 13 | D21: 1633 | E21: 24 | F21: 1639 | K21: 0 | L21: 112 | P21: % of reinforcement given in 6 equal intervals based on number of trials
A22: 12 | B22: 1738 | C22: 13 | D22: 1742 | E22: 24 | F22: 1749 | K22: 0 | L22: 112 | P22: %_1 | Q22: %_2 | R22: %_3 | S22: %_4 | T22: %_5 | U22: %_6
A23: 12 | B23: 1957 | C23: 13 | D23: 1966 | E23: 24 | F23: 1976 | K23: 0 | L23: 112 | O23: target sequence | P23: =$G$3 -> 211 | Q23: 211 | R23: 211 | S23: 211 | T23: 211 | U23: 211
A24: 12 | B24: 2115 | C24: 13 | D24: 2121 | E24: 13 | F24: 2124 | K24: 0 | L24: 111 | O24: total reinforcement | P24: =U11 -> 2 | Q24: =Z11 -> 3 | R24: =AE11 -> 1 | S24: =AJ11 -> 1 | T24: =AO11 -> 2 | U24: =AT11 -> 3
A25: 12 | B25: 2224 | C25: 13 | D25: 2229 | E25: 24 | F25: 2263 | K25: 0 | L25: 112 | O25: % target
A26: 12 | B26: 2360 | C26: 13 | D26: 2364 | E26: 13 | F26: 2370 | K26: 0 | L26: 111 | O26: CCRF
A27: 12 | B27: 2468 | C27: 24 | D27: 2493 | E27: 24 | F27: 2503 | K27: 0 | L27: 122 | O27: % CCRf
A28: 12 | B28: 2603 | C28: 24 | D28: 2618 | E28: 13 | F28: 2634 | K28: 0 | L28: 121 | O28: average response rate | P28: =F35/P20 -> 118.6551724 | Q28: =(F64-F35)/Q20 -> 132.2068966 | R28: =(F94-F64)/R20 -> 125.7333333 | S28: =(F123-F94)/S20 -> 155.6896552 | T28: =(F152-F123)/T20 -> 121.8965517 | U28: =(F181-F152)/U20 -> 117.3448276
A29: 12 | B29: 2728 | C29: 13 | D29: 2731 | E29: 13 | F29: 2752 | K29: 0 | L29: 111
A30: 12 | B30: 2851 | C30: 13 | D30: 2854 | E30: 24 | F30: 2864 | K30: 0 | L30: 112
A31: 12 | B31: 2963 | C31: 13 | D31: 2965 | E31: 24 | F31: 2973 | K31: 0 | L31: 112
A32: 21 | B32: 3065 | C32: 11 | D32: 3071 | E32: 11 | F32: 3074 | K32: 0 | L32: 211
A33: 12 | B33: 3192 | C33: 13 | D33: 3197 | E33: 13 | F33: 3201 | K33: 0 | L33: 111
A34: 12 | B34: 3303 | C34: 13 | D34: 3309 | E34: 13 | F34: 3316 | K34: 0 | L34: 111
A35: 12 | B35: 3416 | C35: 13 | D35: 3419 | E35: 24 | F35: 3441 | K35: 0 | L35: 112
A36: 12 | B36: 3541 | C36: 13 | D36: 3544 | E36: 13 | F36: 3548 | K36: 0 | L36: 111
A37: 12 | B37: 3646 | C37: 13 | D37: 3649 | E37: 13 | F37: 3654 | K37: 0 | L37: 111
A38: 12 | B38: 3753 | C38: 13 | D38: 3757 | E38: 24 | F38: 3777 | K38: 0 | L38: 112
A39: 21 | B39: 3871 | C39: 11 | D39: 3876 | E39: 11 | F39: 3879 | K39: 0 | L39: 211
A40: 12 | B40: 3975 | C40: 13 | D40: 3986 | E40: 13 | F40: 3996 | K40: 0 | L40: 111
A41: 12 | B41: 4097 | C41: 13 | D41: 4100 | E41: 24 | F41: 4136 | K41: 0 | L41: 112
A42: 21 | B42: 4230 | C42: 11 | D42: 4234 | E42: 11 | F42: 4238 | K42: 0 | L42: 211
A43: 12 | B43: 4331 | C43: 13 | D43: 4335 | E43: 13 | F43: 4338 | K43: 0 | L43: 111
A44: 12 | B44: 4437 | C44: 13 | D44: 4442 | E44: 24 | F44: 4458 | K44: 0 | L44: 112
A45: 12 | B45: 4557 | C45: 13 | D45: 4560 | E45: 24 | F45: 4568 | K45: 0 | L45: 112
A46: 12 | B46: 4664 | C46: 13 | D46: 4667 | E46: 13 | F46: 4671 | K46: 0 | L46: 111
A47: 12 | B47: 4768 | C47: 13 | D47: 4770 | E47: 24 | F47: 4777 | K47: 0 | L47: 112
A48: 12 | B48: 4875 | C48: 13 | D48: 4879 | E48: 24 | F48: 4890 | K48: 0 | L48: 112
A49: 12 | B49: 4990 | C49: 13 | D49: 4992 | E49: 13 | F49: 4998 | K49: 0 | L49: 111
A50: 12 | B50: 5162 | C50: 13 | D50: 5165 | E50: 13 | F50: 5169 | K50: 0 | L50: 111
A51: 12 | B51: 5266 | C51: 13 | D51: 5268 | E51: 13 | F51: 5271 | K51: 0 | L51: 111
A52: 12 | B52: 5369 | C52: 13 | D52: 5371 | E52: 13 | F52: 5374 | K52: 0 | L52: 111
A53: 12 | B53: 5473 | C53: 13 | D53: 5477 | E53: 24 | F53: 5484 | K53: 0 | L53: 112
A54: 12 | B54: 5948 | C54: 13 | D54: 6012 | E54: 13 | F54: 6020 | K54: 0 | L54: 111
A55: 12 | B55: 6118 | C55: 13 | D55: 6124 | E55: 24 | F55: 6144 | K55: 0 | L55: 112
A56: 21 | B56: 6238 | C56: 11 | D56: 6242 | E56: 11 | F56: 6245 | K56: 0 | L56: 211
A57: 12 | B57: 6408 | C57: 13 | D57: 6419 | E57: 13 | F57: 6437 | K57: 0 | L57: 111
A58: 12 | B58: 6544 | C58: 13 | D58: 6548 | E58: 13 | F58: 6555 | K58: 0 | L58: 111
A59: 12 | B59: 6653 | C59: 13 | D59: 6657 | E59: 24 | F59: 6664 | K59: 0 | L59: 112
A60: 12 | B60: 6782 | C60: 13 | D60: 6792 | E60: 24 | F60: 6805 | K60: 0 | L60: 112
A61: 12 | B61: 6903 | C61: 13 | D61: 6906 | E61: 24 | F61: 6946 | K61: 0 | L61: 112
A62: 12 | B62: 7043 | C62: 13 | D62: 7047 | E62: 24 | F62: 7056 | K62: 0 | L62: 112
A63: 12 | B63: 7154 | C63: 13 | D63: 7157 | E63: 13 | F63: 7161 | K63: 0 | L63: 111
A64: 12 | B64: 7261 | C64: 13 | D64: 7266 | E64: 24 | F64: 7275 | K64: 0 | L64: 112
A65: 12 | B65: 7373 | C65: 13 | D65: 7376 | E65: 13 | F65: 7379 | K65: 0 | L65: 111
A66: 12 | B66: 7477 | C66: 13 | D66: 7482 | E66: 24 | F66: 7506 | K66: 0 | L66: 112
A67: 12 | B67: 7626 | C67: 13 | D67: 7629 | E67: 13 | F67: 7637 | K67: 0 | L67: 111
A68: 12 | B68: 7737 | C68: 13 | D68: 7741 | E68: 13 | F68: 7745 | K68: 0 | L68: 111
A69: 12 | B69: 7842 | C69: 13 | D69: 7845 | E69: 13 | F69: 7849 | K69: 0 | L69: 111
A70: 12 | B70: 7947 | C70: 13 | D70: 7949 | E70: 13 | F70: 7953 | K70: 0 | L70: 111
A71: 12 | B71: 8051 | C71: 13 | D71: 8053 | E71: 13 | F71: 8057 | K71: 0 | L71: 111
A72: 12 | B72: 8155 | C72: 13 | D72: 8162 | E72: 13 | F72: 8168 | K72: 0 | L72: 111
A73: 12 | B73: 8273 | C73: 13 | D73: 8278 | E73: 13 | F73: 8283 | K73: 0 | L73: 111
A74: 12 | B74: 8381 | C74: 13 | D74: 8387 | E74: 24 | F74: 8394 | K74: 0 | L74: 112
A75: 12 | B75: 8494 | C75: 13 | D75: 8499 | E75: 24 | F75: 8505 | K75: 0 | L75: 112
A76: 12 | B76: 8719 | C76: 13 | D76: 8723 | E76: 13 | F76: 8730 | K76: 0 | L76: 111
A77: 12 | B77: 8829 | C77: 13 | D77: 8832 | E77: 24 | F77: 8843 | K77: 0 | L77: 112
A78: 12 | B78: 8936 | C78: 13 | D78: 8939 | E78: 13 | F78: 8943 | K78: 0 | L78: 111
A79: 12 | B79: 9042 | C79: 13 | D79: 9046 | E79: 24 | F79: 9052 | K79: 0 | L79: 112
A80: 12 | B80: 9150 | C80: 24 | D80: 9160 | E80: 24 | F80: 9168 | K80: 0 | L80: 122
A81: 12 | B81: 9267 | C81: 13 | D81: 9270 | E81: 24 | F81: 9299 | K81: 0 | L81: 112
A82: 21 | B82: 9393 | C82: 11 | D82: 9397 | E82: 11 | F82: 9403 | K82: 0 | L82: 211
A83: 12 | B83: 9671 | C83: 13 | D83: 9675 | E83: 13 | F83: 9682 | K83: 0 | L83: 111
A84: 12 | B84: 9801 | C84: 13 | D84: 9810 | E84: 13 | F84: 9820 | K84: 0 | L84: 111
A85: 12 | B85: 9916 | C85: 24 | D85: 9927 | E85: 13 | F85: 9936 | K85: 0 | L85: 121
A86: 12 | B86: 10033 | C86: 13 | D86: 10036 | E86: 13 | F86: 10047 | K86: 0 | L86: 111
A87: 12 | B87: 10157 | C87: 13 | D87: 10160 | E87: 13 | F87: 10165 | K87: 0 | L87: 111
A88: 12 | B88: 10262 | C88: 13 | D88: 10265 | E88: 24 | F88: 10276 | K88: 0 | L88: 112
A89: 12 | B89: 10374 | C89: 13 | D89: 10377 | E89: 13 | F89: 10380 | K89: 0 | L89: 111
A90: 12 | B90: 10480 | C90: 13 | D90: 10485 | E90: 13 | F90: 10488 | K90: 0 | L90: 111
A91: 12 | B91: 10585 | C91: 13 | D91: 10588 | E91: 13 | F91: 10591 | K91: 0 | L91: 111
A92: 12 | B92: 10690 | C92: 13 | D92: 10694 | E92: 24 | F92: 10702 | K92: 0 | L92: 112
A93: 12 | B93: 10930 | C93: 13 | D93: 10933 | E93: 13 | F93: 10937 | K93: 0 | L93: 111
A94: 12 | B94: 11034 | C94: 13 | D94: 11039 | E94: 24 | F94: 11047 | K94: 0 | L94: 112
A95: 12 | B95: 11147 | C95: 13 | D95: 11151 | E95: 24 | F95: 11165 | K95: 0 | L95: 112
A96: 12 | B96: 11263 | C96: 13 | D96: 11269 | E96: 13 | F96: 11273 | K96: 0 | L96: 111
A97: 12 | B97: 11371 | C97: 13 | D97: 11375 | E97: 24 | F97: 11384 | K97: 0 | L97: 112
A98: 12 | B98: 11481 | C98: 13 | D98: 11485 | E98: 13 | F98: 11488 | K98: 0 | L98: 111
A99: 12 | B99: 11587 | C99: 13 | D99: 11589 | E99: 13 | F99: 11593 | K99: 0 | L99: 111
A100: 21 | B100: 11691 | C100: 11 | D100: 11695 | E100: 22 | F100: 11703 | K100: 0 | L100: 212
A101: 12 | B101: 11798 | C101: 13 | D101: 11804 | E101: 24 | F101: 11817 | K101: 0 | L101: 112
A102: 12 | B102: 11944 | C102: 13 | D102: 11948 | E102: 24 | F102: 11955 | K102: 0 | L102: 112
A103: 12 | B103: 12053 | C103: 13 | D103: 12056 | E103: 24 | F103: 12064 | K103: 0 | L103: 112
A104: 12 | B104: 12162 | C104: 13 | D104: 12166 | E104: 13 | F104: 12169 | K104: 0 | L104: 111
A105: 12 | B105: 12266 | C105: 13 | D105: 12271 | E105: 13 | F105: 12277 | K105: 0 | L105: 111
A106: 21 | B106: 12407 | C106: 11 | D106: 12416 | E106: 11 | F106: 12422 | K106: 0 | L106: 211
A107: 12 | B107: 12513 | C107: 13 | D107: 12516 | E107: 13 | F107: 12519 | K107: 0 | L107: 111
A108: 12 | B108: 12619 | C108: 13 | D108: 12624 | E108: 13 | F108: 12628 | K108: 0 | L108: 111
A109: 12 | B109: 12725 | C109: 13 | D109: 12728 | E109: 13 | F109: 12731 | K109: 0 | L109: 111
A110: 12 | B110: 12831 | C110: 13 | D110: 12834 | E110: 24 | F110: 12845 | K110: 0 | L110: 112
A111: 12 | B111: 12944 | C111: 13 | D111: 12948 | E111: 24 | F111: 12955 | K111: 0 | L111: 112
A112: 12 | B112: 13053 | C112: 13 | D112: 13056 | E112: 24 | F112: 13064 | K112: 0 | L112: 112
A113: 12 | B113: 13918 | C113: 13 | D113: 13921 | E113: 13 | F113: 13925 | K113: 0 | L113: 111
A114: 12 | B114: 14030 | C114: 13 | D114: 14033 | E114: 13 | F114: 14036 | K114: 0 | L114: 111
A115: 12 | B115: 14142 | C115: 24 | D115: 14151 | E115: 24 | F115: 14166 | K115: 0 | L115: 122
A116: 12 | B116: 14262 | C116: 13 | D116: 14268 | E116: 13 | F116: 14272 | K116: 0 | L116: 111
A117: 12 | B117: 14615 | C117: 13 | D117: 14621 | E117: 13 | F117: 14625 | K117: 0 | L117: 111
A118: 12 | B118: 14724 | C118: 13 | D118: 14736 | E118: 13 | F118: 14740 | K118: 0 | L118: 111
A119: 12 | B119: 15131 | C119: 13 | D119: 15136 | E119: 13 | F119: 15139 | K119: 0 | L119: 111
A120: 12 | B120: 15236 | C120: 13 | D120: 15239 | E120: 13 | F120: 15242 | K120: 0 | L120: 111
A121: 12 | B121: 15341 | C121: 13 | D121: 15343 | E121: 13 | F121: 15346 | K121: 0 | L121: 111
A122: 12 | B122: 15446 | C122: 13 | D122: 15449 | E122: 13 | F122: 15452 | K122: 0 | L122: 111
A123: 12 | B123: 15552 | C123: 13 | D123: 15557 | E123: 13 | F123: 15562 | K123: 0 | L123: 111
A124: 12 | B124: 15662 | C124: 13 | D124: 15668 | E124: 13 | F124: 15674 | K124: 0 | L124: 111
A125: 12 | B125: 15766 | C125: 13 | D125: 15769 | E125: 13 | F125: 15773 | K125: 0 | L125: 111
A126: 12 | B126: 15870 | C126: 13 | D126: 15885 | E126: 13 | F126: 15890 | K126: 0 | L126: 111
A127: 12 | B127: 15988 | C127: 13 | D127: 15992 | E127: 13 | F127: 15995 | K127: 0 | L127: 111
A128: 12 | B128: 16094 | C128: 13 | D128: 16098 | E128: 24 | F128: 16106 | K128: 0 | L128: 112
A129: 12 | B129: 16206 | C129: 13 | D129: 16210 | E129: 13 | F129: 16213 | K129: 0 | L129: 111
A130: 12 | B130: 16312 | C130: 13 | D130: 16316 | E130: 24 | F130: 16324 | K130: 0 | L130: 112
A131: 12 | B131: 16422 | C131: 13 | D131: 16425 | E131: 13 | F131: 16428 | K131: 0 | L131: 111
A132: 21 | B132: 16523 | C132: 11 | D132: 16526 | E132: 11 | F132: 16528 | K132: 0 | L132: 211
A133: 12 | B133: 16672 | C133: 13 | D133: 16678 | E133: 13 | F133: 16695 | K133: 0 | L133: 111
A134: 12 | B134: 16794 | C134: 13 | D134: 16797 | E134: 13 | F134: 16801 | K134: 0 | L134: 111
A135: 12 | B135: 16900 | C135: 13 | D135: 16903 | E135: 13 | F135: 16906 | K135: 0 | L135: 111
A136: 12 | B136: 17004 | C136: 13 | D136: 17007 | E136: 13 | F136: 17011 | K136: 0 | L136: 111
A137: 12 | B137: 17109 | C137: 13 | D137: 17114 | E137: 13 | F137: 17120 | K137: 0 | L137: 111
A138: 12 | B138: 17219 | C138: 13 | D138: 17223 | E138: 13 | F138: 17226 | K138: 0 | L138: 111
A139: 12 | B139: 17320 | C139: 13 | D139: 17326 | E139: 13 | F139: 17335 | K139: 0 | L139: 111
A140: 12 | B140: 17433 | C140: 13 | D140: 17439 | E140: 13 | F140: 17443 | K140: 0 | L140: 111
A141: 12 | B141: 17618 | C141: 13 | D141: 17622 | E141: 13 | F141: 17628 | K141: 0 | L141: 111
A142: 12 | B142: 17941 | C142: 13 | D142: 17943 | E142: 13 | F142: 17957 | K142: 0 | L142: 111
A143: 12 | B143: 18056 | C143: 13 | D143: 18059 | E143: 13 | F143: 18064 | K143: 0 | L143: 111
A144: 12 | B144: 18158 | C144: 13 | D144: 18163 | E144: 13 | F144: 18169 | K144: 0 | L144: 111
A145: 12 | B145: 18287 | C145: 13 | D145: 18291 | E145: 13 | F145: 18300 | K145: 0 | L145: 111
A146: 12 | B146: 18397 | C146: 13 | D146: 18400 | E146: 13 | F146: 18404 | K146: 0 | L146: 111
A147: 21 | B147: 18496 | C147: 11 | D147: 18502 | E147: 11 | F147: 18506 | K147: 0 | L147: 211
A148: 12 | B148: 18635 | C148: 13 | D148: 18639 | E148: 13 | F148: 18645 | K148: 0 | L148: 111
A149: 12 | B149: 18765 | C149: 13 | D149: 18769 | E149: 24 | F149: 18776 | K149: 0 | L149: 112
A150: 12 | B150: 18871 | C150: 13 | D150: 18877 | E150: 13 | F150: 18882 | K150: 0 | L150: 111
A151: 12 | B151: 18977 | C151: 13 | D151: 18981 | E151: 13 | F151: 18984 | K151: 0 | L151: 111
A152: 12 | B152: 19081 | C152: 13 | D152: 19086 | E152: 13 | F152: 19097 | K152: 0 | L152: 111
A153: 12 | B153: 19196 | C153: 13 | D153: 19200 | E153: 13 | F153: 19204 | K153: 0 | L153: 111
A154: 12 | B154: 19305 | C154: 13 | D154: 19309 | E154: 13 | F154: 19313 | K154: 0 | L154: 111
A155: 12 | B155: 19411 | C155: 13 | D155: 19415 | E155: 24 | F155: 19422 | K155: 0 | L155: 112
A156: 12 | B156: 19521 | C156: 13 | D156: 19526 | E156: 13 | F156: 19529 | K156: 0 | L156: 111
A157: 12 | B157: 19652 | C157: 13 | D157: 19655 | E157: 13 | F157: 19663 | K157: 0 | L157: 111
A158: 12 | B158: 19785 | C158: 13 | D158: 19789 | E158: 13 | F158: 19805 | K158: 0 | L158: 111
A159: 12 | B159: 19926 | C159: 13 | D159: 19934 | E159: 13 | F159: 19940 | K159: 0 | L159: 111
A160: 12 | B160: 20040 | C160: 13 | D160: 20044 | E160: 13 | F160: 20047 | K160: 0 | L160: 111
A161: 12 | B161: 20145 | C161: 13 | D161: 20149 | E161: 24 | F161: 20156 | K161: 0 | L161: 112
A162: 12 | B162: 20254 | C162: 13 | D162: 20257 | E162: 13 | F162: 20261 | K162: 0 | L162: 111
A163: 12 | B163: 20359 | C163: 13 | D163: 20365 | E163: 13 | F163: 20370 | K163: 0 | L163: 111
A164: 12 | B164: 20556 | C164: 13 | D164: 20562 | E164: 13 | F164: 20568 | K164: 0 | L164: 111
A165: 12 | B165: 20667 | C165: 13 | D165: 20669 | E165: 13 | F165: 20673 | K165: 0 | L165: 111
A166: 12 | B166: 20849 | C166: 13 | D166: 20856 | E166: 13 | F166: 20863 | K166: 0 | L166: 111
A167: 12 | B167: 20963 | C167: 13 | D167: 20965 | E167: 13 | F167: 20968 | K167: 0 | L167: 111
A168: 12 | B168: 21093 | C168: 13 | D168: 21098 | E168: 24 | F168: 21102 | K168: 0 | L168: 112
A169: 21 | B169: 21206 | C169: 11 | D169: 21214 | E169: 11 | F169: 21219 | K169: 0 | L169: 211
A170: 12 | B170: 21322 | C170: 13 | D170: 21325 | E170: 13 | F170: 21331 | K170: 0 | L170: 111
A171: 12 | B171: 21428 | C171: 13 | D171: 21431 | E171: 13 | F171: 21434 | K171: 0 | L171: 111
A172: 12 | B172: 21531 | C172: 13 | D172: 21534 | E172: 13 | F172: 21538 | K172: 0 | L172: 111
A173: 12 | B173: 21637 | C173: 13 | D173: 21640 | E173: 13 | F173: 21649 | K173: 0 | L173: 111
A174: 12 | B174: 21747 | C174: 13 | D174: 21751 | E174: 13 | F174: 21756 | K174: 0 | L174: 111
A175: 12 | B175: 21854 | C175: 13 | D175: 21856 | E175: 13 | F175: 21860 | K175: 0 | L175: 111
A176: 12 | B176: 21957 | C176: 13 | D176: 21963 | E176: 13 | F176: 21969 | K176: 0 | L176: 111
A177: 21 | B177: 22062 | C177: 11 | D177: 22067 | E177: 11 | F177: 22069 | K177: 0 | L177: 211
A178: 12 | B178: 22167 | C178: 13 | D178: 22170 | E178: 13 | F178: 22183 | K178: 0 | L178: 111
A179: 12 | B179: 22281 | C179: 13 | D179: 22285 | E179: 24 | F179: 22293 | K179: 0 | L179: 112
A180: 12 | B180: 22390 | C180: 13 | D180: 22395 | E180: 13 | F180: 22400 | K180: 0 | L180: 111
A181: 21 | B181: 22494 | C181: 11 | D181: 22498 | E181: 11 | F181: 22500 | K181: 1 | L181: 211

Sheet !N202B0T.AYL
A1: Report for:!N202B0T.AYL
A2: Date: | B2: <date>
A3: Hen: | B3: <hen> | F3: Correct Sequence | G3: =Start!J2 -> 211 | P3: Total Sequences in Data | Q3: =4994-COUNTBLANK(L7:L5000) -> 137 | V3: Total Sequences in Block Data | W3: =COUNTA(L7:L29) -> 23 | AA3: Total Sequences in Block Data | AB3: =COUNTA(L30:L52) -> 23 | AF3: Total Sequences in Block Data | AG3: =COUNTA(L53:L74) -> 22 | AK3: Total Sequences in Block Data | AL3: =COUNTA(L75:L97) -> 23 | AP3: Total Sequences in Block Data | AQ3: =COUNTA(L98:L120) -> 23 | AU3: Total Sequences in Block Data | AV3: =COUNTA(L121:L143) -> 23
P4: Total Sequences in Summary | Q4: =SUM(O7:O14) -> 137 | V4: Total Sequences in Block Summary | W4: =SUM(U7:U14) -> 23 | AA4: Total Sequences in Block Summary | AB4: =SUM(Z7:Z14) -> 23 | AF4: Total Sequences in Block Summary | AG4: =SUM(AE7:AE14) -> 22 | AK4: Total Sequences in Block Summary | AL4: =SUM(AJ7:AJ14) -> 23 | AP4: Total Sequences in Block Summary | AQ4: =SUM(AO7:AO14) -> 23 | AU4: Total Sequences in Block Summary | AV4: =SUM(AT7:AT14) -> 23
T5: Block 1 | Y5: Block 2 | AD5: Block 3 | AI5: Block 4 | AN5: Block 5 | AS5: Block 6
A6: Sequence Component 1 | B6: Time 1 | C6: Sequence Component 2 | D6: Time 2 | E6: Sequence Component 3 | F6: Time 3 | G6: Sequence Component 4 | H6: Time 4 | I6: Sequence Component 5 | J6: Time 5 | K6: Correct? 0=No 1=Yes | L6: Sequence | N6: Frequency | P6: Relative Frequency | Q6: Variability | T6: Frequency | V6: Relative Frequency | W6: Variability | Y6: Frequency | AA6: Relative Frequency | AB6: Variability | AD6: Frequency | AF6: Relative Frequency | AG6: Variability | AI6: Frequency | AK6: Relative Frequency | AL6: Variability | AN6: Frequency | AP6: Relative Frequency | AQ6: Variability | AS6: Frequency | AU6: Relative Frequency | AV6: Variability
A7: 12 | B7: 15 | C7: 13 | D7: 19 | E7: 13 | F7: 26 | K7: 0 | L7: 111 | N7: 111 | O7: =COUNTIF($L$7:$L$500,N7) -> 108 | P7: =O7/$Q$4 -> 0.7883211679 | Q7: =IF(P7=0,0,(P7*((LOG(P7))/LOG(2)))) -> -0.2705081367 | T7: =N7 -> 111 | U7: =COUNTIF(L7:L29,T7) -> 12 | V7: =U7/(W4-U11) -> 0.6 | W7: =IF(V7=0,0,(V7*((LOG(V7))/LOG(2)))) -> -0.4421793565 | Y7: =N7 -> 111 | Z7: =COUNTIF(L30:L52,Y7) -> 15 | AA7: =Z7/(AB4-Z11) -> 0.7142857143 | AB7: =IF(AA7=0,0,(AA7*((LOG(AA7))/LOG(2)))) -> -0.346733448 | AD7: =N7 -> 111 | AE7: =COUNTIF(L53:L74,AD7) -> 18 | AF7: =AE7/(AG4-AE11) -> 0.8181818182 | AG7: =IF(AF7=0,0,(AF7*((LOG(AF7))/LOG(2)))) -> -0.2368690504 | AI7: =N7 -> 111 | AJ7: =COUNTIF(L75:L97,AI7) -> 20 | AK7: =AJ7/(AL4-AJ11) -> 0.8695652174 | AL7: =IF(AK7=0,0,(AK7*((LOG(AK7))/LOG(2)))) -> -0.1753337923 | AN7: =N7 -> 111 | AO7: =COUNTIF(L98:L120,AN7) -> 22 | AP7: =AO7/(AQ4-AO11) -> 1 | AQ7: =IF(AP7=0,0,(AP7*((LOG(AP7))/LOG(2)))) -> 0 | AS7: =N7 -> 111 | AT7: =COUNTIF(L121:L143,AS7) -> 21 | AU7: =AT7/(AV4-AT11) -> 0.9545454545 | AV7: =IF(AU7=0,0,(AU7*((LOG(AU7))/LOG(2)))) -> -0.06406355059
A8: 12 | B8: 124 | C8: 13 | D8: 127 | E8: 13 | F8: 131 | K8: 0 | L8: 111 | N8: 112 | O8: 16 | P8: 0.1167883212 | Q8: -0.3618139659 | T8: 112 | U8: =COUNTIF(L7:L29,T8) -> 7 | V8: =U8/(W4-U11) -> 0.35 | W8: =IF(V8=0,0,(V8*((LOG(V8))/LOG(2)))) -> -0.5301006105 | Y8: 112 | Z8: =COUNTIF(L30:L52,Y8) -> 5 | AA8: =Z8/(AB4-Z11) -> 0.2380952381 | AB8: =IF(AA8=0,0,(AA8*((LOG(AA8))/LOG(2)))) -> -0.49294984 | AD8: 112 | AE8: =COUNTIF(L53:L74,AD8) -> 3 | AF8: =AE8/(AG4-AE11) -> 0.1363636364 | AG8: =IF(AF8=0,0,(AF8*((LOG(AF8))/LOG(2)))) -> -0.3919730615 | AI8: 112 | AJ8: =COUNTIF(L75:L97,AI8) -> 1 | AK8: =AJ8/(AL4-AJ11) -> 0.04347826087 | AL8: =IF(AK8=0,0,(AK8*((LOG(AK8))/LOG(2)))) -> -0.1966766068 | AN8: 112 | AO8: =COUNTIF(L98:L120,AN8) -> 0 | AP8: =AO8/(AQ4-AO11) -> 0 | AQ8: =IF(AP8=0,0,(AP8*((LOG(AP8))/LOG(2)))) -> 0 | AS8: 112 | AT8: =COUNTIF(L121:L143,AS8) -> 0 | AU8: =AT8/(AV4-AT11) -> 0 | AV8: =IF(AU8=0,0,(AU8*((LOG(AU8))/LOG(2)))) -> 0
A9: 12 | B9: 226 | C9: 24 | D9: 234 | E9: 13 | F9: 237 | K9: 0 | L9: 121 | N9: 121 | O9: 5 | P9: 0.03649635036 | Q9: -0.1743103645 | T9: 121 | U9: =COUNTIF(L7:L29,T9) -> 1 | V9: =U9/(W4-U11) -> 0.05 | W9: =IF(V9=0,0,(V9*((LOG(V9))/LOG(2)))) -> -0.2160964047 | Y9: 121 | Z9: =COUNTIF(L30:L52,Y9) -> 0 | AA9: =Z9/(AB4-Z11) -> 0 | AB9: =IF(AA9=0,0,(AA9*((LOG(AA9))/LOG(2)))) -> 0 | AD9: 121 | AE9: =COUNTIF(L53:L74,AD9) -> 1 | AF9: =AE9/(AG4-AE11) -> 0.04545454545 | AG9: =IF(AF9=0,0,(AF9*((LOG(AF9))/LOG(2)))) -> -0.2027014372 | AI9: 121 | AJ9: =COUNTIF(L75:L97,AI9) -> 2 | AK9: =AJ9/(AL4-AJ11) -> 0.08695652174 | AL9: =IF(AK9=0,0,(AK9*((LOG(AK9))/LOG(2)))) -> -0.3063966918 | AN9: 121 | AO9: =COUNTIF(L98:L120,AN9) -> 0 | AP9: =AO9/(AQ4-AO11) -> 0 | AQ9: =IF(AP9=0,0,(AP9*((LOG(AP9))/LOG(2)))) -> 0 | AS9: 121 | AT9: =COUNTIF(L121:L143,AS9) -> 1 | AU9: =AT9/(AV4-AT11) -> 0.04545454545 | AV9: =IF(AU9=0,0,(AU9*((LOG(AU9))/LOG(2)))) -> -0.2027014372
A10: 12 | B10: 337 | C10: 13 | D10: 340 | E10: 13 | F10: 346 | K10: 0 | L10: 111 | N10: 122 | O10: 1 | P10: 0.007299270073 | Q10: -0.05181045316 | T10: 122 | U10: =COUNTIF(L7:L29,T10) -> 0 | V10: =U10/(W4-U11) -> 0 | W10: =IF(V10=0,0,(V10*((LOG(V10))/LOG(2)))) -> 0 | Y10: 122 | Z10: =COUNTIF(L30:L52,Y10) -> 1 | AA10: =Z10/(AB4-Z11) -> 0.04761904762 | AB10: =IF(AA10=0,0,(AA10*((LOG(AA10))/LOG(2)))) -> -0.2091579725 | AD10: 122 | AE10: =COUNTIF(L53:L74,AD10) -> 0 | AF10: =AE10/(AG4-AE11) -> 0 | AG10: =IF(AF10=0,0,(AF10*((LOG(AF10))/LOG(2)))) -> 0 | AI10: 122 | AJ10: =COUNTIF(L75:L97,AI10) -> 0 | AK10: =AJ10/(AL4-AJ11) -> 0 | AL10: =IF(AK10=0,0,(AK10*((LOG(AK10))/LOG(2)))) -> 0 | AN10: 122 | AO10: =COUNTIF(L98:L120,AN10) -> 0 | AP10: =AO10/(AQ4-AO11) -> 0 | AQ10: =IF(AP10=0,0,(AP10*((LOG(AP10))/LOG(2)))) -> 0 | AS10: 122 | AT10: =COUNTIF(L121:L143,AS10) -> 0 | AU10: =AT10/(AV4-AT11) -> 0 | AV10: =IF(AU10=0,0,(AU10*((LOG(AU10))/LOG(2)))) -> 0
A11: 12 | B11: 446 | C11: 13 | D11: 448 | E11: 13 | F11: 453 | K11: 0 | L11: 111 | N11: 211 | O11: 7 | P11: 0.05109489051 | Q11: -0.2192316798 | T11: 211 | U11: =COUNTIF(L7:L29,T11) -> 3 | Y11: 211 | Z11: =COUNTIF(L30:L52,Y11) -> 2 | AD11: 211 | AE11: =COUNTIF(L53:L74,AD11) -> 0 | AI11: 211 | AJ11: =COUNTIF(L75:L97,AI11) -> 0 | AN11: 211 | AO11: =COUNTIF(L98:L120,AN11) -> 1 | AS11: 211 | AT11: =COUNTIF(L121:L143,AS11) -> 1
A12: 12 | B12: 550 | C12: 13 | D12: 557 | E12: 13 | F12: 563 | K12: 0 | L12: 111 | N12: 212 | O12: 0 | P12: 0 | Q12: 0 | T12: 212 | U12: =COUNTIF(L7:L29,T12) -> 0 | V12: =U12/(W4-U11) -> 0 | W12: =IF(V12=0,0,(V12*((LOG(V12))/LOG(2)))) -> 0 | Y12: 212 | Z12: =COUNTIF(L30:L52,Y12) -> 0 | AA12: =Z12/(AB4-Z11) -> 0 | AB12: =IF(AA12=0,0,(AA12*((LOG(AA12))/LOG(2)))) -> 0 | AD12: 212 | AE12: =COUNTIF(L53:L74,AD12) -> 0 | AF12: =AE12/(AG4-AE11) -> 0 | AG12: =IF(AF12=0,0,(AF12*((LOG(AF12))/LOG(2)))) -> 0 | AI12: 212 | AJ12: =COUNTIF(L75:L97,AI12) -> 0 | AK12: =AJ12/(AL4-AJ11) -> 0 | AL12: =IF(AK12=0,0,(AK12*((LOG(AK12))/LOG(2)))) -> 0 | AN12: 212 | AO12: =COUNTIF(L98:L120,AN12) -> 0 | AP12: =AO12/(AQ4-AO11) -> 0 | AQ12: =IF(AP12=0,0,(AP12*((LOG(AP12))/LOG(2)))) -> 0 | AS12: 212 | AT12: =COUNTIF(L121:L143,AS12) -> 0 | AU12: =AT12/(AV4-AT11) -> 0 | AV12: =IF(AU12=0,0,(AU12*((LOG(AU12))/LOG(2)))) -> 0
A13: 12 | B13: 663 | C13: 13 | D13: 669 | E13: 13 | F13: 674 | K13: 0 | L13: 111 | N13: 221 | O13: 0 | P13: 0 | Q13: 0 | T13: 221 | U13: =COUNTIF(L7:L29,T13) -> 0 | V13: =U13/(W4-U11) -> 0 | W13: =IF(V13=0,0,(V13*((LOG(V13))/LOG(2)))) -> 0 | Y13: 221 | Z13: =COUNTIF(L30:L52,Y13) -> 0 | AA13: =Z13/(AB4-Z11) -> 0 | AB13: =IF(AA13=0,0,(AA13*((LOG(AA13))/LOG(2)))) -> 0 | AD13: 221 | AE13: =COUNTIF(L53:L74,AD13) -> 0 | AF13: =AE13/(AG4-AE11) -> 0 | AG13: =IF(AF13=0,0,(AF13*((LOG(AF13))/LOG(2)))) -> 0 | AI13: 221 | AJ13: =COUNTIF(L75:L97,AI13) -> 0 | AK13: =AJ13/(AL4-AJ11) -> 0 | AL13: =IF(AK13=0,0,(AK13*((LOG(AK13))/LOG(2)))) -> 0 | AN13: 221 | AO13: =COUNTIF(L98:L120,AN13) -> 0 | AP13: =AO13/(AQ4-AO11) -> 0 | AQ13: =IF(AP13=0,0,(AP13*((LOG(AP13))/LOG(2)))) -> 0 | AS13: 221 | AT13: =COUNTIF(L121:L143,AS13) -> 0 | AU13: =AT13/(AV4-AT11) -> 0 | AV13: =IF(AU13=0,0,(AU13*((LOG(AU13))/LOG(2)))) -> 0
A14: 12 | B14: 769 | C14: 13 | D14: 772 | E14: 13 | F14: 775 | K14: 0 | L14: 111 | N14: 222 | O14: 0 | P14: 0 | Q14: 0 | T14: 222 | U14: =COUNTIF(L7:L29,T14) -> 0 | V14: =U14/(W4-U11) -> 0 | W14: =IF(V14=0,0,(V14*((LOG(V14))/LOG(2)))) -> 0 | Y14: 222 | Z14: =COUNTIF(L30:L52,Y14) -> 0 | AA14: =Z14/(AB4-Z11) -> 0 | AB14: =IF(AA14=0,0,(AA14*((LOG(AA14))/LOG(2)))) -> 0 | AD14: 222 | AE14: =COUNTIF(L53:L74,AD14) -> 0 | AF14: =AE14/(AG4-AE11) -> 0 | AG14: =IF(AF14=0,0,(AF14*((LOG(AF14))/LOG(2)))) -> 0 | AI14: 222 | AJ14: =COUNTIF(L75:L97,AI14) -> 0 | AK14: =AJ14/(AL4-AJ11) -> 0 | AL14: =IF(AK14=0,0,(AK14*((LOG(AK14))/LOG(2)))) -> 0 | AN14: 222 | AO14: =COUNTIF(L98:L120,AN14) -> 0 | AP14: =AO14/(AQ4-AO11) -> 0 | AQ14: =IF(AP14=0,0,(AP14*((LOG(AP14))/LOG(2)))) -> 0 | AS14: 222 | AT14: =COUNTIF(L121:L143,AS14) -> 0 | AU14: =AT14/(AV4-AT11) -> 0 | AV14: =IF(AU14=0,0,(AU14*((LOG(AU14))/LOG(2)))) -> 0
A15: 12 | B15: 873 | C15: 13 | D15: 876 | E15: 24 | F15: 890 | K15: 0 | L15: 112 | P15: =SUM(P7:P14) -> 1 | Q15: =-SUM(Q7:Q14) -> 1.0776746 | V15: =SUM(V7:V14) -> 1 | W15: =-SUM(W7:W14) -> 1.188376372 | AA15: =SUM(AA7:AA14) -> 1 | AB15: =-SUM(AB7:AB14) -> 1.04884126 | AF15: =SUM(AF7:AF14) -> 1 | AG15: =-SUM(AG7:AG14) -> 0.8315435492 | AK15: =SUM(AK7:AK14) -> 1 | AL15: =-SUM(AL7:AL14) -> 0.6784070909 | AP15: =SUM(AP7:AP14) -> 1 | AQ15: =-SUM(AQ7:AQ14) -> 0 | AU15: =SUM(AU7:AU14) -> 1 | AV15: =-SUM(AV7:AV14) -> 0.2667649878
A16: 12 | B16: 987 | C16: 13 | D16: 994 | E16: 13 | F16: 1005 | K16: 0 | L16: 111 | P16: U= | Q16: =Q15/(LOG(Q4)/LOG(2)) -> 0.1518272371 | V16: U1= | W16: =W15/(LOG(W4)/LOG(2)) -> 0.2627081011 | AA16: U2= | AB16: =AB15/(LOG(AB4)/LOG(2)) -> 0.2318618095 | AF16: U3= | AG16: =AG15/(LOG(AG4)/LOG(2)) -> 0.1864685055 | AK16: U4= | AL16: =AL15/(LOG(AL4)/LOG(2)) -> 0.14997188 | AP16: U5= | AQ16: =AQ15/(LOG(AQ4)/LOG(2)) -> 0 | AU16: U6= | AV16: =AV15/(LOG(AV4)/LOG(2)) -> 0.05897232986
A17: 12 | B17: 1108 | C17: 13 | D17: 1110 | E17: 24 | F17: 1118 | K17: 0 | L17: 112
A18: 12 | B18: 1225 | C18: 13 | D18: 1234 | E18: 13 | F18: 1240 | K18: 0 | L18: 111
A19: 12 | B19: 1339 | C19: 13 | D19: 1342 | E19: 24 | F19: 1349 | K19: 0 | L19: 112 | N19: Total Target Seq
A20: 12 | B20: 1447 | C20: 13 | D20: 1453 | E20: 13 | F20: 1459 | K20: 0 | L20: 111 | N20: =COUNTIF(L7:L143,G3) -> 7 | P20: 23 | Q20: 23 | R20: 22 | S20: 23 | T20: 23 | U20: 23
A21: 21 | B21: 1553 | C21: 11 | D21: 1560 | E21: 11 | F21: 1562 | K21: 0 | L21: 211 | P21: % of reinforcement given in 6 equal intervals based on number of trials
A22: 12 | B22: 1653 | C22: 13 | D22: 1668 | E22: 13 | F22: 1675 | K22: 0 | L22: 111 | P22: %_1 | Q22: %_2 | R22: %_3 | S22: %_4 | T22: %_5 | U22: %_6
A23: 12 | B23: 1780 | C23: 13 | D23: 1783 | E23: 24 | F23: 1788 | K23: 0 | L23: 112 | O23: target sequence | P23: =$G$3 -> 211 | Q23: 211 | R23: 211 | S23: 211 | T23: 211 | U23: 211
A24: 12 | B24: 1888 | C24: 13 | D24: 1891 | E24: 24 | F24: 1898 | K24: 0 | L24: 112 | O24: total reinforcement | P24: =U11 -> 3 | Q24: =Z11 -> 2 | R24: =AE11 -> 0 | S24: =AJ11 -> 0 | T24: =AO11 -> 1 | U24: =AT11 -> 1
A25: 12 | B25: 1993 | C25: 13 | D25: 1995 | E25: 13 | F25: 2001 | K25: 0 | L25: 111 | O25: % target
A26: 21 | B26: 2095 | C26: 11 | D26: 2100 | E26: 11 | F26: 2105 | K26: 0 | L26: 211 | O26: CCRF
A27: 12 | B27: 2199 | C27: 13 | D27: 2202 | E27: 24 | F27: 2215 | K27: 0 | L27: 112 | O27: % CCRf
A28: 12 | B28: 2314 | C28: 13 | D28: 2318 | E28: 24 | F28: 2324 | K28: 0 | L28: 112 | O28: average response rate | P28: =F29/P20 -> 105.4347826 | Q28: =(F52-F29)/Q20 -> 131.826087 | R28: =(F74-F52)/R20 -> 305.0454545 | S28: =(F97-F74)/S20 -> 185.7391304 | T28: =(F120-F97)/T20 -> 148.4347826 | U28: =(F143-F120)/U20 -> 178
A29: 21 | B29: 2420 | C29: 11 | D29: 2422 | E29: 11 | F29: 2425 | K29: 0 | L29: 211
A30: 12 | B30: 2520 | C30: 13 | D30: 2523 | E30: 13 | F30: 2529 | K30: 0 | L30: 111
A31: 12 | B31: 2628 | C31: 13 | D31: 2632 | E31: 24 | F31: 2652 | K31: 0 | L31: 112
A32: 12 | B32: 2751 | C32: 13 | D32: 2753 | E32: 13 | F32: 2759 | K32: 0 | L32: 111
A33: 21 | B33: 2852 | C33: 11 | D33: 2858 | E33: 11 | F33: 2861 | K33: 0 | L33: 211
A34: 12 | B34: 2955 | C34: 13 | D34: 2965 | E34: 13 | F34: 2974 | K34: 0 | L34: 111
A35: 12 | B35: 3074 | C35: 13 | D35: 3077 | E35: 13 | F35: 3079 | K35: 0 | L35: 111
A36: 12 | B36: 3178 | C36: 13 | D36: 3180 | E36: 24 | F36: 3188 | K36: 0 | L36: 112
A37: 12 | B37: 3336 | C37: 13 | D37: 3339 | E37: 24 | F37: 3343 | K37: 0 | L37: 112
A38: 12 | B38: 3442 | C38: 13 | D38: 3447 | E38: 24 | F38: 3453 | K38: 0 | L38: 112
A39: 12 | B39: 3552 | C39: 13 | D39: 3556 | E39: 24 | F39: 3563 | K39: 0 | L39: 112
A40: 12 | B40: 3660 | C40: 13 | D40: 3663 | E40: 13 | F40: 3670 | K40: 0 | L40: 111
A41: 12 | B41: 3772 | C41: 13 | D41: 3775 | E41: 13 | F41: 3779 | K41: 0 | L41: 111
A42: 12 | B42: 3879 | C42: 24 | D42: 3892 | E42: 24 | F42: 3898 | K42: 0 | L42: 122
A43: 12 | B43: 3997 | C43: 13 | D43: 3999 | E43: 13 | F43: 4003 | K43: 0 | L43: 111
A44: 12 | B44: 4171 | C44: 13 | D44: 4175 | E44: 13 | F44: 4183 | K44: 0 | L44: 111
A45: 12 | B45: 4282 | C45: 13 | D45: 4286 | E45: 13 | F45: 4293 | K45: 0 | L45: 111
A46: 21 | B46: 4386 | C46: 11 | D46: 4392 | E46: 11 | F46: 4397 | K46: 0 | L46: 211
A47: 12 | B47: 4875 | C47: 13 | D47: 4877 | E47: 13 | F47: 4885 | K47: 0 | L47: 111
A48: 12 | B48: 4984 | C48: 13 | D48: 4990 | E48: 13 | F48: 4997 | K48: 0 | L48: 111
A49: 12 | B49: 5110 | C49: 13 | D49: 5114 | E49: 13 | F49: 5119 | K49: 0 | L49: 111
A50: 12 | B50: 5218 | C50: 13 | D50: 5226 | E50: 13 | F50: 5232 | K50: 0 | L50: 111
A51: 12 | B51: 5332 | C51: 13 | D51: 5337 | E51: 13 | F51: 5344 | K51: 0 | L51: 111
A52: 12 | B52: 5444 | C52: 13 | D52: 5449 | E52: 13 | F52: 5457 | K52: 0 | L52: 111
A53: 12 | B53: 5555 | C53: 13 | D53: 5560 | E53: 13 | F53: 5566 | K53: 0 | L53: 111
A54: 12 | B54: 5662 | C54: 13 | D54: 5670 | E54: 13 | F54: 5676 | K54: 0 | L54: 111
A55: 12 | B55: 5774 | C55: 13 | D55: 5777 | E55: 24 | F55: 5791 | K55: 0 | L55: 112
A56: 12 | B56: 5889 | C56: 13 | D56: 5893 | E56: 13 | F56: 5900 | K56: 0 | L56: 111
A57: 12 | B57: 6143 | C57: 13 | D57: 6150 | E57: 13 | F57: 6157 | K57: 0 | L57: 111
A58: 12 | B58: 6257 | C58: 13 | D58: 6261 | E58: 13 | F58: 6266 | K58: 0 | L58: 111
A59: 12 | B59: 6364 | C59: 13 | D59: 6368 | E59: 13 | F59: 6374 | K59: 0 | L59: 111
A60: 12 | B60: 6473 | C60: 13 | D60: 6483 | E60: 13 | F60: 6489 | K60: 0 | L60: 111
A61: 12 | B61: 6592 | C61: 13 | D61: 6601 | E61: 13 | F61: 6609 | K61: 0 | L61: 111
A62: 12 | B62: 7154 | C62: 13 | D62: 7158 | E62: 13 | F62: 7164 | K62: 0 | L62: 111
A63: 12 | B63: 7270 | C63: 13 | D63: 7276 | E63: 13 | F63: 7282 | K63: 0 | L63: 111
A64: 12 | B64: 7382 | C64: 13 | D64: 7386 | E64: 13 | F64: 7392 | K64: 0 | L64: 111
A65: 12 | B65: 7490 | C65: 13 | D65: 7493 | E65: 24 | F65: 7514 | K65: 0 | L65: 112
A66: 12 | B66: 8004 | C66: 13 | D66: 8013 | E66: 24 | F66: 8017 | K66: 0 | L66: 112
A67: 12 | B67: 8777 | C67: 13 | D67: 8783 | E67: 13 | F67: 8787 | K67: 0 | L67: 111
A68: 12 | B68: 9584 | C68: 13 | D68: 9588 | E68: 13 | F68: 9593 | K68: 0 | L68: 111
A69: 12 | B69: 10415 | C69: 13 | D69: 10419 | E69: 13 | F69: 10435 | K69: 0 | L69: 111
A70: 12 | B70: 10873 | C70: 13 | D70: 10879 | E70: 13 | F70: 10885 | K70: 0 | L70: 111
A71: 12 | B71: 10984 | C71: 13 | D71: 10992 | E71: 13 | F71: 10999 | K71: 0 | L71: 111
A72: 12 | B72: 11099 | C72: 13 | D72: 11103 | E72: 13 | F72: 11108 | K72: 0 | L72: 111
A73: 12 | B73: 11205 | C73: 13 | D73: 11216 | E73: 13 | F73: 11222 | K73: 0 | L73: 111
A74: 12 | B74: 12152 | C74: 24 | D74: 12156 | E74: 13 | F74: 12168 | K74: 0 | L74: 121
A75: 12 | B75: 12873 | C75: 13 | D75: 12881 | E75: 13 | F75: 12889 | K75: 0 | L75: 111
A76: 12 | B76: 13595 | C76: 24 | D76: 13598 | E76: 13 | F76: 13600 | K76: 0 | L76: 121
A77: 12 | B77: 14247 | C77: 13 | D77: 14262 | E77: 13 | F77: 14268 | K77: 0 | L77: 111
A78: 12 | B78: 14363 | C78: 13 | D78: 14365 | E78: 13 | F78: 14371 | K78: 0 | L78: 111
A79: 12 | B79: 14469 | C79: 13 | D79: 14472 | E79: 13 | F79: 14482 | K79: 0 | L79: 111
A80: 12 | B80: 14578 | C80: 13 | D80: 14582 | E80: 13 | F80: 14585 | K80: 0 | L80: 111
A81: 12 | B81: 14683 | C81: 13 | D81: 14686 | E81: 13 | F81: 14690 | K81: 0 | L81: 111
A82: 12 | B82: 14779 | C82: 13 | D82: 14784 | E82: 13 | F82: 14788 | K82: 0 | L82: 111
A83: 12 | B83: 14887 | C83: 13 | D83: 14890 | E83: 13 | F83: 14894 | K83: 0 | L83: 111
A84: 12 | B84: 14994 | C84: 13 | D84: 15001 | E84: 13 | F84: 15007 | K84: 0 | L84: 111
A85: 12 | B85: 15105 | C85: 13 | D85: 15108 | E85: 13 | F85: 15113 | K85: 0 | L85: 111
A86: 12 | B86: 15211 | C86: 13 | D86: 15217 | E86: 13 | F86: 15222 | K86: 0 | L86: 111
A87: 12 | B87: 15322 | C87: 13 | D87: 15326 | E87: 13 | F87: 15330 | K87: 0 | L87: 111
A88: 12 | B88: 15431 | C88: 13 | D88: 15434 | E88: 13 | F88: 15437 | K88: 0 | L88: 111
A89: 12 | B89: 15560 | C89: 24 | D89: 15568 | E89: 13 | F89: 15574 | K89: 0 | L89: 121
A90: 12 | B90: 15671 | C90: 13 | D90: 15674 | E90: 13 | F90: 15678 | K90: 0 | L90: 111
A91: 12 | B91: 15777 | C91: 13 | D91: 15779 | E91: 13 | F91: 15784 | K91: 0 | L91: 111
A92: 12 | B92: 15884 | C92: 13 | D92: 15891 | E92: 13 | F92: 15897 | K92: 0 | L92: 111
A93: 12 | B93: 15997 | C93: 13 | D93: 16000 | E93: 13 | F93: 16007 | K93: 0 | L93: 111
A94: 12 | B94: 16105 | C94: 13 | D94: 16109 | E94: 13 | F94: 16114 | K94: 0 | L94: 111
A95: 12 | B95: 16213 | C95: 13 | D95: 16220 | E95: 13 | F95: 16226 | K95: 0 | L95: 111
A96: 12 | B96: 16319 | C96: 13 | D96: 16324 | E96: 13 | F96: 16329 | K96: 0 | L96: 111
A97: 12 | B97: 16426 | C97: 13 | D97: 16429 | E97: 24 | F97: 16440 | K97: 0 | L97: 112
A98: 12 | B98: 16538 | C98: 13 | D98: 16543 | E98: 13 | F98: 16546 | K98: 0 | L98: 111
A99: 12 | B99: 17117 | C99: 13 | D99: 17136 | E99: 13 | F99: 17146 | K99: 0 | L99: 111
A100: 12 | B100: 17271 | C100: 13 | D100: 17286 | E100: 13 | F100: 17297 | K100: 0 | L100: 111
A101: 12 | B101: 17419 | C101: 13 | D101: 17425 | E101: 13 | F101: 17437 | K101: 0 | L101: 111
A102: 12 | B102: 17536 | C102: 13 | D102: 17539 | E102: 13 | F102: 17543 | K102: 0 | L102: 111
A103: 12 | B103: 17653 | C103: 13 | D103: 17656 | E103: 13 | F103: 17661 | K103: 0 | L103: 111
A104: 12 | B104: 17761 | C104: 13 | D104: 17773 | E104: 13 | F104: 17783 | K104: 0 | L104: 111
A105: 12 | B105: 17882 | C105: 13 | D105: 17886 | E105: 13 | F105: 17890 | K105: 0 | L105: 111
A106: 12 | B106: 17986 | C106: 13 | D106: 17991 | E106: 13 | F106: 17996 | K106: 0 | L106: 111
A107: 12 | B107: 18094 | C107: 13 | D107: 18098 | E107: 13 | F107: 18107 | K107: 0 | L107: 111
A108: 12 | B108: 18207 | C108: 13 | D108: 18211 | E108: 13 | F108: 18216 | K108: 0 | L108: 111
A109: 12 | B109: 18314 | C109: 13 | D109: 18318 | E109: 13 | F109: 18322 | K109: 0 | L109: 111
A110: 12 | B110: 18461 | C110: 13 | D110: 18466 | E110: 13 | F110: 18472 | K110: 0 | L110: 111
A111: 12 | B111: 18570 | C111: 13 | D111: 18573 | E111: 13 | F111: 18577 | K111: 0 | L111: 111
A112: 12 | B112: 18681 | C112: 13 | D112: 18685 | E112: 13 | F112: 18690 | K112: 0 | L112: 111
A113: 12 | B113: 18789 | C113: 13 | D113: 18793 | E113: 13 | F113: 18796 | K113: 0 | L113: 111
A114: 12 | B114: 18893 | C114: 13 | D114: 18897 | E114: 13 | F114: 18900 | K114: 0 | L114: 111
A115: 21 | B115: 18998 | C115: 11 | D115: 19000 | E115: 11 | F115: 19002 | K115: 0 | L115: 211
A116: 12 | B116: 19401 | C116: 13 | D116: 19413 | E116: 13 | F116: 19424 | K116: 0 | L116: 111
A117: 12 | B117: 19523 | C117: 13 | D117: 19527 | E117: 13 | F117: 19533 | K117: 0 | L117: 111
A118: 12 | B118: 19632 | C118: 13 | D118: 19635 | E118: 13 | F118: 19639 | K118: 0 | L118: 111
A119: 12 | B119: 19740 | C119: 13 | D119: 19743 | E119: 13 | F119: 19746 | K119: 0 | L119: 111
A120: 12 | B120: 19844 | C120: 13 | D120: 19848 | E120: 13 | F120: 19854 | K120: 0 | L120: 111
A121: 12 | B121: 19955 | C121: 13 | D121: 19959 | E121: 13 | F121: 19963 | K121: 0 | L121: 111
A122: 12 | B122: 20063 | C122: 13 | D122: 20069 | E122: 13 | F122: 20075 | K122: 0 | L122: 111
A123: 12 | B123: 20175 | C123: 13 | D123: 20178 | E123: 13 | F123: 20185 | K123: 0 | L123: 111
A124: 12 | B124: 20284 | C124: 13 | D124: 20287 | E124: 13 | F124: 20292 | K124: 0 | L124: 111
A125: 12 | B125: 20426 | C125: 24 | D125: 20432 | E125: 13 | F125: 20438 | K125: 0 | L125: 121
A126: 21 | B126: 21497 | C126: 11 | D126: 21499 | E126: 11 | F126: 21502 | K126: 0 | L126: 211
A127: 12 | B127: 21742 | C127: 13 | D127: 21744 | E127: 13 | F127: 21746 | K127: 0 | L127: 111
A128: 12 | B128: 21847 | C128: 13 | D128: 21852 | E128: 13 | F128: 21859 | K128: 0 | L128: 111
A129: 12 | B129: 21959 | C129: 13 | D129: 21964 | E129: 13 | F129: 21970 | K129: 0 | L129: 111
A130: 12 | B130: 22167 | C130: 13 | D130: 22170 | E130: 13 | F130: 22176 | K130: 0 | L130: 111
A131: 12 | B131: 22283 | C131: 13 | D131: 22286 | E131: 13 | F131: 22291 | K131: 0 | L131: 111
A132: 12 | B132: 22390 | C132: 13 | D132: 22393 | E132: 13 | F132: 22397 | K132: 0 | L132: 111
A133: 12 | B133: 22496 | C133: 13 | D133: 22500 | E133: 13 | F133: 22506 | K133: 0 | L133: 111
A134: 12 | B134: 22606 | C134: 13 | D134: 22610 | E134: 13 | F134: 22617 | K134: 0 | L134: 111
A135: 12 | B135: 22951 | C135: 13 | D135: 22957 | E135: 13 | F135: 22964 | K135: 0 | L135: 111
A136: 12 | B136: 23081 | C136: 13 | D136: 23085 | E136: 13 | F136: 23091 | K136: 0 | L136: 111
A137: 12 | B137: 23192 | C137: 13 | D137: 23196 | E137: 13 | F137: 23200 | K137: 0 | L137: 111
A138: 12 | B138: 23299 | C138: 13 | D138: 23301 | E138: 13 | F138: 23308 | K138: 0 | L138: 111
A139: 12 | B139: 23415 | C139: 13 | D139: 23418 | E139: 13 | F139: 23424 | K139: 0 | L139: 111
A140: 12 | B140: 23523 | C140: 13 | D140: 23527 | E140: 13 | F140: 23530 | K140: 0 | L140: 111
A141: 12 | B141: 23711 | C141: 13 | D141: 23722 | E141: 13 | F141: 23728 | K141: 0 | L141: 111
A142: 12 | B142: 23827 | C142: 13 | D142: 23831 | E142: 13 | F142: 23834 | K142: 0 | L142: 111
A143: 12 | B143: 23932 | C143: 13 | D143: 23935 | E143: 13 | F143: 23948 | L143: 111

Sheet !N20385T.AYL
A1: Report for:!N20385T.AYL
A2: Date: | B2: <date>
A3: Hen: | B3: <hen> | F3: Correct Sequence | G3: =Start!J2 -> 211 | P3: Total Sequences in Data | Q3: =4994-COUNTBLANK(L7:L5000) -> 174 | V3: Total Sequences in Block Data | W3: =COUNTA(L7:L35) -> 29 | AA3: Total Sequences in Block Data | AB3: =COUNTA(L36:L64) -> 29 | AF3: Total Sequences in Block Data | AG3: =COUNTA(L65:L93) -> 29 | AK3: Total Sequences in Block Data | AL3: =COUNTA(L94:L122) -> 29 | AP3: Total Sequences in Block Data | AQ3: =COUNTA(L123:L151) -> 29 | AU3: Total Sequences in Block Data | AV3: =COUNTA(L152:L180) -> 29
P4: Total Sequences in Summary | Q4: =SUM(O7:O14) -> 174 | V4: Total Sequences in Block Summary | W4: =SUM(U7:U14) -> 29 | AA4: Total Sequences in Block Summary | AB4: =SUM(Z7:Z14) -> 29 | AF4: Total Sequences in Block Summary | AG4: =SUM(AE7:AE14) -> 29 | AK4: Total Sequences in Block Summary | AL4: =SUM(AJ7:AJ14) -> 29 | AP4: Total Sequences in Block Summary | AQ4: =SUM(AO7:AO14) -> 29 | AU4: Total Sequences in Block Summary | AV4: =SUM(AT7:AT14) -> 29
T5: Block 1 | Y5: Block 2 | AD5: Block 3 | AI5: Block 4 | AN5: Block 5 | AS5: Block 6
A6: Sequence Component 1 | B6: Time 1 | C6: Sequence Component 2 | D6: Time 2 | E6: Sequence Component 3 | F6: Time 3 | G6: Sequence Component 4 | H6: Time 4 | I6: Sequence Component 5 | J6: Time 5 | K6: Correct? 0=No 1=Yes | L6: Sequence | N6: Frequency | P6: Relative Frequency | Q6: Variability | T6: Frequency | V6: Relative Frequency | W6: Variability | Y6: Frequency | AA6: Relative Frequency | AB6: Variability | AD6: Frequency | AF6: Relative Frequency | AG6: Variability | AI6: Frequency | AK6: Relative Frequency | AL6: Variability | AN6: Frequency | AP6: Relative Frequency | AQ6: Variability | AS6: Frequency | AU6: Relative Frequency | AV6: Variability
A7: 12 | B7: 9 | C7: 13 | D7: 13 | E7: 13 | F7: 19 | K7: 0 | L7: 111 | N7: 111 | O7: =COUNTIF($L$7:$L$500,N7) -> 144 | P7: =O7/$Q$4 -> 0.8275862069 | Q7: =IF(P7=0,0,(P7*((LOG(P7))/LOG(2)))) -> -0.2259463402 | T7: =N7 -> 111 | U7: =COUNTIF(L7:L35,T7) -> 23 | V7: =U7/(W4-U11) -> 0.8846153846 | W7: =IF(V7=0,0,(V7*((LOG(V7))/LOG(2)))) -> -0.1564687895 | Y7: =N7 -> 111 | Z7: =COUNTIF(L36:L64,Y7) -> 21 | AA7: =Z7/(AB4-Z11) -> 0.84 | AB7: =IF(AA7=0,0,(AA7*((LOG(AA7))/LOG(2)))) -> -0.2112925643 | AD7: =N7 -> 111 | AE7: =COUNTIF(L65:L93,AD7) -> 25 | AF7: =AE7/(AG4-AE11) -> 0.9615384615 | AG7: =IF(AF7=0,0,(AF7*((LOG(AF7))/LOG(2)))) -> -0.05440723881 | AI7: =N7 -> 111 | AJ7: =COUNTIF(L94:L122,AI7) -> 24 | AK7: =AJ7/(AL4-AJ11) -> 1 | AL7: =IF(AK7=0,0,(AK7*((LOG(AK7))/LOG(2)))) -> 0 | AN7: =N7 -> 111 | AO7: =COUNTIF(L123:L151,AN7) -> 24 | AP7: =AO7/(AQ4-AO11) -> 0.8888888889 | AQ7: =IF(AP7=0,0,(AP7*((LOG(AP7))/LOG(2)))) -> -0.1510444457 | AS7: =N7 -> 111 | AT7: =COUNTIF(L152:L180,AS7) -> 27 | AU7: =AT7/(AV4-AT11) -> 0.9642857143 | AV7: =IF(AU7=0,0,(AU7*((LOG(AU7))/LOG(2)))) -> -0.05059358347
A8: 12 | B8: 119 | C8: 13 | D8: 123 | E8: 13 | F8: 130 | K8: 0 | L8: 111 | N8: 112 | O8: 11 | P8: 0.0632183908 | Q8: -0.2518312106 | T8: 112 | U8: =COUNTIF(L7:L35,T8) -> 3 | V8: =U8/(W4-U11) -> 0.1153846154 | W8: =IF(V8=0,0,(V8*((LOG(V8))/LOG(2)))) -> -0.3594781405 | Y8: 112 | Z8: =COUNTIF(L36:L64,Y8) -> 4 | AA8: =Z8/(AB4-Z11) -> 0.16 | AB8: =IF(AA8=0,0,(AA8*((LOG(AA8))/LOG(2)))) -> -0.4230169904 | AD8: 112 | AE8: =COUNTIF(L65:L93,AD8) -> 1 | AF8: =AE8/(AG4-AE11) -> 0.03846153846 | AG8: =IF(AF8=0,0,(AF8*((LOG(AF8))/LOG(2)))) -> -0.180786143 | AI8: 112 | AJ8: =COUNTIF(L94:L122,AI8) -> 0 | AK8: =AJ8/(AL4-AJ11) -> 0 | AL8: =IF(AK8=0,0,(AK8*((LOG(AK8))/LOG(2)))) -> 0 | AN8: 112 | AO8: =COUNTIF(L123:L151,AN8) -> 2 | AP8: =AO8/(AQ4-AO11) -> 0.07407407407 | AQ8: =IF(AP8=0,0,(AP8*((LOG(AP8))/LOG(2)))) -> -0.278139815 | AS8: 112 | AT8: =COUNTIF(L152:L180,AS8) -> 1 | AU8: =AT8/(AV4-AT11) -> 0.03571428571 | AV8: =IF(AU8=0,0,(AU8*((LOG(AU8))/LOG(2)))) -> -0.1716912472
A9: 12 | B9: 230 | C9: 13 | D9: 232 | E9: 13 | F9: 236 | K9: 0 | L9: 111 | N9: 121 | O9: 0 | P9: 0 | Q9: 0 | T9: 121 | U9: =COUNTIF(L7:L35,T9) -> 0 | V9: =U9/(W4-U11) -> 0 | W9: =IF(V9=0,0,(V9*((LOG(V9))/LOG(2)))) -> 0 | Y9: 121 | Z9: =COUNTIF(L36:L64,Y9) -> 0 | AA9: =Z9/(AB4-Z11) -> 0 | AB9: =IF(AA9=0,0,(AA9*((LOG(AA9))/LOG(2)))) -> 0 | AD9: 121 | AE9: =COUNTIF(L65:L93,AD9) -> 0 | AF9: =AE9/(AG4-AE11) -> 0 | AG9: =IF(AF9=0,0,(AF9*((LOG(AF9))/LOG(2)))) -> 0 | AI9: 121 | AJ9: =COUNTIF(L94:L122,AI9) -> 0 | AK9: =AJ9/(AL4-AJ11) -> 0 | AL9: =IF(AK9=0,0,(AK9*((LOG(AK9))/LOG(2)))) -> 0 | AN9: 121 | AO9: =COUNTIF(L123:L151,AN9) -> 0 | AP9: =AO9/(AQ4-AO11) -> 0 | AQ9: =IF(AP9=0,0,(AP9*((LOG(AP9))/LOG(2)))) -> 0 | AS9: 121 | AT9: =COUNTIF(L152:L180,AS9) -> 0 | AU9: =AT9/(AV4-AT11) -> 0 | AV9: =IF(AU9=0,0,(AU9*((LOG(AU9))/LOG(2)))) -> 0
A10: 12 | B10: 337 | C10: 13 | D10: 340 | E10: 13 | F10: 346 | K10: 0 | L10: 111 | N10: 122 | O10: 1 | P10: 0.005747126437 | Q10: -0.04277553733 | T10: 122 | U10: =COUNTIF(L7:L35,T10) -> 0 | V10: =U10/(W4-U11) -> 0 | W10: =IF(V10=0,0,(V10*((LOG(V10))/LOG(2)))) -> 0 | Y10: 122 | Z10: =COUNTIF(L36:L64,Y10) -> 0 | AA10: =Z10/(AB4-Z11) -> 0 | AB10: =IF(AA10=0,0,(AA10*((LOG(AA10))/LOG(2)))) -> 0 | AD10: 122 | AE10: =COUNTIF(L65:L93,AD10) -> 0 | AF10: =AE10/(AG4-AE11) -> 0 | AG10: =IF(AF10=0,0,(AF10*((LOG(AF10))/LOG(2)))) -> 0 | AI10: 122 | AJ10: =COUNTIF(L94:L122,AI10) -> 0 | AK10: =AJ10/(AL4-AJ11) -> 0 | AL10: =IF(AK10=0,0,(AK10*((LOG(AK10))/LOG(2)))) -> 0 | AN10: 122 | AO10: =COUNTIF(L123:L151,AN10) -> 1 | AP10: =AO10/(AQ4-AO11) -> 0.03703703704 | AQ10: =IF(AP10=0,0,(AP10*((LOG(AP10))/LOG(2)))) -> -0.1761069445 | AS10: 122 | AT10: =COUNTIF(L152:L180,AS10) -> 0 | AU10: =AT10/(AV4-AT11) -> 0 | AV10: =IF(AU10=0,0,(AU10*((LOG(AU10))/LOG(2)))) -> 0
A11: 21 | B11: 444 | C11: 11 | D11: 449 | E11: 11 | F11: 452 | K11: 0 | L11: 211 | N11: 211 | O11: 18 | P11: 0.1034482759 | Q11: -0.3385881201 | T11: 211 | U11: =COUNTIF(L7:L35,T11) -> 3 | Y11: 211 | Z11: =COUNTIF(L36:L64,Y11) -> 4 | AD11: 211 | AE11: =COUNTIF(L65:L93,AD11) -> 3 | AI11: 211 | AJ11: =COUNTIF(L94:L122,AI11) -> 5 | AN11: 211 | AO11: =COUNTIF(L123:L151,AN11) -> 2 | AS11: 211 | AT11: =COUNTIF(L152:L180,AS11) -> 1
A12: 12 | B12: 554 | C12: 13 | D12: 558 | E12: 24 | F12: 568 | K12: 0 | L12: 112 | N12: 212 | O12: 0 | P12: 0 | Q12: 0 | T12: 212 | U12: =COUNTIF(L7:L35,T12) -> 0 | V12: =U12/(W4-U11) -> 0 | W12: =IF(V12=0,0,(V12*((LOG(V12))/LOG(2)))) -> 0 | Y12: 212 | Z12: =COUNTIF(L36:L64,Y12) -> 0 | AA12: =Z12/(AB4-Z11) -> 0 | AB12: =IF(AA12=0,0,(AA12*((LOG(AA12))/LOG(2)))) -> 0 | AD12: 212 | AE12: =COUNTIF(L65:L93,AD12) -> 0 | AF12: =AE12/(AG4-AE11) -> 0 | AG12: =IF(AF12=0,0,(AF12*((LOG(AF12))/LOG(2)))) -> 0 | AI12: 212 | AJ12: =COUNTIF(L94:L122,AI12) -> 0 | AK12: =AJ12/(AL4-AJ11) -> 0 | AL12: =IF(AK12=0,0,(AK12*((LOG(AK12))/LOG(2)))) -> 0 | AN12: 212 | AO12: =COUNTIF(L123:L151,AN12) -> 0 | AP12: =AO12/(AQ4-AO11) -> 0 | AQ12: =IF(AP12=0,0,(AP12*((LOG(AP12))/LOG(2)))) -> 0 | AS12: 212 | AT12: =COUNTIF(L152:L180,AS12) -> 0 | AU12: =AT12/(AV4-AT11) -> 0 | AV12: =IF(AU12=0,0,(AU12*((LOG(AU12))/LOG(2)))) -> 0
A13: 12 | B13: 669 | C13: 13 | D13: 674 | E13: 13 | F13: 676 | K13: 0 | L13: 111 | N13: 221 | O13: 0 | P13: 0 | Q13: 0 | T13: 221 | U13: =COUNTIF(L7:L35,T13) -> 0 | V13: =U13/(W4-U11) -> 0 | W13: =IF(V13=0,0,(V13*((LOG(V13))/LOG(2)))) -> 0 | Y13: 221 | Z13: =COUNTIF(L36:L64,Y13) -> 0 | AA13: =Z13/(AB4-Z11) -> 0 | AB13: =IF(AA13=0,0,(AA13*((LOG(AA13))/LOG(2)))) -> 0 | AD13: 221 | AE13: =COUNTIF(L65:L93,AD13) -> 0 | AF13: =AE13/(AG4-AE11) -> 0 | AG13: =IF(AF13=0,0,(AF13*((LOG(AF13))/LOG(2)))) -> 0 | AI13: 221 | AJ13: =COUNTIF(L94:L122,AI13) -> 0 | AK13: =AJ13/(AL4-AJ11) -> 0 | AL13: =IF(AK13=0,0,(AK13*((LOG(AK13))/LOG(2)))) -> 0 | AN13: 221 | AO13: =COUNTIF(L123:L151,AN13) -> 0 | AP13: =AO13/(AQ4-AO11) -> 0 | AQ13: =IF(AP13=0,0,(AP13*((LOG(AP13))/LOG(2)))) -> 0 | AS13: 221 | AT13: =COUNTIF(L152:L180,AS13) -> 0 | AU13: =AT13/(AV4-AT11) -> 0 | AV13: =IF(AU13=0,0,(AU13*((LOG(AU13))/LOG(2)))) -> 0
A14: 12 | B14: 777 | C14: 13 | D14: 781 | E14: 13 | F14: 787 | K14: 0 | L14: 111 | N14: 222 | O14: 0 | P14: 0 | Q14: 0 | T14: 222 | U14: =COUNTIF(L7:L35,T14) -> 0 | V14: =U14/(W4-U11) -> 0 | W14: =IF(V14=0,0,(V14*((LOG(V14))/LOG(2)))) -> 0 | Y14: 222 | Z14: =COUNTIF(L36:L64,Y14) -> 0 | AA14: =Z14/(AB4-Z11) -> 0 | AB14: =IF(AA14=0,0,(AA14*((LOG(AA14))/LOG(2)))) -> 0 | AD14: 222 | AE14: =COUNTIF(L65:L93,AD14) -> 0 | AF14: =AE14/(AG4-AE11) -> 0 | AG14: =IF(AF14=0,0,(AF14*((LOG(AF14))/LOG(2)))) -> 0 | AI14: 222 | AJ14: =COUNTIF(L94:L122,AI14) -> 0 | AK14: =AJ14/(AL4-AJ11) -> 0 | AL14: =IF(AK14=0,0,(AK14*((LOG(AK14))/LOG(2)))) -> 0 | AN14: 222 | AO14: =COUNTIF(L123:L151,AN14) -> 0 | AP14: =AO14/(AQ4-AO11) -> 0 | AQ14: =IF(AP14=0,0,(AP14*((LOG(AP14))/LOG(2)))) -> 0 | AS14: 222 | AT14: =COUNTIF(L152:L180,AS14) -> 0 | AU14: =AT14/(AV4-AT11) -> 0 | AV14: =IF(AU14=0,0,(AU14*((LOG(AU14))/LOG(2)))) -> 0
A15: 12 | B15: 884 | C15: 13 | D15: 888 | E15: 13 | F15: 892 | K15: 0 | L15: 111 | P15: =SUM(P7:P14) -> 1 | Q15: =-SUM(Q7:Q14) -> 0.8591412083 | V15: =SUM(V7:V14) -> 1 | W15: =-SUM(W7:W14) -> 0.51594693 | AA15: =SUM(AA7:AA14) -> 1 | AB15: =-SUM(AB7:AB14) -> 0.6343095546 | AF15: =SUM(AF7:AF14) -> 1 | AG15: =-SUM(AG7:AG14) -> 0.2351933818 | AK15: =SUM(AK7:AK14) -> 1 | AL15: =-SUM(AL7:AL14) -> 0 | AP15: =SUM(AP7:AP14) -> 1 | AQ15: =-SUM(AQ7:AQ14) -> 0.6052912052 | AU15: =SUM(AU7:AU14) -> 1 | AV15: =-SUM(AV7:AV14) -> 0.2222848307
A16: 12 | B16: 993 | C16: 13 | D16: 1001 | E16: 13 | F16: 1007 | K16: 0 | L16: 111 | P16: U= | Q16: =Q15/(LOG(Q4)/LOG(2)) -> 0.115430301 | V16: U1= | W16: =W15/(LOG(W4)/LOG(2)) -> 0.1062060413 | AA16: U2= | AB16: =AB15/(LOG(AB4)/LOG(2)) -> 0.1305706126 | AF16: U3= | AG16: =AG15/(LOG(AG4)/LOG(2)) -> 0.04841381266 | AK16: U4= | AL16: =AL15/(LOG(AL4)/LOG(2)) -> 0 | AP16: U5= | AQ16: =AQ15/(LOG(AQ4)/LOG(2)) -> 0.1245972773 | AU16: U6= | AV16: =AV15/(LOG(AV4)/LOG(2)) -> 0.0457566283
A17: 12 | B17: 1099 | C17: 13 | D17: 1103 | E17: 13 | F17: 1112 | K17: 0 | L17: 111
A18: 12 | B18: 1219 | C18: 13 | D18: 1221 | E18: 24 | F18: 1235 | K18: 0 | L18: 112
A19: 12 | B19: 1334 | C19: 13 | D19: 1337 | E19: 13 | F19: 1341 | K19: 0 | L19: 111 | N19: Total Target Seq
A20: 12 | B20: 1442 | C20: 13 | D20: 1446 | E20: 13 | F20: 1451 | K20: 0 | L20: 111 | N20: =COUNTIF(L7:L180,G3) -> 18 | P20: 29 | Q20: 29 | R20: 29 | S20: 29 | T20: 29 | U20: 29
A21: 12 | B21: 1552 | C21: 13 | D21: 1560 | E21: 13 | F21: 1564 | K21: 0 | L21: 111 | P21: % of reinforcement given in 6 equal intervals based on number of trials
A22: 12 | B22: 1674 | C22: 13 | D22: 1679 | E22: 13 | F22: 1685 | K22: 0 | L22: 111 | P22: %_1 | Q22: %_2 | R22: %_3 | S22: %_4 | T22: %_5 | U22: %_6
A23: 12 | B23: 1783 | C23: 13 | D23: 1786 | E23: 13 | F23: 1791 | K23: 0 | L23: 111 | O23: target sequence | P23: =$G$3 -> 211 | Q23: 211 | R23: 211 | S23: 211 | T23: 211 | U23: 211
A24: 12 | B24: 1892 | C24: 13 | D24: 1895 | E24: 13 | F24: 1900 | K24: 0 | L24: 111 | O24: total reinforcement | P24: =U11 -> 3 | Q24: =Z11 -> 4 | R24: =AE11 -> 3 | S24: =AJ11 -> 5 | T24: =AO11 -> 2 | U24: =AT11 -> 1
A25: 21 | B25: 1994 | C25: 11 | D25: 2000 | E25: 11 | F25: 2003 | K25: 0 | L25: 211 | O25: % target
A26: 12 | B26: 2156 | C26: 13 | D26: 2159 | E26: 13 | F26: 2162 | K26: 0 | L26: 111 | O26: CCRF
A27: 12 | B27: 2261 | C27: 13 | D27: 2264 | E27: 13 | F27: 2270 | K27: 0 | L27: 111 | O27: % CCRf
A28: 12 | B28: 2370 | C28: 13 | D28: 2374 | E28: 24 | F28: 2383 | K28: 0 | L28: 112 | O28: average response rate | P28: =F35/P20 -> 108.8275862 | Q28: =(F64-F35)/Q20 -> 119.3103448 | R28: =(F93-F64)/R20 -> 144.862069 | S28: =(F122-F93)/S20 -> 117.4137931 | T28: =(F151-F122)/T20 -> 121.3448276 | U28: =(F180-F151)/U20 -> 136.8275862
A29: 12 | B29: 2481 | C29: 13 | D29: 2484 | E29: 13 | F29: 2491 | K29: 0 | L29: 111
A30: 21 | B30: 2585 | C30: 11 | D30: 2591 | E30: 11 | F30: 2593 | K30: 0 | L30: 211
A31: 12 | B31: 2701 | C31: 13 | D31: 2704 | E31: 13 | F31: 2710 | K31: 0 | L31: 111
A32: 12 | B32: 2811 | C32: 13 | D32: 2816 | E32: 13 | F32: 2823 | K32: 0 | L32: 111
A33: 12 | B33: 2923 | C33: 13 | D33: 2927 | E33: 13 | F33: 2931 | K33: 0 | L33: 111
A34: 12 | B34: 3028 | C34: 13 | D34: 3040 | E34: 13 | F34: 3047 | K34: 0 | L34: 111
A35: 12 | B35: 3144 | C35: 13 | D35: 3147 | E35: 13 | F35: 3156 | K35: 0 | L35: 111
A36: 12 | B36: 3255 | C36: 13 | D36: 3258 | E36: 24 | F36: 3274 | K36: 0 | L36: 112
A37: 12 | B37: 3372 | C37: 13 | D37: 3374 | E37: 13 | F37: 3378 | K37: 0 | L37: 111
A38: 12 | B38: 3479 | C38: 13 | D38: 3482 | E38: 13 | F38: 3488 | K38: 0 | L38: 111
A39: 12 | B39: 3586 | C39: 13 | D39: 3590 | E39: 13 | F39: 3594 | K39: 0 | L39: 111
A40: 21 | B40: 3688 | C40: 11 | D40: 3693 | E40: 11 | F40: 3697 | K40: 0 | L40: 211
A41: 12 | B41: 3797 | C41: 13 | D41: 3804 | E41: 24 | F41: 3809 | K41: 0 | L41: 112
A42: 12 | B42: 3907 | C42: 13 | D42: 3910 | E42: 13 | F42: 3916 | K42: 0 | L42: 111
A43: 21 | B43: 4009 | C43: 11 | D43: 4015 | E43: 11 | F43: 4020 | K43: 0 | L43: 211
A44: 12 | B44: 4114 | C44: 13 | D44: 4117 | E44: 13 | F44: 4122 | K44: 0 | L44: 111
A45: 12 | B45: 4220 | C45: 13 | D45: 4224 | E45: 13 | F45: 4230 | K45: 0 | L45: 111
A46: 12 | B46: 4329 | C46: 13 | D46: 4333 | E46: 13 | F46: 4341 | K46: 0 | L46: 111
A47: 12 | B47: 4443 | C47: 13 | D47: 4449 | E47: 13 | F47: 4461 | K47: 0 | L47: 111
A48: 12 | B48: 4560 | C48: 13 | D48: 4565 | E48: 13 | F48: 4571 | K48: 0 | L48: 111
A49: 12 | B49: 4663 | C49: 13 | D49: 4669 | E49: 13 | F49: 4674 | K49: 0 | L49: 111
A50: 12 | B50: 4774 | C50: 13 | D50: 4778 | E50: 24 | F50: 4787 | K50: 0 | L50: 112
A51: 12 | B51: 4886 | C51: 13 | D51: 4890 | E51: 24 | F51: 4902 | K51: 0 | L51: 112
A52: 12 | B52: 5004 | C52: 13 | D52: 5008 | E52: 13 | F52: 5011 | K52: 0 | L52: 111
A53: 12 | B53: 5109 | C53: 13 | D53: 5113 | E53: 13 | F53: 5119 | K53: 0 | L53: 111
A54: 12 | B54: 5217 | C54: 13 | D54: 5221 | E54: 13 | F54: 5227 | K54: 0 | L54: 111
A55: 12 | B55: 5325 | C55: 13 | D55: 5334 | E55: 13 | F55: 5339 | K55: 0 | L55: 111
A56: 12 | B56: 5668 | C56: 13 | D56: 5671 | E56: 13 | F56: 5677 | K56: 0 | L56: 111
A57: 12 | B57: 5776 | C57: 13 | D57: 5778 | E57: 13 | F57: 5782 | K57: 0 | L57: 111
A58: 12 | B58: 5893 | C58: 13 | D58: 5896 | E58: 13 | F58: 5903 | K58: 0 | L58: 111
A59: 21 | B59: 5997 | C59: 11 | D59: 6003 | E59: 11 | F59: 6008 | K59: 0 | L59: 211
A60: 12 | B60: 6150 | C60: 13 | D60: 6159 | E60: 13 | F60: 6166 | K60: 0 | L60: 111
A61: 12 | B61: 6265 | C61: 13 | D61: 6268 | E61: 13 | F61: 6277 | K61: 0 | L61: 111
A62: 21 | B62: 6373 | C62: 11 | D62: 6377 | E62: 11 | F62: 6381 | K62: 0 | L62: 211
A63: 12 | B63: 6501 | C63: 13 | D63: 6506 | E63: 13 | F63: 6510 | K63: 0 | L63: 111
A64: 12 | B64: 6609 | C64: 13 | D64: 6612 | E64: 13 | F64: 6616 | K64: 0 | L64: 111
A65: 12 | B65: 6716 | C65: 13 | D65: 6724 | E65: 13 | F65: 6731 | K65: 0 | L65: 111
A66: 12 | B66: 6830 | C66: 13 | D66: 6833 | E66: 13 | F66: 6838 | K66: 0 | L66: 111
A67: 12 | B67: 6936 | C67: 13 | D67: 6938 | E67: 13 | F67: 6942 | K67: 0 | L67: 111
A68: 12 | B68: 7041 | C68: 13 | D68: 7045 | E68: 13 | F68: 7048 | K68: 0 | L68: 111
A69: 12 | B69: 7147 | C69: 13 | D69: 7152 | E69: 13 | F69: 7159 | K69: 0 | L69: 111
A70: 12 | B70: 7259 | C70: 13 | D70: 7262 | E70: 13 | F70: 7265 | K70: 0 | L70: 111
A71: 12 | B71: 7363 | C71: 13 | D71: 7367 | E71: 13 | F71: 7372 | K71: 0 | L71: 111
A72: 12 | B72: 7484 | C72: 13 | D72: 7490 | E72: 13 | F72: 7497 | K72: 0 | L72: 111
A73: 12 | B73: 7596 | C73: 13 | D73: 7602 | E73: 13 | F73: 7612 | K73: 0 | L73: 111
A74: 12 | B74: 7712 | C74: 13 | D74: 7718 | E74: 13 | F74: 7723 | K74: 0 | L74: 111
A75: 21 | B75: 8025 | C75: 11 | D75: 8026 | E75: 11 | F75: 8033 | K75: 0 | L75: 211
A76: 12 | B76: 8143 | C76: 13 | D76: 8149 | E76: 13 | F76: 8155 | K76: 0 | L76: 111
A77: 21 | B77: 8280 | C77: 11 | D77: 8284 | E77: 11 | F77: 8289 | K77: 0 | L77: 211
A78: 12 | B78: 8699 | C78: 13 | D78: 8703 | E78: 13 | F78: 8714 | K78: 0 | L78: 111
A79: 12 | B79: 8812 | C79: 13 | D79: 8815 | E79: 13 | F79: 8819 | K79: 0 | L79: 111
A80: 12 | B80: 8918 | C80: 13 | D80: 8921 | E80: 13 | F80: 8926 | K80: 0 | L80: 111
A81: 12 | B81: 9025 | C81: 13 | D81: 9028 | E81: 13 | F81: 9032 | K81: 0 | L81: 111
A82: 12 | B82: 9132 | C82: 13 | D82: 9134 | E82: 13 | F82: 9139 | K82: 0 | L82: 111
A83: 12 | B83: 9238 | C83: 13 | D83: 9242 | E83: 13 | F83: 9246 | K83: 0 | L83: 111
A84: 12 | B84: 9344 | C84: 13 | D84: 9347 | E84: 13 | F84: 9350 | K84: 0 | L84: 111
A85: 12 | B85: 9455 | C85: 13 | D85: 9460 | E85: 13 | F85: 9465 | K85: 0 | L85: 111
A86: 12 | B86: 9563 | C86: 13 | D86: 9567 | E86: 24 | F86: 9574 | K86: 0 | L86: 112
A87: 12 | B87: 9673 | C87: 13 | D87: 9676 | E87: 13 | F87: 9681 | K87: 0 | L87: 111
A88: 21 | B88: 9773 | C88: 11 | D88: 9780 | E88: 11 | F88: 9783 | K88: 0 | L88: 211
A89: 12 | B89: 10355 | C89: 13 | D89: 10359 | E89: 13 | F89: 10363 | K89: 0 | L89: 111
A90: 12 | B90: 10458 | C90: 13 | D90: 10461 | E90: 13 | F90: 10463 | K90: 0 | L90: 111
A91: 12 | B91: 10576 | C91: 13 | D91: 10581 | E91: 13 | F91: 10587 | K91: 0 | L91: 111
A92: 12 | B92: 10688 | C92: 13 | D92: 10691 | E92: 13 | F92: 10695 | K92: 0 | L92: 111
A93: 12 | B93: 10807 | C93: 13 | D93: 10811 | E93: 13 | F93: 10817 | K93: 0 | L93: 111
A94: 12 | B94: 10916 | C94: 13 | D94: 10920 | E94: 13 | F94: 10924 | K94: 0 | L94: 111
A95: 12 | B95: 11022 | C95: 13 | D95: 11025 | E95: 13 | F95: 11029 | K95: 0 | L95: 111
A96: 12 | B96: 11124 | C96: 13 | D96: 11126 | E96: 13 | F96: 11132 | K96: 0 | L96: 111
A97: 21 | B97: 11231 | C97: 11 | D97: 11239 | E97: 11 | F97: 11244 | K97: 0 | L97: 211
A98: 12 | B98: 11349 | C98: 13 | D98: 11355 | E98: 13 | F98: 11360 | K98: 0 | L98: 111
A99: 12 | B99: 11456 | C99: 13 | D99: 11459 | E99: 13 | F99: 11462 | K99: 0 | L99: 111
A100: 12 | B100: 11561 | C100: 13 | D100: 11564 | E100: 13 | F100: 11570 | K100: 0 | L100: 111
A101: 12 | B101: 11692 | C101: 13 | D101: 11696 | E101: 13 | F101: 11702 | K101: 0 | L101: 111
A102: 12 | B102: 11843 | C102: 13 | D102: 11848 | E102: 13 | F102: 11853 | K102: 0 | L102: 111
A103: 12 | B103: 11953 | C103: 13 | D103: 11956 | E103: 13 | F103: 11960 | K103: 0 | L103: 111
A104: 12 | B104: 12059 | C104: 13 | D104: 12062 | E104: 13 | F104: 12066 | K104: 0 | L104: 111
A105: 12 | B105: 12164 | C105: 13 | D105: 12167 | E105: 13 | F105: 12171 | K105: 0 | L105: 111
A106: 12 | B106: 12272 | C106: 13 | D106: 12276 | E106: 13 | F106: 12281 | K106: 0 | L106: 111
A107: 12 | B107: 12380 | C107: 13 | D107: 12387 | E107: 13 | F107: 12393 | K107: 0 | L107: 111
A108: 12 | B108: 12491 | C108: 13 | D108: 12495 | E108: 13 | F108: 12498 | K108: 0 | L108: 111
A109: 12 | B109: 12597 | C109: 13 | D109: 12600 | E109: 13 | F109: 12604 | K109: 0 | L109: 111
A110: 12 | B110: 12724 | C110: 13 | D110: 12730 | E110: 13 | F110: 12738 | K110: 0 | L110: 111
A111: 12 | B111: 12834 | C111: 13 | D111: 12837 | E111: 13 | F111: 12840 | K111: 0 | L111: 111
A112: 12 | B112: 12941 | C112: 13 | D112: 12944 | E112: 13 | F112: 12951 | K112: 0 | L112: 111
A113: 12 | B113: 13050 | C113: 13 | D113: 13057 | E113: 13 | F113: 13066 | K113: 0 | L113: 111
A114: 21 | B114: 13159 | C114: 11 | D114: 13166 | E114: 11 | F114: 13169 | K114: 0 | L114: 211
A115: 21 | B115: 13343 | C115: 11 | D115: 13356 | E115: 11 | F115: 13361 | K115: 0 | L115: 211
A116: 12 | B116: 13541 | C116: 13 | D116: 13545 | E116: 13 | F116: 13551 | K116: 0 | L116: 111
A117: 21 | B117: 13644 | C117: 11 | D117: 13651 | E117: 11 | F117: 13657 | K117: 0 | L117: 211
A118: 12 | B118: 13773 | C118: 13 | D118: 13780 | E118: 13 | F118: 13786 | K118: 0 | L118: 111
A119: 12 | B119: 13885 | C119: 13 | D119: 13889 | E119: 13 | F119: 13892 | K119: 0 | L119: 111
A120: 12 | B120: 13991 | C120: 13 | D120: 13994 | E120: 13 | F120: 13998 | K120: 0 | L120: 111
A121: 21 | B121: 14090 | C121: 11 | D121: 14097 | E121: 11 | F121: 14099 | K121: 0 | L121: 211
A122: 12 | B122: 14206 | C122: 13 | D122: 14212 | E122: 13 | F122: 14222 | K122: 0 | L122: 111
A123: 12 | B123: 14320 | C123: 13 | D123: 14325 | E123: 13 | F123: 14335 | K123: 0 | L123: 111
A124: 12 | B124: 14472 | C124: 13 | D124: 14477 | E124: 13 | F124: 14488 | K124: 0 | L124: 111
A125: 12 | B125: 14590 | C125: 13 | D125: 14593 | E125: 13 | F125: 14599 | K125: 0 | L125: 111
A126: 12 | B126: 14908 | C126: 13 | D126: 14912 | E126: 13 | F126: 14917 | K126: 0 | L126: 111
A127: 12 | B127: 15008 | C127: 13 | D127: 15011 | E127: 13 | F127: 15015 | K127: 0 | L127: 111
A128: 21 | B128: 15108 | C128: 11 | D128: 15114 | E128: 11 | F128: 15117 | K128: 0 | L128: 211
A129: 12 | B129: 15232 | C129: 13 | D129: 15236 | E129: 13 | F129: 15240 | K129: 0 | L129: 111
A130: 12 | B130: 15341 | C130: 13 | D130: 15344 | E130: 13 | F130: 15347 | K130: 0 | L130: 111
A131: 12 | B131: 15448 | C131: 13 | D131: 15453 | E131: 13 | F131: 15460 | K131: 0 | L131: 111
A132: 12 | B132: 15559 | C132: 13 | D132: 15561 | E132: 13 | F132: 15566 | K132: 0 | L132: 111
A133: 12 | B133: 15665 | C133: 13 | D133: 15670 | E133: 13 | F133: 15675 | K133: 0 | L133: 111
A134: 12 | B134: 15774 | C134: 13 | D134: 15776 | E134: 13 | F134: 15781 | K134: 0 | L134: 111
A135: 12 | B135: 15874 | C135: 13 | D135: 15878 | E135: 13 | F135: 15888 | K135: 0 | L135: 111
A136: 12 | B136: 15986 | C136: 13 | D136: 15991 | E136: 13 | F136: 15996 | K136: 0 | L136: 111
A137: 12 | B137: 16095 | C137: 13 | D137: 16100 | E137: 13 | F137: 16105 | K137: 0 | L137: 111
A138: 12 | B138: 16203 | C138: 13 | D138: 16208 | E138: 13 | F138: 16213 | K138: 0 | L138: 111
A139: 12 | B139: 16312 | C139: 13 | D139: 16317 | E139: 24 | F139: 16327 | K139: 0 | L139: 112
A140: 12 | B140: 16503 | C140: 13 | D140: 16506 | E140: 13 | F140: 16511 | K140: 0 | L140: 111
A141: 12 | B141: 16610 | C141: 13 | D141: 16614 | E141: 13 | F141: 16616 | K141: 0 | L141: 111
A142: 12 | B142: 16717 | C142: 13 | D142: 16720 | E142: 13 | F142: 16724 | K142: 0 | L142: 111
A143: 12 | B143: 16822 | C143: 13 | D143: 16830 | E143: 13 | F143: 16836 | K143: 0 | L143: 111
A144: 12 | B144: 16936 | C144: 13 | D144: 16938 | E144: 13 | F144: 16943 | K144: 0 | L144: 111
A145: 12 | B145: 17050 | C145: 13 | D145: 17053 | E145: 13 | F145: 17062 | K145: 0 | L145: 111
A146: 12 | B146: 17160 | C146: 13 | D146: 17163 | E146: 13 | F146: 17168 | K146: 0 | L146: 111
A147: 12 | B147: 17267 | C147: 13 | D147: 17271 | E147: 13 | F147: 17276 | K147: 0 | L147: 111
A148: 12 | B148: 17378 | C148: 13 | D148: 17383 | E148: 24 | F148: 17391 | K148: 0 | L148: 112
A149: 12 | B149: 17495 | C149: 24 | D149: 17504 | E149: 24 | F149: 17510 | K149: 0 | L149: 122
A150: 21 | B150: 17607 | C150: 11 | D150: 17613 | E150: 11 | F150: 17616 | K150: 0 | L150: 211
A151: 12 | B151: 17725 | C151: 13 | D151: 17727 | E151: 13 | F151: 17741 | K151: 0 | L151: 111
A152: 12 | B152: 17838 | C152: 13 | D152: 17843 | E152: 13 | F152: 17852 | K152: 0 | L152: 111
A153: 12 | B153: 17952 | C153: 13 | D153: 17955 | E153: 13 | F153: 17959 | K153: 0 | L153: 111
A154: 12 | B154: 18058 | C154: 13 | D154: 18061 | E154: 13 | F154: 18063 | K154: 0 | L154: 111
A155: 12 | B155: 18162 | C155: 13 | D155: 18166 | E155: 13 | F155: 18171 | K155: 0 | L155: 111
A156: 12 | B156: 18270 | C156: 13 | D156: 18273 | E156: 13 | F156: 18278 | K156: 0 | L156: 111
A157: 12 | B157: 18378 | C157: 13 | D157: 18386 | E157: 13 | F157: 18392 | K157: 0 | L157: 111
A158: 12 | B158: 18491 | C158: 13 | D158: 18497 | E158: 13 | F158: 18503 | K158: 0 | L158: 111
A159: 12 | B159: 18604 | C159: 13 | D159: 18609 | E159: 13 | F159: 18615 | K159: 0 | L159: 111
A160: 12 | B160: 18787 | C160: 13 | D160: 18789 | E160: 13 | F160: 18796 | K160: 0 | L160: 111
A161: 12 | B161: 18897 | C161: 13 | D161: 18901 | E161: 13 | F161: 18907 | K161: 0 | L161: 111
A162: 12 | B162: 19006 | C162: 13 | D162: 19009 | E162: 13 | F162: 19014 | K162: 0 | L162: 111
A163: 12 | B163: 19145 | C163: 13 | D163: 19149 | E163: 13 | F163: 19154 | K163: 0 | L163: 111
A164: 12 | B164: 19850 | C164: 13 | D164: 19855 | E164: 13 | F164: 19862 | K164: 0 | L164: 111
A165: 12 | B165: 19956 | C165: 13 | D165: 19960 | E165: 13 | F165: 19967 | K165: 0 | L165: 111
A166: 12 | B166: 20061 | C166: 13 | D166: 20065 | E166: 13 | F166: 20077 | K166: 0 | L166: 111
A167: 12 | B167: 20177 | C167: 13 | D167: 20180 | E167: 13 | F167: 20186 | K167: 0 | L167: 111
A168: 12 | B168: 20287 | C168: 13 | D168: 20291 | E168: 13 | F168: 20297 | K168: 0 | L168: 111
A169: 12 | B169: 20412 | C169: 13 | D169: 20415 | E169: 13 | F169: 20426 | K169: 0 | L169: 111
A170: 12 | B170: 20528 | C170: 13 | D170: 20532 | E170: 24 | F170: 20539 | K170: 0 | L170: 112
A171: 12 | B171: 20639 | C171: 13 | D171: 20641 | E171: 13 | F171: 20646 | K171: 0 | L171: 111
A172: 12 | B172: 20746 | C172: 13 | D172: 20754 | E172: 13 | F172: 20761 | K172: 0 | L172: 111
A173: 12 | B173: 20863 | C173: 13 | D173: 20867 | E173: 13 | F173: 20873 | K173: 0 | L173: 111
A174: 12 | B174: 20995 | C174: 13 | D174: 20997 | E174: 13 | F174: 21001 | K174: 0 | L174: 111
A175: 12 | B175: 21101 | C175: 13 | D175: 21103 | E175: 13 | F175: 21110 | K175: 0 | L175: 111
A176: 12 | B176: 21234 | C176: 13 | D176: 21238 | E176: 13 | F176: 21244 | K176: 0 | L176: 111
A177: 12 | B177: 21344 | C177: 13 | D177: 21347 | E177: 13 | F177: 21376 | K177: 0 | L177: 111
A178: 12 | B178: 21477 | C178: 13 | D178: 21483 | E178: 13 | F178: 21489 | K178: 0 | L178: 111
A179: 12 | B179: 21589 | C179: 13 | D179: 21592 | E179: 13 | F179: 21596 | K179: 0 | L179: 111
A180: 21 | B180: 21691 | C180: 11 | D180: 21697 | E180: 11 | F180: 21709 | K180: 1 | L180: 211

Sheet !N204A1T.AYL
A1: Report for:!N204A1T.AYL
A2: Date: | B2: <date>
A3: Hen: | B3: <hen> | F3: Correct Sequence | G3: =Start!J2 -> 211 | P3: Total Sequences in Data | Q3: =4994-COUNTBLANK(L7:L5000) -> 138 | V3: Total Sequences in Block Data | W3: =COUNTA(L7:L29) -> 23 | AA3: Total Sequences in Block Data | AB3: =COUNTA(L30:L52) -> 23 | AF3: Total Sequences in Block Data | AG3: =COUNTA(L53:L75) -> 23 | AK3: Total Sequences in Block Data | AL3: =COUNTA(L76:L98) -> 23 | AP3: Total Sequences in Block Data | AQ3: =COUNTA(L99:L121) -> 23 | AU3: Total Sequences in Block Data | AV3: =COUNTA(L122:L144) -> 23
P4: Total Sequences in Summary | Q4: =SUM(O7:O14) -> 138 | V4: Total Sequences in Block Summary | W4: =SUM(U7:U14) -> 23 | AA4: Total Sequences in Block Summary | AB4: =SUM(Z7:Z14) -> 23 | AF4: Total Sequences in Block Summary | AG4: =SUM(AE7:AE14) -> 23 | AK4: Total Sequences in Block Summary | AL4: =SUM(AJ7:AJ14) -> 23 | AP4: Total Sequences in Block Summary | AQ4: =SUM(AO7:AO14) -> 23 | AU4: Total Sequences in Block Summary | AV4: =SUM(AT7:AT14) -> 23
T5: Block 1 | Y5: Block 2 | AD5: Block 3 | AI5: Block 4 | AN5: Block 5 | AS5: Block 6
A6: Sequence Component 1 | B6: Time 1 | C6: Sequence Component 2 | D6: Time 2 | E6: Sequence Component 3 | F6: Time 3 | G6: Sequence Component 4 | H6: Time 4 | I6: Sequence Component 5 | J6: Time 5 | K6: Correct? 0=No 1=Yes | L6: Sequence | N6: Frequency | P6: Relative Frequency | Q6: Variability | T6: Frequency | V6: Relative Frequency | W6: Variability | Y6: Frequency | AA6: Relative Frequency | AB6: Variability | AD6: Frequency | AF6: Relative Frequency | AG6: Variability | AI6: Frequency | AK6: Relative Frequency | AL6: Variability | AN6: Frequency | AP6: Relative Frequency | AQ6: Variability | AS6: Frequency | AU6: Relative Frequency | AV6: Variability
A7: 12 | B7: 11 | C7: 13 | D7: 16 | E7: 13 | F7: 19 | K7: 0 | L7: 111 | N7: 111 | O7: =COUNTIF($L$7:$L$500,N7) -> 97 | P7: =O7/$Q$4 -> 0.7028985507 | Q7: =IF(P7=0,0,(P7*((LOG(P7))/LOG(2)))) -> -0.3575023668 | T7: =N7 -> 111 | U7: =COUNTIF(L7:L29,T7) -> 15 | V7: =U7/(W4-U11) -> 0.75 | W7: =IF(V7=0,0,(V7*((LOG(V7))/LOG(2)))) -> -0.3112781245 | Y7: =N7 -> 111 | Z7: =COUNTIF(L30:L52,Y7) -> 17 | AA7: =Z7/(AB4-Z11) -> 0.8095238095 | AB7: =IF(AA7=0,0,(AA7*((LOG(AA7))/LOG(2)))) -> -0.2467870422 | AD7: =N7 -> 111 | AE7: =COUNTIF(L53:L75,AD7) -> 18 | AF7: =AE7/(AG4-AE11) -> 0.9 | AG7: =IF(AF7=0,0,(AF7*((LOG(AF7))/LOG(2)))) -> -0.1368027841 | AI7: =N7 -> 111 | AJ7: =COUNTIF(L76:L98,AI7) -> 19 | AK7: =AJ7/(AL4-AJ11) -> 0.95 | AL7: =IF(AK7=0,0,(AK7*((LOG(AK7))/LOG(2)))) -> -0.07030055237 | AN7: =N7 -> 111 | AO7: =COUNTIF(L99:L121,AN7) -> 15 | AP7: =AO7/(AQ4-AO11) -> 0.9375 | AQ7: =IF(AP7=0,0,(AP7*((LOG(AP7))/LOG(2)))) -> -0.08729006662 | AS7: =N7 -> 111 | AT7: =COUNTIF(L122:L144,AS7) -> 13 | AU7: =AT7/(AV4-AT11) -> 0.7647058824 | AV7: =IF(AU7=0,0,(AU7*((LOG(AU7))/LOG(2)))) -> -0.2959588588
A8: 12 | B8: 117 | C8: 13 | D8: 120 | E8: 13 | F8: 125 | K8: 0 | L8: 111 | N8: 112 | O8: 10 | P8: 0.07246376812 | Q8: -0.2743910407 | T8: 112 | U8: =COUNTIF(L7:L29,T8) -> 2 | V8: =U8/(W4-U11) -> 0.1 | W8: =IF(V8=0,0,(V8*((LOG(V8))/LOG(2)))) -> -0.3321928095 | Y8: 112 | Z8: =COUNTIF(L30:L52,Y8) -> 4 | AA8: =Z8/(AB4-Z11) -> 0.1904761905 | AB8: =IF(AA8=0,0,(AA8*((LOG(AA8))/LOG(2)))) -> -0.4556795091 | AD8: 112 | AE8: =COUNTIF(L53:L75,AD8) -> 1 | AF8: =AE8/(AG4-AE11) -> 0.05 | AG8: =IF(AF8=0,0,(AF8*((LOG(AF8))/LOG(2)))) -> -0.2160964047 | AI8: 112 | AJ8: =COUNTIF(L76:L98,AI8) -> 1 | AK8: =AJ8/(AL4-AJ11) -> 0.05 | AL8: =IF(AK8=0,0,(AK8*((LOG(AK8))/LOG(2)))) -> -0.2160964047 | AN8: 112 | AO8: =COUNTIF(L99:L121,AN8) -> 0 | AP8: =AO8/(AQ4-AO11) -> 0 | AQ8: =IF(AP8=0,0,(AP8*((LOG(AP8))/LOG(2)))) -> 0 | AS8: 112 | AT8: =COUNTIF(L122:L144,AS8) -> 2 | AU8: =AT8/(AV4-AT11) -> 0.1176470588 | AV8: =IF(AU8=0,0,(AU8*((LOG(AU8))/LOG(2)))) -> -0.3632309225
A9: 12 | B9: 224 | C9: 13 | D9: 229 | E9: 13 | F9: 233 | K9: 0 | L9: 111 | N9: 121 | O9: 3 | P9: 0.02173913043 | Q9: -0.1200774338 | T9: 121 | U9: =COUNTIF(L7:L29,T9) -> 2 | V9: =U9/(W4-U11) -> 0.1 | W9: =IF(V9=0,0,(V9*((LOG(V9))/LOG(2)))) -> -0.3321928095 | Y9: 121 | Z9: =COUNTIF(L30:L52,Y9) -> 0 | AA9: =Z9/(AB4-Z11) -> 0 | AB9: =IF(AA9=0,0,(AA9*((LOG(AA9))/LOG(2)))) -> 0 | AD9: 121 | AE9: =COUNTIF(L53:L75,AD9) -> 1 | AF9: =AE9/(AG4-AE11) -> 0.05 | AG9: =IF(AF9=0,0,(AF9*((LOG(AF9))/LOG(2)))) -> -0.2160964047 | AI9: 121 | AJ9: =COUNTIF(L76:L98,AI9) -> 0 | AK9: =AJ9/(AL4-AJ11) -> 0 | AL9: =IF(AK9=0,0,(AK9*((LOG(AK9))/LOG(2)))) -> 0 | AN9: 121 | AO9: =COUNTIF(L99:L121,AN9) -> 0 | AP9: =AO9/(AQ4-AO11) -> 0 | AQ9: =IF(AP9=0,0,(AP9*((LOG(AP9))/LOG(2)))) -> 0 | AS9: 121 | AT9: =COUNTIF(L122:L144,AS9) -> 0 | AU9: =AT9/(AV4-AT11) -> 0 | AV9: =IF(AU9=0,0,(AU9*((LOG(AU9))/LOG(2)))) -> 0
A10: 21 | B10: 327 | C10: 11 | D10: 332 | E10: 11 | F10: 335 | K10: 0 | L10: 211 | N10: 122 | O10: 0 | P10: 0 | Q10: 0 | T10: 122 | U10: =COUNTIF(L7:L29,T10) -> 0 | V10: =U10/(W4-U11) -> 0 | W10: =IF(V10=0,0,(V10*((LOG(V10))/LOG(2)))) -> 0 | Y10: 122 | Z10: =COUNTIF(L30:L52,Y10) -> 0 | AA10: =Z10/(AB4-Z11) -> 0 | AB10: =IF(AA10=0,0,(AA10*((LOG(AA10))/LOG(2)))) -> 0 | AD10: 122 | AE10: =COUNTIF(L53:L75,AD10) -> 0 | AF10: =AE10/(AG4-AE11) -> 0 | AG10: =IF(AF10=0,0,(AF10*((LOG(AF10))/LOG(2)))) -> 0 | AI10: 122 | AJ10: =COUNTIF(L76:L98,AI10) -> 0 | AK10: =AJ10/(AL4-AJ11) -> 0 | AL10: =IF(AK10=0,0,(AK10*((LOG(AK10))/LOG(2)))) -> 0 | AN10: 122 | AO10: =COUNTIF(L99:L121,AN10) -> 0 | AP10: =AO10/(AQ4-AO11) -> 0 | AQ10: =IF(AP10=0,0,(AP10*((LOG(AP10))/LOG(2)))) -> 0 | AS10: 122 | AT10: =COUNTIF(L122:L144,AS10) -> 0 | AU10: =AT10/(AV4-AT11) -> 0 | AV10: =IF(AU10=0,0,(AU10*((LOG(AU10))/LOG(2)))) -> 0
A11: 12 | B11: 434 | C11: 13 | D11: 437 | E11: 13 | F11: 443 | K11: 0 | L11: 111 | N11: 211 | O11: 24 | P11: 0.1739130435 | Q11: -0.4388803402 | T11: 211 | U11: =COUNTIF(L7:L29,T11) -> 3 | Y11: 211 | Z11: =COUNTIF(L30:L52,Y11) -> 2 | AD11: 211 | AE11: =COUNTIF(L53:L75,AD11) -> 3 | AI11: 211 | AJ11: =COUNTIF(L76:L98,AI11) -> 3 | AN11: 211 | AO11: =COUNTIF(L99:L121,AN11) -> 7 | AS11: 211 | AT11: =COUNTIF(L122:L144,AS11) -> 6
A12: 21 | B12: 539 | C12: 11 | D12: 542 | E12: 11 | F12: 545 | K12: 0 | L12: 211 | N12: 212 | O12: 1 | P12: 0.007246376812 | Q12: -0.05151104679 | T12: 212 | U12: =COUNTIF(L7:L29,T12) -> 0 | V12: =U12/(W4-U11) -> 0 | W12: =IF(V12=0,0,(V12*((LOG(V12))/LOG(2)))) -> 0 | Y12: 212 | Z12: =COUNTIF(L30:L52,Y12) -> 0 | AA12: =Z12/(AB4-Z11) -> 0 | AB12: =IF(AA12=0,0,(AA12*((LOG(AA12))/LOG(2)))) -> 0 | AD12: 212 | AE12: =COUNTIF(L53:L75,AD12) -> 0 | AF12: =AE12/(AG4-AE11) -> 0 | AG12: =IF(AF12=0,0,(AF12*((LOG(AF12))/LOG(2)))) -> 0 | AI12: 212 | AJ12: =COUNTIF(L76:L98,AI12) -> 0 | AK12: =AJ12/(AL4-AJ11) -> 0 | AL12: =IF(AK12=0,0,(AK12*((LOG(AK12))/LOG(2)))) -> 0 | AN12: 212 | AO12: =COUNTIF(L99:L121,AN12) -> 0 | AP12: =AO12/(AQ4-AO11) -> 0 | AQ12: =IF(AP12=0,0,(AP12*((LOG(AP12))/LOG(2)))) -> 0 | AS12: 212 | AT12: =COUNTIF(L122:L144,AS12) -> 1 | AU12: =AT12/(AV4-AT11) -> 0.05882352941 | AV12: =IF(AU12=0,0,(AU12*((LOG(AU12))/LOG(2)))) -> -0.2404389907
A13: 12 | B13: 696 | C13: 24 | D13: 711 | E13: 13 | F13: 722 | K13: 0 | L13: 121 | N13: 221 | O13: 3 | P13: 0.02173913043 | Q13: -0.1200774338 | T13: 221 | U13: =COUNTIF(L7:L29,T13) -> 1 | V13: =U13/(W4-U11) -> 0.05 | W13: =IF(V13=0,0,(V13*((LOG(V13))/LOG(2)))) -> -0.2160964047 | Y13: 221 | Z13: =COUNTIF(L30:L52,Y13) -> 0 | AA13: =Z13/(AB4-Z11) -> 0 | AB13: =IF(AA13=0,0,(AA13*((LOG(AA13))/LOG(2)))) -> 0 | AD13: 221 | AE13: =COUNTIF(L53:L75,AD13) -> 0 | AF13: =AE13/(AG4-AE11) -> 0 | AG13: =IF(AF13=0,0,(AF13*((LOG(AF13))/LOG(2)))) -> 0 | AI13: 221 | AJ13: =COUNTIF(L76:L98,AI13) -> 0 | AK13: =AJ13/(AL4-AJ11) -> 0 | AL13: =IF(AK13=0,0,(AK13*((LOG(AK13))/LOG(2)))) -> 0 | AN13: 221 | AO13: =COUNTIF(L99:L121,AN13) -> 1 | AP13: =AO13/(AQ4-AO11) -> 0.0625 | AQ13: =IF(AP13=0,0,(AP13*((LOG(AP13))/LOG(2)))) -> -0.25 | AS13: 221 | AT13: =COUNTIF(L122:L144,AS13) -> 1 | AU13: =AT13/(AV4-AT11) -> 0.05882352941 | AV13: =IF(AU13=0,0,(AU13*((LOG(AU13))/LOG(2)))) -> -0.2404389907
A14: 12 | B14: 821 | C14: 13 | D14: 825 | E14: 13 | F14: 830 | K14: 0 | L14: 111 | N14: 222 | O14: 0 | P14: 0 | Q14: 0 | T14: 222 | U14: =COUNTIF(L7:L29,T14) -> 0 | V14: =U14/(W4-U11) -> 0 | W14: =IF(V14=0,0,(V14*((LOG(V14))/LOG(2)))) -> 0 | Y14: 222 | Z14: =COUNTIF(L30:L52,Y14) -> 0 | AA14: =Z14/(AB4-Z11) -> 0 | AB14: =IF(AA14=0,0,(AA14*((LOG(AA14))/LOG(2)))) -> 0 | AD14: 222 | AE14: =COUNTIF(L53:L75,AD14) -> 0 | AF14: =AE14/(AG4-AE11) -> 0 | AG14: =IF(AF14=0,0,(AF14*((LOG(AF14))/LOG(2)))) -> 0 | AI14: 222 | AJ14: =COUNTIF(L76:L98,AI14) -> 0 | AK14: =AJ14/(AL4-AJ11) -> 0 | AL14: =IF(AK14=0,0,(AK14*((LOG(AK14))/LOG(2)))) -> 0 | AN14: 222 | AO14: =COUNTIF(L99:L121,AN14) -> 0 | AP14: =AO14/(AQ4-AO11) -> 0 | AQ14: =IF(AP14=0,0,(AP14*((LOG(AP14))/LOG(2)))) -> 0 | AS14: 222 | AT14: =COUNTIF(L122:L144,AS14) -> 0 | AU14: =AT14/(AV4-AT11) -> 0 | AV14: =IF(AU14=0,0,(AU14*((LOG(AU14))/LOG(2)))) -> 0
A15: 12 | B15: 930 | C15: 13 | D15: 936 | E15: 13 | F15: 944 | K15: 0 | L15: 111 | P15: =SUM(P7:P14) -> 1 | Q15: =-SUM(Q7:Q14) -> 1.362439662 | V15: =SUM(V7:V14) -> 1 | W15: =-SUM(W7:W14) -> 1.191760148 | AA15: =SUM(AA7:AA14) -> 1 | AB15: =-SUM(AB7:AB14) -> 0.7024665513 | AF15: =SUM(AF7:AF14) -> 1 | AG15: =-SUM(AG7:AG14) -> 0.5689955936 | AK15: =SUM(AK7:AK14) -> 1 | AL15: =-SUM(AL7:AL14) -> 0.2863969571 | AP15: =SUM(AP7:AP14) -> 1 | AQ15: =-SUM(AQ7:AQ14) -> 0.3372900666 | AU15: =SUM(AU7:AU14) -> 1 | AV15: =-SUM(AV7:AV14) -> 1.140067763
A16: 12 | B16: 1043 | C16: 24 | D16: 1046 | E16: 13 | F16: 1048 | K16: 0 | L16: 121 | P16: U= | Q16: =Q15/(LOG(Q4)/LOG(2)) -> 0.1916627945 | V16: U1= | W16: =W15/(LOG(W4)/LOG(2)) -> 0.2634561347 | AA16: U2= | AB16: =AB15/(LOG(AB4)/LOG(2)) -> 0.1552905781 | AF16: U3= | AG16: =AG15/(LOG(AG4)/LOG(2)) -> 0.125784857 | AK16: U4= | AL16: =AL15/(LOG(AL4)/LOG(2)) -> 0.06331226584 | AP16: U5= | AQ16: =AQ15/(LOG(AQ4)/LOG(2)) -> 0.07456293733 | AU16: U6= | AV16: =AV15/(LOG(AV4)/LOG(2)) -> 0.2520287715
A17: 21 | B17: 1165 | C17: 22 | D17: 1170 | E17: 13 | F17: 1184 | K17: 0 | L17: 221
A18: 12 | B18: 1284 | C18: 13 | D18: 1288 | E18: 13 | F18: 1295 | K18: 0 | L18: 111
A19: 12 | B19: 1394 | C19: 13 | D19: 1397 | E19: 13 | F19: 1406 | K19: 0 | L19: 111 | N19: Total Target Seq
A20: 12 | B20: 1505 | C20: 13 | D20: 1508 | E20: 13 | F20: 1514 | K20: 0 | L20: 111 | N20: =COUNTIF(L7:L144,G3) -> 24 | P20: 23 | Q20: 23 | R20: 23 | S20: 23 | T20: 23 | U20: 23
A21: 21 | B21: 1610 | C21: 11 | D21: 1613 | E21: 11 | F21: 1617 | K21: 0 | L21: 211 | P21: % of reinforcement given in 6 equal intervals based on number of trials
A22: 12 | B22: 1748 | C22: 13 | D22: 1757 | E22: 13 | F22: 1763 | K22: 0 | L22: 111 | P22: %_1 | Q22: %_2 | R22: %_3 | S22: %_4 | T22: %_5 | U22: %_6
A23: 12 | B23: 1862 | C23: 13 | D23: 1875 | E23: 13 | F23: 1884 | K23: 0 | L23: 111 | O23: target sequence | P23: =$G$3 -> 211 | Q23: 211 | R23: 211 | S23: 211 | T23: 211 | U23: 211
A24: 12 | B24: 1984 | C24: 13 | D24: 1988 | E24: 13 | F24: 1997 | K24: 0 | L24: 111 | O24: total reinforcement | P24: =U11 -> 3 | Q24: =Z11 -> 2 | R24: =AE11 -> 3 | S24: =AJ11 -> 3 | T24: =AO11 -> 7 | U24: =AT11 -> 6
A25: 12 | B25: 2092 | C25: 13 | D25: 2096 | E25: 13 | F25: 2107 | K25: 0 | L25: 111 | O25: % target
A26: 12 | B26: 2206 | C26: 13 | D26: 2212 | E26: 13 | F26: 2218 | K26: 0 | L26: 111 | O26: CCRF
A27: 12 | B27: 2319 | C27: 13 | D27: 2322 | E27: 24 | F27: 2330 | K27: 0 | L27: 112 | O27: % CCRf
A28: 12 | B28: 2422 | C28: 13 | D28: 2425 | E28: 13 | F28: 2431 | K28: 0 | L28: 111 | O28: average response rate | P28: =F29/P20 -> 110.6956522 | Q28: =(F52-F29)/Q20 -> 144.7826087 | R28: =(F75-F52)/R20 -> 142.3478261 | S28: =(F98-F75)/S20 -> 137.2608696 | T28: =(F121-F98)/T20 -> 118.9130435 | U28: =(F144-F121)/U20 -> 126.4347826
A29: 12 | B29: 2529 | C29: 13 | D29: 2533 | E29: 24 | F29: 2546 | K29: 0 | L29: 112
A30: 12 | B30: 2646 | C30: 13 | D30: 2650 | E30: 24 | F30: 2660 | K30: 0 | L30: 112
A31: 12 | B31: 2758 | C31: 13 | D31: 2762 | E31: 24 | F31: 2768 | K31: 0 | L31: 112
A32: 12 | B32: 2867 | C32: 13 | D32: 2870 | E32: 13 | F32: 2877 | K32: 0 | L32: 111
A33: 12 | B33: 2974 | C33: 13 | D33: 2981 | E33: 13 | F33: 2988 | K33: 0 | L33: 111
A34: 12 | B34: 3081 | C34: 13 | D34: 3084 | E34: 13 | F34: 3086 | K34: 0 | L34: 111
A35: 12 | B35: 3185 | C35: 13 | D35: 3189 | E35: 13 | F35: 3195 | K35: 0 | L35: 111
A36: 12 | B36: 3293 | C36: 13 | D36: 3300 | E36: 13 | F36: 3306 | K36: 0 | L36: 111
A37: 12 | B37: 3405 | C37: 13 | D37: 3408 | E37: 13 | F37: 3416 | K37: 0 | L37: 111
A38: 12 | B38: 3513 | C38: 13 | D38: 3516 | E38: 13 | F38: 3520 | K38: 0 | L38: 111
A39: 21 | B39: 3613 | C39: 11 | D39: 3619 | E39: 11 | F39: 3624 | K39: 0 | L39: 211
A40: 12 | B40: 4166 | C40: 13 | D40: 4171 | E40: 13 | F40: 4182 | K40: 0 | L40: 111
A41: 12 | B41: 4309 | C41: 13 | D41: 4313 | E41: 13 | F41: 4318 | K41: 0 | L41: 111
A42: 12 | B42: 4418 | C42: 13 | D42: 4421 | E42: 13 | F42: 4426 | K42: 0 | L42: 111
A43: 12 | B43: 4524 | C43: 13 | D43: 4529 | E43: 24 | F43: 4544 | K43: 0 | L43: 112
A44: 12 | B44: 4641 | C44: 13 | D44: 4646 | E44: 13 | F44: 4651 | K44: 0 | L44: 111
A45: 12 | B45: 4749 | C45: 13 | D45: 4756 | E45: 13 | F45: 4763 | K45: 0 | L45: 111
A46: 21 | B46: 4856 | C46: 11 | D46: 4863 | E46: 11 | F46: 4866 | K46: 0 | L46: 211
A47: 12 | B47: 5130 | C47: 13 | D47: 5136 | E47: 13 | F47: 5146 | K47: 0 | L47: 111
A48: 12 | B48: 5246 | C48: 13 | D48: 5251 | E48: 13 | F48: 5260 | K48: 0 | L48: 111
A49: 12 | B49: 5359 | C49: 13 | D49: 5363 | E49: 24 | F49: 5374 | K49: 0 | L49: 112
A50: 12 | B50: 5473 | C50: 13 | D50: 5476 | E50: 13 | F50: 5481 | K50: 0 | L50: 111
A51: 12 | B51: 5579 | C51: 13 | D51: 5582 | E51: 13 | F51: 5586 | K51: 0 | L51: 111
A52: 12 | B52: 5866 | C52: 13 | D52: 5870 | E52: 13 | F52: 5876 | K52: 0 | L52: 111
A53: 12 | B53: 5974 | C53: 13 | D53: 5978 | E53: 13 | F53: 5982 | K53: 0 | L53: 111
A54: 12 | B54: 6081 | C54: 13 | D54: 6084 | E54: 13 | F54: 6089 | K54: 0 | L54: 111
A55: 21 | B55: 6188 | C55: 11 | D55: 6192 | E55: 11 | F55: 6195 | K55: 0 | L55: 211
A56: 12 | B56: 6368 | C56: 13 | D56: 6378 | E56: 13 | F56: 6390 | K56: 0 | L56: 111
A57: 12 | B57: 6489 | C57: 13 | D57: 6492 | E57: 13 | F57: 6499 | K57: 0 | L57: 111
A58: 12 | B58: 6598 | C58: 13 | D58: 6600 | E58: 13 | F58: 6609 | K58: 0 | L58: 111
A59: 21 | B59: 6703 | C59: 11 | D59: 6709 | E59: 11 | F59: 6714 | K59: 0 | L59: 211
A60: 12 | B60: 6989 | C60: 13 | D60: 6992 | E60: 13 | F60: 6998 | K60: 0 | L60: 111
A61: 12 | B61: 7118 | C61: 13 | D61: 7120 | E61: 13 | F61: 7124 | K61: 0 | L61: 111
A62: 12 | B62: 7222 | C62: 13 | D62: 7226 | E62: 13 | F62: 7232 | K62: 0 | L62: 111
A63: 12 | B63: 7333 | C63: 13 | D63: 7336 | E63: 24 | F63: 7359 | K63: 0 | L63: 112
A64: 12 | B64: 7461 | C64: 13 | D64: 7465 | E64: 13 | F64: 7472 | K64: 0 | L64: 111
A65: 21 | B65: 7566 | C65: 11 | D65: 7571 | E65: 11 | F65: 7573 | K65: 0 | L65: 211
A66: 12 | B66: 7750 | C66: 13 | D66: 7764 | E66: 13 | F66: 7775 | K66: 0 | L66: 111
A67: 12 | B67: 7874 | C67: 13 | D67: 7878 | E67: 13 | F67: 7885 | K67: 0 | L67: 111
A68: 12 | B68: 7983 | C68: 24 | D68: 7985 | E68: 13 | F68: 7990 | K68: 0 | L68: 121
A69: 12 | B69: 8145 | C69: 13 | D69: 8147 | E69: 13 | F69: 8160 | K69: 0 | L69: 111
A70: 12 | B70: 8424 | C70: 13 | D70: 8429 | E70: 13 | F70: 8437 | K70: 0 | L70: 111
A71: 12 | B71: 8537 | C71: 13 | D71: 8542 | E71: 13 | F71: 8550 | K71: 0 | L71: 111
A72: 12 | B72: 8648 | C72: 13 | D72: 8651 | E72: 13 | F72: 8655 | K72: 0 | L72: 111
A73: 12 | B73: 8754 | C73: 13 | D73: 8758 | E73: 13 | F73: 8764 | K73: 0 | L73: 111
A74: 12 | B74: 9027 | C74: 13 | D74: 9037 | E74: 13 | F74: 9047 | K74: 0 | L74: 111
A75: 12 | B75: 9143 | C75: 13 | D75: 9146 | E75: 13 | F75: 9150 | K75: 0 | L75: 111
A76: 12 | B76: 9249 | C76: 13 | D76: 9255 | E76: 13 | F76: 9262 | K76: 0 | L76: 111
A77: 12 | B77: 9361 | C77: 13 | D77: 9368 | E77: 13 | F77: 9376 | K77: 0 | L77: 111
A78: 12 | B78: 9471 | C78: 13 | D78: 9473 | E78: 13 | F78: 9479 | K78: 0 | L78: 111
A79: 12 | B79: 9582 | C79: 13 | D79: 9588 | E79: 13 | F79: 9596 | K79: 0 | L79: 111
A80: 12 | B80: 9696 | C80: 13 | D80: 9702 | E80: 13 | F80: 9709 | K80: 0 | L80: 111
A81: 12 | B81: 9808 | C81: 13 | D81: 9812 | E81: 13 | F81: 9818 | K81: 0 | L81: 111
A82: 12 | B82: 9916 | C82: 13 | D82: 9920 | E82: 13 | F82: 9927 | K82: 0 | L82: 111
A83: 12 | B83: 10057 | C83: 13 | D83: 10063 | E83: 13 | F83: 10069 | K83: 0 | L83: 111
A84: 12 | B84: 10170 | C84: 13 | D84: 10175 | E84: 13 | F84: 10183 | K84: 0 | L84: 111
A85: 12 | B85: 10282 | C85: 13 | D85: 10287 | E85: 13 | F85: 10295 | K85: 0 | L85: 111
A86: 12 | B86: 10394 | C86: 13 | D86: 10399 | E86: 13 | F86: 10405 | K86: 0 | L86: 111
A87: 21 | B87: 10498 | C87: 11 | D87: 10507 | E87: 11 | F87: 10511 | K87: 0 | L87: 211
A88: 12 | B88: 10606 | C88: 13 | D88: 10610 | E88: 24 | F88: 10613 | K88: 0 | L88: 112
A89: 12 | B89: 10710 | C89: 13 | D89: 10714 | E89: 13 | F89: 10721 | K89: 0 | L89: 111
A90: 21 | B90: 10815 | C90: 11 | D90: 10822 | E90: 11 | F90: 10827 | K90: 0 | L90: 211
A91: 12 | B91: 11263 | C91: 13 | D91: 11267 | E91: 13 | F91: 11277 | K91: 0 | L91: 111
A92: 12 | B92: 11377 | C92: 13 | D92: 11385 | E92: 13 | F92: 11393 | K92: 0 | L92: 111
A93: 21 | B93: 11485 | C93: 11 | D93: 11493 | E93: 11 | F93: 11499 | K93: 0 | L93: 211
A94: 12 | B94: 11836 | C94: 13 | D94: 11841 | E94: 13 | F94: 11847 | K94: 0 | L94: 111
A95: 12 | B95: 11946 | C95: 13 | D95: 11952 | E95: 13 | F95: 11964 | K95: 0 | L95: 111
A96: 12 | B96: 12064 | C96: 13 | D96: 12073 | E96: 13 | F96: 12085 | K96: 0 | L96: 111
A97: 12 | B97: 12184 | C97: 13 | D97: 12187 | E97: 13 | F97: 12193 | K97: 0 | L97: 111
A98: 12 | B98: 12291 | C98: 13 | D98: 12294 | E98: 13 | F98: 12307 | K98: 0 | L98: 111
A99: 21 | B99: 12400 | C99: 11 | D99: 12410 | E99: 11 | F99: 12427 | K99: 0 | L99: 211
A100: 12 | B100: 12694 | C100: 13 | D100: 12698 | E100: 13 | F100: 12705 | K100: 0 | L100: 111
A101: 21 | B101: 12797 | C101: 11 | D101: 12807 | E101: 11 | F101: 12812 | K101: 0 | L101: 211
A102: 12 | B102: 12909 | C102: 13 | D102: 12916 | E102: 13 | F102: 12924 | K102: 0 | L102: 111
A103: 12 | B103: 13023 | C103: 13 | D103: 13028 | E103: 13 | F103: 13039 | K103: 0 | L103: 111
A104: 12 | B104: 13143 | C104: 13 | D104: 13146 | E104: 13 | F104: 13153 | K104: 0 | L104: 111
A105: 12 | B105: 13247 | C105: 13 | D105: 13259 | E105: 13 | F105: 13267 | K105: 0 | L105: 111
A106: 21 | B106: 13359 | C106: 22 | D106: 13362 | E106: 13 | F106: 13369 | K106: 0 | L106: 221
A107: 12 | B107: 13468 | C107: 13 | D107: 13472 | E107: 13 | F107: 13485 | K107: 0 | L107: 111
A108: 12 | B108: 13588 | C108: 13 | D108: 13595 | E108: 13 | F108: 13610 | K108: 0 | L108: 111
A109: 21 | B109: 13703 | C109: 11 | D109: 13711 | E109: 11 | F109: 13723 | K109: 0 | L109: 211
A110: 21 | B110: 13819 | C110: 11 | D110: 13828 | E110: 11 | F110: 13841 | K110: 0 | L110: 211
A111: 12 | B111: 13940 | C111: 13 | D111: 13946 | E111: 13 | F111: 13952 | K111: 0 | L111: 111
A112: 21 | B112: 14046 | C112: 11 | D112: 14048 | E112: 11 | F112: 14053 | K112: 0 | L112: 211
A113: 12 | B113: 14146 | C113: 13 | D113: 14153 | E113: 13 | F113: 14160 | K113: 0 | L113: 111
A114: 12 | B114: 14251 | C114: 13 | D114: 14255 | E114: 13 | F114: 14260 | K114: 0 | L114: 111
A115: 12 | B115: 14372 | C115: 13 | D115: 14376 | E115: 13 | F115: 14379 | K115: 0 | L115: 111
A116: 21 | B116: 14473 | C116: 11 | D116: 14478 | E116: 11 | F116: 14481 | K116: 0 | L116: 211
A117: 12 | B117: 14582 | C117: 13 | D117: 14585 | E117: 13 | F117: 14591 | K117: 0 | L117: 111
A118: 12 | B118: 14692 | C118: 13 | D118: 14701 | E118: 13 | F118: 14713 | K118: 0 | L118: 111
A119: 12 | B119: 14812 | C119: 13 | D119: 14819 | E119: 13 | F119: 14837 | K119: 0 | L119: 111
A120: 21 | B120: 14932 | C120: 11 | D120: 14937 | E120: 11 | F120: 14941 | K120: 0 | L120: 211
A121: 12 | B121: 15033 | C121: 13 | D121: 15035 | E121: 13 | F121: 15042 | K121: 0 | L121: 111
A122: 21 | B122: 15136 | C122: 22 | D122: 15138 | E122: 13 | F122: 15145 | K122: 0 | L122: 221
A123: 12 | B123: 15245 | C123: 13 | D123: 15251 | E123: 13 | F123: 15257 | K123: 0 | L123: 111
A124: 12 | B124: 15357 | C124: 13 | D124: 15362 | E124: 13 | F124: 15371 | K124: 0 | L124: 111
A125: 21 | B125: 15466 | C125: 11 | D125: 15472 | E125: 22 | F125: 15485 | K125: 0 | L125: 212
A126: 12 | B126: 15590 | C126: 13 | D126: 15593 | E126: 13 | F126: 15600 | K126: 0 | L126: 111
A127: 21 | B127: 15694 | C127: 11 | D127: 15700 | E127: 11 | F127: 15705 | K127: 0 | L127: 211
A128: 12 | B128: 16150 | C128: 13 | D128: 16153 | E128: 13 | F128: 16158 | K128: 0 | L128: 111
A129: 12 | B129: 16263 | C129: 13 | D129: 16269 | E129: 13 | F129: 16280 | K129: 0 | L129: 111
A130: 12 | B130: 16375 | C130: 13 | D130: 16378 | E130: 13 | F130: 16388 | K130: 0 | L130: 111
A131: 12 | B131: 16485 | C131: 13 | D131: 16488 | E131: 13 | F131: 16494 | K131: 0 | L131: 111
A132: 21 | B132: 16592 | C132: 11 | D132: 16598 | E132: 11 | F132: 16607 | K132: 0 | L132: 211
A133: 12 | B133: 16715 | C133: 13 | D133: 16718 | E133: 24 | F133: 16719 | K133: 0 | L133: 112
A134: 12 | B134: 16818 | C134: 13 | D134: 16823 | E134: 13 | F134: 16834 | K134: 0 | L134: 111
A135: 21 | B135: 16928 | C135: 11 | D135: 16935 | E135: 11 | F135: 16939 | K135: 0 | L135: 211
A136: 12 | B136: 17038 | C136: 13 | D136: 17042 | E136: 13 | F136: 17054 | K136: 0 | L136: 111
A137: 12 | B137: 17154 | C137: 13 | D137: 17158 | E137: 13 | F137: 17164 | K137: 0 | L137: 111
A138: 12 | B138: 17263 | C138: 13 | D138: 17286 | E138: 13 | F138: 17293 | K138: 0 | L138: 111
A139: 12 | B139: 17393 | C139: 13 | D139: 17399 | E139: 24 | F139: 17415 | K139: 0 | L139: 112
A140: 21 | B140: 17509 | C140: 11 | D140: 17515 | E140: 11 | F140: 17521 | K140: 0 | L140: 211
A141: 12 | B141: 17611 | C141: 13 | D141: 17617 | E141: 13 | F141: 17623 | K141: 0 | L141: 111
A142: 21 | B142: 17717 | C142: 11 | D142: 17726 | E142: 11 | F142: 17736 | K142: 0 | L142: 211
A143: 12 | B143: 17826 | C143: 13 | D143: 17834 | E143: 13 | F143: 17840 | K143: 0 | L143: 111
A144: 21 | B144: 17933 | C144: 11 | D144: 17943 | E144: 11 | F144: 17950 | K144: 1 | L144: 211

Sheet !N20592T.AYL
A1: Report for:!N20592T.AYL
A2: Date: | B2: <date>
A3: Hen: | B3: <hen> | F3: Correct Sequence | G3: =Start!J2 -> 211 | P3: Total Sequences in Data | Q3: =4994-COUNTBLANK(L7:L5000) -> 118 | V3: Total Sequences in Block Data | W3: =COUNTA(L7:L26) -> 20 | AA3: Total Sequences in Block Data | AB3: =COUNTA(L27:L45) -> 19 | AF3: Total Sequences in Block Data | AG3: =COUNTA(L46:L65) -> 20 | AK3: Total Sequences in Block Data | AL3: =COUNTA(L66:L85) -> 20 | AP3: Total Sequences in Block Data | AQ3: =COUNTA(L86:L104) -> 19 | AU3: Total Sequences in Block Data | AV3: =COUNTA(L105:L124) -> 20
P4: Total Sequences in Summary | Q4: =SUM(O7:O14) -> 118 | V4: Total Sequences in Block Summary | W4: =SUM(U7:U14) -> 20 | AA4: Total Sequences in Block Summary | AB4: =SUM(Z7:Z14) -> 19 | AF4: Total Sequences in Block Summary | AG4: =SUM(AE7:AE14) -> 20 | AK4: Total Sequences in Block Summary | AL4: =SUM(AJ7:AJ14) -> 20 | AP4: Total Sequences in Block Summary | AQ4: =SUM(AO7:AO14) -> 19 | AU4: Total Sequences in Block Summary | AV4: =SUM(AT7:AT14) -> 20
T5: Block 1 | Y5: Block 2 | AD5: Block 3 | AI5: Block 4 | AN5: Block 5 | AS5: Block 6
A6: Sequence Component 1 | B6: Time 1 | C6: Sequence Component 2 | D6: Time 2 | E6: Sequence Component 3 | F6: Time 3 | G6: Sequence Component 4 | H6: Time 4 | I6: Sequence Component 5 | J6: Time 5 | K6: Correct? 0=No 1=Yes | L6: Sequence | N6: Frequency | P6: Relative Frequency | Q6: Variability | T6: Frequency | V6: Relative Frequency | W6: Variability | Y6: Frequency | AA6: Relative Frequency | AB6: Variability | AD6: Frequency | AF6: Relative Frequency | AG6: Variability | AI6: Frequency | AK6: Relative Frequency | AL6: Variability | AN6: Frequency | AP6: Relative Frequency | AQ6: Variability | AS6: Frequency | AU6: Relative Frequency | AV6: Variability
A7: 12 | B7: 7 | C7: 13 | D7: 14 | E7: 13 | F7: 28 | K7: 0 | L7: 111 | N7: 111 | O7: =COUNTIF($L$7:$L$500,N7) -> 86 | P7: =O7/$Q$4 -> 0.7288135593 | Q7: =IF(P7=0,0,(P7*((LOG(P7))/LOG(2)))) -> -0.3326146893 | T7: =N7 -> 111 | U7: =COUNTIF(L7:L26,T7) -> 15 | V7: =U7/(W4-U11) -> 0.9375 | W7: =IF(V7=0,0,(V7*((LOG(V7))/LOG(2)))) -> -0.08729006662 | Y7: =N7 -> 111 | Z7: =COUNTIF(L27:L45,Y7) -> 12 | AA7: =Z7/(AB4-Z11) -> 0.9230769231 | AB7: =IF(AA7=0,0,(AA7*((LOG(AA7))/LOG(2)))) -> -0.1065943545 | AD7: =N7 -> 111 | AE7: =COUNTIF(L46:L65,AD7) -> 17 | AF7: =AE7/(AG4-AE11) -> 1 | AG7: =IF(AF7=0,0,(AF7*((LOG(AF7))/LOG(2)))) -> 0 | AI7: =N7 -> 111 | AJ7: =COUNTIF(L66:L85,AI7) -> 15 | AK7: =AJ7/(AL4-AJ11) -> 1 | AL7: =IF(AK7=0,0,(AK7*((LOG(AK7))/LOG(2)))) -> 0 | AN7: =N7 -> 111 | AO7: =COUNTIF(L86:L104,AN7) -> 16 | AP7: =AO7/(AQ4-AO11) -> 1 | AQ7: =IF(AP7=0,0,(AP7*((LOG(AP7))/LOG(2)))) -> 0 | AS7: =N7 -> 111 | AT7: =COUNTIF(L105:L124,AS7) -> 11 | AU7: =AT7/(AV4-AT11) -> 0.8461538462 | AV7: =IF(AU7=0,0,(AU7*((LOG(AU7))/LOG(2)))) -> -0.2039299303
A8: 12 | B8: 128 | C8: 13 | D8: 132 | E8: 13 | F8: 141 | K8: 0 | L8: 111 | N8: 112 | O8: 1 | P8: 0.008474576271 | Q8: -0.05832748347 | T8: 112 | U8: =COUNTIF(L7:L26,T8) -> 0 | V8: =U8/(W4-U11) -> 0 | W8: =IF(V8=0,0,(V8*((LOG(V8))/LOG(2)))) -> 0 | Y8: 112 | Z8: =COUNTIF(L27:L45,Y8) -> 0 | AA8: =Z8/(AB4-Z11) -> 0 | AB8: =IF(AA8=0,0,(AA8*((LOG(AA8))/LOG(2)))) -> 0 | AD8: 112 | AE8: =COUNTIF(L46:L65,AD8) -> 0 | AF8: =AE8/(AG4-AE11) -> 0 | AG8: =IF(AF8=0,0,(AF8*((LOG(AF8))/LOG(2)))) -> 0 | AI8: 112 | AJ8: =COUNTIF(L66:L85,AI8) -> 0 | AK8: =AJ8/(AL4-AJ11) -> 0 | AL8: =IF(AK8=0,0,(AK8*((LOG(AK8))/LOG(2)))) -> 0 | AN8: 112 | AO8: =COUNTIF(L86:L104,AN8) -> 0 | AP8: =AO8/(AQ4-AO11) -> 0 | AQ8: =IF(AP8=0,0,(AP8*((LOG(AP8))/LOG(2)))) -> 0 | AS8: 112 | AT8: =COUNTIF(L105:L124,AS8) -> 1 | AU8: =AT8/(AV4-AT11) -> 0.07692307692 | AV8: =IF(AU8=0,0,(AU8*((LOG(AU8))/LOG(2)))) -> -0.2846492091
A9: 21 | B9: 234 | C9: 11 | D9: 242 | E9: 11 | F9: 246 | K9: 0 | L9: 211 | N9: 121 | O9: 0 | P9: 0 | Q9: 0 | T9: 121 | U9: =COUNTIF(L7:L26,T9) -> 0 | V9: =U9/(W4-U11) -> 0 | W9: =IF(V9=0,0,(V9*((LOG(V9))/LOG(2)))) -> 0 | Y9: 121 | Z9: =COUNTIF(L27:L45,Y9) -> 0 | AA9: =Z9/(AB4-Z11) -> 0 | AB9: =IF(AA9=0,0,(AA9*((LOG(AA9))/LOG(2)))) -> 0 | AD9: 121 | AE9: =COUNTIF(L46:L65,AD9) -> 0 | AF9: =AE9/(AG4-AE11) -> 0 | AG9: =IF(AF9=0,0,(AF9*((LOG(AF9))/LOG(2)))) -> 0 | AI9: 121 | AJ9: =COUNTIF(L66:L85,AI9) -> 0 | AK9: =AJ9/(AL4-AJ11) -> 0 | AL9: =IF(AK9=0,0,(AK9*((LOG(AK9))/LOG(2)))) -> 0 | AN9: 121 | AO9: =COUNTIF(L86:L104,AN9) -> 0 | AP9: =AO9/(AQ4-AO11) -> 0 | AQ9: =IF(AP9=0,0,(AP9*((LOG(AP9))/LOG(2)))) -> 0 | AS9: 121 | AT9: =COUNTIF(L105:L124,AS9) -> 0 | AU9: =AT9/(AV4-AT11) -> 0 | AV9: =IF(AU9=0,0,(AU9*((LOG(AU9))/LOG(2)))) -> 0
A10: 12 | B10: 531 | C10: 13 | D10: 535 | E10: 13 | F10: 541 | K10: 0 | L10: 111 | N10: 122 | O10: 1 | P10: 0.008474576271 | Q10: -0.05832748347 | T10: 122 | U10: =COUNTIF(L7:L26,T10) -> 1 | V10: =U10/(W4-U11) -> 0.0625 | W10: =IF(V10=0,0,(V10*((LOG(V10))/LOG(2)))) -> -0.25 | Y10: 122 | Z10: =COUNTIF(L27:L45,Y10) -> 0 | AA10: =Z10/(AB4-Z11) -> 0 | AB10: =IF(AA10=0,0,(AA10*((LOG(AA10))/LOG(2)))) -> 0 | AD10: 122 | AE10: =COUNTIF(L46:L65,AD10) -> 0 | AF10: =AE10/(AG4-AE11) -> 0 | AG10: =IF(AF10=0,0,(AF10*((LOG(AF10))/LOG(2)))) -> 0 | AI10: 122 | AJ10: =COUNTIF(L66:L85,AI10) -> 0 | AK10: =AJ10/(AL4-AJ11) -> 0 | AL10: =IF(AK10=0,0,(AK10*((LOG(AK10))/LOG(2)))) -> 0 | AN10: 122 | AO10: =COUNTIF(L86:L104,AN10) -> 0 | AP10: =AO10/(AQ4-AO11) -> 0 | AQ10: =IF(AP10=0,0,(AP10*((LOG(AP10))/LOG(2)))) -> 0 | AS10: 122 | AT10: =COUNTIF(L105:L124,AS10) -> 0 | AU10: =AT10/(AV4-AT11) -> 0 | AV10: =IF(AU10=0,0,(AU10*((LOG(AU10))/LOG(2)))) -> 0
A11: 12 | B11: 635 | C11: 13 | D11: 640 | E11: 13 | F11: 646 | K11: 0 | L11: 111 | N11: 211 | O11: 28 | P11: 0.2372881356 | Q11: -0.4924412505 | T11: 211 | U11: =COUNTIF(L7:L26,T11) -> 4 | Y11: 211 | Z11: =COUNTIF(L27:L45,Y11) -> 6 | AD11: 211 | AE11: =COUNTIF(L46:L65,AD11) -> 3 | AI11: 211 | AJ11: =COUNTIF(L66:L85,AI11) -> 5 | AN11: 211 | AO11: =COUNTIF(L86:L104,AN11) -> 3 | AS11: 211 | AT11: =COUNTIF(L105:L124,AS11) -> 7
A12: 12 | B12: 835 | C12: 13 | D12: 838 | E12: 13 | F12: 844 | K12: 0 | L12: 111 | N12: 212 | O12: 0 | P12: 0 | Q12: 0 | T12: 212 | U12: =COUNTIF(L7:L26,T12) -> 0 | V12: =U12/(W4-U11) -> 0 | W12: =IF(V12=0,0,(V12*((LOG(V12))/LOG(2)))) -> 0 | Y12: 212 | Z12: =COUNTIF(L27:L45,Y12) -> 0 | AA12: =Z12/(AB4-Z11) -> 0 | AB12: =IF(AA12=0,0,(AA12*((LOG(AA12))/LOG(2)))) -> 0 | AD12: 212 | AE12: =COUNTIF(L46:L65,AD12) -> 0 | AF12: =AE12/(AG4-AE11) -> 0 | AG12: =IF(AF12=0,0,(AF12*((LOG(AF12))/LOG(2)))) -> 0 | AI12: 212 | AJ12: =COUNTIF(L66:L85,AI12) -> 0 | AK12: =AJ12/(AL4-AJ11) -> 0 | AL12: =IF(AK12=0,0,(AK12*((LOG(AK12))/LOG(2)))) -> 0 | AN12: 212 | AO12: =COUNTIF(L86:L104,AN12) -> 0 | AP12: =AO12/(AQ4-AO11) -> 0 | AQ12: =IF(AP12=0,0,(AP12*((LOG(AP12))/LOG(2)))) -> 0 | AS12: 212 | AT12: =COUNTIF(L105:L124,AS12) -> 0 | AU12: =AT12/(AV4-AT11) -> 0 | AV12: =IF(AU12=0,0,(AU12*((LOG(AU12))/LOG(2)))) -> 0
A13: 21 | B13: 938 | C13: 11 | D13: 943 | E13: 11 | F13: 947 | K13: 0 | L13: 211 | N13: 221 | O13: 2 | P13: 0.01694915254 | Q13: -0.0997058144 | T13: 221 | U13: =COUNTIF(L7:L26,T13) -> 0 | V13: =U13/(W4-U11) -> 0 | W13: =IF(V13=0,0,(V13*((LOG(V13))/LOG(2)))) -> 0 | Y13: 221 | Z13: =COUNTIF(L27:L45,Y13) -> 1 | AA13: =Z13/(AB4-Z11) -> 0.07692307692 | AB13: =IF(AA13=0,0,(AA13*((LOG(AA13))/LOG(2)))) -> -0.2846492091 | AD13: 221 | AE13: =COUNTIF(L46:L65,AD13) -> 0 | AF13: =AE13/(AG4-AE11) -> 0 | AG13: =IF(AF13=0,0,(AF13*((LOG(AF13))/LOG(2)))) -> 0 | AI13: 221 | AJ13: =COUNTIF(L66:L85,AI13) -> 0 | AK13: =AJ13/(AL4-AJ11) -> 0 | AL13: =IF(AK13=0,0,(AK13*((LOG(AK13))/LOG(2)))) -> 0 | AN13: 221 | AO13: =COUNTIF(L86:L104,AN13) -> 0 | AP13: =AO13/(AQ4-AO11) -> 0 | AQ13: =IF(AP13=0,0,(AP13*((LOG(AP13))/LOG(2)))) -> 0 | AS13: 221 | AT13: =COUNTIF(L105:L124,AS13) -> 1 | AU13: =AT13/(AV4-AT11) -> 0.07692307692 | AV13: =IF(AU13=0,0,(AU13*((LOG(AU13))/LOG(2)))) -> -0.2846492091
A14: 12 | B14: 1190 | C14: 13 | D14: 1196 | E14: 13 | F14: 1202 | K14: 0 | L14: 111 | N14: 222 | O14: 0 | P14: 0 | Q14: 0 | T14: 222 | U14: =COUNTIF(L7:L26,T14) -> 0 | V14: =U14/(W4-U11) -> 0 | W14: =IF(V14=0,0,(V14*((LOG(V14))/LOG(2)))) -> 0 | Y14: 222 | Z14: =COUNTIF(L27:L45,Y14) -> 0 | AA14: =Z14/(AB4-Z11) -> 0 | AB14: =IF(AA14=0,0,(AA14*((LOG(AA14))/LOG(2)))) -> 0 | AD14: 222 | AE14: =COUNTIF(L46:L65,AD14) -> 0 | AF14: =AE14/(AG4-AE11) -> 0 | AG14: =IF(AF14=0,0,(AF14*((LOG(AF14))/LOG(2)))) -> 0 | AI14: 222 | AJ14: =COUNTIF(L66:L85,AI14) -> 0 | AK14: =AJ14/(AL4-AJ11) -> 0 | AL14: =IF(AK14=0,0,(AK14*((LOG(AK14))/LOG(2)))) -> 0 | AN14: 222 | AO14: =COUNTIF(L86:L104,AN14) -> 0 | AP14: =AO14/(AQ4-AO11) -> 0 | AQ14: =IF(AP14=0,0,(AP14*((LOG(AP14))/LOG(2)))) -> 0 | AS14: 222 | AT14: =COUNTIF(L105:L124,AS14) -> 0 | AU14: =AT14/(AV4-AT11) -> 0 | AV14: =IF(AU14=0,0,(AU14*((LOG(AU14))/LOG(2)))) -> 0
A15: 12 | B15: 1303 | C15: 13 | D15: 1309 | E15: 13 | F15: 1317 | K15: 0 | L15: 111 | P15: =SUM(P7:P14) -> 1 | Q15: =-SUM(Q7:Q14) -> 1.041416721 | V15: =SUM(V7:V14) -> 1 | W15: =-SUM(W7:W14) -> 0.3372900666 | AA15: =SUM(AA7:AA14) -> 1 | AB15: =-SUM(AB7:AB14) -> 0.3912435636 | AF15: =SUM(AF7:AF14) -> 1 | AG15: =-SUM(AG7:AG14) -> 0 | AK15: =SUM(AK7:AK14) -> 1 | AL15: =-SUM(AL7:AL14) -> 0 | AP15: =SUM(AP7:AP14) -> 1 | AQ15: =-SUM(AQ7:AQ14) -> 0 | AU15: =SUM(AU7:AU14) -> 1 | AV15: =-SUM(AV7:AV14) -> 0.7732283485
A16: 12 | B16: 1417 | C16: 13 | D16: 1421 | E16: 13 | F16: 1427 | K16: 0 | L16: 111 | P16: U= | Q16: =Q15/(LOG(Q4)/LOG(2)) -> 0.1513105814 | V16: U1= | W16: =W15/(LOG(W4)/LOG(2)) -> 0.07804157293 | AA16: U2= | AB16: =AB15/(LOG(AB4)/LOG(2)) -> 0.09210222218 | AF16: U3= | AG16: =AG15/(LOG(AG4)/LOG(2)) -> 0 | AK16: U4= | AL16: =AL15/(LOG(AL4)/LOG(2)) -> 0 | AP16: U5= | AQ16: =AQ15/(LOG(AQ4)/LOG(2)) -> 0 | AU16: U6= | AV16: =AV15/(LOG(AV4)/LOG(2)) -> 0.1789081936
A17: 12 | B17: 1526 | C17: 13 | D17: 1528 | E17: 13 | F17: 1534 | K17: 0 | L17: 111
A18: 21 | B18: 1628 | C18: 11 | D18: 1634 | E18: 11 | F18: 1639 | K18: 0 | L18: 211
A19: 12 | B19: 1738 | C19: 13 | D19: 1755 | E19: 13 | F19: 1762 | K19: 0 | L19: 111 | N19: Total Target Seq
A20: 12 | B20: 1861 | C20: 13 | D20: 1867 | E20: 13 | F20: 1874 | K20: 0 | L20: 111 | N20: =COUNTIF(L7:L124,G3) -> 28 | P20: 20 | Q20: 19 | R20: 20 | S20: 20 | T20: 19 | U20: 20
A21: 12 | B21: 1974 | C21: 13 | D21: 1979 | E21: 13 | F21: 1986 | K21: 0 | L21: 111 | P21: % of reinforcement given in 6 equal intervals based on number of trials
A22: 21 | B22: 2080 | C22: 11 | D22: 2087 | E22: 11 | F22: 2094 | K22: 0 | L22: 211 | P22: %_1 | Q22: %_2 | R22: %_3 | S22: %_4 | T22: %_5 | U22: %_6
A23: 12 | B23: 2224 | C23: 13 | D23: 2235 | E23: 13 | F23: 2241 | K23: 0 | L23: 111 | O23: target sequence | P23: =$G$3 -> 211 | Q23: 211 | R23: 211 | S23: 211 | T23: 211 | U23: 211
A24: 12 | B24: 2341 | C24: 13 | D24: 2353 | E24: 13 | F24: 2366 | K24: 0 | L24: 111 | O24: total reinforcement | P24: =U11 -> 4 | Q24: =Z11 -> 6 | R24: =AE11 -> 3 | S24: =AJ11 -> 5 | T24: =AO11 -> 3 | U24: =AT11 -> 7
A25: 12 | B25: 2464 | C25: 24 | D25: 2476 | E25: 24 | F25: 2482 | K25: 0 | L25: 122 | O25: % target
A26: 12 | B26: 2584 | C26: 13 | D26: 2591 | E26: 13 | F26: 2598 | K26: 0 | L26: 111 | O26: CCRF
A27: 21 | B27: 2691 | C27: 11 | D27: 2695 | E27: 11 | F27: 2699 | K27: 0 | L27: 211 | O27: % CCRf
A28: 12 | B28: 2872 | C28: 13 | D28: 2881 | E28: 13 | F28: 2893 | K28: 0 | L28: 111 | O28: average response rate | P28: =F26/P20 -> 129.9 | Q28: =(F45-F26)/Q20 -> 119.6842105 | R28: =(F65-F45)/R20 -> 118.05 | S28: =(F85-F65)/S20 -> 137.9 | T28: =(F104-F85)/T20 -> 227.0526316 | U28: =(F124-F104)/U20 -> 118.3
A29: 21 | B29: 2985 | C29: 11 | D29: 2995 | E29: 11 | F29: 3005 | K29: 0 | L29: 211
A30: 21 | B30: 3104 | C30: 22 | D30: 3107 | E30: 13 | F30: 3116 | K30: 0 | L30: 221
A31: 21 | B31: 3212 | C31: 11 | D31: 3218 | E31: 11 | F31: 3225 | K31: 0 | L31: 211
A32: 12 | B32: 3410 | C32: 13 | D32: 3419 | E32: 13 | F32: 3428 | K32: 0 | L32: 111
A33: 21 | B33: 3526 | C33: 11 | D33: 3534 | E33: 11 | F33: 3540 | K33: 0 | L33: 211
A34: 12 | B34: 3635 | C34: 13 | D34: 3640 | E34: 13 | F34: 3647 | K34: 0 | L34: 111
A35: 21 | B35: 3740 | C35: 11 | D35: 3747 | E35: 11 | F35: 3752 | K35: 0 | L35: 211
A36: 12 | B36: 3844 | C36: 13 | D36: 3849 | E36: 13 | F36: 3858 | K36: 0 | L36: 111
A37: 21 | B37: 3952 | C37: 11 | D37: 3957 | E37: 11 | F37: 3962 | K37: 0 | L37: 211
A38: 12 | B38: 4058 | C38: 13 | D38: 4066 | E38: 13 | F38: 4073 | K38: 0 | L38: 111
A39: 12 | B39: 4173 | C39: 13 | D39: 4177 | E39: 13 | F39: 4183 | K39: 0 | L39: 111
A40: 12 | B40: 4283 | C40: 13 | D40: 4288 | E40: 13 | F40: 4296 | K40: 0 | L40: 111
A41: 12 | B41: 4398 | C41: 13 | D41: 4403 | E41: 13 | F41: 4410 | K41: 0 | L41: 111
A42: 12 | B42: 4510 | C42: 13 | D42: 4514 | E42: 13 | F42: 4528 | K42: 0 | L42: 111
A43: 12 | B43: 4628 | C43: 13 | D43: 4634 | E43: 13 | F43: 4642 | K43: 0 | L43: 111
A44: 12 | B44: 4740 | C44: 13 | D44: 4744 | E44: 13 | F44: 4750 | K44: 0 | L44: 111
A45: 12 | B45: 4850 | C45: 13 | D45: 4859 | E45: 13 | F45: 4872 | K45: 0 | L45: 111
A46: 12 | B46: 4971 | C46: 13 | D46: 4975 | E46: 13 | F46: 4980 | K46: 0 | L46: 111
A47: 12 | B47: 5078 | C47: 13 | D47: 5082 | E47: 13 | F47: 5092 | K47: 0 | L47: 111
A48: 12 | B48: 5194 | C48: 13 | D48: 5202 | E48: 13 | F48: 5211 | K48: 0 | L48: 111
A49: 12 | B49: 5313 | C49: 13 | D49: 5318 | E49: 13 | F49: 5329 | K49: 0 | L49: 111
A50: 12 | B50: 5429 | C50: 13 | D50: 5437 | E50: 13 | F50: 5449 | K50: 0 | L50: 111
A51: 12 | B51: 5567 | C51: 13 | D51: 5575 | E51: 13 | F51: 5581 | K51: 0 | L51: 111
A52: 12 | B52: 5682 | C52: 13 | D52: 5694 | E52: 13 | F52: 5702 | K52: 0 | L52: 111
A53: 21 | B53: 5800 | C53: 11 | D53: 5806 | E53: 11 | F53: 5818 | K53: 0 | L53: 211
A54: 12 | B54: 5966 | C54: 13 | D54: 5972 | E54: 13 | F54: 5979 | K54: 0 | L54: 111
A55: 12 | B55: 6084 | C55: 13 | D55: 6090 | E55: 13 | F55: 6100 | K55: 0 | L55: 111
A56: 12 | B56: 6203 | C56: 13 | D56: 6213 | E56: 13 | F56: 6221 | K56: 0 | L56: 111
A57: 12 | B57: 6322 | C57: 13 | D57: 6327 | E57: 13 | F57: 6333 | K57: 0 | L57: 111
A58: 12 | B58: 6439 | C58: 13 | D58: 6451 | E58: 13 | F58: 6465 | K58: 0 | L58: 111
A59: 12 | B59: 6567 | C59: 13 | D59: 6571 | E59: 13 | F59: 6578 | K59: 0 | L59: 111
A60: 21 | B60: 6673 | C60: 11 | D60: 6679 | E60: 11 | F60: 6686 | K60: 0 | L60: 211
A61: 12 | B61: 6789 | C61: 13 | D61: 6792 | E61: 13 | F61: 6804 | K61: 0 | L61: 111
A62: 12 | B62: 6903 | C62: 13 | D62: 6907 | E62: 13 | F62: 6914 | K62: 0 | L62: 111
A63: 21 | B63: 7009 | C63: 11 | D63: 7017 | E63: 11 | F63: 7021 | K63: 0 | L63: 211
A64: 12 | B64: 7117 | C64: 13 | D64: 7119 | E64: 13 | F64: 7131 | K64: 0 | L64: 111
A65: 12 | B65: 7225 | C65: 13 | D65: 7229 | E65: 13 | F65: 7233 | K65: 0 | L65: 111
A66: 12 | B66: 7334 | C66: 13 | D66: 7352 | E66: 13 | F66: 7359 | K66: 0 | L66: 111
A67: 12 | B67: 7454 | C67: 13 | D67: 7460 | E67: 13 | F67: 7467 | K67: 0 | L67: 111
A68: 12 | B68: 7568 | C68: 13 | D68: 7572 | E68: 13 | F68: 7578 | K68: 0 | L68: 111
A69: 12 | B69: 7680 | C69: 13 | D69: 7685 | E69: 13 | F69: 7695 | K69: 0 | L69: 111
A70: 12 | B70: 7798 | C70: 13 | D70: 7806 | E70: 13 | F70: 7820 | K70: 0 | L70: 111
A71: 12 | B71: 7919 | C71: 13 | D71: 7924 | E71: 13 | F71: 7935 | K71: 0 | L71: 111
A72: 21 | B72: 8030 | C72: 11 | D72: 8047 | E72: 11 | F72: 8049 | K72: 0 | L72: 211
A73: 12 | B73: 8591 | C73: 13 | D73: 8598 | E73: 13 | F73: 8600 | K73: 0 | L73: 111
A74: 12 | B74: 8693 | C74: 13 | D74: 8700 | E74: 13 | F74: 8706 | K74: 0 | L74: 111
A75: 12 | B75: 8805 | C75: 13 | D75: 8811 | E75: 13 | F75: 8823 | K75: 0 | L75: 111
A76: 12 | B76: 8923 | C76: 13 | D76: 8932 | E76: 13 | F76: 8937 | K76: 0 | L76: 111
A77: 21 | B77: 9031 | C77: 11 | D77: 9040 | E77: 11 | F77: 9053 | K77: 0 | L77: 211
A78: 12 | B78: 9172 | C78: 13 | D78: 9175 | E78: 13 | F78: 9181 | K78: 0 | L78: 111
A79: 21 | B79: 9276 | C79: 11 | D79: 9285 | E79: 11 | F79: 9298 | K79: 0 | L79: 211
A80: 12 | B80: 9432 | C80: 13 | D80: 9442 | E80: 13 | F80: 9448 | K80: 0 | L80: 111
A81: 21 | B81: 9544 | C81: 11 | D81: 9550 | E81: 11 | F81: 9555 | K81: 0 | L81: 211
A82: 12 | B82: 9651 | C82: 13 | D82: 9656 | E82: 13 | F82: 9661 | K82: 0 | L82: 111
A83: 12 | B83: 9762 | C83: 13 | D83: 9770 | E83: 13 | F83: 9783 | K83: 0 | L83: 111
A84: 21 | B84: 9877 | C84: 11 | D84: 9882 | E84: 11 | F84: 9886 | K84: 0 | L84: 211
A85: 12 | B85: 9982 | C85: 13 | D85: 9985 | E85: 13 | F85: 9991 | K85: 0 | L85: 111
A86: 12 | B86: 10091 | C86: 13 | D86: 10095 | E86: 13 | F86: 10103 | K86: 0 | L86: 111
A87: 12 | B87: 10518 | C87: 13 | D87: 10536 | E87: 13 | F87: 10544 | K87: 0 | L87: 111
A88: 12 | B88: 10644 | C88: 13 | D88: 10647 | E88: 13 | F88: 10654 | K88: 0 | L88: 111
A89: 21 | B89: 10750 | C89: 11 | D89: 10757 | E89: 11 | F89: 10765 | K89: 0 | L89: 211
A90: 12 | B90: 10891 | C90: 13 | D90: 10894 | E90: 13 | F90: 10900 | K90: 0 | L90: 111
A91: 12 | B91: 11000 | C91: 13 | D91: 11008 | E91: 13 | F91: 11017 | K91: 0 | L91: 111
A92: 12 | B92: 11116 | C92: 13 | D92: 11121 | E92: 13 | F92: 11127 | K92: 0 | L92: 111
A93: 12 | B93: 11228 | C93: 13 | D93: 11245 | E93: 13 | F93: 11258 | K93: 0 | L93: 111
A94: 12 | B94: 11362 | C94: 13 | D94: 11368 | E94: 13 | F94: 11377 | K94: 0 | L94: 111
A95: 12 | B95: 11475 | C95: 13 | D95: 11482 | E95: 13 | F95: 11489 | K95: 0 | L95: 111
A96: 21 | B96: 11581 | C96: 11 | D96: 11588 | E96: 11 | F96: 11599 | K96: 0 | L96: 211
A97: 12 | B97: 11971 | C97: 13 | D97: 11973 | E97: 13 | F97: 11983 | K97: 0 | L97: 111
A98: 12 | B98: 12850 | C98: 13 | D98: 12856 | E98: 13 | F98: 12861 | K98: 0 | L98: 111
A99: 12 | B99: 12956 | C99: 13 | D99: 12973 | E99: 13 | F99: 12991 | K99: 0 | L99: 111
A100: 12 | B100: 13594 | C100: 13 | D100: 13603 | E100: 13 | F100: 13610 | K100: 0 | L100: 111
A101: 12 | B101: 13703 | C101: 13 | D101: 13710 | E101: 13 | F101: 13716 | K101: 0 | L101: 111
A102: 12 | B102: 13824 | C102: 13 | D102: 13831 | E102: 13 | F102: 13838 | K102: 0 | L102: 111
A103: 21 | B103: 13934 | C103: 11 | D103: 13943 | E103: 11 | F103: 13954 | K103: 0 | L103: 211
A104: 12 | B104: 14292 | C104: 13 | D104: 14296 | E104: 13 | F104: 14305 | K104: 0 | L104: 111
A105: 12 | B105: 14402 | C105: 13 | D105: 14406 | E105: 13 | F105: 14411 | K105: 0 | L105: 111
A106: 12 | B106: 14514 | C106: 13 | D106: 14519 | E106: 13 | F106: 14526 | K106: 0 | L106: 111
A107: 21 | B107: 14623 | C107: 11 | D107: 14631 | E107: 11 | F107: 14638 | K107: 0 | L107: 211
A108: 12 | B108: 14807 | C108: 13 | D108: 14816 | E108: 13 | F108: 14827 | K108: 0 | L108: 111
A109: 12 | B109: 14933 | C109: 13 | D109: 14942 | E109: 13 | F109: 14954 | K109: 0 | L109: 111
A110: 21 | B110: 15052 | C110: 22 | D110: 15056 | E110: 13 | F110: 15064 | K110: 0 | L110: 221
A111: 12 | B111: 15166 | C111: 13 | D111: 15168 | E111: 13 | F111: 15178 | K111: 0 | L111: 111
A112: 21 | B112: 15274 | C112: 11 | D112: 15281 | E112: 11 | F112: 15287 | K112: 0 | L112: 211
A113: 12 | B113: 15391 | C113: 13 | D113: 15401 | E113: 13 | F113: 15408 | K113: 0 | L113: 111
A114: 21 | B114: 15506 | C114: 11 | D114: 15512 | E114: 11 | F114: 15535 | K114: 0 | L114: 211
A115: 12 | B115: 15632 | C115: 13 | D115: 15638 | E115: 13 | F115: 15645 | K115: 0 | L115: 111
A116: 21 | B116: 15739 | C116: 11 | D116: 15750 | E116: 11 | F116: 15757 | K116: 0 | L116: 211
A117: 12 | B117: 15863 | C117: 13 | D117: 15867 | E117: 13 | F117: 15874 | K117: 0 | L117: 111
A118: 21 | B118: 15971 | C118: 11 | D118: 15977 | E118: 11 | F118: 15982 | K118: 0 | L118: 211
A119: 12 | B119: 16077 | C119: 13 | D119: 16083 | E119: 24 | F119: 16086 | K119: 0 | L119: 112
A120: 21 | B120: 16183 | C120: 11 | D120: 16190 | E120: 11 | F120: 16202 | K120: 0 | L120: 211
A121: 12 | B121: 16304 | C121: 13 | D121: 16312 | E121: 13 | F121: 16319 | K121: 0 | L121: 111
A122: 12 | B122: 16424 | C122: 13 | D122: 16430 | E122: 13 | F122: 16437 | K122: 0 | L122: 111
A123: 12 | B123: 16551 | C123: 13 | D123: 16554 | E123: 13 | F123: 16560 | K123: 0 | L123: 111
A124: 21 | B124: 16656 | C124: 11 | D124: 16667 | E124: 11 | F124: 16671 | K124: 1 | L124: 211

Sheet !N206A3T.AYL
A1: Report for:!N206A3T.AYL
A2: Date: | B2: <date>
A3: Hen: | B3: <hen> | F3: Correct Sequence | G3: =Start!J2 -> 211 | P3: Total Sequences in Data | Q3: =4994-COUNTBLANK(L7:L5000) -> 123 | V3: Total Sequences in Block Data | W3: =COUNTA(L7:L27) -> 21 | AA3: Total Sequences in Block Data | AB3: =COUNTA(L28:L47) -> 20 | AF3: Total Sequences in Block Data | AG3: =COUNTA(L48:L68) -> 21 | AK3: Total Sequences in Block Data | AL3: =COUNTA(L69:L88) -> 20 | AP3: Total Sequences in Block Data | AQ3: =COUNTA(L89:L109) -> 21 | AU3: Total Sequences in Block Data | AV3: =COUNTA(L110:L129) -> 20
P4: Total Sequences in Summary | Q4: =SUM(O7:O14) -> 123 | V4: Total Sequences in Block Summary | W4: =SUM(U7:U14) -> 21 | AA4: Total Sequences in Block Summary | AB4: =SUM(Z7:Z14) -> 20 | AF4: Total Sequences in Block Summary | AG4: =SUM(AE7:AE14) -> 21 | AK4: Total Sequences in Block Summary | AL4: =SUM(AJ7:AJ14) -> 20 | AP4: Total Sequences in Block Summary | AQ4: =SUM(AO7:AO14) -> 21 | AU4: Total Sequences in Block Summary | AV4: =SUM(AT7:AT14) -> 20
T5: Block 1 | Y5: Block 2 | AD5: Block 3 | AI5: Block 4 | AN5: Block 5 | AS5: Block 6
A6: Sequence Component 1 | B6: Time 1 | C6: Sequence Component 2 | D6: Time 2 | E6: Sequence Component 3 | F6: Time 3 | G6: Sequence Component 4 | H6: Time 4 | I6: Sequence Component 5 | J6: Time 5 | K6: Correct? 0=No 1=Yes | L6: Sequence | N6: Frequency | P6: Relative Frequency | Q6: Variability | T6: Frequency | V6: Relative Frequency | W6: Variability | Y6: Frequency | AA6: Relative Frequency | AB6: Variability | AD6: Frequency | AF6: Relative Frequency | AG6: Variability | AI6: Frequency | AK6: Relative Frequency | AL6: Variability | AN6: Frequency | AP6: Relative Frequency | AQ6: Variability | AS6: Frequency | AU6: Relative Frequency | AV6: Variability
A7: 12 | B7: 8 | C7: 13 | D7: 13 | E7: 13 | F7: 22 | K7: 0 | L7: 111 | N7: 111 | O7: =COUNTIF($L$7:$L$500,N7) -> 102 | P7: =O7/$Q$4 -> 0.8292682927 | Q7: =IF(P7=0,0,(P7*((LOG(P7))/LOG(2)))) -> -0.2239763794 | T7: =N7 -> 111 | U7: =COUNTIF(L7:L27,T7) -> 17 | V7: =U7/(W4-U11) -> 0.9444444444 | W7: =IF(V7=0,0,(V7*((LOG(V7))/LOG(2)))) -> -0.07788092907 | Y7: =N7 -> 111 | Z7: =COUNTIF(L28:L47,Y7) -> 17 | AA7: =Z7/(AB4-Z11) -> 1 | AB7: =IF(AA7=0,0,(AA7*((LOG(AA7))/LOG(2)))) -> 0 | AD7: =N7 -> 111 | AE7: =COUNTIF(L48:L68,AD7) -> 19 | AF7: =AE7/(AG4-AE11) -> 1 | AG7: =IF(AF7=0,0,(AF7*((LOG(AF7))/LOG(2)))) -> 0 | AI7: =N7 -> 111 | AJ7: =COUNTIF(L69:L88,AI7) -> 19 | AK7: =AJ7/(AL4-AJ11) -> 0.95 | AL7: =IF(AK7=0,0,(AK7*((LOG(AK7))/LOG(2)))) -> -0.07030055237 | AN7: =N7 -> 111 | AO7: =COUNTIF(L89:L109,AN7) -> 18 | AP7: =AO7/(AQ4-AO11) -> 1 | AQ7: =IF(AP7=0,0,(AP7*((LOG(AP7))/LOG(2)))) -> 0 | AS7: =N7 -> 111 | AT7: =COUNTIF(L110:L129,AS7) -> 12 | AU7: =AT7/(AV4-AT11) -> 1 | AV7: =IF(AU7=0,0,(AU7*((LOG(AU7))/LOG(2)))) -> 0
A8: 12 | B8: 122 | C8: 13 | D8: 127 | E8: 13 | F8: 139 | K8: 0 | L8: 111 | N8: 112 | O8: 1 | P8: 0.008130081301 | Q8: -0.05644320736 | T8: 112 | U8: =COUNTIF(L7:L27,T8) -> 0 | V8: =U8/(W4-U11) -> 0 | W8: =IF(V8=0,0,(V8*((LOG(V8))/LOG(2)))) -> 0 | Y8: 112 | Z8: =COUNTIF(L28:L47,Y8) -> 0 | AA8: =Z8/(AB4-Z11) -> 0 | AB8: =IF(AA8=0,0,(AA8*((LOG(AA8))/LOG(2)))) -> 0 | AD8: 112 | AE8: =COUNTIF(L48:L68,AD8) -> 0 | AF8: =AE8/(AG4-AE11) -> 0 | AG8: =IF(AF8=0,0,(AF8*((LOG(AF8))/LOG(2)))) -> 0 | AI8: 112 | AJ8: =COUNTIF(L69:L88,AI8) -> 1 | AK8: =AJ8/(AL4-AJ11) -> 0.05 | AL8: =IF(AK8=0,0,(AK8*((LOG(AK8))/LOG(2)))) -> -0.2160964047 | AN8: 112 | AO8: =COUNTIF(L89:L109,AN8) -> 0 | AP8: =AO8/(AQ4-AO11) -> 0 | AQ8: =IF(AP8=0,0,(AP8*((LOG(AP8))/LOG(2)))) -> 0 | AS8: 112 | AT8: =COUNTIF(L110:L129,AS8) -> 0 | AU8: =AT8/(AV4-AT11) -> 0 | AV8: =IF(AU8=0,0,(AU8*((LOG(AU8))/LOG(2)))) -> 0
A9: 21 | B9: 236 | C9: 22 | D9: 239 | E9: 13 | F9: 261 | K9: 0 | L9: 221 | N9: 121 | O9: 0 | P9: 0 | Q9: 0 | T9: 121 | U9: =COUNTIF(L7:L27,T9) -> 0 | V9: =U9/(W4-U11) -> 0 | W9: =IF(V9=0,0,(V9*((LOG(V9))/LOG(2)))) -> 0 | Y9: 121 | Z9: =COUNTIF(L28:L47,Y9) -> 0 | AA9: =Z9/(AB4-Z11) -> 0 | AB9: =IF(AA9=0,0,(AA9*((LOG(AA9))/LOG(2)))) -> 0 | AD9: 121 | AE9: =COUNTIF(L48:L68,AD9) -> 0 | AF9: =AE9/(AG4-AE11) -> 0 | AG9: =IF(AF9=0,0,(AF9*((LOG(AF9))/LOG(2)))) -> 0 | AI9: 121 | AJ9: =COUNTIF(L69:L88,AI9) -> 0 | AK9: =AJ9/(AL4-AJ11) -> 0 | AL9: =IF(AK9=0,0,(AK9*((LOG(AK9))/LOG(2)))) -> 0 | AN9: 121 | AO9: =COUNTIF(L89:L109,AN9) -> 0 | AP9: =AO9/(AQ4-AO11) -> 0 | AQ9: =IF(AP9=0,0,(AP9*((LOG(AP9))/LOG(2)))) -> 0 | AS9: 121 | AT9: =COUNTIF(L110:L129,AS9) -> 0 | AU9: =AT9/(AV4-AT11) -> 0 | AV9: =IF(AU9=0,0,(AU9*((LOG(AU9))/LOG(2)))) -> 0
A10: 12 | B10: 355 | C10: 13 | D10: 358 | E10: 13 | F10: 366 | K10: 0 | L10: 111 | N10: 122 | O10: 0 | P10: 0 | Q10: 0 | T10: 122 | U10: =COUNTIF(L7:L27,T10) -> 0 | V10: =U10/(W4-U11) -> 0 | W10: =IF(V10=0,0,(V10*((LOG(V10))/LOG(2)))) -> 0 | Y10: 122 | Z10: =COUNTIF(L28:L47,Y10) -> 0 | AA10: =Z10/(AB4-Z11) -> 0 | AB10: =IF(AA10=0,0,(AA10*((LOG(AA10))/LOG(2)))) -> 0 | AD10: 122 | AE10: =COUNTIF(L48:L68,AD10) -> 0 | AF10: =AE10/(AG4-AE11) -> 0 | AG10: =IF(AF10=0,0,(AF10*((LOG(AF10))/LOG(2)))) -> 0 | AI10: 122 | AJ10: =COUNTIF(L69:L88,AI10) -> 0 | AK10: =AJ10/(AL4-AJ11) -> 0 | AL10: =IF(AK10=0,0,(AK10*((LOG(AK10))/LOG(2)))) -> 0 | AN10: 122 | AO10: =COUNTIF(L89:L109,AN10) -> 0 | AP10: =AO10/(AQ4-AO11) -> 0 | AQ10: =IF(AP10=0,0,(AP10*((LOG(AP10))/LOG(2)))) -> 0 | AS10: 122 | AT10: =COUNTIF(L110:L129,AS10) -> 0 | AU10: =AT10/(AV4-AT11) -> 0 | AV10: =IF(AU10=0,0,(AU10*((LOG(AU10))/LOG(2)))) -> 0
A11: 12 | B11: 476 | C11: 13 | D11: 480 | E11: 13 | F11: 483 | K11: 0 | L11: 111 | N11: 211 | O11: 19 | P11: 0.1544715447 | Q11: -0.416237015 | T11: 211 | U11: =COUNTIF(L7:L27,T11) -> 3 | Y11: 211 | Z11: =COUNTIF(L28:L47,Y11) -> 3 | AD11: 211 | AE11: =COUNTIF(L48:L68,AD11) -> 2 | AI11: 211 | AJ11: =COUNTIF(L69:L88,AI11) -> 0 | AN11: 211 | AO11: =COUNTIF(L89:L109,AN11) -> 3 | AS11: 211 | AT11: =COUNTIF(L110:L129,AS11) -> 8
A12: 21 | B12: 574 | C12: 11 | D12: 582 | E12: 11 | F12: 588 | K12: 0 | L12: 211 | N12: 212 | O12: 0 | P12: 0 | Q12: 0 | T12: 212 | U12: =COUNTIF(L7:L27,T12) -> 0 | V12: =U12/(W4-U11) -> 0 | W12: =IF(V12=0,0,(V12*((LOG(V12))/LOG(2)))) -> 0 | Y12: 212 | Z12: =COUNTIF(L28:L47,Y12) -> 0 | AA12: =Z12/(AB4-Z11) -> 0 | AB12: =IF(AA12=0,0,(AA12*((LOG(AA12))/LOG(2)))) -> 0 | AD12: 212 | AE12: =COUNTIF(L48:L68,AD12) -> 0 | AF12: =AE12/(AG4-AE11) -> 0 | AG12: =IF(AF12=0,0,(AF12*((LOG(AF12))/LOG(2)))) -> 0 | AI12: 212 | AJ12: =COUNTIF(L69:L88,AI12) -> 0 | AK12: =AJ12/(AL4-AJ11) -> 0 | AL12: =IF(AK12=0,0,(AK12*((LOG(AK12))/LOG(2)))) -> 0 | AN12: 212 | AO12: =COUNTIF(L89:L109,AN12) -> 0 | AP12: =AO12/(AQ4-AO11) -> 0 | AQ12: =IF(AP12=0,0,(AP12*((LOG(AP12))/LOG(2)))) -> 0 | AS12: 212 | AT12: =COUNTIF(L110:L129,AS12) -> 0 | AU12: =AT12/(AV4-AT11) -> 0 | AV12: =IF(AU12=0,0,(AU12*((LOG(AU12))/LOG(2)))) -> 0
A13: 12 | B13: 719 | C13: 13 | D13: 724 | E13: 13 | F13: 730 | K13: 0 | L13: 111 | N13: 221 | O13: 1 | P13: 0.008130081301 | Q13: -0.05644320736 | T13: 221 | U13: =COUNTIF(L7:L27,T13) -> 1 | V13: =U13/(W4-U11) -> 0.05555555556 | W13: =IF(V13=0,0,(V13*((LOG(V13))/LOG(2)))) -> -0.2316625001 | Y13: 221 | Z13: =COUNTIF(L28:L47,Y13) -> 0 | AA13: =Z13/(AB4-Z11) -> 0 | AB13: =IF(AA13=0,0,(AA13*((LOG(AA13))/LOG(2)))) -> 0 | AD13: 221 | AE13: =COUNTIF(L48:L68,AD13) -> 0 | AF13: =AE13/(AG4-AE11) -> 0 | AG13: =IF(AF13=0,0,(AF13*((LOG(AF13))/LOG(2)))) -> 0 | AI13: 221 | AJ13: =COUNTIF(L69:L88,AI13) -> 0 | AK13: =AJ13/(AL4-AJ11) -> 0 | AL13: =IF(AK13=0,0,(AK13*((LOG(AK13))/LOG(2)))) -> 0 | AN13: 221 | AO13: =COUNTIF(L89:L109,AN13) -> 0 | AP13: =AO13/(AQ4-AO11) -> 0 | AQ13: =IF(AP13=0,0,(AP13*((LOG(AP13))/LOG(2)))) -> 0 | AS13: 221 | AT13: =COUNTIF(L110:L129,AS13) -> 0 | AU13: =AT13/(AV4-AT11) -> 0 | AV13: =IF(AU13=0,0,(AU13*((LOG(AU13))/LOG(2)))) -> 0
A14: 12 | B14: 835 | C14: 13 | D14: 842 | E14: 13 | F14: 855 | K14: 0 | L14: 111 | N14: 222 | O14: 0 | P14: 0 | Q14: 0 | T14: 222 | U14: =COUNTIF(L7:L27,T14) -> 0 | V14: =U14/(W4-U11) -> 0 | W14: =IF(V14=0,0,(V14*((LOG(V14))/LOG(2)))) -> 0 | Y14: 222 | Z14: =COUNTIF(L28:L47,Y14) -> 0 | AA14: =Z14/(AB4-Z11) -> 0 | AB14: =IF(AA14=0,0,(AA14*((LOG(AA14))/LOG(2)))) -> 0 | AD14: 222 | AE14: =COUNTIF(L48:L68,AD14) -> 0 | AF14: =AE14/(AG4-AE11) -> 0 | AG14: =IF(AF14=0,0,(AF14*((LOG(AF14))/LOG(2)))) -> 0 | AI14: 222 | AJ14: =COUNTIF(L69:L88,AI14) -> 0 | AK14: =AJ14/(AL4-AJ11) -> 0 | AL14: =IF(AK14=0,0,(AK14*((LOG(AK14))/LOG(2)))) -> 0 | AN14: 222 | AO14: =COUNTIF(L89:L109,AN14) -> 0 | AP14: =AO14/(AQ4-AO11) -> 0 | AQ14: =IF(AP14=0,0,(AP14*((LOG(AP14))/LOG(2)))) -> 0 | AS14: 222 | AT14: =COUNTIF(L110:L129,AS14) -> 0 | AU14: =AT14/(AV4-AT11) -> 0 | AV14: =IF(AU14=0,0,(AU14*((LOG(AU14))/LOG(2)))) -> 0
A15: 12 | B15: 954 | C15: 13 | D15: 956 | E15: 13 | F15: 962 | K15: 0 | L15: 111 | P15: =SUM(P7:P14) -> 1 | Q15: =-SUM(Q7:Q14) -> 0.7530998091 | V15: =SUM(V7:V14) -> 1 | W15: =-SUM(W7:W14) -> 0.3095434292 | AA15: =SUM(AA7:AA14) -> 1 | AB15: =-SUM(AB7:AB14) -> 0 | AF15: =SUM(AF7:AF14) -> 1 | AG15: =-SUM(AG7:AG14) -> 0 | AK15: =SUM(AK7:AK14) -> 1 | AL15: =-SUM(AL7:AL14) -> 0.2863969571 | AP15: =SUM(AP7:AP14) -> 1 | AQ15: =-SUM(AQ7:AQ14) -> 0 | AU15: =SUM(AU7:AU14) -> 1 | AV15: =-SUM(AV7:AV14) -> 0
A16: 12 | B16: 1297 | C16: 13 | D16: 1303 | E16: 13 | F16: 1311 | K16: 0 | L16: 111 | P16: U= | Q16: =Q15/(LOG(Q4)/LOG(2)) -> 0.1084765194 | V16: U1= | W16: =W15/(LOG(W4)/LOG(2)) -> 0.0704738295 | AA16: U2= | AB16: =AB15/(LOG(AB4)/LOG(2)) -> 0 | AF16: U3= | AG16: =AG15/(LOG(AG4)/LOG(2)) -> 0 | AK16: U4= | AL16: =AL15/(LOG(AL4)/LOG(2)) -> 0.06626601619 | AP16: U5= | AQ16: =AQ15/(LOG(AQ4)/LOG(2)) -> 0 | AU16: U6= | AV16: =AV15/(LOG(AV4)/LOG(2)) -> 0
A17: 12 | B17: 1502 | C17: 13 | D17: 1504 | E17: 13 | F17: 1506 | K17: 0 | L17: 111
A18: 12 | B18: 1605 | C18: 13 | D18: 1614 | E18: 13 | F18: 1620 | K18: 0 | L18: 111
A19: 12 | B19: 1758 | C19: 13 | D19: 1764 | E19: 13 | F19: 1770 | K19: 0 | L19: 111 | N19: Total Target Seq
A20: 12 | B20: 1871 | C20: 13 | D20: 1877 | E20: 13 | F20: 1888 | K20: 0 | L20: 111 | N20: =COUNTIF(L7:L129,G3) -> 19 | P20: 21 | Q20: 20 | R20: 21 | S20: 20 | T20: 21 | U20: 20
A21: 12 | B21: 1987 | C21: 13 | D21: 1991 | E21: 13 | F21: 2002 | K21: 0 | L21: 111 | P21: % of reinforcement given in 6 equal intervals based on number of trials
A22: 12 | B22: 2101 | C22: 13 | D22: 2107 | E22: 13 | F22: 2113 | K22: 0 | L22: 111 | P22: %_1 | Q22: %_2 | R22: %_3 | S22: %_4 | T22: %_5 | U22: %_6
A23: 12 | B23: 2212 | C23: 13 | D23: 2216 | E23: 13 | F23: 2221 | K23: 0 | L23: 111 | O23: target sequence | P23: =$G$3 -> 211 | Q23: 211 | R23: 211 | S23: 211 | T23: 211 | U23: 211
A24: 21 | B24: 2315 | C24: 11 | D24: 2318 | E24: 11 | F24: 2322 | K24: 0 | L24: 211 | O24: total reinforcement | P24: =U11 -> 3 | Q24: =Z11 -> 3 | R24: =AE11 -> 2 | S24: =AJ11 -> 0 | T24: =AO11 -> 3 | U24: =AT11 -> 8
A25: 12 | B25: 2418 | C25: 13 | D25: 2427 | E25: 13 | F25: 2434 | K25: 0 | L25: 111 | O25: % target
A26: 12 | B26: 2534 | C26: 13 | D26: 2540 | E26: 13 | F26: 2547 | K26: 0 | L26: 111 | O26: CCRF
A27: 21 | B27: 2645 | C27: 11 | D27: 2649 | E27: 11 | F27: 2653 | K27: 0 | L27: 211 | O27: % CCRf
A28: 12 | B28: 2825 | C28: 13 | D28: 2827 | E28: 13 | F28: 2838 | K28: 0 | L28: 111 | O28: average response rate | P28: =F27/P20 -> 126.3333333 | Q28: =(F47-F27)/Q20 -> 188.2 | R28: =(F68-F47)/R20 -> 118.5714286 | S28: =(F88-F68)/S20 -> 235.95 | T28: =(F109-F88)/T20 -> 175.7142857 | U28: =(F129-F109)/U20 -> 201.2
A29: 12 | B29: 2937 | C29: 13 | D29: 2944 | E29: 13 | F29: 2957 | K29: 0 | L29: 111
A30: 12 | B30: 3060 | C30: 13 | D30: 3065 | E30: 13 | F30: 3071 | K30: 0 | L30: 111
A31: 12 | B31: 3170 | C31: 13 | D31: 3174 | E31: 13 | F31: 3180 | K31: 0 | L31: 111
A32: 12 | B32: 3280 | C32: 13 | D32: 3283 | E32: 13 | F32: 3295 | K32: 0 | L32: 111
A33: 12 | B33: 3394 | C33: 13 | D33: 3398 | E33: 13 | F33: 3402 | K33: 0 | L33: 111
A34: 12 | B34: 3499 | C34: 13 | D34: 3507 | E34: 13 | F34: 3514 | K34: 0 | L34: 111
A35: 21 | B35: 3610 | C35: 11 | D35: 3612 | E35: 11 | F35: 3615 | K35: 0 | L35: 211
A36: 12 | B36: 3732 | C36: 13 | D36: 3739 | E36: 13 | F36: 3744 | K36: 0 | L36: 111
A37: 12 | B37: 3842 | C37: 13 | D37: 3845 | E37: 13 | F37: 3847 | K37: 0 | L37: 111
A38: 12 | B38: 3947 | C38: 13 | D38: 3951 | E38: 13 | F38: 3961 | K38: 0 | L38: 111
A39: 21 | B39: 4057 | C39: 11 | D39: 4062 | E39: 11 | F39: 4067 | K39: 0 | L39: 211
A40: 12 | B40: 5051 | C40: 13 | D40: 5056 | E40: 13 | F40: 5067 | K40: 0 | L40: 111
A41: 12 | B41: 5209 | C41: 13 | D41: 5211 | E41: 13 | F41: 5216 | K41: 0 | L41: 111
A42: 12 | B42: 5322 | C42: 13 | D42: 5325 | E42: 13 | F42: 5330 | K42: 0 | L42: 111
A43: 12 | B43: 5428 | C43: 13 | D43: 5430 | E43: 13 | F43: 5434 | K43: 0 | L43: 111
A44: 12 | B44: 5534 | C44: 13 | D44: 5537 | E44: 13 | F44: 5548 | K44: 0 | L44: 111
A45: 12 | B45: 6024 | C45: 13 | D45: 6027 | E45: 13 | F45: 6033 | K45: 0 | L45: 111
A46: 12 | B46: 6299 | C46: 13 | D46: 6306 | E46: 13 | F46: 6312 | K46: 0 | L46: 111
A47: 21 | B47: 6404 | C47: 11 | D47: 6411 | E47: 11 | F47: 6417 | K47: 0 | L47: 211
A48: 12 | B48: 6642 | C48: 13 | D48: 6649 | E48: 13 | F48: 6659 | K48: 0 | L48: 111
A49: 12 | B49: 6758 | C49: 13 | D49: 6760 | E49: 13 | F49: 6765 | K49: 0 | L49: 111
A50: 21 | B50: 6858 | C50: 11 | D50: 6864 | E50: 11 | F50: 6868 | K50: 0 | L50: 211
A51: 12 | B51: 6960 | C51: 13 | D51: 6965 | E51: 13 | F51: 6970 | K51: 0 | L51: 111
A52: 12 | B52: 7069 | C52: 13 | D52: 7073 | E52: 13 | F52: 7080 | K52: 0 | L52: 111
A53: 12 | B53: 7178 | C53: 13 | D53: 7182 | E53: 13 | F53: 7188 | K53: 0 | L53: 111
A54: 21 | B54: 7285 | C54: 11 | D54: 7293 | E54: 11 | F54: 7316 | K54: 0 | L54: 211
A55: 12 | B55: 7429 | C55: 13 | D55: 7437 | E55: 13 | F55: 7442 | K55: 0 | L55: 111
A56: 12 | B56: 7540 | C56: 13 | D56: 7546 | E56: 13 | F56: 7552 | K56: 0 | L56: 111
A57: 12 | B57: 7651 | C57: 13 | D57: 7657 | E57: 13 | F57: 7663 | K57: 0 | L57: 111
A58: 12 | B58: 7762 | C58: 13 | D58: 7766 | E58: 13 | F58: 7772 | K58: 0 | L58: 111
A59: 12 | B59: 7874 | C59: 13 | D59: 7889 | E59: 13 | F59: 7901 | K59: 0 | L59: 111
A60: 12 | B60: 8002 | C60: 13 | D60: 8003 | E60: 13 | F60: 8012 | K60: 0 | L60: 111
A61: 12 | B61: 8111 | C61: 13 | D61: 8114 | E61: 13 | F61: 8125 | K61: 0 | L61: 111
A62: 12 | B62: 8224 | C62: 13 | D62: 8231 | E62: 13 | F62: 8242 | K62: 0 | L62: 111
A63: 12 | B63: 8341 | C63: 13 | D63: 8345 | E63: 13 | F63: 8348 | K63: 0 | L63: 111
A64: 12 | B64: 8450 | C64: 13 | D64: 8455 | E64: 13 | F64: 8467 | K64: 0 | L64: 111
A65: 12 | B65: 8564 | C65: 13 | D65: 8568 | E65: 13 | F65: 8584 | K65: 0 | L65: 111
A66: 12 | B66: 8682 | C66: 13 | D66: 8685 | E66: 13 | F66: 8689 | K66: 0 | L66: 111
A67: 12 | B67: 8789 | C67: 13 | D67: 8791 | E67: 13 | F67: 8795 | K67: 0 | L67: 111
A68: 12 | B68: 8893 | C68: 13 | D68: 8897 | E68: 13 | F68: 8907 | K68: 0 | L68: 111
A69: 12 | B69: 9333 | C69: 13 | D69: 9339 | E69: 13 | F69: 9345 | K69: 0 | L69: 111
A70: 12 | B70: 9442 | C70: 13 | D70: 9446 | E70: 13 | F70: 9454 | K70: 0 | L70: 111
A71: 12 | B71: 9553 | C71: 13 | D71: 9558 | E71: 13 | F71: 9575 | K71: 0 | L71: 111
A72: 12 | B72: 9674 | C72: 13 | D72: 9678 | E72: 13 | F72: 9685 | K72: 0 | L72: 111
A73: 12 | B73: 10279 | C73: 13 | D73: 10291 | E73: 13 | F73: 10299 | K73: 0 | L73: 111
A74: 12 | B74: 10400 | C74: 13 | D74: 10406 | E74: 13 | F74: 10412 | K74: 0 | L74: 111
A75: 12 | B75: 10511 | C75: 13 | D75: 10514 | E75: 13 | F75: 10520 | K75: 0 | L75: 111
A76: 12 | B76: 10618 | C76: 13 | D76: 10621 | E76: 13 | F76: 10625 | K76: 0 | L76: 111
A77: 12 | B77: 10724 | C77: 13 | D77: 10728 | E77: 13 | F77: 10739 | K77: 0 | L77: 111
A78: 12 | B78: 10840 | C78: 13 | D78: 10851 | E78: 13 | F78: 10868 | K78: 0 | L78: 111
A79: 12 | B79: 10959 | C79: 13 | D79: 10964 | E79: 13 | F79: 10967 | K79: 0 | L79: 111
A80: 12 | B80: 11066 | C80: 13 | D80: 11071 | E80: 13 | F80: 11081 | K80: 0 | L80: 111
A81: 12 | B81: 11183 | C81: 13 | D81: 11188 | E81: 13 | F81: 11197 | K81: 0 | L81: 111
A82: 12 | B82: 11840 | C82: 13 | D82: 11843 | E82: 24 | F82: 11845 | K82: 0 | L82: 112
A83: 12 | B83: 12312 | C83: 13 | D83: 12318 | E83: 13 | F83: 12329 | K83: 0 | L83: 111
A84: 12 | B84: 13092 | C84: 13 | D84: 13098 | E84: 13 | F84: 13104 | K84: 0 | L84: 111
A85: 12 | B85: 13257 | C85: 13 | D85: 13263 | E85: 13 | F85: 13270 | K85: 0 | L85: 111
A86: 12 | B86: 13377 | C86: 13 | D86: 13386 | E86: 13 | F86: 13399 | K86: 0 | L86: 111
A87: 12 | B87: 13498 | C87: 13 | D87: 13502 | E87: 13 | F87: 13509 | K87: 0 | L87: 111
A88: 12 | B88: 13608 | C88: 13 | D88: 13612 | E88: 13 | F88: 13626 | K88: 0 | L88: 111
A89: 12 | B89: 14805 | C89: 13 | D89: 14809 | E89: 13 | F89: 14817 | K89: 0 | L89: 111
A90: 12 | B90: 14932 | C90: 13 | D90: 14939 | E90: 13 | F90: 14948 | K90: 0 | L90: 111
A91: 12 | B91: 15045 | C91: 13 | D91: 15049 | E91: 13 | F91: 15053 | K91: 0 | L91: 111
A92: 12 | B92: 15157 | C92: 13 | D92: 15161 | E92: 13 | F92: 15167 | K92: 0 | L92: 111
A93: 12 | B93: 15266 | C93: 13 | D93: 15270 | E93: 13 | F93: 15275 | K93: 0 | L93: 111
A94: 21 | B94: 15368 | C94: 11 | D94: 15374 | E94: 11 | F94: 15381 | K94: 0 | L94: 211
A95: 12 | B95: 15483 | C95: 13 | D95: 15487 | E95: 13 | F95: 15493 | K95: 0 | L95: 111
A96: 21 | B96: 15589 | C96: 11 | D96: 15597 | E96: 11 | F96: 15601 | K96: 0 | L96: 211
A97: 12 | B97: 15864 | C97: 13 | D97: 15871 | E97: 13 | F97: 15883 | K97: 0 | L97: 111
A98: 12 | B98: 15982 | C98: 13 | D98: 15989 | E98: 13 | F98: 16001 | K98: 0 | L98: 111
A99: 12 | B99: 16111 | C99: 13 | D99: 16115 | E99: 13 | F99: 16119 | K99: 0 | L99: 111
A100: 12 | B100: 16218 | C100: 13 | D100: 16226 | E100: 13 | F100: 16237 | K100: 0 | L100: 111
A101: 12 | B101: 16340 | C101: 13 | D101: 16343 | E101: 13 | F101: 16358 | K101: 0 | L101: 111
A102: 12 | B102: 16484 | C102: 13 | D102: 16490 | E102: 13 | F102: 16496 | K102: 0 | L102: 111
A103: 12 | B103: 16598 | C103: 13 | D103: 16605 | E103: 13 | F103: 16612 | K103: 0 | L103: 111
A104: 12 | B104: 16712 | C104: 13 | D104: 16716 | E104: 13 | F104: 16726 | K104: 0 | L104: 111
A105: 12 | B105: 16825 | C105: 13 | D105: 16830 | E105: 13 | F105: 16840 | K105: 0 | L105: 111
A106: 12 | B106: 16939 | C106: 13 | D106: 16942 | E106: 13 | F106: 16947 | K106: 0 | L106: 111
A107: 21 | B107: 17042 | C107: 11 | D107: 17047 | E107: 11 | F107: 17055 | K107: 0 | L107: 211
A108: 12 | B108: 17158 | C108: 13 | D108: 17165 | E108: 13 | F108: 17170 | K108: 0 | L108: 111
A109: 12 | B109: 17307 | C109: 13 | D109: 17310 | E109: 13 | F109: 17316 | K109: 0 | L109: 111
A110: 12 | B110: 17416 | C110: 13 | D110: 17420 | E110: 13 | F110: 17426 | K110: 0 | L110: 111
A111: 12 | B111: 17528 | C111: 13 | D111: 17532 | E111: 13 | F111: 17543 | K111: 0 | L111: 111
A112: 21 | B112: 17638 | C112: 11 | D112: 17644 | E112: 11 | F112: 17649 | K112: 0 | L112: 211
A113: 12 | B113: 17744 | C113: 13 | D113: 17750 | E113: 13 | F113: 17755 | K113: 0 | L113: 111
A114: 12 | B114: 18142 | C114: 13 | D114: 18148 | E114: 13 | F114: 18158 | K114: 0 | L114: 111
A115: 21 | B115: 18253 | C115: 11 | D115: 18260 | E115: 11 | F115: 18264 | K115: 0 | L115: 211
A116: 12 | B116: 18374 | C116: 13 | D116: 18379 | E116: 13 | F116: 18391 | K116: 0 | L116: 111
A117: 21 | B117: 18486 | C117: 11 | D117: 18496 | E117: 11 | F117: 18501 | K117: 0 | L117: 211
A118: 21 | B118: 18602 | C118: 11 | D118: 18610 | E118: 11 | F118: 18613 | K118: 0 | L118: 211
A119: 12 | B119: 19437 | C119: 13 | D119: 19442 | E119: 13 | F119: 19450 | K119: 0 | L119: 111
A120: 12 | B120: 19548 | C120: 13 | D120: 19552 | E120: 13 | F120: 19555 | K120: 0 | L120: 111
A121: 12 | B121: 19667 | C121: 13 | D121: 19672 | E121: 13 | F121: 19679 | K121: 0 | L121: 111
A122: 21 | B122: 19773 | C122: 11 | D122: 19780 | E122: 11 | F122: 19783 | K122: 0 | L122: 211
A123: 12 | B123: 20080 | C123: 13 | D123: 20085 | E123: 13 | F123: 20089 | K123: 0 | L123: 111
A124: 21 | B124: 20182 | C124: 11 | D124: 20188 | E124: 11 | F124: 20193 | K124: 0 | L124: 211
A125: 12 | B125: 20510 | C125: 13 | D125: 20517 | E125: 13 | F125: 20527 | K125: 0 | L125: 111
A126: 12 | B126: 20650 | C126: 13 | D126: 20653 | E126: 13 | F126: 20658 | K126: 0 | L126: 111
A127: 21 | B127: 20753 | C127: 11 | D127: 20761 | E127: 11 | F127: 20767 | K127: 0 | L127: 211
A128: 12 | B128: 21221 | C128: 13 | D128: 21227 | E128: 13 | F128: 21233 | K128: 0 | L128: 111
A129: 21 | B129: 21327 | C129: 11 | D129: 21334 | E129: 11 | F129: 21340 | K129: 1 | L129: 211

Sheet !N207A1T.AYL
A1: Report for:!N207A1T.AYL
A2: Date: | B2: <date>
A3: Hen: | B3: <hen> | F3: Correct Sequence | G3: =Start!J2 -> 211 | P3: Total Sequences in Data | Q3: =4994-COUNTBLANK(L7:L5000) -> 92 | V3: Total Sequences in Block Data | W3: =COUNTA(L7:L21) -> 15 | AA3: Total Sequences in Block Data | AB3: =COUNTA(L22:L37) -> 16 | AF3: Total Sequences in Block Data | AG3: =COUNTA(L38:L52) -> 15 | AK3: Total Sequences in Block Data | AL3: =COUNTA(L53:L67) -> 15 | AP3: Total Sequences in Block Data | AQ3: =COUNTA(L68:L83) -> 16 | AU3: Total Sequences in Block Data | AV3: =COUNTA(L84:L98) -> 15
P4: Total Sequences in Summary | Q4: =SUM(O7:O14) -> 92 | V4: Total Sequences in Block Summary | W4: =SUM(U7:U14) -> 15 | AA4: Total Sequences in Block Summary | AB4: =SUM(Z7:Z14) -> 16 | AF4: Total Sequences in Block Summary | AG4: =SUM(AE7:AE14) -> 15 | AK4: Total Sequences in Block Summary | AL4: =SUM(AJ7:AJ14) -> 15 | AP4: Total Sequences in Block Summary | AQ4: =SUM(AO7:AO14) -> 16 | AU4: Total Sequences in Block Summary | AV4: =SUM(AT7:AT14) -> 15
T5: Block 1 | Y5: Block 2 | AD5: Block 3 | AI5: Block 4 | AN5: Block 5 | AS5: Block 6
A6: Sequence Component 1 | B6: Time 1 | C6: Sequence Component 2 | D6: Time 2 | E6: Sequence Component 3 | F6: Time 3 | G6: Sequence Component 4 | H6: Time 4 | I6: Sequence Component 5 | J6: Time 5 | K6: Correct? 0=No 1=Yes | L6: Sequence | N6: Frequency | P6: Relative Frequency | Q6: Variability | T6: Frequency | V6: Relative Frequency | W6: Variability | Y6: Frequency | AA6: Relative Frequency | AB6: Variability | AD6: Frequency | AF6: Relative Frequency | AG6: Variability | AI6: Frequency | AK6: Relative Frequency | AL6: Variability | AN6: Frequency | AP6: Relative Frequency | AQ6: Variability | AS6: Frequency | AU6: Relative Frequency | AV6: Variability
A7: 12 | B7: 96 | C7: 13 | D7: 102 | E7: 13 | F7: 109 | K7: 0 | L7: 111 | N7: 111 | O7: =COUNTIF($L$7:$L$500,N7) -> 60 | P7: =O7/$Q$4 -> 0.652173913 | Q7: =IF(P7=0,0,(P7*((LOG(P7))/LOG(2)))) -> -0.4021769742 | T7: =N7 -> 111 | U7: =COUNTIF(L7:L21,T7) -> 14 | V7: =U7/(W4-U11) -> 1 | W7: =IF(V7=0,0,(V7*((LOG(V7))/LOG(2)))) -> 0 | Y7: =N7 -> 111 | Z7: =COUNTIF(L22:L37,Y7) -> 10 | AA7: =Z7/(AB4-Z11) -> 0.9090909091 | AB7: =IF(AA7=0,0,(AA7*((LOG(AA7))/LOG(2)))) -> -0.1250032034 | AD7: =N7 -> 111 | AE7: =COUNTIF(L38:L52,AD7) -> 10 | AF7: =AE7/(AG4-AE11) -> 1 | AG7: =IF(AF7=0,0,(AF7*((LOG(AF7))/LOG(2)))) -> 0 | AI7: =N7 -> 111 | AJ7: =COUNTIF(L53:L67,AI7) -> 5 | AK7: =AJ7/(AL4-AJ11) -> 0.5555555556 | AL7: =IF(AK7=0,0,(AK7*((LOG(AK7))/LOG(2)))) -> -0.4711093925 | AN7: =N7 -> 111 | AO7: =COUNTIF(L68:L83,AN7) -> 11 | AP7: =AO7/(AQ4-AO11) -> 0.7857142857 | AQ7: =IF(AP7=0,0,(AP7*((LOG(AP7))/LOG(2)))) -> -0.2733683098 | AS7: =N7 -> 111 | AT7: =COUNTIF(L84:L98,AS7) -> 10 | AU7: =AT7/(AV4-AT11) -> 0.9090909091 | AV7: =IF(AU7=0,0,(AU7*((LOG(AU7))/LOG(2)))) -> -0.1250032034
A8: 12 | B8: 374 | C8: 13 | D8: 380 | E8: 13 | F8: 390 | K8: 0 | L8: 111 | N8: 112 | O8: 5 | P8: 0.05434782609 | Q8: -0.2283496664 | T8: 112 | U8: =COUNTIF(L7:L21,T8) -> 0 | V8: =U8/(W4-U11) -> 0 | W8: =IF(V8=0,0,(V8*((LOG(V8))/LOG(2)))) -> 0 | Y8: 112 | Z8: =COUNTIF(L22:L37,Y8) -> 1 | AA8: =Z8/(AB4-Z11) -> 0.09090909091 | AB8: =IF(AA8=0,0,(AA8*((LOG(AA8))/LOG(2)))) -> -0.3144937835 | AD8: 112 | AE8: =COUNTIF(L38:L52,AD8) -> 0 | AF8: =AE8/(AG4-AE11) -> 0 | AG8: =IF(AF8=0,0,(AF8*((LOG(AF8))/LOG(2)))) -> 0 | AI8: 112 | AJ8: =COUNTIF(L53:L67,AI8) -> 1 | AK8: =AJ8/(AL4-AJ11) -> 0.1111111111 | AL8: =IF(AK8=0,0,(AK8*((LOG(AK8))/LOG(2)))) -> -0.352213889 | AN8: 112 | AO8: =COUNTIF(L68:L83,AN8) -> 3 | AP8: =AO8/(AQ4-AO11) -> 0.2142857143 | AQ8: =IF(AP8=0,0,(AP8*((LOG(AP8))/LOG(2)))) -> -0.4762269474 | AS8: 112 | AT8: =COUNTIF(L84:L98,AS8) -> 0 | AU8: =AT8/(AV4-AT11) -> 0 | AV8: =IF(AU8=0,0,(AU8*((LOG(AU8))/LOG(2)))) -> 0
A9: 12 | B9: 494 | C9: 13 | D9: 502 | E9: 13 | F9: 512 | K9: 0 | L9: 111 | N9: 121 | O9: 2 | P9: 0.02173913043 | Q9: -0.1200774338 | T9: 121 | U9: =COUNTIF(L7:L21,T9) -> 0 | V9: =U9/(W4-U11) -> 0 | W9: =IF(V9=0,0,(V9*((LOG(V9))/LOG(2)))) -> 0 | Y9: 121 | Z9: =COUNTIF(L22:L37,Y9) -> 0 | AA9: =Z9/(AB4-Z11) -> 0 | AB9: =IF(AA9=0,0,(AA9*((LOG(AA9))/LOG(2)))) -> 0 | AD9: 121 | AE9: =COUNTIF(L38:L52,AD9) -> 0 | AF9: =AE9/(AG4-AE11) -> 0 | AG9: =IF(AF9=0,0,(AF9*((LOG(AF9))/LOG(2)))) -> 0 | AI9: 121 | AJ9: =COUNTIF(L53:L67,AI9) -> 2 | AK9: =AJ9/(AL4-AJ11) -> 0.2222222222 | AL9: =IF(AK9=0,0,(AK9*((LOG(AK9))/LOG(2)))) -> -0.4822055559 | AN9: 121 | AO9: =COUNTIF(L68:L83,AN9) -> 0 | AP9: =AO9/(AQ4-AO11) -> 0 | AQ9: =IF(AP9=0,0,(AP9*((LOG(AP9))/LOG(2)))) -> 0 | AS9: 121 | AT9: =COUNTIF(L84:L98,AS9) -> 0 | AU9: =AT9/(AV4-AT11) -> 0 | AV9: =IF(AU9=0,0,(AU9*((LOG(AU9))/LOG(2)))) -> 0
A10: 12 | B10: 613 | C10: 13 | D10: 617 | E10: 13 | F10: 627 | K10: 0 | L10: 111 | N10: 122 | O10: 0 | P10: 0 | Q10: 0 | T10: 122 | U10: =COUNTIF(L7:L21,T10) -> 0 | V10: =U10/(W4-U11) -> 0 | W10: =IF(V10=0,0,(V10*((LOG(V10))/LOG(2)))) -> 0 | Y10: 122 | Z10: =COUNTIF(L22:L37,Y10) -> 0 | AA10: =Z10/(AB4-Z11) -> 0 | AB10: =IF(AA10=0,0,(AA10*((LOG(AA10))/LOG(2)))) -> 0 | AD10: 122 | AE10: =COUNTIF(L38:L52,AD10) -> 0 | AF10: =AE10/(AG4-AE11) -> 0 | AG10: =IF(AF10=0,0,(AF10*((LOG(AF10))/LOG(2)))) -> 0 | AI10: 122 | AJ10: =COUNTIF(L53:L67,AI10) -> 0 | AK10: =AJ10/(AL4-AJ11) -> 0 | AL10: =IF(AK10=0,0,(AK10*((LOG(AK10))/LOG(2)))) -> 0 | AN10: 122 | AO10: =COUNTIF(L68:L83,AN10) -> 0 | AP10: =AO10/(AQ4-AO11) -> 0 | AQ10: =IF(AP10=0,0,(AP10*((LOG(AP10))/LOG(2)))) -> 0 | AS10: 122 | AT10: =COUNTIF(L84:L98,AS10) -> 0 | AU10: =AT10/(AV4-AT11) -> 0 | AV10: =IF(AU10=0,0,(AU10*((LOG(AU10))/LOG(2)))) -> 0
A11: 12 | B11: 727 | C11: 13 | D11: 729 | E11: 13 | F11: 733 | K11: 0 | L11: 111 | N11: 211 | O11: 23 | P11: 0.25 | Q11: -0.5 | T11: 211 | U11: =COUNTIF(L7:L21,T11) -> 1 | Y11: 211 | Z11: =COUNTIF(L22:L37,Y11) -> 5 | AD11: 211 | AE11: =COUNTIF(L38:L52,AD11) -> 5 | AI11: 211 | AJ11: =COUNTIF(L53:L67,AI11) -> 6 | AN11: 211 | AO11: =COUNTIF(L68:L83,AN11) -> 2 | AS11: 211 | AT11: =COUNTIF(L84:L98,AS11) -> 4
A12: 12 | B12: 832 | C12: 13 | D12: 836 | E12: 13 | F12: 844 | K12: 0 | L12: 111 | N12: 212 | O12: 0 | P12: 0 | Q12: 0 | T12: 212 | U12: =COUNTIF(L7:L21,T12) -> 0 | V12: =U12/(W4-U11) -> 0 | W12: =IF(V12=0,0,(V12*((LOG(V12))/LOG(2)))) -> 0 | Y12: 212 | Z12: =COUNTIF(L22:L37,Y12) -> 0 | AA12: =Z12/(AB4-Z11) -> 0 | AB12: =IF(AA12=0,0,(AA12*((LOG(AA12))/LOG(2)))) -> 0 | AD12: 212 | AE12: =COUNTIF(L38:L52,AD12) -> 0 | AF12: =AE12/(AG4-AE11) -> 0 | AG12: =IF(AF12=0,0,(AF12*((LOG(AF12))/LOG(2)))) -> 0 | AI12: 212 | AJ12: =COUNTIF(L53:L67,AI12) -> 0 | AK12: =AJ12/(AL4-AJ11) -> 0 | AL12: =IF(AK12=0,0,(AK12*((LOG(AK12))/LOG(2)))) -> 0 | AN12: 212 | AO12: =COUNTIF(L68:L83,AN12) -> 0 | AP12: =AO12/(AQ4-AO11) -> 0 | AQ12: =IF(AP12=0,0,(AP12*((LOG(AP12))/LOG(2)))) -> 0 | AS12: 212 | AT12: =COUNTIF(L84:L98,AS12) -> 0 | AU12: =AT12/(AV4-AT11) -> 0 | AV12: =IF(AU12=0,0,(AU12*((LOG(AU12))/LOG(2)))) -> 0
A13: 12 | B13: 1010 | C13: 13 | D13: 1015 | E13: 13 | F13: 1021 | K13: 0 | L13: 111 | N13: 221 | O13: 2 | P13: 0.02173913043 | Q13: -0.1200774338 | T13: 221 | U13: =COUNTIF(L7:L21,T13) -> 0 | V13: =U13/(W4-U11) -> 0 | W13: =IF(V13=0,0,(V13*((LOG(V13))/LOG(2)))) -> 0 | Y13: 221 | Z13: =COUNTIF(L22:L37,Y13) -> 0 | AA13: =Z13/(AB4-Z11) -> 0 | AB13: =IF(AA13=0,0,(AA13*((LOG(AA13))/LOG(2)))) -> 0 | AD13: 221 | AE13: =COUNTIF(L38:L52,AD13) -> 0 | AF13: =AE13/(AG4-AE11) -> 0 | AG13: =IF(AF13=0,0,(AF13*((LOG(AF13))/LOG(2)))) -> 0 | AI13: 221 | AJ13: =COUNTIF(L53:L67,AI13) -> 1 | AK13: =AJ13/(AL4-AJ11) -> 0.1111111111 | AL13: =IF(AK13=0,0,(AK13*((LOG(AK13))/LOG(2)))) -> -0.352213889 | AN13: 221 | AO13: =COUNTIF(L68:L83,AN13) -> 0 | AP13: =AO13/(AQ4-AO11) -> 0 | AQ13: =IF(AP13=0,0,(AP13*((LOG(AP13))/LOG(2)))) -> 0 | AS13: 221 | AT13: =COUNTIF(L84:L98,AS13) -> 1 | AU13: =AT13/(AV4-AT11) -> 0.09090909091 | AV13: =IF(AU13=0,0,(AU13*((LOG(AU13))/LOG(2)))) -> -0.3144937835
A14: 12 | B14: 1142 | C14: 13 | D14: 1146 | E14: 13 | F14: 1153 | K14: 0 | L14: 111 | N14: 222 | O14: 0 | P14: 0 | Q14: 0 | T14: 222 | U14: =COUNTIF(L7:L21,T14) -> 0 | V14: =U14/(W4-U11) -> 0 | W14: =IF(V14=0,0,(V14*((LOG(V14))/LOG(2)))) -> 0 | Y14: 222 | Z14: =COUNTIF(L22:L37,Y14) -> 0 | AA14: =Z14/(AB4-Z11) -> 0 | AB14: =IF(AA14=0,0,(AA14*((LOG(AA14))/LOG(2)))) -> 0 | AD14: 222 | AE14: =COUNTIF(L38:L52,AD14) -> 0 | AF14: =AE14/(AG4-AE11) -> 0 | AG14: =IF(AF14=0,0,(AF14*((LOG(AF14))/LOG(2)))) -> 0 | AI14: 222 | AJ14: =COUNTIF(L53:L67,AI14) -> 0 | AK14: =AJ14/(AL4-AJ11) -> 0 | AL14: =IF(AK14=0,0,(AK14*((LOG(AK14))/LOG(2)))) -> 0 | AN14: 222 | AO14: =COUNTIF(L68:L83,AN14) -> 0 | AP14: =AO14/(AQ4-AO11) -> 0 | AQ14: =IF(AP14=0,0,(AP14*((LOG(AP14))/LOG(2)))) -> 0 | AS14: 222 | AT14: =COUNTIF(L84:L98,AS14) -> 0 | AU14: =AT14/(AV4-AT11) -> 0 | AV14: =IF(AU14=0,0,(AU14*((LOG(AU14))/LOG(2)))) -> 0
A15: 12 | B15: 1252 | C15: 13 | D15: 1256 | E15: 13 | F15: 1262 | K15: 0 | L15: 111 | P15: =SUM(P7:P14) -> 1 | Q15: =-SUM(Q7:Q14) -> 1.370681508 | V15: =SUM(V7:V14) -> 1 | W15: =-SUM(W7:W14) -> 0 | AA15: =SUM(AA7:AA14) -> 1 | AB15: =-SUM(AB7:AB14) -> 0.4394969869 | AF15: =SUM(AF7:AF14) -> 1 | AG15: =-SUM(AG7:AG14) -> 0 | AK15: =SUM(AK7:AK14) -> 1 | AL15: =-SUM(AL7:AL14) -> 1.657742727 | AP15: =SUM(AP7:AP14) -> 1 | AQ15: =-SUM(AQ7:AQ14) -> 0.7495952573 | AU15: =SUM(AU7:AU14) -> 1 | AV15: =-SUM(AV7:AV14) -> 0.4394969869
A16: 21 | B16: 1362 | C16: 11 | D16: 1367 | E16: 11 | F16: 1372 | K16: 0 | L16: 211 | P16: U= | Q16: =Q15/(LOG(Q4)/LOG(2)) -> 0.2101124382 | V16: U1= | W16: =W15/(LOG(W4)/LOG(2)) -> 0 | AA16: U2= | AB16: =AB15/(LOG(AB4)/LOG(2)) -> 0.1098742467 | AF16: U3= | AG16: =AG15/(LOG(AG4)/LOG(2)) -> 0 | AK16: U4= | AL16: =AL15/(LOG(AL4)/LOG(2)) -> 0.4243125539 | AP16: U5= | AQ16: =AQ15/(LOG(AQ4)/LOG(2)) -> 0.1873988143 | AU16: U6= | AV16: =AV15/(LOG(AV4)/LOG(2)) -> 0.1124927807
A17: 12 | B17: 1467 | C17: 13 | D17: 1474 | E17: 13 | F17: 1483 | K17: 0 | L17: 111
A18: 12 | B18: 1584 | C18: 13 | D18: 1588 | E18: 13 | F18: 1600 | K18: 0 | L18: 111
A19: 12 | B19: 1704 | C19: 13 | D19: 1711 | E19: 13 | F19: 1718 | K19: 0 | L19: 111 | N19: Total Target Seq
A20: 12 | B20: 1819 | C20: 13 | D20: 1825 | E20: 13 | F20: 1833 | K20: 0 | L20: 111 | N20: =COUNTIF(L7:L98,G3) -> 23 | P20: 15 | Q20: 16 | R20: 15 | S20: 15 | T20: 16 | U20: 15
A21: 12 | B21: 1932 | C21: 13 | D21: 1937 | E21: 13 | F21: 1949 | K21: 0 | L21: 111 | P21: % of reinforcement given in 6 equal intervals based on number of trials
A22: 12 | B22: 2048 | C22: 13 | D22: 2051 | E22: 13 | F22: 2059 | K22: 0 | L22: 111 | P22: %_1 | Q22: %_2 | R22: %_3 | S22: %_4 | T22: %_5 | U22: %_6
A23: 21 | B23: 2155 | C23: 11 | D23: 2166 | E23: 11 | F23: 2173 | K23: 0 | L23: 211 | O23: target sequence | P23: =$G$3 -> 211 | Q23: 211 | R23: 211 | S23: 211 | T23: 211 | U23: 211
A24: 21 | B24: 2497 | C24: 11 | D24: 2512 | E24: 11 | F24: 2518 | K24: 0 | L24: 211 | O24: total reinforcement | P24: =U11 -> 1 | Q24: =Z11 -> 5 | R24: =AE11 -> 5 | S24: =AJ11 -> 6 | T24: =AO11 -> 2 | U24: =AT11 -> 4
A25: 12 | B25: 2672 | C25: 13 | D25: 2675 | E25: 13 | F25: 2682 | K25: 0 | L25: 111 | O25: % target
A26: 12 | B26: 2782 | C26: 13 | D26: 2785 | E26: 13 | F26: 2796 | K26: 0 | L26: 111 | O26: CCRF
A27: 21 | B27: 2891 | C27: 11 | D27: 2900 | E27: 11 | F27: 2904 | K27: 0 | L27: 211 | O27: % CCRf
A28: 12 | B28: 3006 | C28: 13 | D28: 3011 | E28: 24 | F28: 3015 | K28: 0 | L28: 112 | O28: average response rate | P28: =F21/P20 -> 129.9333333 | Q28: =(F37-F21)/Q20 -> 163.5625 | R28: =(F52-F37)/R20 -> 118.6 | S28: =(F67-F52)/S20 -> 299 | T28: =(F83-F67)/T20 -> 333.25 | U28: =(F98-F83)/U20 -> 180
A29: 21 | B29: 3116 | C29: 11 | D29: 3125 | E29: 11 | F29: 3136 | K29: 0 | L29: 211
A30: 12 | B30: 3379 | C30: 13 | D30: 3385 | E30: 13 | F30: 3392 | K30: 0 | L30: 111
A31: 12 | B31: 3493 | C31: 13 | D31: 3499 | E31: 13 | F31: 3510 | K31: 0 | L31: 111
A32: 12 | B32: 3611 | C32: 13 | D32: 3615 | E32: 13 | F32: 3626 | K32: 0 | L32: 111
A33: 12 | B33: 3811 | C33: 13 | D33: 3814 | E33: 13 | F33: 3817 | K33: 0 | L33: 111
A34: 12 | B34: 3918 | C34: 13 | D34: 3921 | E34: 13 | F34: 3926 | K34: 0 | L34: 111
A35: 21 | B35: 4025 | C35: 11 | D35: 4032 | E35: 11 | F35: 4036 | K35: 0 | L35: 211
A36: 12 | B36: 4396 | C36: 13 | D36: 4407 | E36: 13 | F36: 4413 | K36: 0 | L36: 111
A37: 12 | B37: 4554 | C37: 13 | D37: 4560 | E37: 13 | F37: 4566 | K37: 0 | L37: 111
A38: 12 | B38: 4737 | C38: 13 | D38: 4739 | E38: 13 | F38: 4745 | K38: 0 | L38: 111
A39: 21 | B39: 4841 | C39: 11 | D39: 4848 | E39: 11 | F39: 4854 | K39: 0 | L39: 211
A40: 12 | B40: 4965 | C40: 13 | D40: 4971 | E40: 13 | F40: 4977 | K40: 0 | L40: 111
A41: 12 | B41: 5077 | C41: 13 | D41: 5085 | E41: 13 | F41: 5088 | K41: 0 | L41: 111
A42: 12 | B42: 5188 | C42: 13 | D42: 5193 | E42: 13 | F42: 5204 | K42: 0 | L42: 111
A43: 12 | B43: 5304 | C43: 13 | D43: 5306 | E43: 13 | F43: 5310 | K43: 0 | L43: 111
A44: 21 | B44: 5404 | C44: 11 | D44: 5410 | E44: 11 | F44: 5414 | K44: 0 | L44: 211
A45: 12 | B45: 5513 | C45: 13 | D45: 5523 | E45: 13 | F45: 5529 | K45: 0 | L45: 111
A46: 21 | B46: 5626 | C46: 11 | D46: 5632 | E46: 11 | F46: 5641 | K46: 0 | L46: 211
A47: 12 | B47: 5780 | C47: 13 | D47: 5787 | E47: 13 | F47: 5792 | K47: 0 | L47: 111
A48: 12 | B48: 5890 | C48: 13 | D48: 5894 | E48: 13 | F48: 5900 | K48: 0 | L48: 111
A49: 12 | B49: 6000 | C49: 13 | D49: 6004 | E49: 13 | F49: 6016 | K49: 0 | L49: 111
A50: 21 | B50: 6112 | C50: 11 | D50: 6124 | E50: 11 | F50: 6134 | K50: 0 | L50: 211
A51: 21 | B51: 6225 | C51: 11 | D51: 6236 | E51: 11 | F51: 6242 | K51: 0 | L51: 211
A52: 12 | B52: 6336 | C52: 13 | D52: 6339 | E52: 13 | F52: 6345 | K52: 0 | L52: 111
A53: 21 | B53: 6444 | C53: 11 | D53: 6450 | E53: 11 | F53: 6455 | K53: 0 | L53: 211
A54: 12 | B54: 6550 | C54: 13 | D54: 6554 | E54: 13 | F54: 6565 | K54: 0 | L54: 111
A55: 21 | B55: 6661 | C55: 11 | D55: 6668 | E55: 11 | F55: 6679 | K55: 0 | L55: 211
A56: 12 | B56: 7095 | C56: 13 | D56: 7100 | E56: 13 | F56: 7108 | K56: 0 | L56: 111
A57: 12 | B57: 7204 | C57: 13 | D57: 7210 | E57: 13 | F57: 7219 | K57: 0 | L57: 111
A58: 21 | B58: 7317 | C58: 11 | D58: 7326 | E58: 11 | F58: 7331 | K58: 0 | L58: 211
A59: 21 | B59: 7426 | C59: 11 | D59: 7438 | E59: 11 | F59: 7450 | K59: 0 | L59: 211
A60: 21 | B60: 7556 | C60: 11 | D60: 7569 | E60: 11 | F60: 7575 | K60: 0 | L60: 211
A61: 12 | B61: 7992 | C61: 13 | D61: 7998 | E61: 13 | F61: 8011 | K61: 0 | L61: 111
A62: 21 | B62: 8111 | C62: 22 | D62: 8115 | E62: 13 | F62: 8124 | K62: 0 | L62: 221
A63: 21 | B63: 8220 | C63: 11 | D63: 8228 | E63: 11 | F63: 8262 | K63: 0 | L63: 211
A64: 12 | B64: 8825 | C64: 24 | D64: 8827 | E64: 13 | F64: 8840 | K64: 0 | L64: 121
A65: 12 | B65: 9523 | C65: 13 | D65: 9528 | E65: 24 | F65: 9530 | K65: 0 | L65: 112
A66: 12 | B66: 10532 | C66: 24 | D66: 10543 | E66: 13 | F66: 10570 | K66: 0 | L66: 121
A67: 12 | B67: 10807 | C67: 13 | D67: 10812 | E67: 13 | F67: 10830 | K67: 0 | L67: 111
A68: 12 | B68: 10930 | C68: 13 | D68: 10934 | E68: 13 | F68: 10945 | K68: 0 | L68: 111
A69: 21 | B69: 11042 | C69: 11 | D69: 11049 | E69: 11 | F69: 11053 | K69: 0 | L69: 211
A70: 12 | B70: 11884 | C70: 13 | D70: 11893 | E70: 13 | F70: 11899 | K70: 0 | L70: 111
A71: 12 | B71: 12846 | C71: 13 | D71: 12852 | E71: 13 | F71: 12858 | K71: 0 | L71: 111
A72: 12 | B72: 13720 | C72: 13 | D72: 13724 | E72: 13 | F72: 13726 | K72: 0 | L72: 111
A73: 12 | B73: 13822 | C73: 13 | D73: 13824 | E73: 13 | F73: 13828 | K73: 0 | L73: 111
A74: 21 | B74: 13923 | C74: 11 | D74: 13935 | E74: 11 | F74: 13940 | K74: 0 | L74: 211
A75: 12 | B75: 14607 | C75: 13 | D75: 14611 | E75: 13 | F75: 14615 | K75: 0 | L75: 111
A76: 12 | B76: 14816 | C76: 13 | D76: 14822 | E76: 24 | F76: 14828 | K76: 0 | L76: 112
A77: 12 | B77: 14953 | C77: 13 | D77: 14960 | E77: 24 | F77: 14968 | K77: 0 | L77: 112
A78: 12 | B78: 15272 | C78: 13 | D78: 15278 | E78: 13 | F78: 15288 | K78: 0 | L78: 111
A79: 12 | B79: 15484 | C79: 13 | D79: 15485 | E79: 13 | F79: 15489 | K79: 0 | L79: 111
A80: 12 | B80: 15588 | C80: 13 | D80: 15593 | E80: 13 | F80: 15604 | K80: 0 | L80: 111
A81: 12 | B81: 15924 | C81: 13 | D81: 15928 | E81: 13 | F81: 15937 | K81: 0 | L81: 111
A82: 12 | B82: 16036 | C82: 13 | D82: 16039 | E82: 24 | F82: 16047 | K82: 0 | L82: 112
A83: 12 | B83: 16147 | C83: 13 | D83: 16151 | E83: 13 | F83: 16162 | K83: 0 | L83: 111
A84: 21 | B84: 16267 | C84: 11 | D84: 16275 | E84: 11 | F84: 16279 | K84: 0 | L84: 211
A85: 12 | B85: 16433 | C85: 13 | D85: 16442 | E85: 13 | F85: 16451 | K85: 0 | L85: 111
A86: 12 | B86: 16637 | C86: 13 | D86: 16639 | E86: 13 | F86: 16644 | K86: 0 | L86: 111
A87: 12 | B87: 16743 | C87: 13 | D87: 16748 | E87: 13 | F87: 16758 | K87: 0 | L87: 111
A88: 12 | B88: 17697 | C88: 13 | D88: 17701 | E88: 13 | F88: 17707 | K88: 0 | L88: 111
A89: 12 | B89: 17875 | C89: 13 | D89: 17880 | E89: 13 | F89: 17889 | K89: 0 | L89: 111
A90: 12 | B90: 17987 | C90: 13 | D90: 17991 | E90: 13 | F90: 17999 | K90: 0 | L90: 111
A91: 12 | B91: 18101 | C91: 13 | D91: 18104 | E91: 13 | F91: 18111 | K91: 0 | L91: 111
A92: 12 | B92: 18211 | C92: 13 | D92: 18215 | E92: 13 | F92: 18217 | K92: 0 | L92: 111
A93: 12 | B93: 18316 | C93: 13 | D93: 18320 | E93: 13 | F93: 18324 | K93: 0 | L93: 111
A94: 21 | B94: 18420 | C94: 11 | D94: 18426 | E94: 11 | F94: 18430 | K94: 0 | L94: 211
A95: 12 | B95: 18521 | C95: 13 | D95: 18526 | E95: 13 | F95: 18531 | K95: 0 | L95: 111
A96: 21 | B96: 18628 | C96: 22 | D96: 18630 | E96: 13 | F96: 18637 | K96: 0 | L96: 221
A97: 21 | B97: 18733 | C97: 11 | D97: 18739 | E97: 11 | F97: 18749 | K97: 0 | L97: 211
A98: 21 | B98: 18847 | C98: 11 | D98: 18854 | E98: 11 | F98: 18862 | K98: 1 | L98: 211

Sheet !N20893T.AYL
A1: Report for:!N20893T.AYL
A2: Date: | B2: <date>
A3: Hen: | B3: <hen> | F3: Correct Sequence | G3: =Start!J2 -> 211 | P3: Total Sequences in Data | Q3: =4994-COUNTBLANK(L7:L5000) -> 92 | V3: Total Sequences in Block Data | W3: =COUNTA(L7:L21) -> 15 | AA3: Total Sequences in Block Data | AB3: =COUNTA(L22:L37) -> 16 | AF3: Total Sequences in Block Data | AG3: =COUNTA(L38:L52) -> 15 | AK3: Total Sequences in Block Data | AL3: =COUNTA(L53:L67) -> 15 | AP3: Total Sequences in Block Data | AQ3: =COUNTA(L68:L83) -> 16 | AU3: Total Sequences in Block Data | AV3: =COUNTA(L84:L98) -> 15
P4: Total Sequences in Summary | Q4: =SUM(O7:O14) -> 91 | V4: Total Sequences in Block Summary | W4: =SUM(U7:U14) -> 15 | AA4: Total Sequences in Block Summary | AB4: =SUM(Z7:Z14) -> 16 | AF4: Total Sequences in Block Summary | AG4: =SUM(AE7:AE14) -> 15 | AK4: Total Sequences in Block Summary | AL4: =SUM(AJ7:AJ14) -> 15 | AP4: Total Sequences in Block Summary | AQ4: =SUM(AO7:AO14) -> 16 | AU4: Total Sequences in Block Summary | AV4: =SUM(AT7:AT14) -> 14
T5: Block 1 | Y5: Block 2 | AD5: Block 3 | AI5: Block 4 | AN5: Block 5 | AS5: Block 6
A6: Sequence Component 1 | B6: Time 1 | C6: Sequence Component 2 | D6: Time 2 | E6: Sequence Component 3 | F6: Time 3 | G6: Sequence Component 4 | H6: Time 4 | I6: Sequence Component 5 | J6: Time 5 | K6: Correct? 0=No 1=Yes | L6: Sequence | N6: Frequency | P6: Relative Frequency | Q6: Variability | T6: Frequency | V6: Relative Frequency | W6: Variability | Y6: Frequency | AA6: Relative Frequency | AB6: Variability | AD6: Frequency | AF6: Relative Frequency | AG6: Variability | AI6: Frequency | AK6: Relative Frequency | AL6: Variability | AN6: Frequency | AP6: Relative Frequency | AQ6: Variability | AS6: Frequency | AU6: Relative Frequency | AV6: Variability
A7: 12 | B7: 5 | C7: 13 | D7: 9 | E7: 13 | F7: 14 | K7: 0 | L7: 111 | N7: 111 | O7: =COUNTIF($L$7:$L$500,N7) -> 71 | P7: =O7/$Q$4 -> 0.7802197802 | Q7: =IF(P7=0,0,(P7*((LOG(P7))/LOG(2)))) -> -0.2793557579 | T7: =N7 -> 111 | U7: =COUNTIF(L7:L21,T7) -> 14 | V7: =U7/(W4-U11) -> 1 | W7: =IF(V7=0,0,(V7*((LOG(V7))/LOG(2)))) -> 0 | Y7: =N7 -> 111 | Z7: =COUNTIF(L22:L37,Y7) -> 12 | AA7: =Z7/(AB4-Z11) -> 0.8571428571 | AB7: =IF(AA7=0,0,(AA7*((LOG(AA7))/LOG(2)))) -> -0.1906220754 | AD7: =N7 -> 111 | AE7: =COUNTIF(L38:L52,AD7) -> 9 | AF7: =AE7/(AG4-AE11) -> 0.8181818182 | AG7: =IF(AF7=0,0,(AF7*((LOG(AF7))/LOG(2)))) -> -0.2368690504 | AI7: =N7 -> 111 | AJ7: =COUNTIF(L53:L67,AI7) -> 12 | AK7: =AJ7/(AL4-AJ11) -> 0.9230769231 | AL7: =IF(AK7=0,0,(AK7*((LOG(AK7))/LOG(2)))) -> -0.1065943545 | AN7: =N7 -> 111 | AO7: =COUNTIF(L68:L83,AN7) -> 11 | AP7: =AO7/(AQ4-AO11) -> 0.9166666667 | AQ7: =IF(AP7=0,0,(AP7*((LOG(AP7))/LOG(2)))) -> -0.1150699752 | AS7: =N7 -> 111 | AT7: =COUNTIF(L84:L98,AS7) -> 13 | AU7: =AT7/(AV4-AT11) -> 1 | AV7: =IF(AU7=0,0,(AU7*((LOG(AU7))/LOG(2)))) -> 0
A8: 12 | B8: 112 | C8: 13 | D8: 114 | E8: 13 | F8: 118 | K8: 0 | L8: 111 | N8: 112 | O8: 4 | P8: 0.04395604396 | Q8: -0.1981448193 | T8: 112 | U8: =COUNTIF(L7:L21,T8) -> 0 | V8: =U8/(W4-U11) -> 0 | W8: =IF(V8=0,0,(V8*((LOG(V8))/LOG(2)))) -> 0 | Y8: 112 | Z8: =COUNTIF(L22:L37,Y8) -> 1 | AA8: =Z8/(AB4-Z11) -> 0.07142857143 | AB8: =IF(AA8=0,0,(AA8*((LOG(AA8))/LOG(2)))) -> -0.271953923 | AD8: 112 | AE8: =COUNTIF(L38:L52,AD8) -> 2 | AF8: =AE8/(AG4-AE11) -> 0.1818181818 | AG8: =IF(AF8=0,0,(AF8*((LOG(AF8))/LOG(2)))) -> -0.4471693852 | AI8: 112 | AJ8: =COUNTIF(L53:L67,AI8) -> 0 | AK8: =AJ8/(AL4-AJ11) -> 0 | AL8: =IF(AK8=0,0,(AK8*((LOG(AK8))/LOG(2)))) -> 0 | AN8: 112 | AO8: =COUNTIF(L68:L83,AN8) -> 1 | AP8: =AO8/(AQ4-AO11) -> 0.08333333333 | AQ8: =IF(AP8=0,0,(AP8*((LOG(AP8))/LOG(2)))) -> -0.2987468751 | AS8: 112 | AT8: =COUNTIF(L84:L98,AS8) -> 0 | AU8: =AT8/(AV4-AT11) -> 0 | AV8: =IF(AU8=0,0,(AU8*((LOG(AU8))/LOG(2)))) -> 0
A9: 12 | B9: 217 | C9: 13 | D9: 219 | E9: 13 | F9: 232 | K9: 0 | L9: 111 | N9: 121 | O9: 1 | P9: 0.01098901099 | Q9: -0.07151422682 | T9: 121 | U9: =COUNTIF(L7:L21,T9) -> 0 | V9: =U9/(W4-U11) -> 0 | W9: =IF(V9=0,0,(V9*((LOG(V9))/LOG(2)))) -> 0 | Y9: 121 | Z9: =COUNTIF(L22:L37,Y9) -> 1 | AA9: =Z9/(AB4-Z11) -> 0.07142857143 | AB9: =IF(AA9=0,0,(AA9*((LOG(AA9))/LOG(2)))) -> -0.271953923 | AD9: 121 | AE9: =COUNTIF(L38:L52,AD9) -> 0 | AF9: =AE9/(AG4-AE11) -> 0 | AG9: =IF(AF9=0,0,(AF9*((LOG(AF9))/LOG(2)))) -> 0 | AI9: 121 | AJ9: =COUNTIF(L53:L67,AI9) -> 0 | AK9: =AJ9/(AL4-AJ11) -> 0 | AL9: =IF(AK9=0,0,(AK9*((LOG(AK9))/LOG(2)))) -> 0 | AN9: 121 | AO9: =COUNTIF(L68:L83,AN9) -> 0 | AP9: =AO9/(AQ4-AO11) -> 0 | AQ9: =IF(AP9=0,0,(AP9*((LOG(AP9))/LOG(2)))) -> 0 | AS9: 121 | AT9: =COUNTIF(L84:L98,AS9) -> 0 | AU9: =AT9/(AV4-AT11) -> 0 | AV9: =IF(AU9=0,0,(AU9*((LOG(AU9))/LOG(2)))) -> 0
A10: 12 | B10: 334 | C10: 13 | D10: 341 | E10: 13 | F10: 348 | K10: 0 | L10: 111 | N10: 122 | O10: 0 | P10: 0 | Q10: 0 | T10: 122 | U10: =COUNTIF(L7:L21,T10) -> 0 | V10: =U10/(W4-U11) -> 0 | W10: =IF(V10=0,0,(V10*((LOG(V10))/LOG(2)))) -> 0 | Y10: 122 | Z10: =COUNTIF(L22:L37,Y10) -> 0 | AA10: =Z10/(AB4-Z11) -> 0 | AB10: =IF(AA10=0,0,(AA10*((LOG(AA10))/LOG(2)))) -> 0 | AD10: 122 | AE10: =COUNTIF(L38:L52,AD10) -> 0 | AF10: =AE10/(AG4-AE11) -> 0 | AG10: =IF(AF10=0,0,(AF10*((LOG(AF10))/LOG(2)))) -> 0 | AI10: 122 | AJ10: =COUNTIF(L53:L67,AI10) -> 0 | AK10: =AJ10/(AL4-AJ11) -> 0 | AL10: =IF(AK10=0,0,(AK10*((LOG(AK10))/LOG(2)))) -> 0 | AN10: 122 | AO10: =COUNTIF(L68:L83,AN10) -> 0 | AP10: =AO10/(AQ4-AO11) -> 0 | AQ10: =IF(AP10=0,0,(AP10*((LOG(AP10))/LOG(2)))) -> 0 | AS10: 122 | AT10: =COUNTIF(L84:L98,AS10) -> 0 | AU10: =AT10/(AV4-AT11) -> 0 | AV10: =IF(AU10=0,0,(AU10*((LOG(AU10))/LOG(2)))) -> 0
A11: 12 | B11: 449 | C11: 13 | D11: 462 | E11: 13 | F11: 469 | K11: 0 | L11: 111 | N11: 211 | O11: 14 | P11: 0.1538461538 | Q11: -0.4154522643 | T11: 211 | U11: =COUNTIF(L7:L21,T11) -> 1 | Y11: 211 | Z11: =COUNTIF(L22:L37,Y11) -> 2 | AD11: 211 | AE11: =COUNTIF(L38:L52,AD11) -> 4 | AI11: 211 | AJ11: =COUNTIF(L53:L67,AI11) -> 2 | AN11: 211 | AO11: =COUNTIF(L68:L83,AN11) -> 4 | AS11: 211 | AT11: =COUNTIF(L84:L98,AS11) -> 1
A12: 12 | B12: 707 | C12: 13 | D12: 711 | E12: 13 | F12: 713 | K12: 0 | L12: 111 | N12: 212 | O12: 0 | P12: 0 | Q12: 0 | T12: 212 | U12: =COUNTIF(L7:L21,T12) -> 0 | V12: =U12/(W4-U11) -> 0 | W12: =IF(V12=0,0,(V12*((LOG(V12))/LOG(2)))) -> 0 | Y12: 212 | Z12: =COUNTIF(L22:L37,Y12) -> 0 | AA12: =Z12/(AB4-Z11) -> 0 | AB12: =IF(AA12=0,0,(AA12*((LOG(AA12))/LOG(2)))) -> 0 | AD12: 212 | AE12: =COUNTIF(L38:L52,AD12) -> 0 | AF12: =AE12/(AG4-AE11) -> 0 | AG12: =IF(AF12=0,0,(AF12*((LOG(AF12))/LOG(2)))) -> 0 | AI12: 212 | AJ12: =COUNTIF(L53:L67,AI12) -> 0 | AK12: =AJ12/(AL4-AJ11) -> 0 | AL12: =IF(AK12=0,0,(AK12*((LOG(AK12))/LOG(2)))) -> 0 | AN12: 212 | AO12: =COUNTIF(L68:L83,AN12) -> 0 | AP12: =AO12/(AQ4-AO11) -> 0 | AQ12: =IF(AP12=0,0,(AP12*((LOG(AP12))/LOG(2)))) -> 0 | AS12: 212 | AT12: =COUNTIF(L84:L98,AS12) -> 0 | AU12: =AT12/(AV4-AT11) -> 0 | AV12: =IF(AU12=0,0,(AU12*((LOG(AU12))/LOG(2)))) -> 0
A13: 12 | B13: 823 | C13: 13 | D13: 829 | E13: 13 | F13: 836 | K13: 0 | L13: 111 | N13: 221 | O13: 1 | P13: 0.01098901099 | Q13: -0.07151422682 | T13: 221 | U13: =COUNTIF(L7:L21,T13) -> 0 | V13: =U13/(W4-U11) -> 0 | W13: =IF(V13=0,0,(V13*((LOG(V13))/LOG(2)))) -> 0 | Y13: 221 | Z13: =COUNTIF(L22:L37,Y13) -> 0 | AA13: =Z13/(AB4-Z11) -> 0 | AB13: =IF(AA13=0,0,(AA13*((LOG(AA13))/LOG(2)))) -> 0 | AD13: 221 | AE13: =COUNTIF(L38:L52,AD13) -> 0 | AF13: =AE13/(AG4-AE11) -> 0 | AG13: =IF(AF13=0,0,(AF13*((LOG(AF13))/LOG(2)))) -> 0 | AI13: 221 | AJ13: =COUNTIF(L53:L67,AI13) -> 1 | AK13: =AJ13/(AL4-AJ11) -> 0.07692307692 | AL13: =IF(AK13=0,0,(AK13*((LOG(AK13))/LOG(2)))) -> -0.2846492091 | AN13: 221 | AO13: =COUNTIF(L68:L83,AN13) -> 0 | AP13: =AO13/(AQ4-AO11) -> 0 | AQ13: =IF(AP13=0,0,(AP13*((LOG(AP13))/LOG(2)))) -> 0 | AS13: 221 | AT13: =COUNTIF(L84:L98,AS13) -> 0 | AU13: =AT13/(AV4-AT11) -> 0 | AV13: =IF(AU13=0,0,(AU13*((LOG(AU13))/LOG(2)))) -> 0
A14: 12 | B14: 936 | C14: 13 | D14: 945 | E14: 13 | F14: 953 | K14: 0 | L14: 111 | N14: 222 | O14: 0 | P14: 0 | Q14: 0 | T14: 222 | U14: =COUNTIF(L7:L21,T14) -> 0 | V14: =U14/(W4-U11) -> 0 | W14: =IF(V14=0,0,(V14*((LOG(V14))/LOG(2)))) -> 0 | Y14: 222 | Z14: =COUNTIF(L22:L37,Y14) -> 0 | AA14: =Z14/(AB4-Z11) -> 0 | AB14: =IF(AA14=0,0,(AA14*((LOG(AA14))/LOG(2)))) -> 0 | AD14: 222 | AE14: =COUNTIF(L38:L52,AD14) -> 0 | AF14: =AE14/(AG4-AE11) -> 0 | AG14: =IF(AF14=0,0,(AF14*((LOG(AF14))/LOG(2)))) -> 0 | AI14: 222 | AJ14: =COUNTIF(L53:L67,AI14) -> 0 | AK14: =AJ14/(AL4-AJ11) -> 0 | AL14: =IF(AK14=0,0,(AK14*((LOG(AK14))/LOG(2)))) -> 0 | AN14: 222 | AO14: =COUNTIF(L68:L83,AN14) -> 0 | AP14: =AO14/(AQ4-AO11) -> 0 | AQ14: =IF(AP14=0,0,(AP14*((LOG(AP14))/LOG(2)))) -> 0 | AS14: 222 | AT14: =COUNTIF(L84:L98,AS14) -> 0 | AU14: =AT14/(AV4-AT11) -> 0 | AV14: =IF(AU14=0,0,(AU14*((LOG(AU14))/LOG(2)))) -> 0
A15: 12 | B15: 1053 | C15: 13 | D15: 1061 | E15: 13 | F15: 1069 | K15: 0 | L15: 111 | P15: =SUM(P7:P14) -> 1 | Q15: =-SUM(Q7:Q14) -> 1.035981295 | V15: =SUM(V7:V14) -> 1 | W15: =-SUM(W7:W14) -> 0 | AA15: =SUM(AA7:AA14) -> 1 | AB15: =-SUM(AB7:AB14) -> 0.7345299214 | AF15: =SUM(AF7:AF14) -> 1 | AG15: =-SUM(AG7:AG14) -> 0.6840384356 | AK15: =SUM(AK7:AK14) -> 1 | AL15: =-SUM(AL7:AL14) -> 0.3912435636 | AP15: =SUM(AP7:AP14) -> 1 | AQ15: =-SUM(AQ7:AQ14) -> 0.4138168503 | AU15: =SUM(AU7:AU14) -> 1 | AV15: =-SUM(AV7:AV14) -> 0
A16: 21 | B16: 1174 | C16: 11 | D16: 1181 | E16: 11 | F16: 1189 | K16: 0 | L16: 211 | P16: U= | Q16: =Q15/(LOG(Q4)/LOG(2)) -> 0.15919084 | V16: U1= | W16: =W15/(LOG(W4)/LOG(2)) -> 0 | AA16: U2= | AB16: =AB15/(LOG(AB4)/LOG(2)) -> 0.1836324804 | AF16: U3= | AG16: =AG15/(LOG(AG4)/LOG(2)) -> 0.1750851269 | AK16: U4= | AL16: =AL15/(LOG(AL4)/LOG(2)) -> 0.1001419298 | AP16: U5= | AQ16: =AQ15/(LOG(AQ4)/LOG(2)) -> 0.1034542126 | AU16: U6= | AV16: =AV15/(LOG(AV4)/LOG(2)) -> 0
A17: 12 | B17: 1396 | C17: 13 | D17: 1405 | E17: 13 | F17: 1412 | K17: 0 | L17: 111
A18: 12 | B18: 1532 | C18: 13 | D18: 1537 | E18: 13 | F18: 1542 | K18: 0 | L18: 111
A19: 12 | B19: 1646 | C19: 13 | D19: 1651 | E19: 13 | F19: 1657 | K19: 0 | L19: 111 | N19: Total Target Seq
A20: 12 | B20: 1756 | C20: 13 | D20: 1760 | E20: 13 | F20: 1767 | K20: 0 | L20: 111 | N20: =COUNTIF(L7:L98,G3) -> 14 | P20: 15 | Q20: 16 | R20: 15 | S20: 15 | T20: 16 | U20: 15
A21: 12 | B21: 1868 | C21: 13 | D21: 1874 | E21: 13 | F21: 1881 | K21: 0 | L21: 111 | P21: % of reinforcement given in 6 equal intervals based on number of trials
A22: 12 | B22: 1981 | C22: 13 | D22: 1989 | E22: 13 | F22: 2010 | K22: 0 | L22: 111 | P22: %_1 | Q22: %_2 | R22: %_3 | S22: %_4 | T22: %_5 | U22: %_6
A23: 12 | B23: 2109 | C23: 13 | D23: 2111 | E23: 13 | F23: 2116 | K23: 0 | L23: 111 | O23: target sequence | P23: =$G$3 -> 211 | Q23: 211 | R23: 211 | S23: 211 | T23: 211 | U23: 211
A24: 12 | B24: 2215 | C24: 13 | D24: 2223 | E24: 13 | F24: 2233 | K24: 0 | L24: 111 | O24: total reinforcement | P24: =U11 -> 1 | Q24: =Z11 -> 2 | R24: =AE11 -> 4 | S24: =AJ11 -> 2 | T24: =AO11 -> 4 | U24: =AT11 -> 1
A25: 12 | B25: 2333 | C25: 13 | D25: 2338 | E25: 13 | F25: 2344 | K25: 0 | L25: 111 | O25: % target
A26: 21 | B26: 2443 | C26: 11 | D26: 2452 | E26: 11 | F26: 2461 | K26: 0 | L26: 211 | O26: CCRF
A27: 21 | B27: 2624 | C27: 11 | D27: 2634 | E27: 11 | F27: 2637 | K27: 0 | L27: 211 | O27: % CCRf
A28: 12 | B28: 3514 | C28: 13 | D28: 3519 | E28: 24 | F28: 3522 | K28: 0 | L28: 112 | O28: average response rate | P28: =F21/P20 -> 125.4 | Q28: =(F37-F21)/Q20 -> 312.0625 | R28: =(F52-F37)/R20 -> 360.6666667 | S28: =(F67-F52)/S20 -> 143.5333333 | T28: =(F83-F67)/T20 -> 446.8125 | U28: =(F98-F83)/U20 -> -1439.066667
A29: 12 | B29: 3621 | C29: 13 | D29: 3624 | E29: 13 | F29: 3629 | K29: 0 | L29: 111
A30: 12 | B30: 4177 | C30: 13 | D30: 4180 | E30: 13 | F30: 4187 | K30: 0 | L30: 111
A31: 12 | B31: 4283 | C31: 13 | D31: 4286 | E31: 13 | F31: 4290 | K31: 0 | L31: 111
A32: 12 | B32: 4545 | C32: 13 | D32: 4551 | E32: 13 | F32: 4557 | K32: 0 | L32: 111
A33: 12 | B33: 5203 | C33: 13 | D33: 5206 | E33: 13 | F33: 5212 | K33: 0 | L33: 111
A34: 12 | B34: 5554 | C34: 13 | D34: 5561 | E34: 13 | F34: 5567 | K34: 0 | L34: 111
A35: 12 | B35: 5992 | C35: 24 | D35: 5995 | E35: 13 | F35: 5997 | K35: 0 | L35: 121
A36: 12 | B36: 6755 | C36: 13 | D36: 6762 | E36: 13 | F36: 6770 | K36: 0 | L36: 111
A37: 12 | B37: 6865 | C37: 13 | D37: 6869 | E37: 13 | F37: 6874 | K37: 0 | L37: 111
A38: 21 | B38: 6969 | C38: 11 | D38: 6976 | E38: 11 | F38: 6984 | K38: 0 | L38: 211
A39: 12 | B39: 7089 | C39: 13 | D39: 7094 | E39: 13 | F39: 7100 | K39: 0 | L39: 111
A40: 21 | B40: 7194 | C40: 11 | D40: 7200 | E40: 11 | F40: 7209 | K40: 0 | L40: 211
A41: 12 | B41: 8386 | C41: 13 | D41: 8390 | E41: 24 | F41: 8393 | K41: 0 | L41: 112
A42: 12 | B42: 8784 | C42: 13 | D42: 8795 | E42: 13 | F42: 8801 | K42: 0 | L42: 111
A43: 12 | B43: 8902 | C43: 13 | D43: 8908 | E43: 13 | F43: 8914 | K43: 0 | L43: 111
A44: 21 | B44: 9006 | C44: 11 | D44: 9012 | E44: 11 | F44: 9019 | K44: 0 | L44: 211
A45: 12 | B45: 9786 | C45: 13 | D45: 9792 | E45: 13 | F45: 9799 | K45: 0 | L45: 111
A46: 12 | B46: 10565 | C46: 13 | D46: 10579 | E46: 13 | F46: 10586 | K46: 0 | L46: 111
A47: 12 | B47: 11012 | C47: 13 | D47: 11014 | E47: 24 | F47: 11018 | K47: 0 | L47: 112
A48: 12 | B48: 11303 | C48: 13 | D48: 11306 | E48: 13 | F48: 11309 | K48: 0 | L48: 111
A49: 12 | B49: 11407 | C49: 13 | D49: 11412 | E49: 13 | F49: 11418 | K49: 0 | L49: 111
A50: 21 | B50: 11512 | C50: 11 | D50: 11514 | E50: 11 | F50: 11518 | K50: 0 | L50: 211
A51: 12 | B51: 11898 | C51: 13 | D51: 11902 | E51: 13 | F51: 11908 | K51: 0 | L51: 111
A52: 12 | B52: 12270 | C52: 13 | D52: 12274 | E52: 13 | F52: 12284 | K52: 0 | L52: 111
A53: 12 | B53: 12389 | C53: 13 | D53: 12395 | E53: 13 | F53: 12403 | K53: 0 | L53: 111
A54: 12 | B54: 12503 | C54: 13 | D54: 12507 | E54: 13 | F54: 12510 | K54: 0 | L54: 111
A55: 21 | B55: 12606 | C55: 11 | D55: 12613 | E55: 11 | F55: 12620 | K55: 0 | L55: 211
A56: 12 | B56: 12718 | C56: 13 | D56: 12727 | E56: 13 | F56: 12741 | K56: 0 | L56: 111
A57: 12 | B57: 12840 | C57: 13 | D57: 12845 | E57: 13 | F57: 12852 | K57: 0 | L57: 111
A58: 21 | B58: 12948 | C58: 22 | D58: 12952 | E58: 13 | F58: 12961 | K58: 0 | L58: 221
A59: 12 | B59: 13060 | C59: 13 | D59: 13068 | E59: 13 | F59: 13075 | K59: 0 | L59: 111
A60: 12 | B60: 13174 | C60: 13 | D60: 13181 | E60: 13 | F60: 13189 | K60: 0 | L60: 111
A61: 12 | B61: 13689 | C61: 13 | D61: 13693 | E61: 13 | F61: 13699 | K61: 0 | L61: 111
A62: 12 | B62: 13802 | C62: 13 | D62: 13806 | E62: 13 | F62: 13810 | K62: 0 | L62: 111
A63: 12 | B63: 13954 | C63: 13 | D63: 13977 | E63: 13 | F63: 13998 | K63: 0 | L63: 111
A64: 12 | B64: 14099 | C64: 13 | D64: 14103 | E64: 13 | F64: 14111 | K64: 0 | L64: 111
A65: 12 | B65: 14213 | C65: 13 | D65: 14217 | E65: 13 | F65: 14230 | K65: 0 | L65: 111
A66: 21 | B66: 14326 | C66: 11 | D66: 14332 | E66: 11 | F66: 14335 | K66: 0 | L66: 211
A67: 12 | B67: 14428 | C67: 13 | D67: 14432 | E67: 13 | F67: 14437 | K67: 0 | L67: 111
A68: 12 | B68: 14531 | C68: 13 | D68: 14536 | E68: 13 | F68: 14542 | K68: 0 | L68: 111
A69: 21 | B69: 14638 | C69: 11 | D69: 14644 | E69: 11 | F69: 14652 | K69: 0 | L69: 211
A70: 12 | B70: 14756 | C70: 13 | D70: 14763 | E70: 13 | F70: 14766 | K70: 0 | L70: 111
A71: 12 | B71: 14867 | C71: 13 | D71: 14880 | E71: 13 | F71: 14889 | K71: 0 | L71: 111
A72: 21 | B72: 14984 | C72: 11 | D72: 14992 | E72: 11 | F72: 14998 | K72: 0 | L72: 211
A73: 12 | B73: 15103 | C73: 13 | D73: 15109 | E73: 13 | F73: 15125 | K73: 0 | L73: 111
A74: 12 | B74: 15224 | C74: 13 | D74: 15227 | E74: 13 | F74: 15239 | K74: 0 | L74: 111
A75: 12 | B75: 15338 | C75: 13 | D75: 15342 | E75: 13 | F75: 15351 | K75: 0 | L75: 111
A76: 21 | B76: 15446 | C76: 11 | D76: 15452 | E76: 11 | F76: 15462 | K76: 0 | L76: 211
A77: 12 | B77: 16465 | C77: 13 | D77: 16470 | E77: 13 | F77: 16472 | K77: 0 | L77: 111
A78: 12 | B78: 17088 | C78: 13 | D78: 17099 | E78: 13 | F78: 17104 | K78: 0 | L78: 111
A79: 12 | B79: 18037 | C79: 13 | D79: 18061 | E79: 24 | F79: 18073 | K79: 0 | L79: 112
A80: 12 | B80: 20854 | C80: 13 | D80: 20857 | E80: 13 | F80: 20860 | K80: 0 | L80: 111
A81: 12 | B81: 20969 | C81: 13 | D81: 20975 | E81: 13 | F81: 20994 | K81: 0 | L81: 111
A82: 21 | B82: 21096 | C82: 11 | D82: 21104 | E82: 11 | F82: 21109 | K82: 0 | L82: 211
A83: 12 | B83: 21566 | C83: 13 | D83: 21573 | E83: 13 | F83: 21586 | K83: 0 | L83: 111
A84: 12 | B84: 21684 | C84: 13 | D84: 21687 | E84: 13 | F84: 21693 | K84: 0 | L84: 111
A85: 12 | B85: 21801 | C85: 13 | D85: 21804 | E85: 13 | F85: 21814 | K85: 0 | L85: 111
A86: 12 | B86: 21913 | C86: 13 | D86: 21917 | E86: 13 | F86: 21926 | K86: 0 | L86: 111
A87: 12 | B87: 22028 | C87: 13 | D87: 22032 | E87: 13 | F87: 22043 | K87: 0 | L87: 111
A88: 12 | B88: 22839 | C88: 13 | D88: 22842 | E88: 13 | F88: 22847 | K88: 0 | L88: 111
A89: 12 | B89: 22974 | C89: 13 | D89: 22978 | E89: 13 | F89: 22980 | K89: 0 | L89: 111
A90: 12 | B90: 23079 | C90: 13 | D90: 23084 | E90: 13 | F90: 23093 | K90: 0 | L90: 111
A91: 12 | B91: 23196 | C91: 13 | D91: 23206 | E91: 13 | F91: 23214 | K91: 0 | L91: 111
A92: 12 | B92: 23313 | C92: 13 | D92: 23317 | E92: 13 | F92: 23326 | K92: 0 | L92: 111
A93: 12 | B93: 23417 | C93: 13 | D93: 23421 | E93: 13 | F93: 23424 | K93: 0 | L93: 111
A94: 12 | B94: 23532 | C94: 13 | D94: 23539 | E94: 13 | F94: 23545 | K94: 0 | L94: 111
A95: 21 | B95: 23641 | C95: 11 | D95: 23648 | E95: 11 | F95: 23654 | K95: 0 | L95: 211
A96: 12 | B96: 23743 | C96: 13 | D96: 23751 | E96: 13 | F96: 23759 | K96: 0 | L96: 111
A97: 12 | B97: 23859 | C97: 13 | D97: 23865 | E97: 13 | F97: 23877 | K97: 0 | L97: 111
A98: 21 | B98: 23974 | C98: 11 | D98: 23980 | L98: 21

Sheet !N20994T.AYL
A1: Report for:!N20994T.AYL
A2: Date: | B2: <date>
A3: Hen: | B3: <hen> | F3: Correct Sequence | G3: =Start!J2 -> 211 | P3: Total Sequences in Data | Q3: =4994-COUNTBLANK(L7:L5000) -> 109 | V3: Total Sequences in Block Data | W3: =COUNTA(L7:L24) -> 18 | AA3: Total Sequences in Block Data | AB3: =COUNTA(L25:L42) -> 18 | AF3: Total Sequences in Block Data | AG3: =COUNTA(L43:L61) -> 19 | AK3: Total Sequences in Block Data | AL3: =COUNTA(L62:L79) -> 18 | AP3: Total Sequences in Block Data | AQ3: =COUNTA(L80:L97) -> 18 | AU3: Total Sequences in Block Data | AV3: =COUNTA(L98:L115) -> 18
P4: Total Sequences in Summary | Q4: =SUM(O7:O14) -> 109 | V4: Total Sequences in Block Summary | W4: =SUM(U7:U14) -> 18 | AA4: Total Sequences in Block Summary | AB4: =SUM(Z7:Z14) -> 18 | AF4: Total Sequences in Block Summary | AG4: =SUM(AE7:AE14) -> 19 | AK4: Total Sequences in Block Summary | AL4: =SUM(AJ7:AJ14) -> 18 | AP4: Total Sequences in Block Summary | AQ4: =SUM(AO7:AO14) -> 18 | AU4: Total Sequences in Block Summary | AV4: =SUM(AT7:AT14) -> 18
T5: Block 1 | Y5: Block 2 | AD5: Block 3 | AI5: Block 4 | AN5: Block 5 | AS5: Block 6
A6: Sequence Component 1 | B6: Time 1 | C6: Sequence Component 2 | D6: Time 2 | E6: Sequence Component 3 | F6: Time 3 | G6: Sequence Component 4 | H6: Time 4 | I6: Sequence Component 5 | J6: Time 5 | K6: Correct? 0=No 1=Yes | L6: Sequence | N6: Frequency | P6: Relative Frequency | Q6: Variability | T6: Frequency | V6: Relative Frequency | W6: Variability | Y6: Frequency | AA6: Relative Frequency | AB6: Variability | AD6: Frequency | AF6: Relative Frequency | AG6: Variability | AI6: Frequency | AK6: Relative Frequency | AL6: Variability | AN6: Frequency | AP6: Relative Frequency | AQ6: Variability | AS6: Frequency | AU6: Relative Frequency | AV6: Variability
A7: 12 | B7: 19 | C7: 24 | D7: 71 | E7: 13 | F7: 75 | K7: 0 | L7: 121 | N7: 111 | O7: =COUNTIF($L$7:$L$500,N7) -> 18 | P7: =O7/$Q$4 -> 0.1651376147 | Q7: =IF(P7=0,0,(P7*((LOG(P7))/LOG(2)))) -> -0.429070347 | T7: =N7 -> 111 | U7: =COUNTIF(L7:L24,T7) -> 6 | V7: =U7/(W4-U11) -> 0.3333333333 | W7: =IF(V7=0,0,(V7*((LOG(V7))/LOG(2)))) -> -0.5283208336 | Y7: =N7 -> 111 | Z7: =COUNTIF(L25:L42,Y7) -> 4 | AA7: =Z7/(AB4-Z11) -> 0.2222222222 | AB7: =IF(AA7=0,0,(AA7*((LOG(AA7))/LOG(2)))) -> -0.4822055559 | AD7: =N7 -> 111 | AE7: =COUNTIF(L43:L61,AD7) -> 2 | AF7: =AE7/(AG4-AE11) -> 0.1333333333 | AG7: =IF(AF7=0,0,(AF7*((LOG(AF7))/LOG(2)))) -> -0.3875854127 | AI7: =N7 -> 111 | AJ7: =COUNTIF(L62:L79,AI7) -> 3 | AK7: =AJ7/(AL4-AJ11) -> 0.3333333333 | AL7: =IF(AK7=0,0,(AK7*((LOG(AK7))/LOG(2)))) -> -0.5283208336 | AN7: =N7 -> 111 | AO7: =COUNTIF(L80:L97,AN7) -> 1 | AP7: =AO7/(AQ4-AO11) -> 0.1 | AQ7: =IF(AP7=0,0,(AP7*((LOG(AP7))/LOG(2)))) -> -0.3321928095 | AS7: =N7 -> 111 | AT7: =COUNTIF(L98:L115,AS7) -> 2 | AU7: =AT7/(AV4-AT11) -> 0.1666666667 | AV7: =IF(AU7=0,0,(AU7*((LOG(AU7))/LOG(2)))) -> -0.4308270835
A8: 12 | B8: 226 | C8: 13 | D8: 237 | E8: 13 | F8: 250 | K8: 0 | L8: 111 | N8: 112 | O8: 8 | P8: 0.07339449541 | Q8: -0.2765639871 | T8: 112 | U8: =COUNTIF(L7:L24,T8) -> 2 | V8: =U8/(W4-U11) -> 0.1111111111 | W8: =IF(V8=0,0,(V8*((LOG(V8))/LOG(2)))) -> -0.352213889 | Y8: 112 | Z8: =COUNTIF(L25:L42,Y8) -> 1 | AA8: =Z8/(AB4-Z11) -> 0.05555555556 | AB8: =IF(AA8=0,0,(AA8*((LOG(AA8))/LOG(2)))) -> -0.2316625001 | AD8: 112 | AE8: =COUNTIF(L43:L61,AD8) -> 2 | AF8: =AE8/(AG4-AE11) -> 0.1333333333 | AG8: =IF(AF8=0,0,(AF8*((LOG(AF8))/LOG(2)))) -> -0.3875854127 | AI8: 112 | AJ8: =COUNTIF(L62:L79,AI8) -> 2 | AK8: =AJ8/(AL4-AJ11) -> 0.2222222222 | AL8: =IF(AK8=0,0,(AK8*((LOG(AK8))/LOG(2)))) -> -0.4822055559 | AN8: 112 | AO8: =COUNTIF(L80:L97,AN8) -> 0 | AP8: =AO8/(AQ4-AO11) -> 0 | AQ8: =IF(AP8=0,0,(AP8*((LOG(AP8))/LOG(2)))) -> 0 | AS8: 112 | AT8: =COUNTIF(L98:L115,AS8) -> 1 | AU8: =AT8/(AV4-AT11) -> 0.08333333333 | AV8: =IF(AU8=0,0,(AU8*((LOG(AU8))/LOG(2)))) -> -0.2987468751
A9: 12 | B9: 369 | C9: 13 | D9: 379 | E9: 13 | F9: 478 | K9: 0 | L9: 111 | N9: 121 | O9: 3 | P9: 0.02752293578 | Q9: -0.1426574814 | T9: 121 | U9: =COUNTIF(L7:L24,T9) -> 1 | V9: =U9/(W4-U11) -> 0.05555555556 | W9: =IF(V9=0,0,(V9*((LOG(V9))/LOG(2)))) -> -0.2316625001 | Y9: 121 | Z9: =COUNTIF(L25:L42,Y9) -> 0 | AA9: =Z9/(AB4-Z11) -> 0 | AB9: =IF(AA9=0,0,(AA9*((LOG(AA9))/LOG(2)))) -> 0 | AD9: 121 | AE9: =COUNTIF(L43:L61,AD9) -> 1 | AF9: =AE9/(AG4-AE11) -> 0.06666666667 | AG9: =IF(AF9=0,0,(AF9*((LOG(AF9))/LOG(2)))) -> -0.260459373 | AI9: 121 | AJ9: =COUNTIF(L62:L79,AI9) -> 1 | AK9: =AJ9/(AL4-AJ11) -> 0.1111111111 | AL9: =IF(AK9=0,0,(AK9*((LOG(AK9))/LOG(2)))) -> -0.352213889 | AN9: 121 | AO9: =COUNTIF(L80:L97,AN9) -> 0 | AP9: =AO9/(AQ4-AO11) -> 0 | AQ9: =IF(AP9=0,0,(AP9*((LOG(AP9))/LOG(2)))) -> 0 | AS9: 121 | AT9: =COUNTIF(L98:L115,AS9) -> 0 | AU9: =AT9/(AV4-AT11) -> 0 | AV9: =IF(AU9=0,0,(AU9*((LOG(AU9))/LOG(2)))) -> 0
A10: 12 | B10: 578 | C10: 13 | D10: 582 | E10: 13 | F10: 593 | K10: 0 | L10: 111 | N10: 122 | O10: 10 | P10: 0.09174311927 | Q10: -0.3161702963 | T10: 122 | U10: =COUNTIF(L7:L24,T10) -> 2 | V10: =U10/(W4-U11) -> 0.1111111111 | W10: =IF(V10=0,0,(V10*((LOG(V10))/LOG(2)))) -> -0.352213889 | Y10: 122 | Z10: =COUNTIF(L25:L42,Y10) -> 5 | AA10: =Z10/(AB4-Z11) -> 0.2777777778 | AB10: =IF(AA10=0,0,(AA10*((LOG(AA10))/LOG(2)))) -> -0.513332474 | AD10: 122 | AE10: =COUNTIF(L43:L61,AD10) -> 1 | AF10: =AE10/(AG4-AE11) -> 0.06666666667 | AG10: =IF(AF10=0,0,(AF10*((LOG(AF10))/LOG(2)))) -> -0.260459373 | AI10: 122 | AJ10: =COUNTIF(L62:L79,AI10) -> 0 | AK10: =AJ10/(AL4-AJ11) -> 0 | AL10: =IF(AK10=0,0,(AK10*((LOG(AK10))/LOG(2)))) -> 0 | AN10: 122 | AO10: =COUNTIF(L80:L97,AN10) -> 0 | AP10: =AO10/(AQ4-AO11) -> 0 | AQ10: =IF(AP10=0,0,(AP10*((LOG(AP10))/LOG(2)))) -> 0 | AS10: 122 | AT10: =COUNTIF(L98:L115,AS10) -> 2 | AU10: =AT10/(AV4-AT11) -> 0.1666666667 | AV10: =IF(AU10=0,0,(AU10*((LOG(AU10))/LOG(2)))) -> -0.4308270835
A11: 12 | B11: 685 | C11: 13 | D11: 687 | E11: 24 | F11: 691 | K11: 0 | L11: 112 | N11: 211 | O11: 27 | P11: 0.247706422 | Q11: -0.4987065524 | T11: 211 | U11: =COUNTIF(L7:L24,T11) -> 0 | Y11: 211 | Z11: =COUNTIF(L25:L42,Y11) -> 0 | AD11: 211 | AE11: =COUNTIF(L43:L61,AD11) -> 4 | AI11: 211 | AJ11: =COUNTIF(L62:L79,AI11) -> 9 | AN11: 211 | AO11: =COUNTIF(L80:L97,AN11) -> 8 | AS11: 211 | AT11: =COUNTIF(L98:L115,AS11) -> 6
A12: 12 | B12: 795 | C12: 13 | D12: 807 | E12: 13 | F12: 810 | K12: 0 | L12: 111 | N12: 212 | O12: 8 | P12: 0.07339449541 | Q12: -0.2765639871 | T12: 212 | U12: =COUNTIF(L7:L24,T12) -> 0 | V12: =U12/(W4-U11) -> 0 | W12: =IF(V12=0,0,(V12*((LOG(V12))/LOG(2)))) -> 0 | Y12: 212 | Z12: =COUNTIF(L25:L42,Y12) -> 3 | AA12: =Z12/(AB4-Z11) -> 0.1666666667 | AB12: =IF(AA12=0,0,(AA12*((LOG(AA12))/LOG(2)))) -> -0.4308270835 | AD12: 212 | AE12: =COUNTIF(L43:L61,AD12) -> 2 | AF12: =AE12/(AG4-AE11) -> 0.1333333333 | AG12: =IF(AF12=0,0,(AF12*((LOG(AF12))/LOG(2)))) -> -0.3875854127 | AI12: 212 | AJ12: =COUNTIF(L62:L79,AI12) -> 0 | AK12: =AJ12/(AL4-AJ11) -> 0 | AL12: =IF(AK12=0,0,(AK12*((LOG(AK12))/LOG(2)))) -> 0 | AN12: 212 | AO12: =COUNTIF(L80:L97,AN12) -> 0 | AP12: =AO12/(AQ4-AO11) -> 0 | AQ12: =IF(AP12=0,0,(AP12*((LOG(AP12))/LOG(2)))) -> 0 | AS12: 212 | AT12: =COUNTIF(L98:L115,AS12) -> 3 | AU12: =AT12/(AV4-AT11) -> 0.25 | AV12: =IF(AU12=0,0,(AU12*((LOG(AU12))/LOG(2)))) -> -0.5
A13: 12 | B13: 914 | C13: 13 | D13: 941 | E13: 13 | F13: 954 | K13: 0 | L13: 111 | N13: 221 | O13: 14 | P13: 0.128440367 | Q13: -0.380290015 | T13: 221 | U13: =COUNTIF(L7:L24,T13) -> 1 | V13: =U13/(W4-U11) -> 0.05555555556 | W13: =IF(V13=0,0,(V13*((LOG(V13))/LOG(2)))) -> -0.2316625001 | Y13: 221 | Z13: =COUNTIF(L25:L42,Y13) -> 0 | AA13: =Z13/(AB4-Z11) -> 0 | AB13: =IF(AA13=0,0,(AA13*((LOG(AA13))/LOG(2)))) -> 0 | AD13: 221 | AE13: =COUNTIF(L43:L61,AD13) -> 0 | AF13: =AE13/(AG4-AE11) -> 0 | AG13: =IF(AF13=0,0,(AF13*((LOG(AF13))/LOG(2)))) -> 0 | AI13: 221 | AJ13: =COUNTIF(L62:L79,AI13) -> 2 | AK13: =AJ13/(AL4-AJ11) -> 0.2222222222 | AL13: =IF(AK13=0,0,(AK13*((LOG(AK13))/LOG(2)))) -> -0.4822055559 | AN13: 221 | AO13: =COUNTIF(L80:L97,AN13) -> 8 | AP13: =AO13/(AQ4-AO11) -> 0.8 | AQ13: =IF(AP13=0,0,(AP13*((LOG(AP13))/LOG(2)))) -> -0.2575424759 | AS13: 221 | AT13: =COUNTIF(L98:L115,AS13) -> 3 | AU13: =AT13/(AV4-AT11) -> 0.25 | AV13: =IF(AU13=0,0,(AU13*((LOG(AU13))/LOG(2)))) -> -0.5
A14: 21 | B14: 1090 | C14: 22 | D14: 1094 | E14: 24 | F14: 1097 | K14: 0 | L14: 222 | N14: 222 | O14: 21 | P14: 0.1926605505 | Q14: -0.4577358252 | T14: 222 | U14: =COUNTIF(L7:L24,T14) -> 6 | V14: =U14/(W4-U11) -> 0.3333333333 | W14: =IF(V14=0,0,(V14*((LOG(V14))/LOG(2)))) -> -0.5283208336 | Y14: 222 | Z14: =COUNTIF(L25:L42,Y14) -> 5 | AA14: =Z14/(AB4-Z11) -> 0.2777777778 | AB14: =IF(AA14=0,0,(AA14*((LOG(AA14))/LOG(2)))) -> -0.513332474 | AD14: 222 | AE14: =COUNTIF(L43:L61,AD14) -> 7 | AF14: =AE14/(AG4-AE11) -> 0.4666666667 | AG14: =IF(AF14=0,0,(AF14*((LOG(AF14))/LOG(2)))) -> -0.5131166477 | AI14: 222 | AJ14: =COUNTIF(L62:L79,AI14) -> 1 | AK14: =AJ14/(AL4-AJ11) -> 0.1111111111 | AL14: =IF(AK14=0,0,(AK14*((LOG(AK14))/LOG(2)))) -> -0.352213889 | AN14: 222 | AO14: =COUNTIF(L80:L97,AN14) -> 1 | AP14: =AO14/(AQ4-AO11) -> 0.1 | AQ14: =IF(AP14=0,0,(AP14*((LOG(AP14))/LOG(2)))) -> -0.3321928095 | AS14: 222 | AT14: =COUNTIF(L98:L115,AS14) -> 1 | AU14: =AT14/(AV4-AT11) -> 0.08333333333 | AV14: =IF(AU14=0,0,(AU14*((LOG(AU14))/LOG(2)))) -> -0.2987468751
A15: 21 | B15: 1191 | C15: 22 | D15: 1240 | E15: 24 | F15: 1247 | K15: 0 | L15: 222 | P15: =SUM(P7:P14) -> 1 | Q15: =-SUM(Q7:Q14) -> 2.777758492 | V15: =SUM(V7:V14) -> 1 | W15: =-SUM(W7:W14) -> 2.224394445 | AA15: =SUM(AA7:AA14) -> 1 | AB15: =-SUM(AB7:AB14) -> 2.171360087 | AF15: =SUM(AF7:AF14) -> 1 | AG15: =-SUM(AG7:AG14) -> 2.196791632 | AK15: =SUM(AK7:AK14) -> 1 | AL15: =-SUM(AL7:AL14) -> 2.197159723 | AP15: =SUM(AP7:AP14) -> 1 | AQ15: =-SUM(AQ7:AQ14) -> 0.9219280949 | AU15: =SUM(AU7:AU14) -> 1 | AV15: =-SUM(AV7:AV14) -> 2.459147917
A16: 21 | B16: 1374 | C16: 22 | D16: 1379 | E16: 24 | F16: 1386 | K16: 0 | L16: 222 | P16: U= | Q16: =Q15/(LOG(Q4)/LOG(2)) -> 0.4104141315 | V16: U1= | W16: =W15/(LOG(W4)/LOG(2)) -> 0.5334375186 | AA16: U2= | AB16: =AB15/(LOG(AB4)/LOG(2)) -> 0.5207192184 | AF16: U3= | AG16: =AG15/(LOG(AG4)/LOG(2)) -> 0.517144331 | AK16: U4= | AL16: =AL15/(LOG(AL4)/LOG(2)) -> 0.5269062927 | AP16: U5= | AQ16: =AQ15/(LOG(AQ4)/LOG(2)) -> 0.2210898504 | AU16: U6= | AV16: =AV15/(LOG(AV4)/LOG(2)) -> 0.5897343276
A17: 21 | B17: 1479 | C17: 22 | D17: 1507 | E17: 24 | F17: 1512 | K17: 0 | L17: 222
A18: 21 | B18: 1643 | C18: 22 | D18: 1654 | E18: 13 | F18: 1658 | K18: 0 | L18: 221
A19: 21 | B19: 1778 | C19: 22 | D19: 1784 | E19: 24 | F19: 1790 | K19: 0 | L19: 222 | N19: Total Target Seq
A20: 12 | B20: 1895 | C20: 13 | D20: 1912 | E20: 24 | F20: 1918 | K20: 0 | L20: 112 | N20: =COUNTIF(L7:L115,G3) -> 27 | P20: 18 | Q20: 18 | R20: 19 | S20: 18 | T20: 18 | U20: 18
A21: 12 | B21: 2028 | C21: 24 | D21: 2039 | E21: 24 | F21: 2048 | K21: 0 | L21: 122 | P21: % of reinforcement given in 6 equal intervals based on number of trials
A22: 21 | B22: 2181 | C22: 22 | D22: 2185 | E22: 24 | F22: 2190 | K22: 0 | L22: 222 | P22: %_1 | Q22: %_2 | R22: %_3 | S22: %_4 | T22: %_5 | U22: %_6
A23: 12 | B23: 2348 | C23: 13 | D23: 2816 | E23: 13 | F23: 2929 | K23: 0 | L23: 111 | O23: target sequence | P23: =$G$3 -> 211 | Q23: 211 | R23: 211 | S23: 211 | T23: 211 | U23: 211
A24: 12 | B24: 3025 | C24: 24 | D24: 3115 | E24: 24 | F24: 3123 | K24: 0 | L24: 122 | O24: total reinforcement | P24: =U11 -> 0 | Q24: =Z11 -> 0 | R24: =AE11 -> 4 | S24: =AJ11 -> 9 | T24: =AO11 -> 8 | U24: =AT11 -> 6
A25: 12 | B25: 3224 | C25: 13 | D25: 3237 | E25: 24 | F25: 3246 | K25: 0 | L25: 112 | O25: % target
A26: 21 | B26: 3340 | C26: 11 | D26: 3355 | E26: 22 | F26: 3370 | K26: 0 | L26: 212 | O26: CCRF
A27: 12 | B27: 3464 | C27: 24 | D27: 3482 | E27: 24 | F27: 3491 | K27: 0 | L27: 122 | O27: % CCRf
A28: 21 | B28: 3609 | C28: 22 | D28: 3613 | E28: 24 | F28: 3619 | K28: 0 | L28: 222 | O28: average response rate | P28: =F24/P20 -> 173.5 | Q28: =(F42-F24)/Q20 -> 170.3333333 | R28: =(F61-F42)/R20 -> 154.2631579 | S28: =(F79-F61)/S20 -> 134.3888889 | T28: =(F97-F79)/T20 -> 138.0555556 | U28: =(F115-F97)/U20 -> 129.1666667
A29: 21 | B29: 3752 | C29: 22 | D29: 3761 | E29: 24 | F29: 3767 | K29: 0 | L29: 222
A30: 12 | B30: 3860 | C30: 24 | D30: 3896 | E30: 24 | F30: 3905 | K30: 0 | L30: 122
A31: 21 | B31: 4026 | C31: 22 | D31: 4034 | E31: 24 | F31: 4041 | K31: 0 | L31: 222
A32: 12 | B32: 4144 | C32: 13 | D32: 4170 | E32: 13 | F32: 4198 | K32: 0 | L32: 111
A33: 21 | B33: 4323 | C33: 22 | D33: 4330 | E33: 24 | F33: 4358 | K33: 0 | L33: 222
A34: 12 | B34: 4507 | C34: 13 | D34: 4548 | E34: 13 | F34: 4592 | K34: 0 | L34: 111
A35: 12 | B35: 4722 | C35: 13 | D35: 4768 | E35: 13 | F35: 4822 | K35: 0 | L35: 111
A36: 12 | B36: 5065 | C36: 13 | D36: 5236 | E36: 13 | F36: 5442 | K36: 0 | L36: 111
A37: 21 | B37: 5559 | C37: 11 | D37: 5561 | E37: 22 | F37: 5564 | K37: 0 | L37: 212
A38: 12 | B38: 5664 | C38: 24 | D38: 5667 | E38: 24 | F38: 5672 | K38: 0 | L38: 122
A39: 21 | B39: 5786 | C39: 11 | D39: 5799 | E39: 22 | F39: 5813 | K39: 0 | L39: 212
A40: 12 | B40: 5906 | C40: 24 | D40: 5928 | E40: 24 | F40: 5931 | K40: 0 | L40: 122
A41: 12 | B41: 6039 | C41: 24 | D41: 6050 | E41: 24 | F41: 6054 | K41: 0 | L41: 122
A42: 21 | B42: 6178 | C42: 22 | D42: 6183 | E42: 24 | F42: 6189 | K42: 0 | L42: 222
A43: 21 | B43: 6284 | C43: 22 | D43: 6308 | E43: 24 | F43: 6313 | K43: 0 | L43: 222
A44: 21 | B44: 6409 | C44: 22 | D44: 6439 | E44: 24 | F44: 6448 | K44: 0 | L44: 222
A45: 21 | B45: 6563 | C45: 22 | D45: 6569 | E45: 24 | F45: 6594 | K45: 0 | L45: 222
A46: 12 | B46: 6816 | C46: 13 | D46: 6841 | E46: 13 | F46: 6903 | K46: 0 | L46: 111
A47: 12 | B47: 7453 | C47: 24 | D47: 7459 | E47: 13 | F47: 7469 | K47: 0 | L47: 121
A48: 12 | B48: 7589 | C48: 24 | D48: 7601 | E48: 24 | F48: 7605 | K48: 0 | L48: 122
A49: 21 | B49: 7698 | C49: 11 | D49: 7704 | E49: 22 | F49: 7718 | K49: 0 | L49: 212
A50: 21 | B50: 7829 | C50: 22 | D50: 7834 | E50: 24 | F50: 7840 | K50: 0 | L50: 222
A51: 12 | B51: 7943 | C51: 13 | D51: 7950 | E51: 24 | F51: 7955 | K51: 0 | L51: 112
A52: 12 | B52: 8058 | C52: 13 | D52: 8063 | E52: 13 | F52: 8070 | K52: 0 | L52: 111
A53: 21 | B53: 8168 | C53: 11 | D53: 8174 | E53: 11 | F53: 8184 | K53: 0 | L53: 211
A54: 21 | B54: 8302 | C54: 22 | D54: 8322 | E54: 24 | F54: 8326 | K54: 0 | L54: 222
A55: 21 | B55: 8422 | C55: 11 | D55: 8430 | E55: 11 | F55: 8436 | K55: 0 | L55: 211
A56: 21 | B56: 8530 | C56: 11 | D56: 8538 | E56: 22 | F56: 8550 | K56: 0 | L56: 212
A57: 21 | B57: 8654 | C57: 22 | D57: 8659 | E57: 24 | F57: 8665 | K57: 0 | L57: 222
A58: 12 | B58: 8764 | C58: 13 | D58: 8766 | E58: 24 | F58: 8775 | K58: 0 | L58: 112
A59: 21 | B59: 8871 | C59: 11 | D59: 8878 | E59: 11 | F59: 8884 | K59: 0 | L59: 211
A60: 21 | B60: 8974 | C60: 11 | D60: 8980 | E60: 11 | F60: 8985 | K60: 0 | L60: 211
A61: 21 | B61: 9111 | C61: 22 | D61: 9115 | E61: 24 | F61: 9120 | K61: 0 | L61: 222
A62: 12 | B62: 9221 | C62: 13 | D62: 9229 | E62: 13 | F62: 9237 | K62: 0 | L62: 111
A63: 21 | B63: 9332 | C63: 11 | D63: 9340 | E63: 11 | F63: 9347 | K63: 0 | L63: 211
A64: 12 | B64: 9469 | C64: 13 | D64: 9474 | E64: 24 | F64: 9482 | K64: 0 | L64: 112
A65: 21 | B65: 9591 | C65: 22 | D65: 9594 | E65: 13 | F65: 9605 | K65: 0 | L65: 221
A66: 21 | B66: 9701 | C66: 11 | D66: 9708 | E66: 11 | F66: 9717 | K66: 0 | L66: 211
A67: 12 | B67: 9812 | C67: 13 | D67: 9815 | E67: 13 | F67: 9822 | K67: 0 | L67: 111
A68: 21 | B68: 9919 | C68: 11 | D68: 9927 | E68: 11 | F68: 9935 | K68: 0 | L68: 211
A69: 21 | B69: 10214 | C69: 22 | D69: 10223 | E69: 24 | F69: 10229 | K69: 0 | L69: 222
A70: 12 | B70: 10331 | C70: 24 | D70: 10334 | E70: 13 | F70: 10339 | K70: 0 | L70: 121
A71: 21 | B71: 10436 | C71: 11 | D71: 10442 | E71: 11 | F71: 10447 | K71: 0 | L71: 211
A72: 21 | B72: 10538 | C72: 11 | D72: 10548 | E72: 11 | F72: 10561 | K72: 0 | L72: 211
A73: 21 | B73: 10658 | C73: 11 | D73: 10667 | E73: 11 | F73: 10674 | K73: 0 | L73: 211
A74: 21 | B74: 10780 | C74: 11 | D74: 10795 | E74: 11 | F74: 10802 | K74: 0 | L74: 211
A75: 12 | B75: 10897 | C75: 13 | D75: 10904 | E75: 24 | F75: 10916 | K75: 0 | L75: 112
A76: 21 | B76: 11013 | C76: 11 | D76: 11019 | E76: 11 | F76: 11026 | K76: 0 | L76: 211
A77: 21 | B77: 11127 | C77: 22 | D77: 11134 | E77: 13 | F77: 11142 | K77: 0 | L77: 221
A78: 21 | B78: 11238 | C78: 11 | D78: 11245 | E78: 11 | F78: 11254 | K78: 0 | L78: 211
A79: 12 | B79: 11529 | C79: 13 | D79: 11532 | E79: 13 | F79: 11539 | K79: 0 | L79: 111
A80: 21 | B80: 11633 | C80: 22 | D80: 11636 | E80: 13 | F80: 11644 | K80: 0 | L80: 221
A81: 21 | B81: 11736 | C81: 22 | D81: 11739 | E81: 13 | F81: 11745 | K81: 0 | L81: 221
A82: 12 | B82: 11847 | C82: 13 | D82: 11859 | E82: 13 | F82: 11870 | K82: 0 | L82: 111
A83: 21 | B83: 11966 | C83: 11 | D83: 11972 | E83: 11 | F83: 11979 | K83: 0 | L83: 211
A84: 21 | B84: 12070 | C84: 11 | D84: 12077 | E84: 11 | F84: 12090 | K84: 0 | L84: 211
A85: 21 | B85: 12182 | C85: 11 | D85: 12194 | E85: 11 | F85: 12200 | K85: 0 | L85: 211
A86: 21 | B86: 12693 | C86: 22 | D86: 12696 | E86: 24 | F86: 12699 | K86: 0 | L86: 222
A87: 21 | B87: 12793 | C87: 11 | D87: 12800 | E87: 11 | F87: 12810 | K87: 0 | L87: 211
A88: 21 | B88: 12898 | C88: 22 | D88: 12905 | E88: 13 | F88: 12915 | K88: 0 | L88: 221
A89: 21 | B89: 13012 | C89: 11 | D89: 13021 | E89: 11 | F89: 13033 | K89: 0 | L89: 211
A90: 21 | B90: 13165 | C90: 22 | D90: 13174 | E90: 13 | F90: 13182 | K90: 0 | L90: 221
A91: 21 | B91: 13278 | C91: 11 | D91: 13284 | E91: 11 | F91: 13299 | K91: 0 | L91: 211
A92: 21 | B92: 13392 | C92: 11 | D92: 13401 | E92: 11 | F92: 13409 | K92: 0 | L92: 211
A93: 21 | B93: 13575 | C93: 22 | D93: 13579 | E93: 13 | F93: 13594 | K93: 0 | L93: 221
A94: 21 | B94: 13691 | C94: 22 | D94: 13694 | E94: 13 | F94: 13704 | K94: 0 | L94: 221
A95: 21 | B95: 13798 | C95: 22 | D95: 13800 | E95: 13 | F95: 13807 | K95: 0 | L95: 221
A96: 21 | B96: 13900 | C96: 22 | D96: 13903 | E96: 13 | F96: 13909 | K96: 0 | L96: 221
A97: 21 | B97: 14006 | C97: 11 | D97: 14012 | E97: 11 | F97: 14024 | K97: 0 | L97: 211
A98: 21 | B98: 14115 | C98: 11 | D98: 14125 | E98: 11 | F98: 14138 | K98: 0 | L98: 211
A99: 21 | B99: 14229 | C99: 11 | D99: 14236 | E99: 11 | F99: 14249 | K99: 0 | L99: 211
A100: 21 | B100: 14343 | C100: 22 | D100: 14346 | E100: 13 | F100: 14365 | K100: 0 | L100: 221
A101: 21 | B101: 14536 | C101: 22 | D101: 14541 | E101: 13 | F101: 14553 | K101: 0 | L101: 221
A102: 21 | B102: 14651 | C102: 11 | D102: 14659 | E102: 22 | F102: 14693 | K102: 0 | L102: 212
A103: 21 | B103: 14791 | C103: 11 | D103: 14810 | E103: 11 | F103: 14813 | K103: 0 | L103: 211
A104: 21 | B104: 14903 | C104: 11 | D104: 14912 | E104: 11 | F104: 14918 | K104: 0 | L104: 211
A105: 21 | B105: 15133 | C105: 22 | D105: 15136 | E105: 13 | F105: 15147 | K105: 0 | L105: 221
A106: 12 | B106: 15245 | C106: 13 | D106: 15251 | E106: 13 | F106: 15260 | K106: 0 | L106: 111
A107: 12 | B107: 15363 | C107: 13 | D107: 15392 | E107: 24 | F107: 15412 | K107: 0 | L107: 112
A108: 21 | B108: 15543 | C108: 11 | D108: 15551 | E108: 11 | F108: 15556 | K108: 0 | L108: 211
A109: 21 | B109: 15647 | C109: 22 | D109: 15649 | E109: 24 | F109: 15650 | K109: 0 | L109: 222
A110: 12 | B110: 15753 | C110: 13 | D110: 15762 | E110: 13 | F110: 15768 | K110: 0 | L110: 111
A111: 21 | B111: 15878 | C111: 11 | D111: 15887 | E111: 22 | F111: 15915 | K111: 0 | L111: 212
A112: 12 | B112: 16008 | C112: 24 | D112: 16021 | E112: 24 | F112: 16025 | K112: 0 | L112: 122
A113: 21 | B113: 16122 | C113: 11 | D113: 16128 | E113: 22 | F113: 16129 | K113: 0 | L113: 212
A114: 12 | B114: 16227 | C114: 24 | D114: 16233 | E114: 24 | F114: 16242 | K114: 0 | L114: 122
A115: 21 | B115: 16335 | C115: 11 | D115: 16343 | E115: 11 | F115: 16349 | K115: 1 | L115: 211

Sheet !N21094T.AYL
A1: Report for:!N21094T.AYL
A2: Date: | B2: <date>
A3: Hen: | B3: <hen> | F3: Correct Sequence | G3: =Start!J2 -> 211 | P3: Total Sequences in Data | Q3: =4994-COUNTBLANK(L7:L5000) -> 85 | V3: Total Sequences in Block Data | W3: =COUNTA(L7:L20) -> 14 | AA3: Total Sequences in Block Data | AB3: =COUNTA(L21:L34) -> 14 | AF3: Total Sequences in Block Data | AG3: =COUNTA(L35:L49) -> 15 | AK3: Total Sequences in Block Data | AL3: =COUNTA(L50:L63) -> 14 | AP3: Total Sequences in Block Data | AQ3: =COUNTA(L64:L77) -> 14 | AU3: Total Sequences in Block Data | AV3: =COUNTA(L78:L91) -> 14
P4: Total Sequences in Summary | Q4: =SUM(O7:O14) -> 85 | V4: Total Sequences in Block Summary | W4: =SUM(U7:U14) -> 14 | AA4: Total Sequences in Block Summary | AB4: =SUM(Z7:Z14) -> 14 | AF4: Total Sequences in Block Summary | AG4: =SUM(AE7:AE14) -> 15 | AK4: Total Sequences in Block Summary | AL4: =SUM(AJ7:AJ14) -> 14 | AP4: Total Sequences in Block Summary | AQ4: =SUM(AO7:AO14) -> 14 | AU4: Total Sequences in Block Summary | AV4: =SUM(AT7:AT14) -> 14
T5: Block 1 | Y5: Block 2 | AD5: Block 3 | AI5: Block 4 | AN5: Block 5 | AS5: Block 6
A6: Sequence Component 1 | B6: Time 1 | C6: Sequence Component 2 | D6: Time 2 | E6: Sequence Component 3 | F6: Time 3 | G6: Sequence Component 4 | H6: Time 4 | I6: Sequence Component 5 | J6: Time 5 | K6: Correct? 0=No 1=Yes | L6: Sequence | N6: Frequency | P6: Relative Frequency | Q6: Variability | T6: Frequency | V6: Relative Frequency | W6: Variability | Y6: Frequency | AA6: Relative Frequency | AB6: Variability | AD6: Frequency | AF6: Relative Frequency | AG6: Variability | AI6: Frequency | AK6: Relative Frequency | AL6: Variability | AN6: Frequency | AP6: Relative Frequency | AQ6: Variability | AS6: Frequency | AU6: Relative Frequency | AV6: Variability
A7: 12 | B7: 5 | C7: 13 | D7: 8 | E7: 13 | F7: 12 | K7: 0 | L7: 111 | N7: 111 | O7: =COUNTIF($L$7:$L$500,N7) -> 24 | P7: =O7/$Q$4 -> 0.2823529412 | Q7: =IF(P7=0,0,(P7*((LOG(P7))/LOG(2)))) -> -0.5151327347 | T7: =N7 -> 111 | U7: =COUNTIF(L7:L20,T7) -> 3 | V7: =U7/(W4-U11) -> 0.375 | W7: =IF(V7=0,0,(V7*((LOG(V7))/LOG(2)))) -> -0.5306390622 | Y7: =N7 -> 111 | Z7: =COUNTIF(L21:L34,Y7) -> 3 | AA7: =Z7/(AB4-Z11) -> 0.6 | AB7: =IF(AA7=0,0,(AA7*((LOG(AA7))/LOG(2)))) -> -0.4421793565 | AD7: =N7 -> 111 | AE7: =COUNTIF(L35:L49,AD7) -> 4 | AF7: =AE7/(AG4-AE11) -> 0.3333333333 | AG7: =IF(AF7=0,0,(AF7*((LOG(AF7))/LOG(2)))) -> -0.5283208336 | AI7: =N7 -> 111 | AJ7: =COUNTIF(L50:L63,AI7) -> 1 | AK7: =AJ7/(AL4-AJ11) -> 0.07692307692 | AL7: =IF(AK7=0,0,(AK7*((LOG(AK7))/LOG(2)))) -> -0.2846492091 | AN7: =N7 -> 111 | AO7: =COUNTIF(L64:L77,AN7) -> 8 | AP7: =AO7/(AQ4-AO11) -> 0.5714285714 | AQ7: =IF(AP7=0,0,(AP7*((LOG(AP7))/LOG(2)))) -> -0.4613456697 | AS7: =N7 -> 111 | AT7: =COUNTIF(L78:L91,AS7) -> 5 | AU7: =AT7/(AV4-AT11) -> 0.5555555556 | AV7: =IF(AU7=0,0,(AU7*((LOG(AU7))/LOG(2)))) -> -0.4711093925
A8: 12 | B8: 110 | C8: 13 | D8: 114 | E8: 13 | F8: 120 | K8: 0 | L8: 111 | N8: 112 | O8: 3 | P8: 0.03529411765 | Q8: -0.1702739448 | T8: 112 | U8: =COUNTIF(L7:L20,T8) -> 0 | V8: =U8/(W4-U11) -> 0 | W8: =IF(V8=0,0,(V8*((LOG(V8))/LOG(2)))) -> 0 | Y8: 112 | Z8: =COUNTIF(L21:L34,Y8) -> 0 | AA8: =Z8/(AB4-Z11) -> 0 | AB8: =IF(AA8=0,0,(AA8*((LOG(AA8))/LOG(2)))) -> 0 | AD8: 112 | AE8: =COUNTIF(L35:L49,AD8) -> 1 | AF8: =AE8/(AG4-AE11) -> 0.08333333333 | AG8: =IF(AF8=0,0,(AF8*((LOG(AF8))/LOG(2)))) -> -0.2987468751 | AI8: 112 | AJ8: =COUNTIF(L50:L63,AI8) -> 0 | AK8: =AJ8/(AL4-AJ11) -> 0 | AL8: =IF(AK8=0,0,(AK8*((LOG(AK8))/LOG(2)))) -> 0 | AN8: 112 | AO8: =COUNTIF(L64:L77,AN8) -> 1 | AP8: =AO8/(AQ4-AO11) -> 0.07142857143 | AQ8: =IF(AP8=0,0,(AP8*((LOG(AP8))/LOG(2)))) -> -0.271953923 | AS8: 112 | AT8: =COUNTIF(L78:L91,AS8) -> 1 | AU8: =AT8/(AV4-AT11) -> 0.1111111111 | AV8: =IF(AU8=0,0,(AU8*((LOG(AU8))/LOG(2)))) -> -0.352213889
A9: 12 | B9: 216 | C9: 13 | D9: 231 | E9: 13 | F9: 238 | K9: 0 | L9: 111 | N9: 121 | O9: 3 | P9: 0.03529411765 | Q9: -0.1702739448 | T9: 121 | U9: =COUNTIF(L7:L20,T9) -> 0 | V9: =U9/(W4-U11) -> 0 | W9: =IF(V9=0,0,(V9*((LOG(V9))/LOG(2)))) -> 0 | Y9: 121 | Z9: =COUNTIF(L21:L34,Y9) -> 0 | AA9: =Z9/(AB4-Z11) -> 0 | AB9: =IF(AA9=0,0,(AA9*((LOG(AA9))/LOG(2)))) -> 0 | AD9: 121 | AE9: =COUNTIF(L35:L49,AD9) -> 1 | AF9: =AE9/(AG4-AE11) -> 0.08333333333 | AG9: =IF(AF9=0,0,(AF9*((LOG(AF9))/LOG(2)))) -> -0.2987468751 | AI9: 121 | AJ9: =COUNTIF(L50:L63,AI9) -> 2 | AK9: =AJ9/(AL4-AJ11) -> 0.1538461538 | AL9: =IF(AK9=0,0,(AK9*((LOG(AK9))/LOG(2)))) -> -0.4154522643 | AN9: 121 | AO9: =COUNTIF(L64:L77,AN9) -> 0 | AP9: =AO9/(AQ4-AO11) -> 0 | AQ9: =IF(AP9=0,0,(AP9*((LOG(AP9))/LOG(2)))) -> 0 | AS9: 121 | AT9: =COUNTIF(L78:L91,AS9) -> 0 | AU9: =AT9/(AV4-AT11) -> 0 | AV9: =IF(AU9=0,0,(AU9*((LOG(AU9))/LOG(2)))) -> 0
A10: 21 | B10: 332 | C10: 22 | D10: 334 | E10: 13 | F10: 342 | K10: 0 | L10: 221 | N10: 122 | O10: 6 | P10: 0.07058823529 | Q10: -0.2699596543 | T10: 122 | U10: =COUNTIF(L7:L20,T10) -> 0 | V10: =U10/(W4-U11) -> 0 | W10: =IF(V10=0,0,(V10*((LOG(V10))/LOG(2)))) -> 0 | Y10: 122 | Z10: =COUNTIF(L21:L34,Y10) -> 0 | AA10: =Z10/(AB4-Z11) -> 0 | AB10: =IF(AA10=0,0,(AA10*((LOG(AA10))/LOG(2)))) -> 0 | AD10: 122 | AE10: =COUNTIF(L35:L49,AD10) -> 1 | AF10: =AE10/(AG4-AE11) -> 0.08333333333 | AG10: =IF(AF10=0,0,(AF10*((LOG(AF10))/LOG(2)))) -> -0.2987468751 | AI10: 122 | AJ10: =COUNTIF(L50:L63,AI10) -> 2 | AK10: =AJ10/(AL4-AJ11) -> 0.1538461538 | AL10: =IF(AK10=0,0,(AK10*((LOG(AK10))/LOG(2)))) -> -0.4154522643 | AN10: 122 | AO10: =COUNTIF(L64:L77,AN10) -> 1 | AP10: =AO10/(AQ4-AO11) -> 0.07142857143 | AQ10: =IF(AP10=0,0,(AP10*((LOG(AP10))/LOG(2)))) -> -0.271953923 | AS10: 122 | AT10: =COUNTIF(L78:L91,AS10) -> 2 | AU10: =AT10/(AV4-AT11) -> 0.2222222222 | AV10: =IF(AU10=0,0,(AU10*((LOG(AU10))/LOG(2)))) -> -0.4822055559
A11: 21 | B11: 439 | C11: 11 | D11: 445 | E11: 11 | F11: 450 | K11: 0 | L11: 211 | N11: 211 | O11: 24 | P11: 0.2823529412 | Q11: -0.5151327347 | T11: 211 | U11: =COUNTIF(L7:L20,T11) -> 6 | Y11: 211 | Z11: =COUNTIF(L21:L34,Y11) -> 9 | AD11: 211 | AE11: =COUNTIF(L35:L49,AD11) -> 3 | AI11: 211 | AJ11: =COUNTIF(L50:L63,AI11) -> 1 | AN11: 211 | AO11: =COUNTIF(L64:L77,AN11) -> 0 | AS11: 211 | AT11: =COUNTIF(L78:L91,AS11) -> 5
A12: 21 | B12: 541 | C12: 11 | D12: 550 | E12: 11 | F12: 558 | K12: 0 | L12: 211 | N12: 212 | O12: 3 | P12: 0.03529411765 | Q12: -0.1702739448 | T12: 212 | U12: =COUNTIF(L7:L20,T12) -> 0 | V12: =U12/(W4-U11) -> 0 | W12: =IF(V12=0,0,(V12*((LOG(V12))/LOG(2)))) -> 0 | Y12: 212 | Z12: =COUNTIF(L21:L34,Y12) -> 0 | AA12: =Z12/(AB4-Z11) -> 0 | AB12: =IF(AA12=0,0,(AA12*((LOG(AA12))/LOG(2)))) -> 0 | AD12: 212 | AE12: =COUNTIF(L35:L49,AD12) -> 0 | AF12: =AE12/(AG4-AE11) -> 0 | AG12: =IF(AF12=0,0,(AF12*((LOG(AF12))/LOG(2)))) -> 0 | AI12: 212 | AJ12: =COUNTIF(L50:L63,AI12) -> 2 | AK12: =AJ12/(AL4-AJ11) -> 0.1538461538 | AL12: =IF(AK12=0,0,(AK12*((LOG(AK12))/LOG(2)))) -> -0.4154522643 | AN12: 212 | AO12: =COUNTIF(L64:L77,AN12) -> 1 | AP12: =AO12/(AQ4-AO11) -> 0.07142857143 | AQ12: =IF(AP12=0,0,(AP12*((LOG(AP12))/LOG(2)))) -> -0.271953923 | AS12: 212 | AT12: =COUNTIF(L78:L91,AS12) -> 0 | AU12: =AT12/(AV4-AT11) -> 0 | AV12: =IF(AU12=0,0,(AU12*((LOG(AU12))/LOG(2)))) -> 0
A13: 21 | B13: 651 | C13: 22 | D13: 653 | E13: 13 | F13: 660 | K13: 0 | L13: 221 | N13: 221 | O13: 11 | P13: 0.1294117647 | Q13: -0.3817594411 | T13: 221 | U13: =COUNTIF(L7:L20,T13) -> 5 | V13: =U13/(W4-U11) -> 0.625 | W13: =IF(V13=0,0,(V13*((LOG(V13))/LOG(2)))) -> -0.4237949407 | Y13: 221 | Z13: =COUNTIF(L21:L34,Y13) -> 2 | AA13: =Z13/(AB4-Z11) -> 0.4 | AB13: =IF(AA13=0,0,(AA13*((LOG(AA13))/LOG(2)))) -> -0.528771238 | AD13: 221 | AE13: =COUNTIF(L35:L49,AD13) -> 0 | AF13: =AE13/(AG4-AE11) -> 0 | AG13: =IF(AF13=0,0,(AF13*((LOG(AF13))/LOG(2)))) -> 0 | AI13: 221 | AJ13: =COUNTIF(L50:L63,AI13) -> 2 | AK13: =AJ13/(AL4-AJ11) -> 0.1538461538 | AL13: =IF(AK13=0,0,(AK13*((LOG(AK13))/LOG(2)))) -> -0.4154522643 | AN13: 221 | AO13: =COUNTIF(L64:L77,AN13) -> 1 | AP13: =AO13/(AQ4-AO11) -> 0.07142857143 | AQ13: =IF(AP13=0,0,(AP13*((LOG(AP13))/LOG(2)))) -> -0.271953923 | AS13: 221 | AT13: =COUNTIF(L78:L91,AS13) -> 1 | AU13: =AT13/(AV4-AT11) -> 0.1111111111 | AV13: =IF(AU13=0,0,(AU13*((LOG(AU13))/LOG(2)))) -> -0.352213889
A14: 21 | B14: 756 | C14: 11 | D14: 764 | E14: 11 | F14: 770 | K14: 0 | L14: 211 | N14: 222 | O14: 11 | P14: 0.1294117647 | Q14: -0.3817594411 | T14: 222 | U14: =COUNTIF(L7:L20,T14) -> 0 | V14: =U14/(W4-U11) -> 0 | W14: =IF(V14=0,0,(V14*((LOG(V14))/LOG(2)))) -> 0 | Y14: 222 | Z14: =COUNTIF(L21:L34,Y14) -> 0 | AA14: =Z14/(AB4-Z11) -> 0 | AB14: =IF(AA14=0,0,(AA14*((LOG(AA14))/LOG(2)))) -> 0 | AD14: 222 | AE14: =COUNTIF(L35:L49,AD14) -> 5 | AF14: =AE14/(AG4-AE11) -> 0.4166666667 | AG14: =IF(AF14=0,0,(AF14*((LOG(AF14))/LOG(2)))) -> -0.5262643358 | AI14: 222 | AJ14: =COUNTIF(L50:L63,AI14) -> 4 | AK14: =AJ14/(AL4-AJ11) -> 0.3076923077 | AL14: =IF(AK14=0,0,(AK14*((LOG(AK14))/LOG(2)))) -> -0.523212221 | AN14: 222 | AO14: =COUNTIF(L64:L77,AN14) -> 2 | AP14: =AO14/(AQ4-AO11) -> 0.1428571429 | AQ14: =IF(AP14=0,0,(AP14*((LOG(AP14))/LOG(2)))) -> -0.4010507032 | AS14: 222 | AT14: =COUNTIF(L78:L91,AS14) -> 0 | AU14: =AT14/(AV4-AT11) -> 0 | AV14: =IF(AU14=0,0,(AU14*((LOG(AU14))/LOG(2)))) -> 0
A15: 21 | B15: 860 | C15: 22 | D15: 864 | E15: 13 | F15: 871 | K15: 0 | L15: 221 | P15: =SUM(P7:P14) -> 1 | Q15: =-SUM(Q7:Q14) -> 2.57456584 | V15: =SUM(V7:V14) -> 1 | W15: =-SUM(W7:W14) -> 0.9544340029 | AA15: =SUM(AA7:AA14) -> 1 | AB15: =-SUM(AB7:AB14) -> 0.9709505945 | AF15: =SUM(AF7:AF14) -> 1 | AG15: =-SUM(AG7:AG14) -> 1.950825795 | AK15: =SUM(AK7:AK14) -> 1 | AL15: =-SUM(AL7:AL14) -> 2.469670487 | AP15: =SUM(AP7:AP14) -> 1 | AQ15: =-SUM(AQ7:AQ14) -> 1.950212065 | AU15: =SUM(AU7:AU14) -> 1 | AV15: =-SUM(AV7:AV14) -> 1.657742727
A16: 21 | B16: 966 | C16: 22 | D16: 969 | E16: 13 | F16: 975 | K16: 0 | L16: 221 | P16: U= | Q16: =Q15/(LOG(Q4)/LOG(2)) -> 0.4016865044 | V16: U1= | W16: =W15/(LOG(W4)/LOG(2)) -> 0.2506816471 | AA16: U2= | AB16: =AB15/(LOG(AB4)/LOG(2)) -> 0.2550197222 | AF16: U3= | AG16: =AG15/(LOG(AG4)/LOG(2)) -> 0.4993295171 | AK16: U4= | AL16: =AL15/(LOG(AL4)/LOG(2)) -> 0.6486578052 | AP16: U5= | AQ16: =AQ15/(LOG(AQ4)/LOG(2)) -> 0.5122222921 | AU16: U6= | AV16: =AV15/(LOG(AV4)/LOG(2)) -> 0.4354053563
A17: 21 | B17: 1070 | C17: 11 | D17: 1077 | E17: 11 | F17: 1094 | K17: 0 | L17: 211
A18: 21 | B18: 1353 | C18: 22 | D18: 1356 | E18: 13 | F18: 1364 | K18: 0 | L18: 221
A19: 21 | B19: 1462 | C19: 11 | D19: 1468 | E19: 11 | F19: 1473 | K19: 0 | L19: 211 | N19: Total Target Seq
A20: 21 | B20: 1568 | C20: 11 | D20: 1577 | E20: 11 | F20: 1583 | K20: 0 | L20: 211 | N20: =COUNTIF(L7:L91,G3) -> 24 | P20: 14 | Q20: 14 | R20: 15 | S20: 14 | T20: 14 | U20: 14
A21: 21 | B21: 1690 | C21: 11 | D21: 1701 | E21: 11 | F21: 1708 | K21: 0 | L21: 211 | P21: % of reinforcement given in 6 equal intervals based on number of trials
A22: 21 | B22: 1811 | C22: 11 | D22: 1819 | E22: 11 | F22: 1832 | K22: 0 | L22: 211 | P22: %_1 | Q22: %_2 | R22: %_3 | S22: %_4 | T22: %_5 | U22: %_6
A23: 21 | B23: 1920 | C23: 11 | D23: 1932 | E23: 11 | F23: 1940 | K23: 0 | L23: 211 | O23: target sequence | P23: =$G$3 -> 211 | Q23: 211 | R23: 211 | S23: 211 | T23: 211 | U23: 211
A24: 12 | B24: 2041 | C24: 13 | D24: 2051 | E24: 13 | F24: 2064 | K24: 0 | L24: 111 | O24: total reinforcement | P24: =U11 -> 6 | Q24: =Z11 -> 9 | R24: =AE11 -> 3 | S24: =AJ11 -> 1 | T24: =AO11 -> 0 | U24: =AT11 -> 5
A25: 21 | B25: 2161 | C25: 11 | D25: 2166 | E25: 11 | F25: 2182 | K25: 0 | L25: 211 | O25: % target
A26: 21 | B26: 2275 | C26: 11 | D26: 2284 | E26: 11 | F26: 2294 | K26: 0 | L26: 211 | O26: CCRF
A27: 21 | B27: 2399 | C27: 22 | D27: 2403 | E27: 13 | F27: 2411 | K27: 0 | L27: 221 | O27: % CCRf
A28: 21 | B28: 2503 | C28: 11 | D28: 2511 | E28: 11 | F28: 2527 | K28: 0 | L28: 211 | O28: average response rate | P28: =F20/P20 -> 113.0714286 | Q28: =(F34-F20)/Q20 -> 161.2142857 | R28: =(F49-F34)/R20 -> 218.0666667 | S28: =(F63-F49)/S20 -> 140.9285714 | T28: =(F77-F63)/T20 -> 305.5 | U28: =(F91-F77)/U20 -> 206.8571429
A29: 21 | B29: 2682 | C29: 11 | D29: 2711 | E29: 11 | F29: 2726 | K29: 0 | L29: 211
A30: 21 | B30: 2946 | C30: 11 | D30: 2962 | E30: 11 | F30: 2983 | K30: 0 | L30: 211
A31: 12 | B31: 3215 | C31: 13 | D31: 3231 | E31: 13 | F31: 3238 | K31: 0 | L31: 111
A32: 21 | B32: 3334 | C32: 11 | D32: 3341 | E32: 11 | F32: 3349 | K32: 0 | L32: 211
A33: 21 | B33: 3573 | C33: 22 | D33: 3576 | E33: 13 | F33: 3586 | K33: 0 | L33: 221
A34: 12 | B34: 3826 | C34: 13 | D34: 3833 | E34: 13 | F34: 3840 | K34: 0 | L34: 111
A35: 21 | B35: 3949 | C35: 11 | D35: 3959 | E35: 11 | F35: 3987 | K35: 0 | L35: 211
A36: 21 | B36: 4243 | C36: 11 | D36: 4255 | E36: 11 | F36: 4262 | K36: 0 | L36: 211
A37: 12 | B37: 4355 | C37: 13 | D37: 4358 | E37: 13 | F37: 4363 | K37: 0 | L37: 111
A38: 21 | B38: 4536 | C38: 11 | D38: 4544 | E38: 11 | F38: 4554 | K38: 0 | L38: 211
A39: 12 | B39: 5472 | C39: 13 | D39: 5478 | E39: 13 | F39: 5496 | K39: 0 | L39: 111
A40: 12 | B40: 5609 | C40: 13 | D40: 5670 | E40: 13 | F40: 5671 | K40: 0 | L40: 111
A41: 12 | B41: 5765 | C41: 24 | D41: 5767 | E41: 13 | F41: 5778 | K41: 0 | L41: 121
A42: 21 | B42: 5874 | C42: 22 | D42: 5924 | E42: 24 | F42: 5930 | K42: 0 | L42: 222
A43: 21 | B43: 6063 | C43: 22 | D43: 6067 | E43: 24 | F43: 6096 | K43: 0 | L43: 222
A44: 21 | B44: 6232 | C44: 22 | D44: 6275 | E44: 24 | F44: 6280 | K44: 0 | L44: 222
A45: 12 | B45: 6412 | C45: 13 | D45: 6426 | E45: 24 | F45: 6439 | K45: 0 | L45: 112
A46: 12 | B46: 6659 | C46: 13 | D46: 6673 | E46: 13 | F46: 6693 | K46: 0 | L46: 111
A47: 21 | B47: 6806 | C47: 22 | D47: 6811 | E47: 24 | F47: 6814 | K47: 0 | L47: 222
A48: 12 | B48: 6927 | C48: 24 | D48: 6956 | E48: 24 | F48: 6961 | K48: 0 | L48: 122
A49: 21 | B49: 7077 | C49: 22 | D49: 7105 | E49: 24 | F49: 7111 | K49: 0 | L49: 222
A50: 12 | B50: 7212 | C50: 24 | D50: 7232 | E50: 24 | F50: 7256 | K50: 0 | L50: 122
A51: 21 | B51: 7350 | C51: 11 | D51: 7399 | E51: 11 | F51: 7403 | K51: 0 | L51: 211
A52: 12 | B52: 7508 | C52: 24 | D52: 7522 | E52: 13 | F52: 7524 | K52: 0 | L52: 121
A53: 21 | B53: 7622 | C53: 22 | D53: 7645 | E53: 24 | F53: 7650 | K53: 0 | L53: 222
A54: 21 | B54: 7745 | C54: 22 | D54: 7766 | E54: 24 | F54: 7789 | K54: 0 | L54: 222
A55: 12 | B55: 7883 | C55: 24 | D55: 7889 | E55: 13 | F55: 7901 | K55: 0 | L55: 121
A56: 21 | B56: 7994 | C56: 22 | D56: 8021 | E56: 13 | F56: 8023 | K56: 0 | L56: 221
A57: 21 | B57: 8117 | C57: 11 | D57: 8136 | E57: 22 | F57: 8155 | K57: 0 | L57: 212
A58: 21 | B58: 8273 | C58: 22 | D58: 8294 | E58: 24 | F58: 8297 | K58: 0 | L58: 222
A59: 21 | B59: 8407 | C59: 11 | D59: 8434 | E59: 22 | F59: 8461 | K59: 0 | L59: 212
A60: 12 | B60: 8562 | C60: 24 | D60: 8571 | E60: 24 | F60: 8579 | K60: 0 | L60: 122
A61: 21 | B61: 8678 | C61: 22 | D61: 8703 | E61: 24 | F61: 8707 | K61: 0 | L61: 222
A62: 21 | B62: 8834 | C62: 22 | D62: 8838 | E62: 13 | F62: 8855 | K62: 0 | L62: 221
A63: 12 | B63: 8966 | C63: 13 | D63: 8984 | E63: 13 | F63: 9084 | K63: 0 | L63: 111
A64: 12 | B64: 9206 | C64: 13 | D64: 9209 | E64: 13 | F64: 9218 | K64: 0 | L64: 111
A65: 12 | B65: 9449 | C65: 13 | D65: 9634 | E65: 24 | F65: 9799 | K65: 0 | L65: 112
A66: 12 | B66: 10064 | C66: 13 | D66: 10203 | E66: 13 | F66: 10451 | K66: 0 | L66: 111
A67: 12 | B67: 10727 | C67: 13 | D67: 10821 | E67: 13 | F67: 10859 | K67: 0 | L67: 111
A68: 12 | B68: 11054 | C68: 13 | D68: 11192 | E68: 13 | F68: 11262 | K68: 0 | L68: 111
A69: 12 | B69: 11569 | C69: 13 | D69: 11659 | E69: 13 | F69: 11671 | K69: 0 | L69: 111
A70: 12 | B70: 11784 | C70: 24 | D70: 11786 | E70: 24 | F70: 11831 | K70: 0 | L70: 122
A71: 21 | B71: 11966 | C71: 11 | D71: 11984 | E71: 22 | F71: 11988 | K71: 0 | L71: 212
A72: 21 | B72: 12095 | C72: 22 | D72: 12101 | E72: 13 | F72: 12112 | K72: 0 | L72: 221
A73: 21 | B73: 12206 | C73: 22 | D73: 12232 | E73: 24 | F73: 12236 | K73: 0 | L73: 222
A74: 21 | B74: 12335 | C74: 22 | D74: 12393 | E74: 24 | F74: 12399 | K74: 0 | L74: 222
A75: 12 | B75: 12503 | C75: 13 | D75: 12639 | E75: 13 | F75: 12718 | K75: 0 | L75: 111
A76: 12 | B76: 12846 | C76: 13 | D76: 13129 | E76: 13 | F76: 13224 | K76: 0 | L76: 111
A77: 12 | B77: 13324 | C77: 13 | D77: 13343 | E77: 13 | F77: 13361 | K77: 0 | L77: 111
A78: 12 | B78: 13522 | C78: 13 | D78: 13542 | E78: 13 | F78: 13546 | K78: 0 | L78: 111
A79: 12 | B79: 13729 | C79: 13 | D79: 13836 | E79: 13 | F79: 13897 | K79: 0 | L79: 111
A80: 12 | B80: 14043 | C80: 13 | D80: 14066 | E80: 13 | F80: 14088 | K80: 0 | L80: 111
A81: 12 | B81: 14294 | C81: 24 | D81: 14527 | E81: 24 | F81: 14548 | K81: 0 | L81: 122
A82: 12 | B82: 14641 | C82: 24 | D82: 14656 | E82: 24 | F82: 14660 | K82: 0 | L82: 122
A83: 12 | B83: 14761 | C83: 13 | D83: 14779 | E83: 24 | F83: 14809 | K83: 0 | L83: 112
A84: 12 | B84: 14907 | C84: 13 | D84: 14918 | E84: 13 | F84: 14936 | K84: 0 | L84: 111
A85: 21 | B85: 15030 | C85: 22 | D85: 15055 | E85: 13 | F85: 15069 | K85: 0 | L85: 221
A86: 21 | B86: 15164 | C86: 11 | D86: 15174 | E86: 11 | F86: 15182 | K86: 0 | L86: 211
A87: 21 | B87: 15495 | C87: 11 | D87: 15503 | E87: 11 | F87: 15523 | K87: 0 | L87: 211
A88: 21 | B88: 15701 | C88: 11 | D88: 15710 | E88: 11 | F88: 15717 | K88: 0 | L88: 211
A89: 12 | B89: 16003 | C89: 13 | D89: 16009 | E89: 13 | F89: 16020 | K89: 0 | L89: 111
A90: 21 | B90: 16118 | C90: 11 | D90: 16126 | E90: 11 | F90: 16133 | K90: 0 | L90: 211
A91: 21 | B91: 16223 | C91: 11 | D91: 16242 | E91: 11 | F91: 16257 | K91: 1 | L91: 211

Sheet !N211A5T.AYL
A1: Report for:!N211A5T.AYL
A2: Date: | B2: <date>
A3: Hen: | B3: <hen> | F3: Correct Sequence | G3: =Start!J2 -> 211 | P3: Total Sequences in Data | Q3: =4994-COUNTBLANK(L7:L5000) -> 74 | V3: Total Sequences in Block Data | W3: =COUNTA(L7:L18) -> 12 | AA3: Total Sequences in Block Data | AB3: =COUNTA(L19:L31) -> 13 | AF3: Total Sequences in Block Data | AG3: =COUNTA(L32:L43) -> 12 | AK3: Total Sequences in Block Data | AL3: =COUNTA(L44:L55) -> 12 | AP3: Total Sequences in Block Data | AQ3: =COUNTA(L56:L68) -> 13 | AU3: Total Sequences in Block Data | AV3: =COUNTA(L69:L80) -> 12
P4: Total Sequences in Summary | Q4: =SUM(O7:O14) -> 74 | V4: Total Sequences in Block Summary | W4: =SUM(U7:U14) -> 12 | AA4: Total Sequences in Block Summary | AB4: =SUM(Z7:Z14) -> 13 | AF4: Total Sequences in Block Summary | AG4: =SUM(AE7:AE14) -> 12 | AK4: Total Sequences in Block Summary | AL4: =SUM(AJ7:AJ14) -> 12 | AP4: Total Sequences in Block Summary | AQ4: =SUM(AO7:AO14) -> 13 | AU4: Total Sequences in Block Summary | AV4: =SUM(AT7:AT14) -> 12
T5: Block 1 | Y5: Block 2 | AD5: Block 3 | AI5: Block 4 | AN5: Block 5 | AS5: Block 6
A6: Sequence Component 1 | B6: Time 1 | C6: Sequence Component 2 | D6: Time 2 | E6: Sequence Component 3 | F6: Time 3 | G6: Sequence Component 4 | H6: Time 4 | I6: Sequence Component 5 | J6: Time 5 | K6: Correct? 0=No 1=Yes | L6: Sequence | N6: Frequency | P6: Relative Frequency | Q6: Variability | T6: Frequency | V6: Relative Frequency | W6: Variability | Y6: Frequency | AA6: Relative Frequency | AB6: Variability | AD6: Frequency | AF6: Relative Frequency | AG6: Variability | AI6: Frequency | AK6: Relative Frequency | AL6: Variability | AN6: Frequency | AP6: Relative Frequency | AQ6: Variability | AS6: Frequency | AU6: Relative Frequency | AV6: Variability
A7: 12 | B7: 11 | C7: 13 | D7: 15 | E7: 13 | F7: 22 | K7: 0 | L7: 111 | N7: 111 | O7: =COUNTIF($L$7:$L$500,N7) -> 40 | P7: =O7/$Q$4 -> 0.5405405405 | Q7: =IF(P7=0,0,(P7*((LOG(P7))/LOG(2)))) -> -0.4797433896 | T7: =N7 -> 111 | U7: =COUNTIF(L7:L18,T7) -> 8 | V7: =U7/(W4-U11) -> 0.8888888889 | W7: =IF(V7=0,0,(V7*((LOG(V7))/LOG(2)))) -> -0.1510444457 | Y7: =N7 -> 111 | Z7: =COUNTIF(L19:L31,Y7) -> 8 | AA7: =Z7/(AB4-Z11) -> 1 | AB7: =IF(AA7=0,0,(AA7*((LOG(AA7))/LOG(2)))) -> 0 | AD7: =N7 -> 111 | AE7: =COUNTIF(L32:L43,AD7) -> 6 | AF7: =AE7/(AG4-AE11) -> 0.6666666667 | AG7: =IF(AF7=0,0,(AF7*((LOG(AF7))/LOG(2)))) -> -0.3899750005 | AI7: =N7 -> 111 | AJ7: =COUNTIF(L44:L55,AI7) -> 2 | AK7: =AJ7/(AL4-AJ11) -> 0.6666666667 | AL7: =IF(AK7=0,0,(AK7*((LOG(AK7))/LOG(2)))) -> -0.3899750005 | AN7: =N7 -> 111 | AO7: =COUNTIF(L56:L68,AN7) -> 7 | AP7: =AO7/(AQ4-AO11) -> 0.7777777778 | AQ7: =IF(AP7=0,0,(AP7*((LOG(AP7))/LOG(2)))) -> -0.2819989506 | AS7: =N7 -> 111 | AT7: =COUNTIF(L69:L80,AS7) -> 9 | AU7: =AT7/(AV4-AT11) -> 1 | AV7: =IF(AU7=0,0,(AU7*((LOG(AU7))/LOG(2)))) -> 0
A8: 21 | B8: 116 | C8: 11 | D8: 124 | E8: 11 | F8: 127 | K8: 0 | L8: 211 | N8: 112 | O8: 4 | P8: 0.05405405405 | Q8: -0.2275380198 | T8: 112 | U8: =COUNTIF(L7:L18,T8) -> 0 | V8: =U8/(W4-U11) -> 0 | W8: =IF(V8=0,0,(V8*((LOG(V8))/LOG(2)))) -> 0 | Y8: 112 | Z8: =COUNTIF(L19:L31,Y8) -> 0 | AA8: =Z8/(AB4-Z11) -> 0 | AB8: =IF(AA8=0,0,(AA8*((LOG(AA8))/LOG(2)))) -> 0 | AD8: 112 | AE8: =COUNTIF(L32:L43,AD8) -> 3 | AF8: =AE8/(AG4-AE11) -> 0.3333333333 | AG8: =IF(AF8=0,0,(AF8*((LOG(AF8))/LOG(2)))) -> -0.5283208336 | AI8: 112 | AJ8: =COUNTIF(L44:L55,AI8) -> 0 | AK8: =AJ8/(AL4-AJ11) -> 0 | AL8: =IF(AK8=0,0,(AK8*((LOG(AK8))/LOG(2)))) -> 0 | AN8: 112 | AO8: =COUNTIF(L56:L68,AN8) -> 1 | AP8: =AO8/(AQ4-AO11) -> 0.1111111111 | AQ8: =IF(AP8=0,0,(AP8*((LOG(AP8))/LOG(2)))) -> -0.352213889 | AS8: 112 | AT8: =COUNTIF(L69:L80,AS8) -> 0 | AU8: =AT8/(AV4-AT11) -> 0 | AV8: =IF(AU8=0,0,(AU8*((LOG(AU8))/LOG(2)))) -> 0
A9: 12 | B9: 382 | C9: 13 | D9: 393 | E9: 13 | F9: 400 | K9: 0 | L9: 111 | N9: 121 | O9: 2 | P9: 0.02702702703 | Q9: -0.1407960369 | T9: 121 | U9: =COUNTIF(L7:L18,T9) -> 1 | V9: =U9/(W4-U11) -> 0.1111111111 | W9: =IF(V9=0,0,(V9*((LOG(V9))/LOG(2)))) -> -0.352213889 | Y9: 121 | Z9: =COUNTIF(L19:L31,Y9) -> 0 | AA9: =Z9/(AB4-Z11) -> 0 | AB9: =IF(AA9=0,0,(AA9*((LOG(AA9))/LOG(2)))) -> 0 | AD9: 121 | AE9: =COUNTIF(L32:L43,AD9) -> 0 | AF9: =AE9/(AG4-AE11) -> 0 | AG9: =IF(AF9=0,0,(AF9*((LOG(AF9))/LOG(2)))) -> 0 | AI9: 121 | AJ9: =COUNTIF(L44:L55,AI9) -> 0 | AK9: =AJ9/(AL4-AJ11) -> 0 | AL9: =IF(AK9=0,0,(AK9*((LOG(AK9))/LOG(2)))) -> 0 | AN9: 121 | AO9: =COUNTIF(L56:L68,AN9) -> 1 | AP9: =AO9/(AQ4-AO11) -> 0.1111111111 | AQ9: =IF(AP9=0,0,(AP9*((LOG(AP9))/LOG(2)))) -> -0.352213889 | AS9: 121 | AT9: =COUNTIF(L69:L80,AS9) -> 0 | AU9: =AT9/(AV4-AT11) -> 0 | AV9: =IF(AU9=0,0,(AU9*((LOG(AU9))/LOG(2)))) -> 0
A10: 12 | B10: 519 | C10: 13 | D10: 522 | E10: 13 | F10: 533 | K10: 0 | L10: 111 | N10: 122 | O10: 0 | P10: 0 | Q10: 0 | T10: 122 | U10: =COUNTIF(L7:L18,T10) -> 0 | V10: =U10/(W4-U11) -> 0 | W10: =IF(V10=0,0,(V10*((LOG(V10))/LOG(2)))) -> 0 | Y10: 122 | Z10: =COUNTIF(L19:L31,Y10) -> 0 | AA10: =Z10/(AB4-Z11) -> 0 | AB10: =IF(AA10=0,0,(AA10*((LOG(AA10))/LOG(2)))) -> 0 | AD10: 122 | AE10: =COUNTIF(L32:L43,AD10) -> 0 | AF10: =AE10/(AG4-AE11) -> 0 | AG10: =IF(AF10=0,0,(AF10*((LOG(AF10))/LOG(2)))) -> 0 | AI10: 122 | AJ10: =COUNTIF(L44:L55,AI10) -> 0 | AK10: =AJ10/(AL4-AJ11) -> 0 | AL10: =IF(AK10=0,0,(AK10*((LOG(AK10))/LOG(2)))) -> 0 | AN10: 122 | AO10: =COUNTIF(L56:L68,AN10) -> 0 | AP10: =AO10/(AQ4-AO11) -> 0 | AQ10: =IF(AP10=0,0,(AP10*((LOG(AP10))/LOG(2)))) -> 0 | AS10: 122 | AT10: =COUNTIF(L69:L80,AS10) -> 0 | AU10: =AT10/(AV4-AT11) -> 0 | AV10: =IF(AU10=0,0,(AU10*((LOG(AU10))/LOG(2)))) -> 0
A11: 12 | B11: 649 | C11: 13 | D11: 658 | E11: 13 | F11: 665 | K11: 0 | L11: 111 | N11: 211 | O11: 27 | P11: 0.3648648649 | Q11: -0.5307199772 | T11: 211 | U11: =COUNTIF(L7:L18,T11) -> 3 | Y11: 211 | Z11: =COUNTIF(L19:L31,Y11) -> 5 | AD11: 211 | AE11: =COUNTIF(L32:L43,AD11) -> 3 | AI11: 211 | AJ11: =COUNTIF(L44:L55,AI11) -> 9 | AN11: 211 | AO11: =COUNTIF(L56:L68,AN11) -> 4 | AS11: 211 | AT11: =COUNTIF(L69:L80,AS11) -> 3
A12: 12 | B12: 768 | C12: 13 | D12: 772 | E12: 13 | F12: 783 | K12: 0 | L12: 111 | N12: 212 | O12: 0 | P12: 0 | Q12: 0 | T12: 212 | U12: =COUNTIF(L7:L18,T12) -> 0 | V12: =U12/(W4-U11) -> 0 | W12: =IF(V12=0,0,(V12*((LOG(V12))/LOG(2)))) -> 0 | Y12: 212 | Z12: =COUNTIF(L19:L31,Y12) -> 0 | AA12: =Z12/(AB4-Z11) -> 0 | AB12: =IF(AA12=0,0,(AA12*((LOG(AA12))/LOG(2)))) -> 0 | AD12: 212 | AE12: =COUNTIF(L32:L43,AD12) -> 0 | AF12: =AE12/(AG4-AE11) -> 0 | AG12: =IF(AF12=0,0,(AF12*((LOG(AF12))/LOG(2)))) -> 0 | AI12: 212 | AJ12: =COUNTIF(L44:L55,AI12) -> 0 | AK12: =AJ12/(AL4-AJ11) -> 0 | AL12: =IF(AK12=0,0,(AK12*((LOG(AK12))/LOG(2)))) -> 0 | AN12: 212 | AO12: =COUNTIF(L56:L68,AN12) -> 0 | AP12: =AO12/(AQ4-AO11) -> 0 | AQ12: =IF(AP12=0,0,(AP12*((LOG(AP12))/LOG(2)))) -> 0 | AS12: 212 | AT12: =COUNTIF(L69:L80,AS12) -> 0 | AU12: =AT12/(AV4-AT11) -> 0 | AV12: =IF(AU12=0,0,(AU12*((LOG(AU12))/LOG(2)))) -> 0
A13: 21 | B13: 876 | C13: 11 | D13: 881 | E13: 11 | F13: 884 | K13: 0 | L13: 211 | N13: 221 | O13: 1 | P13: 0.01351351351 | Q13: -0.08391153197 | T13: 221 | U13: =COUNTIF(L7:L18,T13) -> 0 | V13: =U13/(W4-U11) -> 0 | W13: =IF(V13=0,0,(V13*((LOG(V13))/LOG(2)))) -> 0 | Y13: 221 | Z13: =COUNTIF(L19:L31,Y13) -> 0 | AA13: =Z13/(AB4-Z11) -> 0 | AB13: =IF(AA13=0,0,(AA13*((LOG(AA13))/LOG(2)))) -> 0 | AD13: 221 | AE13: =COUNTIF(L32:L43,AD13) -> 0 | AF13: =AE13/(AG4-AE11) -> 0 | AG13: =IF(AF13=0,0,(AF13*((LOG(AF13))/LOG(2)))) -> 0 | AI13: 221 | AJ13: =COUNTIF(L44:L55,AI13) -> 1 | AK13: =AJ13/(AL4-AJ11) -> 0.3333333333 | AL13: =IF(AK13=0,0,(AK13*((LOG(AK13))/LOG(2)))) -> -0.5283208336 | AN13: 221 | AO13: =COUNTIF(L56:L68,AN13) -> 0 | AP13: =AO13/(AQ4-AO11) -> 0 | AQ13: =IF(AP13=0,0,(AP13*((LOG(AP13))/LOG(2)))) -> 0 | AS13: 221 | AT13: =COUNTIF(L69:L80,AS13) -> 0 | AU13: =AT13/(AV4-AT11) -> 0 | AV13: =IF(AU13=0,0,(AU13*((LOG(AU13))/LOG(2)))) -> 0
A14: 12 | B14: 2073 | C14: 13 | D14: 2085 | E14: 13 | F14: 2091 | K14: 0 | L14: 111 | N14: 222 | O14: 0 | P14: 0 | Q14: 0 | T14: 222 | U14: =COUNTIF(L7:L18,T14) -> 0 | V14: =U14/(W4-U11) -> 0 | W14: =IF(V14=0,0,(V14*((LOG(V14))/LOG(2)))) -> 0 | Y14: 222 | Z14: =COUNTIF(L19:L31,Y14) -> 0 | AA14: =Z14/(AB4-Z11) -> 0 | AB14: =IF(AA14=0,0,(AA14*((LOG(AA14))/LOG(2)))) -> 0 | AD14: 222 | AE14: =COUNTIF(L32:L43,AD14) -> 0 | AF14: =AE14/(AG4-AE11) -> 0 | AG14: =IF(AF14=0,0,(AF14*((LOG(AF14))/LOG(2)))) -> 0 | AI14: 222 | AJ14: =COUNTIF(L44:L55,AI14) -> 0 | AK14: =AJ14/(AL4-AJ11) -> 0 | AL14: =IF(AK14=0,0,(AK14*((LOG(AK14))/LOG(2)))) -> 0 | AN14: 222 | AO14: =COUNTIF(L56:L68,AN14) -> 0 | AP14: =AO14/(AQ4-AO11) -> 0 | AQ14: =IF(AP14=0,0,(AP14*((LOG(AP14))/LOG(2)))) -> 0 | AS14: 222 | AT14: =COUNTIF(L69:L80,AS14) -> 0 | AU14: =AT14/(AV4-AT11) -> 0 | AV14: =IF(AU14=0,0,(AU14*((LOG(AU14))/LOG(2)))) -> 0
A15: 12 | B15: 2899 | C15: 24 | D15: 2902 | E15: 13 | F15: 2904 | K15: 0 | L15: 121 | P15: =SUM(P7:P14) -> 1 | Q15: =-SUM(Q7:Q14) -> 1.462708955 | V15: =SUM(V7:V14) -> 1 | W15: =-SUM(W7:W14) -> 0.5032583348 | AA15: =SUM(AA7:AA14) -> 1 | AB15: =-SUM(AB7:AB14) -> 0 | AF15: =SUM(AF7:AF14) -> 1 | AG15: =-SUM(AG7:AG14) -> 0.9182958341 | AK15: =SUM(AK7:AK14) -> 1 | AL15: =-SUM(AL7:AL14) -> 0.9182958341 | AP15: =SUM(AP7:AP14) -> 1 | AQ15: =-SUM(AQ7:AQ14) -> 0.9864267287 | AU15: =SUM(AU7:AU14) -> 1 | AV15: =-SUM(AV7:AV14) -> 0
A16: 12 | B16: 3001 | C16: 13 | D16: 3011 | E16: 13 | F16: 3019 | K16: 0 | L16: 111 | P16: U= | Q16: =Q15/(LOG(Q4)/LOG(2)) -> 0.2355616299 | V16: U1= | W16: =W15/(LOG(W4)/LOG(2)) -> 0.1403803623 | AA16: U2= | AB16: =AB15/(LOG(AB4)/LOG(2)) -> 0 | AF16: U3= | AG16: =AG15/(LOG(AG4)/LOG(2)) -> 0.2561521449 | AK16: U4= | AL16: =AL15/(LOG(AL4)/LOG(2)) -> 0.2561521449 | AP16: U5= | AQ16: =AQ15/(LOG(AQ4)/LOG(2)) -> 0.2665701387 | AU16: U6= | AV16: =AV15/(LOG(AV4)/LOG(2)) -> 0
A17: 21 | B17: 3113 | C17: 11 | D17: 3119 | E17: 11 | F17: 3124 | K17: 0 | L17: 211
A18: 12 | B18: 3628 | C18: 13 | D18: 3646 | E18: 13 | F18: 3652 | K18: 0 | L18: 111
A19: 12 | B19: 3750 | C19: 13 | D19: 3766 | E19: 13 | F19: 3777 | K19: 0 | L19: 111 | N19: Total Target Seq
A20: 12 | B20: 3878 | C20: 13 | D20: 3885 | E20: 13 | F20: 3894 | K20: 0 | L20: 111 | N20: =COUNTIF(L7:L80,G3) -> 27 | P20: 12 | Q20: 13 | R20: 12 | S20: 12 | T20: 13 | U20: 12
A21: 12 | B21: 3994 | C21: 13 | D21: 3998 | E21: 13 | F21: 4003 | K21: 0 | L21: 111 | P21: % of reinforcement given in 6 equal intervals based on number of trials
A22: 21 | B22: 4098 | C22: 11 | D22: 4104 | E22: 11 | F22: 4115 | K22: 0 | L22: 211 | P22: %_1 | Q22: %_2 | R22: %_3 | S22: %_4 | T22: %_5 | U22: %_6
A23: 12 | B23: 4899 | C23: 13 | D23: 4909 | E23: 13 | F23: 4918 | K23: 0 | L23: 111 | O23: target sequence | P23: =$G$3 -> 211 | Q23: 211 | R23: 211 | S23: 211 | T23: 211 | U23: 211
A24: 21 | B24: 5013 | C24: 11 | D24: 5020 | E24: 11 | F24: 5027 | K24: 0 | L24: 211 | O24: total reinforcement | P24: =U11 -> 3 | Q24: =Z11 -> 5 | R24: =AE11 -> 3 | S24: =AJ11 -> 9 | T24: =AO11 -> 4 | U24: =AT11 -> 3
A25: 12 | B25: 5622 | C25: 13 | D25: 5637 | E25: 13 | F25: 5645 | K25: 0 | L25: 111 | O25: % target
A26: 12 | B26: 5745 | C26: 13 | D26: 5755 | E26: 13 | F26: 5766 | K26: 0 | L26: 111 | O26: CCRF
A27: 12 | B27: 5868 | C27: 13 | D27: 5873 | E27: 13 | F27: 5885 | K27: 0 | L27: 111 | O27: % CCRf
A28: 21 | B28: 5985 | C28: 11 | D28: 5991 | E28: 11 | F28: 5998 | K28: 0 | L28: 211 | O28: average response rate | P28: =F18/P20 -> 304.3333333 | Q28: =(F31-F18)/Q20 -> 208.1538462 | R28: =(F43-F31)/R20 -> 348.75 | S28: =(F55-F43)/S20 -> 146.4166667 | T28: =(F68-F55)/T20 -> 134.6153846 | U28: =(F80-F68)/U20 -> 231.8333333
A29: 12 | B29: 6094 | C29: 13 | D29: 6108 | E29: 13 | F29: 6128 | K29: 0 | L29: 111
A30: 21 | B30: 6225 | C30: 11 | D30: 6230 | E30: 11 | F30: 6241 | K30: 0 | L30: 211
A31: 21 | B31: 6331 | C31: 11 | D31: 6339 | E31: 11 | F31: 6358 | K31: 0 | L31: 211
A32: 21 | B32: 6460 | C32: 11 | D32: 6478 | E32: 11 | F32: 6496 | K32: 0 | L32: 211
A33: 12 | B33: 7612 | C33: 13 | D33: 7618 | E33: 24 | F33: 7620 | K33: 0 | L33: 112
A34: 12 | B34: 8210 | C34: 13 | D34: 8216 | E34: 24 | F34: 8228 | K34: 0 | L34: 112
A35: 12 | B35: 8662 | C35: 13 | D35: 8667 | E35: 24 | F35: 8672 | K35: 0 | L35: 112
A36: 21 | B36: 8770 | C36: 11 | D36: 8778 | E36: 11 | F36: 8793 | K36: 0 | L36: 211
A37: 12 | B37: 9544 | C37: 13 | D37: 9562 | E37: 13 | F37: 9570 | K37: 0 | L37: 111
A38: 12 | B38: 9910 | C38: 13 | D38: 9916 | E38: 13 | F38: 9929 | K38: 0 | L38: 111
A39: 12 | B39: 10032 | C39: 13 | D39: 10044 | E39: 13 | F39: 10054 | K39: 0 | L39: 111
A40: 12 | B40: 10154 | C40: 13 | D40: 10158 | E40: 13 | F40: 10161 | K40: 0 | L40: 111
A41: 12 | B41: 10274 | C41: 13 | D41: 10286 | E41: 13 | F41: 10294 | K41: 0 | L41: 111
A42: 12 | B42: 10393 | C42: 13 | D42: 10397 | E42: 13 | F42: 10429 | K42: 0 | L42: 111
A43: 21 | B43: 10523 | C43: 11 | D43: 10531 | E43: 11 | F43: 10543 | K43: 0 | L43: 211
A44: 12 | B44: 10703 | C44: 13 | D44: 10709 | E44: 13 | F44: 10714 | K44: 0 | L44: 111
A45: 21 | B45: 10808 | C45: 11 | D45: 10819 | E45: 11 | F45: 10829 | K45: 0 | L45: 211
A46: 21 | B46: 10923 | C46: 11 | D46: 10932 | E46: 11 | F46: 10947 | K46: 0 | L46: 211
A47: 21 | B47: 11045 | C47: 22 | D47: 11050 | E47: 13 | F47: 11059 | K47: 0 | L47: 221
A48: 21 | B48: 11155 | C48: 11 | D48: 11164 | E48: 11 | F48: 11176 | K48: 0 | L48: 211
A49: 21 | B49: 11280 | C49: 11 | D49: 11290 | E49: 11 | F49: 11303 | K49: 0 | L49: 211
A50: 12 | B50: 11620 | C50: 13 | D50: 11626 | E50: 13 | F50: 11639 | K50: 0 | L50: 111
A51: 21 | B51: 11765 | C51: 11 | D51: 11773 | E51: 11 | F51: 11777 | K51: 0 | L51: 211
A52: 21 | B52: 11883 | C52: 11 | D52: 11893 | E52: 11 | F52: 11899 | K52: 0 | L52: 211
A53: 21 | B53: 12050 | C53: 11 | D53: 12058 | E53: 11 | F53: 12070 | K53: 0 | L53: 211
A54: 21 | B54: 12177 | C54: 11 | D54: 12186 | E54: 11 | F54: 12192 | K54: 0 | L54: 211
A55: 21 | B55: 12286 | C55: 11 | D55: 12294 | E55: 11 | F55: 12300 | K55: 0 | L55: 211
A56: 12 | B56: 12393 | C56: 13 | D56: 12395 | E56: 13 | F56: 12407 | K56: 0 | L56: 111
A57: 21 | B57: 12501 | C57: 11 | D57: 12508 | E57: 11 | F57: 12513 | K57: 0 | L57: 211
A58: 12 | B58: 12610 | C58: 13 | D58: 12614 | E58: 13 | F58: 12618 | K58: 0 | L58: 111
A59: 12 | B59: 12720 | C59: 13 | D59: 12725 | E59: 13 | F59: 12732 | K59: 0 | L59: 111
A60: 21 | B60: 12829 | C60: 11 | D60: 12835 | E60: 11 | F60: 12853 | K60: 0 | L60: 211
A61: 21 | B61: 12945 | C61: 11 | D61: 12952 | E61: 11 | F61: 12960 | K61: 0 | L61: 211
A62: 12 | B62: 13325 | C62: 13 | D62: 13329 | E62: 13 | F62: 13339 | K62: 0 | L62: 111
A63: 21 | B63: 13436 | C63: 11 | D63: 13441 | E63: 11 | F63: 13446 | K63: 0 | L63: 211
A64: 12 | B64: 13542 | C64: 13 | D64: 13547 | E64: 13 | F64: 13552 | K64: 0 | L64: 111
A65: 12 | B65: 13661 | C65: 13 | D65: 13667 | E65: 24 | F65: 13674 | K65: 0 | L65: 112
A66: 12 | B66: 13806 | C66: 24 | D66: 13815 | E66: 13 | F66: 13826 | K66: 0 | L66: 121
A67: 12 | B67: 13926 | C67: 13 | D67: 13931 | E67: 13 | F67: 13941 | K67: 0 | L67: 111
A68: 12 | B68: 14040 | C68: 13 | D68: 14044 | E68: 13 | F68: 14050 | K68: 0 | L68: 111
A69: 12 | B69: 14150 | C69: 13 | D69: 14155 | E69: 13 | F69: 14164 | K69: 0 | L69: 111
A70: 12 | B70: 14288 | C70: 13 | D70: 14310 | E70: 13 | F70: 14316 | K70: 0 | L70: 111
A71: 12 | B71: 14421 | C71: 13 | D71: 14427 | E71: 13 | F71: 14442 | K71: 0 | L71: 111
A72: 12 | B72: 14541 | C72: 13 | D72: 14545 | E72: 13 | F72: 14555 | K72: 0 | L72: 111
A73: 12 | B73: 14656 | C73: 13 | D73: 14660 | E73: 13 | F73: 14671 | K73: 0 | L73: 111
A74: 12 | B74: 14771 | C74: 13 | D74: 14775 | E74: 13 | F74: 14785 | K74: 0 | L74: 111
A75: 21 | B75: 14880 | C75: 11 | D75: 14884 | E75: 11 | F75: 14889 | K75: 0 | L75: 211
A76: 21 | B76: 14999 | C76: 11 | D76: 15006 | E76: 11 | F76: 15010 | K76: 0 | L76: 211
A77: 21 | B77: 15120 | C77: 11 | D77: 15129 | E77: 11 | F77: 15134 | K77: 0 | L77: 211
A78: 12 | B78: 15579 | C78: 13 | D78: 15589 | E78: 13 | F78: 15604 | K78: 0 | L78: 111
A79: 12 | B79: 16222 | C79: 13 | D79: 16228 | E79: 13 | F79: 16236 | K79: 0 | L79: 111
A80: 12 | B80: 16822 | C80: 13 | D80: 16825 | E80: 13 | F80: 16832 | K80: 1 | L80: 111

Sheet !N212A0T.AYL
A1: Report for:!N212A0T.AYL
A2: Date: | B2: <date>
A3: Hen: | B3: <hen> | F3: Correct Sequence | G3: =Start!J2 -> 211 | P3: Total Sequences in Data | Q3: =4994-COUNTBLANK(L7:L5000) -> 74 | V3: Total Sequences in Block Data | W3: =COUNTA(L7:L18) -> 12 | AA3: Total Sequences in Block Data | AB3: =COUNTA(L19:L31) -> 13 | AF3: Total Sequences in Block Data | AG3: =COUNTA(L32:L43) -> 12 | AK3: Total Sequences in Block Data | AL3: =COUNTA(L44:L55) -> 12 | AP3: Total Sequences in Block Data | AQ3: =COUNTA(L56:L68) -> 13 | AU3: Total Sequences in Block Data | AV3: =COUNTA(L69:L80) -> 12
P4: Total Sequences in Summary | Q4: =SUM(O7:O14) -> 74 | V4: Total Sequences in Block Summary | W4: =SUM(U7:U14) -> 12 | AA4: Total Sequences in Block Summary | AB4: =SUM(Z7:Z14) -> 13 | AF4: Total Sequences in Block Summary | AG4: =SUM(AE7:AE14) -> 12 | AK4: Total Sequences in Block Summary | AL4: =SUM(AJ7:AJ14) -> 12 | AP4: Total Sequences in Block Summary | AQ4: =SUM(AO7:AO14) -> 13 | AU4: Total Sequences in Block Summary | AV4: =SUM(AT7:AT14) -> 12
T5: Block 1 | Y5: Block 2 | AD5: Block 3 | AI5: Block 4 | AN5: Block 5 | AS5: Block 6
A6: Sequence Component 1 | B6: Time 1 | C6: Sequence Component 2 | D6: Time 2 | E6: Sequence Component 3 | F6: Time 3 | G6: Sequence Component 4 | H6: Time 4 | I6: Sequence Component 5 | J6: Time 5 | K6: Correct? 0=No 1=Yes | L6: Sequence | N6: Frequency | P6: Relative Frequency | Q6: Variability | T6: Frequency | V6: Relative Frequency | W6: Variability | Y6: Frequency | AA6: Relative Frequency | AB6: Variability | AD6: Frequency | AF6: Relative Frequency | AG6: Variability | AI6: Frequency | AK6: Relative Frequency | AL6: Variability | AN6: Frequency | AP6: Relative Frequency | AQ6: Variability | AS6: Frequency | AU6: Relative Frequency | AV6: Variability
A7: 12 | B7: 6 | C7: 13 | D7: 13 | E7: 13 | F7: 23 | K7: 0 | L7: 111 | N7: 111 | O7: =COUNTIF($L$7:$L$500,N7) -> 32 | P7: =O7/$Q$4 -> 0.4324324324 | Q7: =IF(P7=0,0,(P7*((LOG(P7))/LOG(2)))) -> -0.5230068608 | T7: =N7 -> 111 | U7: =COUNTIF(L7:L18,T7) -> 10 | V7: =U7/(W4-U11) -> 1 | W7: =IF(V7=0,0,(V7*((LOG(V7))/LOG(2)))) -> 0 | Y7: =N7 -> 111 | Z7: =COUNTIF(L19:L31,Y7) -> 9 | AA7: =Z7/(AB4-Z11) -> 1 | AB7: =IF(AA7=0,0,(AA7*((LOG(AA7))/LOG(2)))) -> 0 | AD7: =N7 -> 111 | AE7: =COUNTIF(L32:L43,AD7) -> 4 | AF7: =AE7/(AG4-AE11) -> 1 | AG7: =IF(AF7=0,0,(AF7*((LOG(AF7))/LOG(2)))) -> 0 | AI7: =N7 -> 111 | AJ7: =COUNTIF(L44:L55,AI7) -> 2 | AK7: =AJ7/(AL4-AJ11) -> 0.6666666667 | AL7: =IF(AK7=0,0,(AK7*((LOG(AK7))/LOG(2)))) -> -0.3899750005 | AN7: =N7 -> 111 | AO7: =COUNTIF(L56:L68,AN7) -> 4 | AP7: =AO7/(AQ4-AO11) -> 0.8 | AQ7: =IF(AP7=0,0,(AP7*((LOG(AP7))/LOG(2)))) -> -0.2575424759 | AS7: =N7 -> 111 | AT7: =COUNTIF(L69:L80,AS7) -> 3 | AU7: =AT7/(AV4-AT11) -> 0.6 | AV7: =IF(AU7=0,0,(AU7*((LOG(AU7))/LOG(2)))) -> -0.4421793565
A8: 12 | B8: 123 | C8: 13 | D8: 127 | E8: 13 | F8: 131 | K8: 0 | L8: 111 | N8: 112 | O8: 0 | P8: 0 | Q8: 0 | T8: 112 | U8: =COUNTIF(L7:L18,T8) -> 0 | V8: =U8/(W4-U11) -> 0 | W8: =IF(V8=0,0,(V8*((LOG(V8))/LOG(2)))) -> 0 | Y8: 112 | Z8: =COUNTIF(L19:L31,Y8) -> 0 | AA8: =Z8/(AB4-Z11) -> 0 | AB8: =IF(AA8=0,0,(AA8*((LOG(AA8))/LOG(2)))) -> 0 | AD8: 112 | AE8: =COUNTIF(L32:L43,AD8) -> 0 | AF8: =AE8/(AG4-AE11) -> 0 | AG8: =IF(AF8=0,0,(AF8*((LOG(AF8))/LOG(2)))) -> 0 | AI8: 112 | AJ8: =COUNTIF(L44:L55,AI8) -> 0 | AK8: =AJ8/(AL4-AJ11) -> 0 | AL8: =IF(AK8=0,0,(AK8*((LOG(AK8))/LOG(2)))) -> 0 | AN8: 112 | AO8: =COUNTIF(L56:L68,AN8) -> 0 | AP8: =AO8/(AQ4-AO11) -> 0 | AQ8: =IF(AP8=0,0,(AP8*((LOG(AP8))/LOG(2)))) -> 0 | AS8: 112 | AT8: =COUNTIF(L69:L80,AS8) -> 0 | AU8: =AT8/(AV4-AT11) -> 0 | AV8: =IF(AU8=0,0,(AU8*((LOG(AU8))/LOG(2)))) -> 0
A9: 21 | B9: 228 | C9: 11 | D9: 234 | E9: 11 | F9: 239 | K9: 0 | L9: 211 | N9: 121 | O9: 0 | P9: 0 | Q9: 0 | T9: 121 | U9: =COUNTIF(L7:L18,T9) -> 0 | V9: =U9/(W4-U11) -> 0 | W9: =IF(V9=0,0,(V9*((LOG(V9))/LOG(2)))) -> 0 | Y9: 121 | Z9: =COUNTIF(L19:L31,Y9) -> 0 | AA9: =Z9/(AB4-Z11) -> 0 | AB9: =IF(AA9=0,0,(AA9*((LOG(AA9))/LOG(2)))) -> 0 | AD9: 121 | AE9: =COUNTIF(L32:L43,AD9) -> 0 | AF9: =AE9/(AG4-AE11) -> 0 | AG9: =IF(AF9=0,0,(AF9*((LOG(AF9))/LOG(2)))) -> 0 | AI9: 121 | AJ9: =COUNTIF(L44:L55,AI9) -> 0 | AK9: =AJ9/(AL4-AJ11) -> 0 | AL9: =IF(AK9=0,0,(AK9*((LOG(AK9))/LOG(2)))) -> 0 | AN9: 121 | AO9: =COUNTIF(L56:L68,AN9) -> 0 | AP9: =AO9/(AQ4-AO11) -> 0 | AQ9: =IF(AP9=0,0,(AP9*((LOG(AP9))/LOG(2)))) -> 0 | AS9: 121 | AT9: =COUNTIF(L69:L80,AS9) -> 0 | AU9: =AT9/(AV4-AT11) -> 0 | AV9: =IF(AU9=0,0,(AU9*((LOG(AU9))/LOG(2)))) -> 0
A10: 12 | B10: 439 | C10: 13 | D10: 442 | E10: 13 | F10: 448 | K10: 0 | L10: 111 | N10: 122 | O10: 0 | P10: 0 | Q10: 0 | T10: 122 | U10: =COUNTIF(L7:L18,T10) -> 0 | V10: =U10/(W4-U11) -> 0 | W10: =IF(V10=0,0,(V10*((LOG(V10))/LOG(2)))) -> 0 | Y10: 122 | Z10: =COUNTIF(L19:L31,Y10) -> 0 | AA10: =Z10/(AB4-Z11) -> 0 | AB10: =IF(AA10=0,0,(AA10*((LOG(AA10))/LOG(2)))) -> 0 | AD10: 122 | AE10: =COUNTIF(L32:L43,AD10) -> 0 | AF10: =AE10/(AG4-AE11) -> 0 | AG10: =IF(AF10=0,0,(AF10*((LOG(AF10))/LOG(2)))) -> 0 | AI10: 122 | AJ10: =COUNTIF(L44:L55,AI10) -> 0 | AK10: =AJ10/(AL4-AJ11) -> 0 | AL10: =IF(AK10=0,0,(AK10*((LOG(AK10))/LOG(2)))) -> 0 | AN10: 122 | AO10: =COUNTIF(L56:L68,AN10) -> 0 | AP10: =AO10/(AQ4-AO11) -> 0 | AQ10: =IF(AP10=0,0,(AP10*((LOG(AP10))/LOG(2)))) -> 0 | AS10: 122 | AT10: =COUNTIF(L69:L80,AS10) -> 0 | AU10: =AT10/(AV4-AT11) -> 0 | AV10: =IF(AU10=0,0,(AU10*((LOG(AU10))/LOG(2)))) -> 0
A11: 12 | B11: 551 | C11: 13 | D11: 559 | E11: 13 | F11: 567 | K11: 0 | L11: 111 | N11: 211 | O11: 38 | P11: 0.5135135135 | Q11: -0.4937565187 | T11: 211 | U11: =COUNTIF(L7:L18,T11) -> 2 | Y11: 211 | Z11: =COUNTIF(L19:L31,Y11) -> 4 | AD11: 211 | AE11: =COUNTIF(L32:L43,AD11) -> 8 | AI11: 211 | AJ11: =COUNTIF(L44:L55,AI11) -> 9 | AN11: 211 | AO11: =COUNTIF(L56:L68,AN11) -> 8 | AS11: 211 | AT11: =COUNTIF(L69:L80,AS11) -> 7
A12: 12 | B12: 667 | C12: 13 | D12: 673 | E12: 13 | F12: 679 | K12: 0 | L12: 111 | N12: 212 | O12: 0 | P12: 0 | Q12: 0 | T12: 212 | U12: =COUNTIF(L7:L18,T12) -> 0 | V12: =U12/(W4-U11) -> 0 | W12: =IF(V12=0,0,(V12*((LOG(V12))/LOG(2)))) -> 0 | Y12: 212 | Z12: =COUNTIF(L19:L31,Y12) -> 0 | AA12: =Z12/(AB4-Z11) -> 0 | AB12: =IF(AA12=0,0,(AA12*((LOG(AA12))/LOG(2)))) -> 0 | AD12: 212 | AE12: =COUNTIF(L32:L43,AD12) -> 0 | AF12: =AE12/(AG4-AE11) -> 0 | AG12: =IF(AF12=0,0,(AF12*((LOG(AF12))/LOG(2)))) -> 0 | AI12: 212 | AJ12: =COUNTIF(L44:L55,AI12) -> 0 | AK12: =AJ12/(AL4-AJ11) -> 0 | AL12: =IF(AK12=0,0,(AK12*((LOG(AK12))/LOG(2)))) -> 0 | AN12: 212 | AO12: =COUNTIF(L56:L68,AN12) -> 0 | AP12: =AO12/(AQ4-AO11) -> 0 | AQ12: =IF(AP12=0,0,(AP12*((LOG(AP12))/LOG(2)))) -> 0 | AS12: 212 | AT12: =COUNTIF(L69:L80,AS12) -> 0 | AU12: =AT12/(AV4-AT11) -> 0 | AV12: =IF(AU12=0,0,(AU12*((LOG(AU12))/LOG(2)))) -> 0
A13: 12 | B13: 782 | C13: 13 | D13: 792 | E13: 13 | F13: 801 | K13: 0 | L13: 111 | N13: 221 | O13: 4 | P13: 0.05405405405 | Q13: -0.2275380198 | T13: 221 | U13: =COUNTIF(L7:L18,T13) -> 0 | V13: =U13/(W4-U11) -> 0 | W13: =IF(V13=0,0,(V13*((LOG(V13))/LOG(2)))) -> 0 | Y13: 221 | Z13: =COUNTIF(L19:L31,Y13) -> 0 | AA13: =Z13/(AB4-Z11) -> 0 | AB13: =IF(AA13=0,0,(AA13*((LOG(AA13))/LOG(2)))) -> 0 | AD13: 221 | AE13: =COUNTIF(L32:L43,AD13) -> 0 | AF13: =AE13/(AG4-AE11) -> 0 | AG13: =IF(AF13=0,0,(AF13*((LOG(AF13))/LOG(2)))) -> 0 | AI13: 221 | AJ13: =COUNTIF(L44:L55,AI13) -> 1 | AK13: =AJ13/(AL4-AJ11) -> 0.3333333333 | AL13: =IF(AK13=0,0,(AK13*((LOG(AK13))/LOG(2)))) -> -0.5283208336 | AN13: 221 | AO13: =COUNTIF(L56:L68,AN13) -> 1 | AP13: =AO13/(AQ4-AO11) -> 0.2 | AQ13: =IF(AP13=0,0,(AP13*((LOG(AP13))/LOG(2)))) -> -0.464385619 | AS13: 221 | AT13: =COUNTIF(L69:L80,AS13) -> 2 | AU13: =AT13/(AV4-AT11) -> 0.4 | AV13: =IF(AU13=0,0,(AU13*((LOG(AU13))/LOG(2)))) -> -0.528771238
A14: 12 | B14: 903 | C14: 13 | D14: 907 | E14: 13 | F14: 917 | K14: 0 | L14: 111 | N14: 222 | O14: 0 | P14: 0 | Q14: 0 | T14: 222 | U14: =COUNTIF(L7:L18,T14) -> 0 | V14: =U14/(W4-U11) -> 0 | W14: =IF(V14=0,0,(V14*((LOG(V14))/LOG(2)))) -> 0 | Y14: 222 | Z14: =COUNTIF(L19:L31,Y14) -> 0 | AA14: =Z14/(AB4-Z11) -> 0 | AB14: =IF(AA14=0,0,(AA14*((LOG(AA14))/LOG(2)))) -> 0 | AD14: 222 | AE14: =COUNTIF(L32:L43,AD14) -> 0 | AF14: =AE14/(AG4-AE11) -> 0 | AG14: =IF(AF14=0,0,(AF14*((LOG(AF14))/LOG(2)))) -> 0 | AI14: 222 | AJ14: =COUNTIF(L44:L55,AI14) -> 0 | AK14: =AJ14/(AL4-AJ11) -> 0 | AL14: =IF(AK14=0,0,(AK14*((LOG(AK14))/LOG(2)))) -> 0 | AN14: 222 | AO14: =COUNTIF(L56:L68,AN14) -> 0 | AP14: =AO14/(AQ4-AO11) -> 0 | AQ14: =IF(AP14=0,0,(AP14*((LOG(AP14))/LOG(2)))) -> 0 | AS14: 222 | AT14: =COUNTIF(L69:L80,AS14) -> 0 | AU14: =AT14/(AV4-AT11) -> 0 | AV14: =IF(AU14=0,0,(AU14*((LOG(AU14))/LOG(2)))) -> 0
A15: 21 | B15: 1011 | C15: 11 | D15: 1017 | E15: 11 | F15: 1022 | K15: 0 | L15: 211 | P15: =SUM(P7:P14) -> 1 | Q15: =-SUM(Q7:Q14) -> 1.244301399 | V15: =SUM(V7:V14) -> 1 | W15: =-SUM(W7:W14) -> 0 | AA15: =SUM(AA7:AA14) -> 1 | AB15: =-SUM(AB7:AB14) -> 0 | AF15: =SUM(AF7:AF14) -> 1 | AG15: =-SUM(AG7:AG14) -> 0 | AK15: =SUM(AK7:AK14) -> 1 | AL15: =-SUM(AL7:AL14) -> 0.9182958341 | AP15: =SUM(AP7:AP14) -> 1 | AQ15: =-SUM(AQ7:AQ14) -> 0.7219280949 | AU15: =SUM(AU7:AU14) -> 1 | AV15: =-SUM(AV7:AV14) -> 0.9709505945
A16: 12 | B16: 1118 | C16: 13 | D16: 1125 | E16: 13 | F16: 1135 | K16: 0 | L16: 111 | P16: U= | Q16: =Q15/(LOG(Q4)/LOG(2)) -> 0.2003882348 | V16: U1= | W16: =W15/(LOG(W4)/LOG(2)) -> 0 | AA16: U2= | AB16: =AB15/(LOG(AB4)/LOG(2)) -> 0 | AF16: U3= | AG16: =AG15/(LOG(AG4)/LOG(2)) -> 0 | AK16: U4= | AL16: =AL15/(LOG(AL4)/LOG(2)) -> 0.2561521449 | AP16: U5= | AQ16: =AQ15/(LOG(AQ4)/LOG(2)) -> 0.195092516 | AU16: U6= | AV16: =AV15/(LOG(AV4)/LOG(2)) -> 0.2708398189
A17: 12 | B17: 1232 | C17: 13 | D17: 1236 | E17: 13 | F17: 1247 | K17: 0 | L17: 111
A18: 12 | B18: 1347 | C18: 13 | D18: 1351 | E18: 13 | F18: 1357 | K18: 0 | L18: 111
A19: 12 | B19: 1455 | C19: 13 | D19: 1459 | E19: 13 | F19: 1463 | K19: 0 | L19: 111 | N19: Total Target Seq
A20: 12 | B20: 1561 | C20: 13 | D20: 1568 | E20: 13 | F20: 1574 | K20: 0 | L20: 111 | N20: =COUNTIF(L7:L80,G3) -> 38 | P20: 12 | Q20: 13 | R20: 12 | S20: 12 | T20: 13 | U20: 12
A21: 12 | B21: 1674 | C21: 13 | D21: 1677 | E21: 13 | F21: 1681 | K21: 0 | L21: 111 | P21: % of reinforcement given in 6 equal intervals based on number of trials
A22: 12 | B22: 1784 | C22: 13 | D22: 1790 | E22: 13 | F22: 1801 | K22: 0 | L22: 111 | P22: %_1 | Q22: %_2 | R22: %_3 | S22: %_4 | T22: %_5 | U22: %_6
A23: 12 | B23: 1902 | C23: 13 | D23: 1910 | E23: 13 | F23: 1918 | K23: 0 | L23: 111 | O23: target sequence | P23: =$G$3 -> 211 | Q23: 211 | R23: 211 | S23: 211 | T23: 211 | U23: 211
A24: 12 | B24: 2019 | C24: 13 | D24: 2023 | E24: 13 | F24: 2029 | K24: 0 | L24: 111 | O24: total reinforcement | P24: =U11 -> 2 | Q24: =Z11 -> 4 | R24: =AE11 -> 8 | S24: =AJ11 -> 9 | T24: =AO11 -> 8 | U24: =AT11 -> 7
A25: 21 | B25: 2123 | C25: 11 | D25: 2130 | E25: 11 | F25: 2140 | K25: 0 | L25: 211 | O25: % target
A26: 12 | B26: 2236 | C26: 13 | D26: 2240 | E26: 13 | F26: 2249 | K26: 0 | L26: 111 | O26: CCRF
A27: 21 | B27: 2346 | C27: 11 | D27: 2351 | E27: 11 | F27: 2356 | K27: 0 | L27: 211 | O27: % CCRf
A28: 21 | B28: 2447 | C28: 11 | D28: 2453 | E28: 11 | F28: 2461 | K28: 0 | L28: 211 | O28: average response rate | P28: =F18/P20 -> 113.0833333 | Q28: =(F31-F18)/Q20 -> 109.7692308 | R28: =(F43-F31)/R20 -> 108.5 | S28: =(F55-F43)/S20 -> 118 | T28: =(F68-F55)/T20 -> 109.4615385 | U28: =(F80-F68)/U20 -> 105.5
A29: 12 | B29: 2555 | C29: 13 | D29: 2560 | E29: 13 | F29: 2569 | K29: 0 | L29: 111
A30: 21 | B30: 2661 | C30: 11 | D30: 2668 | E30: 11 | F30: 2671 | K30: 0 | L30: 211
A31: 12 | B31: 2768 | C31: 13 | D31: 2773 | E31: 13 | F31: 2784 | K31: 0 | L31: 111
A32: 21 | B32: 2881 | C32: 11 | D32: 2887 | E32: 11 | F32: 2891 | K32: 0 | L32: 211
A33: 21 | B33: 2980 | C33: 11 | D33: 2989 | E33: 11 | F33: 2994 | K33: 0 | L33: 211
A34: 21 | B34: 3086 | C34: 11 | D34: 3094 | E34: 11 | F34: 3101 | K34: 0 | L34: 211
A35: 21 | B35: 3189 | C35: 11 | D35: 3194 | E35: 11 | F35: 3199 | K35: 0 | L35: 211
A36: 21 | B36: 3290 | C36: 11 | D36: 3296 | E36: 11 | F36: 3310 | K36: 0 | L36: 211
A37: 12 | B37: 3405 | C37: 13 | D37: 3411 | E37: 13 | F37: 3420 | K37: 0 | L37: 111
A38: 12 | B38: 3538 | C38: 13 | D38: 3541 | E38: 13 | F38: 3546 | K38: 0 | L38: 111
A39: 21 | B39: 3642 | C39: 11 | D39: 3648 | E39: 11 | F39: 3654 | K39: 0 | L39: 211
A40: 12 | B40: 3750 | C40: 13 | D40: 3754 | E40: 13 | F40: 3757 | K40: 0 | L40: 111
A41: 21 | B41: 3855 | C41: 11 | D41: 3865 | E41: 11 | F41: 3873 | K41: 0 | L41: 211
A42: 21 | B42: 3964 | C42: 11 | D42: 3971 | E42: 11 | F42: 3977 | K42: 0 | L42: 211
A43: 12 | B43: 4071 | C43: 13 | D43: 4075 | E43: 13 | F43: 4086 | K43: 0 | L43: 111
A44: 21 | B44: 4182 | C44: 11 | D44: 4190 | E44: 11 | F44: 4195 | K44: 0 | L44: 211
A45: 21 | B45: 4284 | C45: 11 | D45: 4290 | E45: 11 | F45: 4296 | K45: 0 | L45: 211
A46: 21 | B46: 4387 | C46: 11 | D46: 4393 | E46: 11 | F46: 4403 | K46: 0 | L46: 211
A47: 21 | B47: 4493 | C47: 11 | D47: 4499 | E47: 11 | F47: 4504 | K47: 0 | L47: 211
A48: 21 | B48: 4595 | C48: 11 | D48: 4604 | E48: 11 | F48: 4610 | K48: 0 | L48: 211
A49: 21 | B49: 4699 | C49: 11 | D49: 4706 | E49: 11 | F49: 4717 | K49: 0 | L49: 211
A50: 21 | B50: 4833 | C50: 22 | D50: 4838 | E50: 13 | F50: 4845 | K50: 0 | L50: 221
A51: 21 | B51: 4942 | C51: 11 | D51: 4950 | E51: 11 | F51: 4960 | K51: 0 | L51: 211
A52: 12 | B52: 5055 | C52: 13 | D52: 5061 | E52: 13 | F52: 5070 | K52: 0 | L52: 111
A53: 21 | B53: 5266 | C53: 11 | D53: 5276 | E53: 11 | F53: 5282 | K53: 0 | L53: 211
A54: 12 | B54: 5379 | C54: 13 | D54: 5383 | E54: 13 | F54: 5386 | K54: 0 | L54: 111
A55: 21 | B55: 5484 | C55: 11 | D55: 5491 | E55: 11 | F55: 5502 | K55: 0 | L55: 211
A56: 21 | B56: 5592 | C56: 11 | D56: 5599 | E56: 11 | F56: 5607 | K56: 0 | L56: 211
A57: 21 | B57: 5700 | C57: 11 | D57: 5708 | E57: 11 | F57: 5718 | K57: 0 | L57: 211
A58: 12 | B58: 5813 | C58: 13 | D58: 5816 | E58: 13 | F58: 5828 | K58: 0 | L58: 111
A59: 12 | B59: 5929 | C59: 13 | D59: 5934 | E59: 13 | F59: 5944 | K59: 0 | L59: 111
A60: 21 | B60: 6039 | C60: 11 | D60: 6048 | E60: 11 | F60: 6052 | K60: 0 | L60: 211
A61: 21 | B61: 6143 | C61: 11 | D61: 6153 | E61: 11 | F61: 6163 | K61: 0 | L61: 211
A62: 21 | B62: 6254 | C62: 22 | D62: 6255 | E62: 13 | F62: 6268 | K62: 0 | L62: 221
A63: 21 | B63: 6366 | C63: 11 | D63: 6374 | E63: 11 | F63: 6379 | K63: 0 | L63: 211
A64: 21 | B64: 6470 | C64: 11 | D64: 6478 | E64: 11 | F64: 6486 | K64: 0 | L64: 211
A65: 21 | B65: 6577 | C65: 11 | D65: 6585 | E65: 11 | F65: 6594 | K65: 0 | L65: 211
A66: 21 | B66: 6686 | C66: 11 | D66: 6694 | E66: 11 | F66: 6709 | K66: 0 | L66: 211
A67: 12 | B67: 6805 | C67: 13 | D67: 6811 | E67: 13 | F67: 6816 | K67: 0 | L67: 111
A68: 12 | B68: 6918 | C68: 13 | D68: 6921 | E68: 13 | F68: 6925 | K68: 0 | L68: 111
A69: 21 | B69: 7019 | C69: 11 | D69: 7027 | E69: 11 | F69: 7033 | K69: 0 | L69: 211
A70: 21 | B70: 7122 | C70: 11 | D70: 7129 | E70: 11 | F70: 7133 | K70: 0 | L70: 211
A71: 21 | B71: 7222 | C71: 11 | D71: 7229 | E71: 11 | F71: 7235 | K71: 0 | L71: 211
A72: 21 | B72: 7324 | C72: 11 | D72: 7329 | E72: 11 | F72: 7332 | K72: 0 | L72: 211
A73: 21 | B73: 7423 | C73: 11 | D73: 7432 | E73: 11 | F73: 7437 | K73: 0 | L73: 211
A74: 12 | B74: 7528 | C74: 13 | D74: 7531 | E74: 13 | F74: 7535 | K74: 0 | L74: 111
A75: 12 | B75: 7634 | C75: 13 | D75: 7637 | E75: 13 | F75: 7641 | K75: 0 | L75: 111
A76: 21 | B76: 7735 | C76: 22 | D76: 7738 | E76: 13 | F76: 7744 | K76: 0 | L76: 221
A77: 21 | B77: 7840 | C77: 11 | D77: 7848 | E77: 11 | F77: 7852 | K77: 0 | L77: 211
A78: 21 | B78: 7957 | C78: 22 | D78: 7962 | E78: 13 | F78: 7971 | K78: 0 | L78: 221
A79: 12 | B79: 8070 | C79: 13 | D79: 8074 | E79: 13 | F79: 8081 | K79: 0 | L79: 111
A80: 21 | B80: 8179 | C80: 11 | D80: 8186 | E80: 11 | F80: 8191 | K80: 1 | L80: 211

Sheet !N213A3T.AYL
A1: Report for:!N213A3T.AYL
A2: Date: | B2: <date>
A3: Hen: | B3: <hen> | F3: Correct Sequence | G3: =Start!J2 -> 211 | P3: Total Sequences in Data | Q3: =4994-COUNTBLANK(L7:L5000) -> 55 | V3: Total Sequences in Block Data | W3: =COUNTA(L7:L15) -> 9 | AA3: Total Sequences in Block Data | AB3: =COUNTA(L16:L24) -> 9 | AF3: Total Sequences in Block Data | AG3: =COUNTA(L25:L34) -> 10 | AK3: Total Sequences in Block Data | AL3: =COUNTA(L35:L43) -> 9 | AP3: Total Sequences in Block Data | AQ3: =COUNTA(L44:L52) -> 9 | AU3: Total Sequences in Block Data | AV3: =COUNTA(L53:L61) -> 9
P4: Total Sequences in Summary | Q4: =SUM(O7:O14) -> 55 | V4: Total Sequences in Block Summary | W4: =SUM(U7:U14) -> 9 | AA4: Total Sequences in Block Summary | AB4: =SUM(Z7:Z14) -> 9 | AF4: Total Sequences in Block Summary | AG4: =SUM(AE7:AE14) -> 10 | AK4: Total Sequences in Block Summary | AL4: =SUM(AJ7:AJ14) -> 9 | AP4: Total Sequences in Block Summary | AQ4: =SUM(AO7:AO14) -> 9 | AU4: Total Sequences in Block Summary | AV4: =SUM(AT7:AT14) -> 9
T5: Block 1 | Y5: Block 2 | AD5: Block 3 | AI5: Block 4 | AN5: Block 5 | AS5: Block 6
A6: Sequence Component 1 | B6: Time 1 | C6: Sequence Component 2 | D6: Time 2 | E6: Sequence Component 3 | F6: Time 3 | G6: Sequence Component 4 | H6: Time 4 | I6: Sequence Component 5 | J6: Time 5 | K6: Correct? 0=No 1=Yes | L6: Sequence | N6: Frequency | P6: Relative Frequency | Q6: Variability | T6: Frequency | V6: Relative Frequency | W6: Variability | Y6: Frequency | AA6: Relative Frequency | AB6: Variability | AD6: Frequency | AF6: Relative Frequency | AG6: Variability | AI6: Frequency | AK6: Relative Frequency | AL6: Variability | AN6: Frequency | AP6: Relative Frequency | AQ6: Variability | AS6: Frequency | AU6: Relative Frequency | AV6: Variability
A7: 12 | B7: 82 | C7: 24 | D7: 95 | E7: 13 | F7: 105 | K7: 0 | L7: 121 | N7: 111 | O7: =COUNTIF($L$7:$L$500,N7) -> 11 | P7: =O7/$Q$4 -> 0.2 | Q7: =IF(P7=0,0,(P7*((LOG(P7))/LOG(2)))) -> -0.464385619 | T7: =N7 -> 111 | U7: =COUNTIF(L7:L15,T7) -> 3 | V7: =U7/(W4-U11) -> 0.4285714286 | W7: =IF(V7=0,0,(V7*((LOG(V7))/LOG(2)))) -> -0.5238824663 | Y7: =N7 -> 111 | Z7: =COUNTIF(L16:L24,Y7) -> 1 | AA7: =Z7/(AB4-Z11) -> 0.5 | AB7: =IF(AA7=0,0,(AA7*((LOG(AA7))/LOG(2)))) -> -0.5 | AD7: =N7 -> 111 | AE7: =COUNTIF(L25:L34,AD7) -> 3 | AF7: =AE7/(AG4-AE11) -> 0.75 | AG7: =IF(AF7=0,0,(AF7*((LOG(AF7))/LOG(2)))) -> -0.3112781245 | AI7: =N7 -> 111 | AJ7: =COUNTIF(L35:L43,AI7) -> 0 | AK7: =AJ7/(AL4-AJ11) -> 0 | AL7: =IF(AK7=0,0,(AK7*((LOG(AK7))/LOG(2)))) -> 0 | AN7: =N7 -> 111 | AO7: =COUNTIF(L44:L52,AN7) -> 4 | AP7: =AO7/(AQ4-AO11) -> 1 | AQ7: =IF(AP7=0,0,(AP7*((LOG(AP7))/LOG(2)))) -> 0 | AS7: =N7 -> 111 | AT7: =COUNTIF(L53:L61,AS7) -> 0 | AU7: =AT7/(AV4-AT11) -> 0 | AV7: =IF(AU7=0,0,(AU7*((LOG(AU7))/LOG(2)))) -> 0
A8: 12 | B8: 211 | C8: 13 | D8: 220 | E8: 24 | F8: 234 | K8: 0 | L8: 112 | N8: 112 | O8: 2 | P8: 0.03636363636 | Q8: -0.1738676259 | T8: 112 | U8: =COUNTIF(L7:L15,T8) -> 2 | V8: =U8/(W4-U11) -> 0.2857142857 | W8: =IF(V8=0,0,(V8*((LOG(V8))/LOG(2)))) -> -0.5163871206 | Y8: 112 | Z8: =COUNTIF(L16:L24,Y8) -> 0 | AA8: =Z8/(AB4-Z11) -> 0 | AB8: =IF(AA8=0,0,(AA8*((LOG(AA8))/LOG(2)))) -> 0 | AD8: 112 | AE8: =COUNTIF(L25:L34,AD8) -> 0 | AF8: =AE8/(AG4-AE11) -> 0 | AG8: =IF(AF8=0,0,(AF8*((LOG(AF8))/LOG(2)))) -> 0 | AI8: 112 | AJ8: =COUNTIF(L35:L43,AI8) -> 0 | AK8: =AJ8/(AL4-AJ11) -> 0 | AL8: =IF(AK8=0,0,(AK8*((LOG(AK8))/LOG(2)))) -> 0 | AN8: 112 | AO8: =COUNTIF(L44:L52,AN8) -> 0 | AP8: =AO8/(AQ4-AO11) -> 0 | AQ8: =IF(AP8=0,0,(AP8*((LOG(AP8))/LOG(2)))) -> 0 | AS8: 112 | AT8: =COUNTIF(L53:L61,AS8) -> 0 | AU8: =AT8/(AV4-AT11) -> 0 | AV8: =IF(AU8=0,0,(AU8*((LOG(AU8))/LOG(2)))) -> 0
A9: 12 | B9: 350 | C9: 13 | D9: 359 | E9: 24 | F9: 373 | K9: 0 | L9: 112 | N9: 121 | O9: 1 | P9: 0.01818181818 | Q9: -0.1051156312 | T9: 121 | U9: =COUNTIF(L7:L15,T9) -> 1 | V9: =U9/(W4-U11) -> 0.1428571429 | W9: =IF(V9=0,0,(V9*((LOG(V9))/LOG(2)))) -> -0.4010507032 | Y9: 121 | Z9: =COUNTIF(L16:L24,Y9) -> 0 | AA9: =Z9/(AB4-Z11) -> 0 | AB9: =IF(AA9=0,0,(AA9*((LOG(AA9))/LOG(2)))) -> 0 | AD9: 121 | AE9: =COUNTIF(L25:L34,AD9) -> 0 | AF9: =AE9/(AG4-AE11) -> 0 | AG9: =IF(AF9=0,0,(AF9*((LOG(AF9))/LOG(2)))) -> 0 | AI9: 121 | AJ9: =COUNTIF(L35:L43,AI9) -> 0 | AK9: =AJ9/(AL4-AJ11) -> 0 | AL9: =IF(AK9=0,0,(AK9*((LOG(AK9))/LOG(2)))) -> 0 | AN9: 121 | AO9: =COUNTIF(L44:L52,AN9) -> 0 | AP9: =AO9/(AQ4-AO11) -> 0 | AQ9: =IF(AP9=0,0,(AP9*((LOG(AP9))/LOG(2)))) -> 0 | AS9: 121 | AT9: =COUNTIF(L53:L61,AS9) -> 0 | AU9: =AT9/(AV4-AT11) -> 0 | AV9: =IF(AU9=0,0,(AU9*((LOG(AU9))/LOG(2)))) -> 0
A10: 12 | B10: 510 | C10: 24 | D10: 517 | E10: 24 | F10: 528 | K10: 0 | L10: 122 | N10: 122 | O10: 1 | P10: 0.01818181818 | Q10: -0.1051156312 | T10: 122 | U10: =COUNTIF(L7:L15,T10) -> 1 | V10: =U10/(W4-U11) -> 0.1428571429 | W10: =IF(V10=0,0,(V10*((LOG(V10))/LOG(2)))) -> -0.4010507032 | Y10: 122 | Z10: =COUNTIF(L16:L24,Y10) -> 0 | AA10: =Z10/(AB4-Z11) -> 0 | AB10: =IF(AA10=0,0,(AA10*((LOG(AA10))/LOG(2)))) -> 0 | AD10: 122 | AE10: =COUNTIF(L25:L34,AD10) -> 0 | AF10: =AE10/(AG4-AE11) -> 0 | AG10: =IF(AF10=0,0,(AF10*((LOG(AF10))/LOG(2)))) -> 0 | AI10: 122 | AJ10: =COUNTIF(L35:L43,AI10) -> 0 | AK10: =AJ10/(AL4-AJ11) -> 0 | AL10: =IF(AK10=0,0,(AK10*((LOG(AK10))/LOG(2)))) -> 0 | AN10: 122 | AO10: =COUNTIF(L44:L52,AN10) -> 0 | AP10: =AO10/(AQ4-AO11) -> 0 | AQ10: =IF(AP10=0,0,(AP10*((LOG(AP10))/LOG(2)))) -> 0 | AS10: 122 | AT10: =COUNTIF(L53:L61,AS10) -> 0 | AU10: =AT10/(AV4-AT11) -> 0 | AV10: =IF(AU10=0,0,(AU10*((LOG(AU10))/LOG(2)))) -> 0
A11: 12 | B11: 690 | C11: 13 | D11: 693 | E11: 13 | F11: 697 | K11: 0 | L11: 111 | N11: 211 | O11: 36 | P11: 0.6545454545 | Q11: -0.4002118115 | T11: 211 | U11: =COUNTIF(L7:L15,T11) -> 2 | Y11: 211 | Z11: =COUNTIF(L16:L24,Y11) -> 7 | AD11: 211 | AE11: =COUNTIF(L25:L34,AD11) -> 6 | AI11: 211 | AJ11: =COUNTIF(L35:L43,AI11) -> 8 | AN11: 211 | AO11: =COUNTIF(L44:L52,AN11) -> 5 | AS11: 211 | AT11: =COUNTIF(L53:L61,AS11) -> 8
A12: 12 | B12: 797 | C12: 13 | D12: 801 | E12: 13 | F12: 807 | K12: 0 | L12: 111 | N12: 212 | O12: 0 | P12: 0 | Q12: 0 | T12: 212 | U12: =COUNTIF(L7:L15,T12) -> 0 | V12: =U12/(W4-U11) -> 0 | W12: =IF(V12=0,0,(V12*((LOG(V12))/LOG(2)))) -> 0 | Y12: 212 | Z12: =COUNTIF(L16:L24,Y12) -> 0 | AA12: =Z12/(AB4-Z11) -> 0 | AB12: =IF(AA12=0,0,(AA12*((LOG(AA12))/LOG(2)))) -> 0 | AD12: 212 | AE12: =COUNTIF(L25:L34,AD12) -> 0 | AF12: =AE12/(AG4-AE11) -> 0 | AG12: =IF(AF12=0,0,(AF12*((LOG(AF12))/LOG(2)))) -> 0 | AI12: 212 | AJ12: =COUNTIF(L35:L43,AI12) -> 0 | AK12: =AJ12/(AL4-AJ11) -> 0 | AL12: =IF(AK12=0,0,(AK12*((LOG(AK12))/LOG(2)))) -> 0 | AN12: 212 | AO12: =COUNTIF(L44:L52,AN12) -> 0 | AP12: =AO12/(AQ4-AO11) -> 0 | AQ12: =IF(AP12=0,0,(AP12*((LOG(AP12))/LOG(2)))) -> 0 | AS12: 212 | AT12: =COUNTIF(L53:L61,AS12) -> 0 | AU12: =AT12/(AV4-AT11) -> 0 | AV12: =IF(AU12=0,0,(AU12*((LOG(AU12))/LOG(2)))) -> 0
A13: 12 | B13: 908 | C13: 13 | D13: 912 | E13: 13 | F13: 915 | K13: 0 | L13: 111 | N13: 221 | O13: 4 | P13: 0.07272727273 | Q13: -0.2750079792 | T13: 221 | U13: =COUNTIF(L7:L15,T13) -> 0 | V13: =U13/(W4-U11) -> 0 | W13: =IF(V13=0,0,(V13*((LOG(V13))/LOG(2)))) -> 0 | Y13: 221 | Z13: =COUNTIF(L16:L24,Y13) -> 1 | AA13: =Z13/(AB4-Z11) -> 0.5 | AB13: =IF(AA13=0,0,(AA13*((LOG(AA13))/LOG(2)))) -> -0.5 | AD13: 221 | AE13: =COUNTIF(L25:L34,AD13) -> 1 | AF13: =AE13/(AG4-AE11) -> 0.25 | AG13: =IF(AF13=0,0,(AF13*((LOG(AF13))/LOG(2)))) -> -0.5 | AI13: 221 | AJ13: =COUNTIF(L35:L43,AI13) -> 1 | AK13: =AJ13/(AL4-AJ11) -> 1 | AL13: =IF(AK13=0,0,(AK13*((LOG(AK13))/LOG(2)))) -> 0 | AN13: 221 | AO13: =COUNTIF(L44:L52,AN13) -> 0 | AP13: =AO13/(AQ4-AO11) -> 0 | AQ13: =IF(AP13=0,0,(AP13*((LOG(AP13))/LOG(2)))) -> 0 | AS13: 221 | AT13: =COUNTIF(L53:L61,AS13) -> 1 | AU13: =AT13/(AV4-AT11) -> 1 | AV13: =IF(AU13=0,0,(AU13*((LOG(AU13))/LOG(2)))) -> 0
A14: 21 | B14: 1013 | C14: 11 | D14: 1019 | E14: 11 | F14: 1028 | K14: 0 | L14: 211 | N14: 222 | O14: 0 | P14: 0 | Q14: 0 | T14: 222 | U14: =COUNTIF(L7:L15,T14) -> 0 | V14: =U14/(W4-U11) -> 0 | W14: =IF(V14=0,0,(V14*((LOG(V14))/LOG(2)))) -> 0 | Y14: 222 | Z14: =COUNTIF(L16:L24,Y14) -> 0 | AA14: =Z14/(AB4-Z11) -> 0 | AB14: =IF(AA14=0,0,(AA14*((LOG(AA14))/LOG(2)))) -> 0 | AD14: 222 | AE14: =COUNTIF(L25:L34,AD14) -> 0 | AF14: =AE14/(AG4-AE11) -> 0 | AG14: =IF(AF14=0,0,(AF14*((LOG(AF14))/LOG(2)))) -> 0 | AI14: 222 | AJ14: =COUNTIF(L35:L43,AI14) -> 0 | AK14: =AJ14/(AL4-AJ11) -> 0 | AL14: =IF(AK14=0,0,(AK14*((LOG(AK14))/LOG(2)))) -> 0 | AN14: 222 | AO14: =COUNTIF(L44:L52,AN14) -> 0 | AP14: =AO14/(AQ4-AO11) -> 0 | AQ14: =IF(AP14=0,0,(AP14*((LOG(AP14))/LOG(2)))) -> 0 | AS14: 222 | AT14: =COUNTIF(L53:L61,AS14) -> 0 | AU14: =AT14/(AV4-AT11) -> 0 | AV14: =IF(AU14=0,0,(AU14*((LOG(AU14))/LOG(2)))) -> 0
A15: 21 | B15: 1125 | C15: 11 | D15: 1133 | E15: 11 | F15: 1139 | K15: 0 | L15: 211 | P15: =SUM(P7:P14) -> 1 | Q15: =-SUM(Q7:Q14) -> 1.523704298 | V15: =SUM(V7:V14) -> 1 | W15: =-SUM(W7:W14) -> 1.842370993 | AA15: =SUM(AA7:AA14) -> 1 | AB15: =-SUM(AB7:AB14) -> 1 | AF15: =SUM(AF7:AF14) -> 1 | AG15: =-SUM(AG7:AG14) -> 0.8112781245 | AK15: =SUM(AK7:AK14) -> 1 | AL15: =-SUM(AL7:AL14) -> 0 | AP15: =SUM(AP7:AP14) -> 1 | AQ15: =-SUM(AQ7:AQ14) -> 0 | AU15: =SUM(AU7:AU14) -> 1 | AV15: =-SUM(AV7:AV14) -> 0
A16: 21 | B16: 1324 | C16: 11 | D16: 1333 | E16: 11 | F16: 1340 | K16: 0 | L16: 211 | P16: U= | Q16: =Q15/(LOG(Q4)/LOG(2)) -> 0.2635546607 | V16: U1= | W16: =W15/(LOG(W4)/LOG(2)) -> 0.5812033384 | AA16: U2= | AB16: =AB15/(LOG(AB4)/LOG(2)) -> 0.3154648768 | AF16: U3= | AG16: =AG15/(LOG(AG4)/LOG(2)) -> 0.2442190503 | AK16: U4= | AL16: =AL15/(LOG(AL4)/LOG(2)) -> 0 | AP16: U5= | AQ16: =AQ15/(LOG(AQ4)/LOG(2)) -> 0 | AU16: U6= | AV16: =AV15/(LOG(AV4)/LOG(2)) -> 0
A17: 21 | B17: 1434 | C17: 11 | D17: 1444 | E17: 11 | F17: 1446 | K17: 0 | L17: 211
A18: 21 | B18: 1551 | C18: 22 | D18: 1554 | E18: 13 | F18: 1571 | K18: 0 | L18: 221
A19: 12 | B19: 1669 | C19: 13 | D19: 1673 | E19: 13 | F19: 1677 | K19: 0 | L19: 111 | N19: Total Target Seq
A20: 21 | B20: 1771 | C20: 11 | D20: 1778 | E20: 11 | F20: 1784 | K20: 0 | L20: 211 | N20: =COUNTIF(L7:L61,G3) -> 36 | P20: 9 | Q20: 9 | R20: 10 | S20: 9 | T20: 9 | U20: 9
A21: 21 | B21: 1899 | C21: 11 | D21: 1907 | E21: 11 | F21: 1910 | K21: 0 | L21: 211 | P21: % of reinforcement given in 6 equal intervals based on number of trials
A22: 21 | B22: 2049 | C22: 11 | D22: 2059 | E22: 11 | F22: 2065 | K22: 0 | L22: 211 | P22: %_1 | Q22: %_2 | R22: %_3 | S22: %_4 | T22: %_5 | U22: %_6
A23: 21 | B23: 2155 | C23: 11 | D23: 2162 | E23: 11 | F23: 2167 | K23: 0 | L23: 211 | O23: target sequence | P23: =$G$3 -> 211 | Q23: 211 | R23: 211 | S23: 211 | T23: 211 | U23: 211
A24: 21 | B24: 2261 | C24: 11 | D24: 2272 | E24: 11 | F24: 2278 | K24: 0 | L24: 211 | O24: total reinforcement | P24: =U11 -> 2 | Q24: =Z11 -> 7 | R24: =AE11 -> 6 | S24: =AJ11 -> 8 | T24: =AO11 -> 5 | U24: =AT11 -> 8
A25: 21 | B25: 2370 | C25: 11 | D25: 2379 | E25: 11 | F25: 2384 | K25: 0 | L25: 211 | O25: % target
A26: 12 | B26: 2484 | C26: 13 | D26: 2489 | E26: 13 | F26: 2498 | K26: 0 | L26: 111 | O26: CCRF
A27: 12 | B27: 2604 | C27: 13 | D27: 2625 | E27: 13 | F27: 2643 | K27: 0 | L27: 111 | O27: % CCRf
A28: 21 | B28: 2739 | C28: 11 | D28: 2746 | E28: 11 | F28: 2753 | K28: 0 | L28: 211 | O28: average response rate | P28: =F15/P20 -> 126.5555556 | Q28: =(F24-F15)/Q20 -> 126.5555556 | R28: =(F34-F24)/R20 -> 110.4 | S28: =(F43-F34)/S20 -> 147 | T28: =(F52-F43)/T20 -> 374.2222222 | U28: =(F61-F52)/U20 -> 141.3333333
A29: 12 | B29: 2850 | C29: 13 | D29: 2855 | E29: 13 | F29: 2861 | K29: 0 | L29: 111
A30: 21 | B30: 2955 | C30: 22 | D30: 2957 | E30: 13 | F30: 2964 | K30: 0 | L30: 221
A31: 21 | B31: 3061 | C31: 11 | D31: 3068 | E31: 11 | F31: 3073 | K31: 0 | L31: 211
A32: 21 | B32: 3163 | C32: 11 | D32: 3171 | E32: 11 | F32: 3175 | K32: 0 | L32: 211
A33: 21 | B33: 3263 | C33: 11 | D33: 3271 | E33: 11 | F33: 3276 | K33: 0 | L33: 211
A34: 21 | B34: 3371 | C34: 11 | D34: 3380 | E34: 11 | F34: 3382 | K34: 0 | L34: 211
A35: 21 | B35: 3500 | C35: 11 | D35: 3510 | E35: 11 | F35: 3516 | K35: 0 | L35: 211
A36: 21 | B36: 3651 | C36: 11 | D36: 3661 | E36: 11 | F36: 3666 | K36: 0 | L36: 211
A37: 21 | B37: 3759 | C37: 22 | D37: 3760 | E37: 13 | F37: 3769 | K37: 0 | L37: 221
A38: 21 | B38: 3867 | C38: 11 | D38: 3874 | E38: 11 | F38: 3882 | K38: 0 | L38: 211
A39: 21 | B39: 3975 | C39: 11 | D39: 3986 | E39: 11 | F39: 3994 | K39: 0 | L39: 211
A40: 21 | B40: 4088 | C40: 11 | D40: 4109 | E40: 11 | F40: 4123 | K40: 0 | L40: 211
A41: 21 | B41: 4261 | C41: 11 | D41: 4277 | E41: 11 | F41: 4284 | K41: 0 | L41: 211
A42: 21 | B42: 4376 | C42: 11 | D42: 4386 | E42: 11 | F42: 4391 | K42: 0 | L42: 211
A43: 21 | B43: 4689 | C43: 11 | D43: 4701 | E43: 11 | F43: 4705 | K43: 0 | L43: 211
A44: 21 | B44: 4980 | C44: 11 | D44: 4990 | E44: 11 | F44: 4996 | K44: 0 | L44: 211
A45: 12 | B45: 6128 | C45: 13 | D45: 6133 | E45: 13 | F45: 6139 | K45: 0 | L45: 111
A46: 21 | B46: 6233 | C46: 11 | D46: 6241 | E46: 11 | F46: 6248 | K46: 0 | L46: 211
A47: 12 | B47: 6839 | C47: 13 | D47: 6845 | E47: 13 | F47: 6853 | K47: 0 | L47: 111
A48: 12 | B48: 7236 | C48: 13 | D48: 7243 | E48: 13 | F48: 7249 | K48: 0 | L48: 111
A49: 12 | B49: 7351 | C49: 13 | D49: 7356 | E49: 13 | F49: 7367 | K49: 0 | L49: 111
A50: 21 | B50: 7464 | C50: 11 | D50: 7470 | E50: 11 | F50: 7476 | K50: 0 | L50: 211
A51: 21 | B51: 7878 | C51: 11 | D51: 7891 | E51: 11 | F51: 7896 | K51: 0 | L51: 211
A52: 21 | B52: 8059 | C52: 11 | D52: 8068 | E52: 11 | F52: 8073 | K52: 0 | L52: 211
A53: 21 | B53: 8164 | C53: 11 | D53: 8174 | E53: 11 | F53: 8196 | K53: 0 | L53: 211
A54: 21 | B54: 8314 | C54: 11 | D54: 8324 | E54: 11 | F54: 8331 | K54: 0 | L54: 211
A55: 21 | B55: 8525 | C55: 11 | D55: 8535 | E55: 11 | F55: 8551 | K55: 0 | L55: 211
A56: 21 | B56: 8648 | C56: 11 | D56: 8656 | E56: 11 | F56: 8662 | K56: 0 | L56: 211
A57: 21 | B57: 8842 | C57: 22 | D57: 8848 | E57: 13 | F57: 8857 | K57: 0 | L57: 221
A58: 21 | B58: 8953 | C58: 11 | D58: 8960 | E58: 11 | F58: 8968 | K58: 0 | L58: 211
A59: 21 | B59: 9062 | C59: 11 | D59: 9078 | E59: 11 | F59: 9090 | K59: 0 | L59: 211
A60: 21 | B60: 9183 | C60: 11 | D60: 9192 | E60: 11 | F60: 9197 | K60: 0 | L60: 211
A61: 21 | B61: 9327 | C61: 11 | D61: 9337 | E61: 11 | F61: 9345 | K61: 1 | L61: 211

Sheet !N21491T.AYL
A1: Report for:!N21491T.AYL
A2: Date: | B2: <date>
A3: Hen: | B3: <hen> | F3: Correct Sequence | G3: =Start!J2 -> 211 | P3: Total Sequences in Data | Q3: =4994-COUNTBLANK(L7:L5000) -> 58 | V3: Total Sequences in Block Data | W3: =COUNTA(L7:L16) -> 10 | AA3: Total Sequences in Block Data | AB3: =COUNTA(L17:L25) -> 9 | AF3: Total Sequences in Block Data | AG3: =COUNTA(L26:L35) -> 10 | AK3: Total Sequences in Block Data | AL3: =COUNTA(L36:L45) -> 10 | AP3: Total Sequences in Block Data | AQ3: =COUNTA(L46:L54) -> 9 | AU3: Total Sequences in Block Data | AV3: =COUNTA(L55:L64) -> 10
P4: Total Sequences in Summary | Q4: =SUM(O7:O14) -> 58 | V4: Total Sequences in Block Summary | W4: =SUM(U7:U14) -> 10 | AA4: Total Sequences in Block Summary | AB4: =SUM(Z7:Z14) -> 9 | AF4: Total Sequences in Block Summary | AG4: =SUM(AE7:AE14) -> 10 | AK4: Total Sequences in Block Summary | AL4: =SUM(AJ7:AJ14) -> 10 | AP4: Total Sequences in Block Summary | AQ4: =SUM(AO7:AO14) -> 9 | AU4: Total Sequences in Block Summary | AV4: =SUM(AT7:AT14) -> 10
T5: Block 1 | Y5: Block 2 | AD5: Block 3 | AI5: Block 4 | AN5: Block 5 | AS5: Block 6
A6: Sequence Component 1 | B6: Time 1 | C6: Sequence Component 2 | D6: Time 2 | E6: Sequence Component 3 | F6: Time 3 | G6: Sequence Component 4 | H6: Time 4 | I6: Sequence Component 5 | J6: Time 5 | K6: Correct? 0=No 1=Yes | L6: Sequence | N6: Frequency | P6: Relative Frequency | Q6: Variability | T6: Frequency | V6: Relative Frequency | W6: Variability | Y6: Frequency | AA6: Relative Frequency | AB6: Variability | AD6: Frequency | AF6: Relative Frequency | AG6: Variability | AI6: Frequency | AK6: Relative Frequency | AL6: Variability | AN6: Frequency | AP6: Relative Frequency | AQ6: Variability | AS6: Frequency | AU6: Relative Frequency | AV6: Variability
A7: 12 | B7: 6 | C7: 13 | D7: 10 | E7: 13 | F7: 13 | K7: 0 | L7: 111 | N7: 111 | O7: =COUNTIF($L$7:$L$500,N7) -> 14 | P7: =O7/$Q$4 -> 0.2413793103 | Q7: =IF(P7=0,0,(P7*((LOG(P7))/LOG(2)))) -> -0.4949787073 | T7: =N7 -> 111 | U7: =COUNTIF(L7:L16,T7) -> 5 | V7: =U7/(W4-U11) -> 0.8333333333 | W7: =IF(V7=0,0,(V7*((LOG(V7))/LOG(2)))) -> -0.2191953382 | Y7: =N7 -> 111 | Z7: =COUNTIF(L17:L25,Y7) -> 2 | AA7: =Z7/(AB4-Z11) -> 0.6666666667 | AB7: =IF(AA7=0,0,(AA7*((LOG(AA7))/LOG(2)))) -> -0.3899750005 | AD7: =N7 -> 111 | AE7: =COUNTIF(L26:L35,AD7) -> 3 | AF7: =AE7/(AG4-AE11) -> 0.75 | AG7: =IF(AF7=0,0,(AF7*((LOG(AF7))/LOG(2)))) -> -0.3112781245 | AI7: =N7 -> 111 | AJ7: =COUNTIF(L36:L45,AI7) -> 2 | AK7: =AJ7/(AL4-AJ11) -> 1 | AL7: =IF(AK7=0,0,(AK7*((LOG(AK7))/LOG(2)))) -> 0 | AN7: =N7 -> 111 | AO7: =COUNTIF(L46:L54,AN7) -> 0 | AP7: =AO7/(AQ4-AO11) -> 0 | AQ7: =IF(AP7=0,0,(AP7*((LOG(AP7))/LOG(2)))) -> 0 | AS7: =N7 -> 111 | AT7: =COUNTIF(L55:L64,AS7) -> 2 | AU7: =AT7/(AV4-AT11) -> 1 | AV7: =IF(AU7=0,0,(AU7*((LOG(AU7))/LOG(2)))) -> 0
A8: 12 | B8: 110 | C8: 13 | D8: 117 | E8: 13 | F8: 123 | K8: 0 | L8: 111 | N8: 112 | O8: 0 | P8: 0 | Q8: 0 | T8: 112 | U8: =COUNTIF(L7:L16,T8) -> 0 | V8: =U8/(W4-U11) -> 0 | W8: =IF(V8=0,0,(V8*((LOG(V8))/LOG(2)))) -> 0 | Y8: 112 | Z8: =COUNTIF(L17:L25,Y8) -> 0 | AA8: =Z8/(AB4-Z11) -> 0 | AB8: =IF(AA8=0,0,(AA8*((LOG(AA8))/LOG(2)))) -> 0 | AD8: 112 | AE8: =COUNTIF(L26:L35,AD8) -> 0 | AF8: =AE8/(AG4-AE11) -> 0 | AG8: =IF(AF8=0,0,(AF8*((LOG(AF8))/LOG(2)))) -> 0 | AI8: 112 | AJ8: =COUNTIF(L36:L45,AI8) -> 0 | AK8: =AJ8/(AL4-AJ11) -> 0 | AL8: =IF(AK8=0,0,(AK8*((LOG(AK8))/LOG(2)))) -> 0 | AN8: 112 | AO8: =COUNTIF(L46:L54,AN8) -> 0 | AP8: =AO8/(AQ4-AO11) -> 0 | AQ8: =IF(AP8=0,0,(AP8*((LOG(AP8))/LOG(2)))) -> 0 | AS8: 112 | AT8: =COUNTIF(L55:L64,AS8) -> 0 | AU8: =AT8/(AV4-AT11) -> 0 | AV8: =IF(AU8=0,0,(AU8*((LOG(AU8))/LOG(2)))) -> 0
A9: 12 | B9: 226 | C9: 13 | D9: 230 | E9: 13 | F9: 237 | K9: 0 | L9: 111 | N9: 121 | O9: 0 | P9: 0 | Q9: 0 | T9: 121 | U9: =COUNTIF(L7:L16,T9) -> 0 | V9: =U9/(W4-U11) -> 0 | W9: =IF(V9=0,0,(V9*((LOG(V9))/LOG(2)))) -> 0 | Y9: 121 | Z9: =COUNTIF(L17:L25,Y9) -> 0 | AA9: =Z9/(AB4-Z11) -> 0 | AB9: =IF(AA9=0,0,(AA9*((LOG(AA9))/LOG(2)))) -> 0 | AD9: 121 | AE9: =COUNTIF(L26:L35,AD9) -> 0 | AF9: =AE9/(AG4-AE11) -> 0 | AG9: =IF(AF9=0,0,(AF9*((LOG(AF9))/LOG(2)))) -> 0 | AI9: 121 | AJ9: =COUNTIF(L36:L45,AI9) -> 0 | AK9: =AJ9/(AL4-AJ11) -> 0 | AL9: =IF(AK9=0,0,(AK9*((LOG(AK9))/LOG(2)))) -> 0 | AN9: 121 | AO9: =COUNTIF(L46:L54,AN9) -> 0 | AP9: =AO9/(AQ4-AO11) -> 0 | AQ9: =IF(AP9=0,0,(AP9*((LOG(AP9))/LOG(2)))) -> 0 | AS9: 121 | AT9: =COUNTIF(L55:L64,AS9) -> 0 | AU9: =AT9/(AV4-AT11) -> 0 | AV9: =IF(AU9=0,0,(AU9*((LOG(AU9))/LOG(2)))) -> 0
A10: 21 | B10: 334 | C10: 11 | D10: 341 | E10: 11 | F10: 344 | K10: 0 | L10: 211 | N10: 122 | O10: 0 | P10: 0 | Q10: 0 | T10: 122 | U10: =COUNTIF(L7:L16,T10) -> 0 | V10: =U10/(W4-U11) -> 0 | W10: =IF(V10=0,0,(V10*((LOG(V10))/LOG(2)))) -> 0 | Y10: 122 | Z10: =COUNTIF(L17:L25,Y10) -> 0 | AA10: =Z10/(AB4-Z11) -> 0 | AB10: =IF(AA10=0,0,(AA10*((LOG(AA10))/LOG(2)))) -> 0 | AD10: 122 | AE10: =COUNTIF(L26:L35,AD10) -> 0 | AF10: =AE10/(AG4-AE11) -> 0 | AG10: =IF(AF10=0,0,(AF10*((LOG(AF10))/LOG(2)))) -> 0 | AI10: 122 | AJ10: =COUNTIF(L36:L45,AI10) -> 0 | AK10: =AJ10/(AL4-AJ11) -> 0 | AL10: =IF(AK10=0,0,(AK10*((LOG(AK10))/LOG(2)))) -> 0 | AN10: 122 | AO10: =COUNTIF(L46:L54,AN10) -> 0 | AP10: =AO10/(AQ4-AO11) -> 0 | AQ10: =IF(AP10=0,0,(AP10*((LOG(AP10))/LOG(2)))) -> 0 | AS10: 122 | AT10: =COUNTIF(L55:L64,AS10) -> 0 | AU10: =AT10/(AV4-AT11) -> 0 | AV10: =IF(AU10=0,0,(AU10*((LOG(AU10))/LOG(2)))) -> 0
A11: 12 | B11: 473 | C11: 13 | D11: 485 | E11: 13 | F11: 492 | K11: 0 | L11: 111 | N11: 211 | O11: 38 | P11: 0.6551724138 | Q11: -0.3996902121 | T11: 211 | U11: =COUNTIF(L7:L16,T11) -> 4 | Y11: 211 | Z11: =COUNTIF(L17:L25,Y11) -> 6 | AD11: 211 | AE11: =COUNTIF(L26:L35,AD11) -> 6 | AI11: 211 | AJ11: =COUNTIF(L36:L45,AI11) -> 8 | AN11: 211 | AO11: =COUNTIF(L46:L54,AN11) -> 6 | AS11: 211 | AT11: =COUNTIF(L55:L64,AS11) -> 8
A12: 21 | B12: 590 | C12: 11 | D12: 598 | E12: 11 | F12: 604 | K12: 0 | L12: 211 | N12: 212 | O12: 0 | P12: 0 | Q12: 0 | T12: 212 | U12: =COUNTIF(L7:L16,T12) -> 0 | V12: =U12/(W4-U11) -> 0 | W12: =IF(V12=0,0,(V12*((LOG(V12))/LOG(2)))) -> 0 | Y12: 212 | Z12: =COUNTIF(L17:L25,Y12) -> 0 | AA12: =Z12/(AB4-Z11) -> 0 | AB12: =IF(AA12=0,0,(AA12*((LOG(AA12))/LOG(2)))) -> 0 | AD12: 212 | AE12: =COUNTIF(L26:L35,AD12) -> 0 | AF12: =AE12/(AG4-AE11) -> 0 | AG12: =IF(AF12=0,0,(AF12*((LOG(AF12))/LOG(2)))) -> 0 | AI12: 212 | AJ12: =COUNTIF(L36:L45,AI12) -> 0 | AK12: =AJ12/(AL4-AJ11) -> 0 | AL12: =IF(AK12=0,0,(AK12*((LOG(AK12))/LOG(2)))) -> 0 | AN12: 212 | AO12: =COUNTIF(L46:L54,AN12) -> 0 | AP12: =AO12/(AQ4-AO11) -> 0 | AQ12: =IF(AP12=0,0,(AP12*((LOG(AP12))/LOG(2)))) -> 0 | AS12: 212 | AT12: =COUNTIF(L55:L64,AS12) -> 0 | AU12: =AT12/(AV4-AT11) -> 0 | AV12: =IF(AU12=0,0,(AU12*((LOG(AU12))/LOG(2)))) -> 0
A13: 21 | B13: 695 | C13: 11 | D13: 701 | E13: 11 | F13: 717 | K13: 0 | L13: 211 | N13: 221 | O13: 5 | P13: 0.08620689655 | Q13: -0.3048321466 | T13: 221 | U13: =COUNTIF(L7:L16,T13) -> 0 | V13: =U13/(W4-U11) -> 0 | W13: =IF(V13=0,0,(V13*((LOG(V13))/LOG(2)))) -> 0 | Y13: 221 | Z13: =COUNTIF(L17:L25,Y13) -> 1 | AA13: =Z13/(AB4-Z11) -> 0.3333333333 | AB13: =IF(AA13=0,0,(AA13*((LOG(AA13))/LOG(2)))) -> -0.5283208336 | AD13: 221 | AE13: =COUNTIF(L26:L35,AD13) -> 1 | AF13: =AE13/(AG4-AE11) -> 0.25 | AG13: =IF(AF13=0,0,(AF13*((LOG(AF13))/LOG(2)))) -> -0.5 | AI13: 221 | AJ13: =COUNTIF(L36:L45,AI13) -> 0 | AK13: =AJ13/(AL4-AJ11) -> 0 | AL13: =IF(AK13=0,0,(AK13*((LOG(AK13))/LOG(2)))) -> 0 | AN13: 221 | AO13: =COUNTIF(L46:L54,AN13) -> 3 | AP13: =AO13/(AQ4-AO11) -> 1 | AQ13: =IF(AP13=0,0,(AP13*((LOG(AP13))/LOG(2)))) -> 0 | AS13: 221 | AT13: =COUNTIF(L55:L64,AS13) -> 0 | AU13: =AT13/(AV4-AT11) -> 0 | AV13: =IF(AU13=0,0,(AU13*((LOG(AU13))/LOG(2)))) -> 0
A14: 12 | B14: 819 | C14: 13 | D14: 828 | E14: 13 | F14: 833 | K14: 0 | L14: 111 | N14: 222 | O14: 1 | P14: 0.01724137931 | Q14: -0.1009996723 | T14: 222 | U14: =COUNTIF(L7:L16,T14) -> 1 | V14: =U14/(W4-U11) -> 0.1666666667 | W14: =IF(V14=0,0,(V14*((LOG(V14))/LOG(2)))) -> -0.4308270835 | Y14: 222 | Z14: =COUNTIF(L17:L25,Y14) -> 0 | AA14: =Z14/(AB4-Z11) -> 0 | AB14: =IF(AA14=0,0,(AA14*((LOG(AA14))/LOG(2)))) -> 0 | AD14: 222 | AE14: =COUNTIF(L26:L35,AD14) -> 0 | AF14: =AE14/(AG4-AE11) -> 0 | AG14: =IF(AF14=0,0,(AF14*((LOG(AF14))/LOG(2)))) -> 0 | AI14: 222 | AJ14: =COUNTIF(L36:L45,AI14) -> 0 | AK14: =AJ14/(AL4-AJ11) -> 0 | AL14: =IF(AK14=0,0,(AK14*((LOG(AK14))/LOG(2)))) -> 0 | AN14: 222 | AO14: =COUNTIF(L46:L54,AN14) -> 0 | AP14: =AO14/(AQ4-AO11) -> 0 | AQ14: =IF(AP14=0,0,(AP14*((LOG(AP14))/LOG(2)))) -> 0 | AS14: 222 | AT14: =COUNTIF(L55:L64,AS14) -> 0 | AU14: =AT14/(AV4-AT11) -> 0 | AV14: =IF(AU14=0,0,(AU14*((LOG(AU14))/LOG(2)))) -> 0
A15: 21 | B15: 930 | C15: 22 | D15: 932 | E15: 24 | F15: 937 | K15: 0 | L15: 222 | P15: =SUM(P7:P14) -> 1 | Q15: =-SUM(Q7:Q14) -> 1.300500738 | V15: =SUM(V7:V14) -> 1 | W15: =-SUM(W7:W14) -> 0.6500224216 | AA15: =SUM(AA7:AA14) -> 1 | AB15: =-SUM(AB7:AB14) -> 0.9182958341 | AF15: =SUM(AF7:AF14) -> 1 | AG15: =-SUM(AG7:AG14) -> 0.8112781245 | AK15: =SUM(AK7:AK14) -> 1 | AL15: =-SUM(AL7:AL14) -> 0 | AP15: =SUM(AP7:AP14) -> 1 | AQ15: =-SUM(AQ7:AQ14) -> 0 | AU15: =SUM(AU7:AU14) -> 1 | AV15: =-SUM(AV7:AV14) -> 0
A16: 21 | B16: 1032 | C16: 11 | D16: 1037 | E16: 11 | F16: 1042 | K16: 0 | L16: 211 | P16: U= | Q16: =Q15/(LOG(Q4)/LOG(2)) -> 0.2220049432 | V16: U1= | W16: =W15/(LOG(W4)/LOG(2)) -> 0.1956762468 | AA16: U2= | AB16: =AB15/(LOG(AB4)/LOG(2)) -> 0.2896900821 | AF16: U3= | AG16: =AG15/(LOG(AG4)/LOG(2)) -> 0.2442190503 | AK16: U4= | AL16: =AL15/(LOG(AL4)/LOG(2)) -> 0 | AP16: U5= | AQ16: =AQ15/(LOG(AQ4)/LOG(2)) -> 0 | AU16: U6= | AV16: =AV15/(LOG(AV4)/LOG(2)) -> 0
A17: 12 | B17: 1140 | C17: 13 | D17: 1145 | E17: 13 | F17: 1151 | K17: 0 | L17: 111
A18: 21 | B18: 1246 | C18: 11 | D18: 1256 | E18: 11 | F18: 1267 | K18: 0 | L18: 211
A19: 21 | B19: 1359 | C19: 11 | D19: 1370 | E19: 11 | F19: 1377 | K19: 0 | L19: 211 | N19: Total Target Seq
A20: 21 | B20: 1471 | C20: 11 | D20: 1478 | E20: 11 | F20: 1485 | K20: 0 | L20: 211 | N20: =COUNTIF(L7:L64,G3) -> 38 | P20: 10 | Q20: 9 | R20: 10 | S20: 10 | T20: 9 | U20: 10
A21: 21 | B21: 1577 | C21: 11 | D21: 1585 | E21: 11 | F21: 1589 | K21: 0 | L21: 211 | P21: % of reinforcement given in 6 equal intervals based on number of trials
A22: 21 | B22: 1680 | C22: 11 | D22: 1691 | E22: 11 | F22: 1710 | K22: 0 | L22: 211 | P22: %_1 | Q22: %_2 | R22: %_3 | S22: %_4 | T22: %_5 | U22: %_6
A23: 21 | B23: 1798 | C23: 22 | D23: 1808 | E23: 13 | F23: 1810 | K23: 0 | L23: 221 | O23: target sequence | P23: =$G$3 -> 211 | Q23: 211 | R23: 211 | S23: 211 | T23: 211 | U23: 211
A24: 12 | B24: 1907 | C24: 13 | D24: 1913 | E24: 13 | F24: 1920 | K24: 0 | L24: 111 | O24: total reinforcement | P24: =U11 -> 4 | Q24: =Z11 -> 6 | R24: =AE11 -> 6 | S24: =AJ11 -> 8 | T24: =AO11 -> 6 | U24: =AT11 -> 8
A25: 21 | B25: 2014 | C25: 11 | D25: 2019 | E25: 11 | F25: 2026 | K25: 0 | L25: 211 | O25: % target
A26: 12 | B26: 2122 | C26: 13 | D26: 2125 | E26: 13 | F26: 2133 | K26: 0 | L26: 111 | O26: CCRF
A27: 12 | B27: 2234 | C27: 13 | D27: 2238 | E27: 13 | F27: 2246 | K27: 0 | L27: 111 | O27: % CCRf
A28: 21 | B28: 2343 | C28: 11 | D28: 2348 | E28: 11 | F28: 2356 | K28: 0 | L28: 211 | O28: average response rate | P28: =F16/P20 -> 104.2 | Q28: =(F25-F16)/Q20 -> 109.3333333 | R28: =(F35-F25)/R20 -> 107 | S28: =(F45-F35)/S20 -> 110.1 | T28: =(F54-F45)/T20 -> 106.5555556 | U28: =(F64-F54)/U20 -> 109.9
A29: 21 | B29: 2445 | C29: 11 | D29: 2453 | E29: 11 | F29: 2458 | K29: 0 | L29: 211
A30: 21 | B30: 2548 | C30: 11 | D30: 2554 | E30: 11 | F30: 2557 | K30: 0 | L30: 211
A31: 12 | B31: 2657 | C31: 13 | D31: 2659 | E31: 13 | F31: 2665 | K31: 0 | L31: 111
A32: 21 | B32: 2770 | C32: 11 | D32: 2779 | E32: 11 | F32: 2783 | K32: 0 | L32: 211
A33: 21 | B33: 2874 | C33: 11 | D33: 2881 | E33: 11 | F33: 2888 | K33: 0 | L33: 211
A34: 21 | B34: 2980 | C34: 11 | D34: 2988 | E34: 11 | F34: 2993 | K34: 0 | L34: 211
A35: 21 | B35: 3085 | C35: 22 | D35: 3088 | E35: 13 | F35: 3096 | K35: 0 | L35: 221
A36: 12 | B36: 3198 | C36: 13 | D36: 3202 | E36: 13 | F36: 3207 | K36: 0 | L36: 111
A37: 21 | B37: 3304 | C37: 11 | D37: 3309 | E37: 11 | F37: 3314 | K37: 0 | L37: 211
A38: 21 | B38: 3406 | C38: 11 | D38: 3416 | E38: 11 | F38: 3421 | K38: 0 | L38: 211
A39: 21 | B39: 3511 | C39: 11 | D39: 3520 | E39: 11 | F39: 3527 | K39: 0 | L39: 211
A40: 21 | B40: 3622 | C40: 11 | D40: 3632 | E40: 11 | F40: 3636 | K40: 0 | L40: 211
A41: 21 | B41: 3731 | C41: 11 | D41: 3740 | E41: 11 | F41: 3743 | K41: 0 | L41: 211
A42: 21 | B42: 3844 | C42: 11 | D42: 3852 | E42: 11 | F42: 3854 | K42: 0 | L42: 211
A43: 12 | B43: 3951 | C43: 13 | D43: 3956 | E43: 13 | F43: 3962 | K43: 0 | L43: 111
A44: 21 | B44: 4057 | C44: 11 | D44: 4066 | E44: 11 | F44: 4070 | K44: 0 | L44: 211
A45: 21 | B45: 4179 | C45: 11 | D45: 4191 | E45: 11 | F45: 4197 | K45: 0 | L45: 211
A46: 21 | B46: 4289 | C46: 11 | D46: 4298 | E46: 11 | F46: 4301 | K46: 0 | L46: 211
A47: 21 | B47: 4394 | C47: 22 | D47: 4396 | E47: 13 | F47: 4404 | K47: 0 | L47: 221
A48: 21 | B48: 4501 | C48: 11 | D48: 4509 | E48: 11 | F48: 4512 | K48: 0 | L48: 211
A49: 21 | B49: 4607 | C49: 11 | D49: 4616 | E49: 11 | F49: 4622 | K49: 0 | L49: 211
A50: 21 | B50: 4715 | C50: 11 | D50: 4724 | E50: 11 | F50: 4746 | K50: 0 | L50: 211
A51: 21 | B51: 4838 | C51: 11 | D51: 4846 | E51: 11 | F51: 4850 | K51: 0 | L51: 211
A52: 21 | B52: 4943 | C52: 22 | D52: 4945 | E52: 13 | F52: 4951 | K52: 0 | L52: 221
A53: 21 | B53: 5044 | C53: 22 | D53: 5046 | E53: 13 | F53: 5051 | K53: 0 | L53: 221
A54: 21 | B54: 5143 | C54: 11 | D54: 5153 | E54: 11 | F54: 5156 | K54: 0 | L54: 211
A55: 21 | B55: 5247 | C55: 11 | D55: 5258 | E55: 11 | F55: 5265 | K55: 0 | L55: 211
A56: 21 | B56: 5356 | C56: 11 | D56: 5365 | E56: 11 | F56: 5369 | K56: 0 | L56: 211
A57: 21 | B57: 5461 | C57: 11 | D57: 5469 | E57: 11 | F57: 5473 | K57: 0 | L57: 211
A58: 21 | B58: 5564 | C58: 11 | D58: 5576 | E58: 11 | F58: 5583 | K58: 0 | L58: 211
A59: 12 | B59: 5684 | C59: 13 | D59: 5689 | E59: 13 | F59: 5709 | K59: 0 | L59: 111
A60: 21 | B60: 5806 | C60: 11 | D60: 5814 | E60: 11 | F60: 5821 | K60: 0 | L60: 211
A61: 12 | B61: 5925 | C61: 13 | D61: 5930 | E61: 13 | F61: 5937 | K61: 0 | L61: 111
A62: 21 | B62: 6035 | C62: 11 | D62: 6041 | E62: 11 | F62: 6049 | K62: 0 | L62: 211
A63: 21 | B63: 6141 | C63: 11 | D63: 6149 | E63: 11 | F63: 6154 | K63: 0 | L63: 211
A64: 21 | B64: 6243 | C64: 11 | D64: 6253 | E64: 11 | F64: 6255 | K64: 1 | L64: 211

Sheet !N21592T.AYL
A1: Report for:!N21592T.AYL
A2: Date: | B2: <date>
A3: Hen: | B3: <hen> | F3: Correct Sequence | G3: =Start!J2 -> 211 | P3: Total Sequences in Data | Q3: =4994-COUNTBLANK(L7:L5000) -> 63 | V3: Total Sequences in Block Data | W3: =COUNTA(L7:L17) -> 11 | AA3: Total Sequences in Block Data | AB3: =COUNTA(L18:L27) -> 10 | AF3: Total Sequences in Block Data | AG3: =COUNTA(L28:L38) -> 11 | AK3: Total Sequences in Block Data | AL3: =COUNTA(L39:L48) -> 10 | AP3: Total Sequences in Block Data | AQ3: =COUNTA(L49:L59) -> 11 | AU3: Total Sequences in Block Data | AV3: =COUNTA(L60:L69) -> 10
P4: Total Sequences in Summary | Q4: =SUM(O7:O14) -> 63 | V4: Total Sequences in Block Summary | W4: =SUM(U7:U14) -> 11 | AA4: Total Sequences in Block Summary | AB4: =SUM(Z7:Z14) -> 10 | AF4: Total Sequences in Block Summary | AG4: =SUM(AE7:AE14) -> 11 | AK4: Total Sequences in Block Summary | AL4: =SUM(AJ7:AJ14) -> 10 | AP4: Total Sequences in Block Summary | AQ4: =SUM(AO7:AO14) -> 11 | AU4: Total Sequences in Block Summary | AV4: =SUM(AT7:AT14) -> 10
T5: Block 1 | Y5: Block 2 | AD5: Block 3 | AI5: Block 4 | AN5: Block 5 | AS5: Block 6
A6: Sequence Component 1 | B6: Time 1 | C6: Sequence Component 2 | D6: Time 2 | E6: Sequence Component 3 | F6: Time 3 | G6: Sequence Component 4 | H6: Time 4 | I6: Sequence Component 5 | J6: Time 5 | K6: Correct? 0=No 1=Yes | L6: Sequence | N6: Frequency | P6: Relative Frequency | Q6: Variability | T6: Frequency | V6: Relative Frequency | W6: Variability | Y6: Frequency | AA6: Relative Frequency | AB6: Variability | AD6: Frequency | AF6: Relative Frequency | AG6: Variability | AI6: Frequency | AK6: Relative Frequency | AL6: Variability | AN6: Frequency | AP6: Relative Frequency | AQ6: Variability | AS6: Frequency | AU6: Relative Frequency | AV6: Variability
A7: 12 | B7: 7 | C7: 13 | D7: 12 | E7: 13 | F7: 19 | K7: 0 | L7: 111 | N7: 111 | O7: =COUNTIF($L$7:$L$500,N7) -> 16 | P7: =O7/$Q$4 -> 0.253968254 | Q7: =IF(P7=0,0,(P7*((LOG(P7))/LOG(2)))) -> -0.5021663298 | T7: =N7 -> 111 | U7: =COUNTIF(L7:L17,T7) -> 5 | V7: =U7/(W4-U11) -> 0.7142857143 | W7: =IF(V7=0,0,(V7*((LOG(V7))/LOG(2)))) -> -0.346733448 | Y7: =N7 -> 111 | Z7: =COUNTIF(L18:L27,Y7) -> 3 | AA7: =Z7/(AB4-Z11) -> 0.75 | AB7: =IF(AA7=0,0,(AA7*((LOG(AA7))/LOG(2)))) -> -0.3112781245 | AD7: =N7 -> 111 | AE7: =COUNTIF(L28:L38,AD7) -> 3 | AF7: =AE7/(AG4-AE11) -> 0.75 | AG7: =IF(AF7=0,0,(AF7*((LOG(AF7))/LOG(2)))) -> -0.3112781245 | AI7: =N7 -> 111 | AJ7: =COUNTIF(L39:L48,AI7) -> 2 | AK7: =AJ7/(AL4-AJ11) -> 0.6666666667 | AL7: =IF(AK7=0,0,(AK7*((LOG(AK7))/LOG(2)))) -> -0.3899750005 | AN7: =N7 -> 111 | AO7: =COUNTIF(L49:L59,AN7) -> 3 | AP7: =AO7/(AQ4-AO11) -> 0.75 | AQ7: =IF(AP7=0,0,(AP7*((LOG(AP7))/LOG(2)))) -> -0.3112781245 | AS7: =N7 -> 111 | AT7: =COUNTIF(L60:L69,AS7) -> 0 | AU7: =AT7/(AV4-AT11) -> 0 | AV7: =IF(AU7=0,0,(AU7*((LOG(AU7))/LOG(2)))) -> 0
A8: 12 | B8: 118 | C8: 13 | D8: 120 | E8: 13 | F8: 123 | K8: 0 | L8: 111 | N8: 112 | O8: 0 | P8: 0 | Q8: 0 | T8: 112 | U8: =COUNTIF(L7:L17,T8) -> 0 | V8: =U8/(W4-U11) -> 0 | W8: =IF(V8=0,0,(V8*((LOG(V8))/LOG(2)))) -> 0 | Y8: 112 | Z8: =COUNTIF(L18:L27,Y8) -> 0 | AA8: =Z8/(AB4-Z11) -> 0 | AB8: =IF(AA8=0,0,(AA8*((LOG(AA8))/LOG(2)))) -> 0 | AD8: 112 | AE8: =COUNTIF(L28:L38,AD8) -> 0 | AF8: =AE8/(AG4-AE11) -> 0 | AG8: =IF(AF8=0,0,(AF8*((LOG(AF8))/LOG(2)))) -> 0 | AI8: 112 | AJ8: =COUNTIF(L39:L48,AI8) -> 0 | AK8: =AJ8/(AL4-AJ11) -> 0 | AL8: =IF(AK8=0,0,(AK8*((LOG(AK8))/LOG(2)))) -> 0 | AN8: 112 | AO8: =COUNTIF(L49:L59,AN8) -> 0 | AP8: =AO8/(AQ4-AO11) -> 0 | AQ8: =IF(AP8=0,0,(AP8*((LOG(AP8))/LOG(2)))) -> 0 | AS8: 112 | AT8: =COUNTIF(L60:L69,AS8) -> 0 | AU8: =AT8/(AV4-AT11) -> 0 | AV8: =IF(AU8=0,0,(AU8*((LOG(AU8))/LOG(2)))) -> 0
A9: 12 | B9: 225 | C9: 13 | D9: 228 | E9: 13 | F9: 245 | K9: 0 | L9: 111 | N9: 121 | O9: 1 | P9: 0.01587301587 | Q9: -0.0948774591 | T9: 121 | U9: =COUNTIF(L7:L17,T9) -> 0 | V9: =U9/(W4-U11) -> 0 | W9: =IF(V9=0,0,(V9*((LOG(V9))/LOG(2)))) -> 0 | Y9: 121 | Z9: =COUNTIF(L18:L27,Y9) -> 1 | AA9: =Z9/(AB4-Z11) -> 0.25 | AB9: =IF(AA9=0,0,(AA9*((LOG(AA9))/LOG(2)))) -> -0.5 | AD9: 121 | AE9: =COUNTIF(L28:L38,AD9) -> 0 | AF9: =AE9/(AG4-AE11) -> 0 | AG9: =IF(AF9=0,0,(AF9*((LOG(AF9))/LOG(2)))) -> 0 | AI9: 121 | AJ9: =COUNTIF(L39:L48,AI9) -> 0 | AK9: =AJ9/(AL4-AJ11) -> 0 | AL9: =IF(AK9=0,0,(AK9*((LOG(AK9))/LOG(2)))) -> 0 | AN9: 121 | AO9: =COUNTIF(L49:L59,AN9) -> 0 | AP9: =AO9/(AQ4-AO11) -> 0 | AQ9: =IF(AP9=0,0,(AP9*((LOG(AP9))/LOG(2)))) -> 0 | AS9: 121 | AT9: =COUNTIF(L60:L69,AS9) -> 0 | AU9: =AT9/(AV4-AT11) -> 0 | AV9: =IF(AU9=0,0,(AU9*((LOG(AU9))/LOG(2)))) -> 0
A10: 12 | B10: 345 | C10: 13 | D10: 350 | E10: 13 | F10: 353 | K10: 0 | L10: 111 | N10: 122 | O10: 0 | P10: 0 | Q10: 0 | T10: 122 | U10: =COUNTIF(L7:L17,T10) -> 0 | V10: =U10/(W4-U11) -> 0 | W10: =IF(V10=0,0,(V10*((LOG(V10))/LOG(2)))) -> 0 | Y10: 122 | Z10: =COUNTIF(L18:L27,Y10) -> 0 | AA10: =Z10/(AB4-Z11) -> 0 | AB10: =IF(AA10=0,0,(AA10*((LOG(AA10))/LOG(2)))) -> 0 | AD10: 122 | AE10: =COUNTIF(L28:L38,AD10) -> 0 | AF10: =AE10/(AG4-AE11) -> 0 | AG10: =IF(AF10=0,0,(AF10*((LOG(AF10))/LOG(2)))) -> 0 | AI10: 122 | AJ10: =COUNTIF(L39:L48,AI10) -> 0 | AK10: =AJ10/(AL4-AJ11) -> 0 | AL10: =IF(AK10=0,0,(AK10*((LOG(AK10))/LOG(2)))) -> 0 | AN10: 122 | AO10: =COUNTIF(L49:L59,AN10) -> 0 | AP10: =AO10/(AQ4-AO11) -> 0 | AQ10: =IF(AP10=0,0,(AP10*((LOG(AP10))/LOG(2)))) -> 0 | AS10: 122 | AT10: =COUNTIF(L60:L69,AS10) -> 0 | AU10: =AT10/(AV4-AT11) -> 0 | AV10: =IF(AU10=0,0,(AU10*((LOG(AU10))/LOG(2)))) -> 0
A11: 21 | B11: 449 | C11: 11 | D11: 456 | E11: 11 | F11: 467 | K11: 0 | L11: 211 | N11: 211 | O11: 38 | P11: 0.6031746032 | Q11: -0.4399268505 | T11: 211 | U11: =COUNTIF(L7:L17,T11) -> 4 | Y11: 211 | Z11: =COUNTIF(L18:L27,Y11) -> 6 | AD11: 211 | AE11: =COUNTIF(L28:L38,AD11) -> 7 | AI11: 211 | AJ11: =COUNTIF(L39:L48,AI11) -> 7 | AN11: 211 | AO11: =COUNTIF(L49:L59,AN11) -> 7 | AS11: 211 | AT11: =COUNTIF(L60:L69,AS11) -> 7
A12: 12 | B12: 588 | C12: 13 | D12: 593 | E12: 13 | F12: 603 | K12: 0 | L12: 111 | N12: 212 | O12: 0 | P12: 0 | Q12: 0 | T12: 212 | U12: =COUNTIF(L7:L17,T12) -> 0 | V12: =U12/(W4-U11) -> 0 | W12: =IF(V12=0,0,(V12*((LOG(V12))/LOG(2)))) -> 0 | Y12: 212 | Z12: =COUNTIF(L18:L27,Y12) -> 0 | AA12: =Z12/(AB4-Z11) -> 0 | AB12: =IF(AA12=0,0,(AA12*((LOG(AA12))/LOG(2)))) -> 0 | AD12: 212 | AE12: =COUNTIF(L28:L38,AD12) -> 0 | AF12: =AE12/(AG4-AE11) -> 0 | AG12: =IF(AF12=0,0,(AF12*((LOG(AF12))/LOG(2)))) -> 0 | AI12: 212 | AJ12: =COUNTIF(L39:L48,AI12) -> 0 | AK12: =AJ12/(AL4-AJ11) -> 0 | AL12: =IF(AK12=0,0,(AK12*((LOG(AK12))/LOG(2)))) -> 0 | AN12: 212 | AO12: =COUNTIF(L49:L59,AN12) -> 0 | AP12: =AO12/(AQ4-AO11) -> 0 | AQ12: =IF(AP12=0,0,(AP12*((LOG(AP12))/LOG(2)))) -> 0 | AS12: 212 | AT12: =COUNTIF(L60:L69,AS12) -> 0 | AU12: =AT12/(AV4-AT11) -> 0 | AV12: =IF(AU12=0,0,(AU12*((LOG(AU12))/LOG(2)))) -> 0
A13: 21 | B13: 699 | C13: 22 | D13: 703 | E13: 13 | F13: 708 | K13: 0 | L13: 221 | N13: 221 | O13: 8 | P13: 0.126984127 | Q13: -0.3780672919 | T13: 221 | U13: =COUNTIF(L7:L17,T13) -> 2 | V13: =U13/(W4-U11) -> 0.2857142857 | W13: =IF(V13=0,0,(V13*((LOG(V13))/LOG(2)))) -> -0.5163871206 | Y13: 221 | Z13: =COUNTIF(L18:L27,Y13) -> 0 | AA13: =Z13/(AB4-Z11) -> 0 | AB13: =IF(AA13=0,0,(AA13*((LOG(AA13))/LOG(2)))) -> 0 | AD13: 221 | AE13: =COUNTIF(L28:L38,AD13) -> 1 | AF13: =AE13/(AG4-AE11) -> 0.25 | AG13: =IF(AF13=0,0,(AF13*((LOG(AF13))/LOG(2)))) -> -0.5 | AI13: 221 | AJ13: =COUNTIF(L39:L48,AI13) -> 1 | AK13: =AJ13/(AL4-AJ11) -> 0.3333333333 | AL13: =IF(AK13=0,0,(AK13*((LOG(AK13))/LOG(2)))) -> -0.5283208336 | AN13: 221 | AO13: =COUNTIF(L49:L59,AN13) -> 1 | AP13: =AO13/(AQ4-AO11) -> 0.25 | AQ13: =IF(AP13=0,0,(AP13*((LOG(AP13))/LOG(2)))) -> -0.5 | AS13: 221 | AT13: =COUNTIF(L60:L69,AS13) -> 3 | AU13: =AT13/(AV4-AT11) -> 1 | AV13: =IF(AU13=0,0,(AU13*((LOG(AU13))/LOG(2)))) -> 0
A14: 21 | B14: 800 | C14: 22 | D14: 804 | E14: 13 | F14: 818 | K14: 0 | L14: 221 | N14: 222 | O14: 0 | P14: 0 | Q14: 0 | T14: 222 | U14: =COUNTIF(L7:L17,T14) -> 0 | V14: =U14/(W4-U11) -> 0 | W14: =IF(V14=0,0,(V14*((LOG(V14))/LOG(2)))) -> 0 | Y14: 222 | Z14: =COUNTIF(L18:L27,Y14) -> 0 | AA14: =Z14/(AB4-Z11) -> 0 | AB14: =IF(AA14=0,0,(AA14*((LOG(AA14))/LOG(2)))) -> 0 | AD14: 222 | AE14: =COUNTIF(L28:L38,AD14) -> 0 | AF14: =AE14/(AG4-AE11) -> 0 | AG14: =IF(AF14=0,0,(AF14*((LOG(AF14))/LOG(2)))) -> 0 | AI14: 222 | AJ14: =COUNTIF(L39:L48,AI14) -> 0 | AK14: =AJ14/(AL4-AJ11) -> 0 | AL14: =IF(AK14=0,0,(AK14*((LOG(AK14))/LOG(2)))) -> 0 | AN14: 222 | AO14: =COUNTIF(L49:L59,AN14) -> 0 | AP14: =AO14/(AQ4-AO11) -> 0 | AQ14: =IF(AP14=0,0,(AP14*((LOG(AP14))/LOG(2)))) -> 0 | AS14: 222 | AT14: =COUNTIF(L60:L69,AS14) -> 0 | AU14: =AT14/(AV4-AT11) -> 0 | AV14: =IF(AU14=0,0,(AU14*((LOG(AU14))/LOG(2)))) -> 0
A15: 21 | B15: 913 | C15: 11 | D15: 920 | E15: 11 | F15: 926 | K15: 0 | L15: 211 | P15: =SUM(P7:P14) -> 1 | Q15: =-SUM(Q7:Q14) -> 1.415037931 | V15: =SUM(V7:V14) -> 1 | W15: =-SUM(W7:W14) -> 0.8631205686 | AA15: =SUM(AA7:AA14) -> 1 | AB15: =-SUM(AB7:AB14) -> 0.8112781245 | AF15: =SUM(AF7:AF14) -> 1 | AG15: =-SUM(AG7:AG14) -> 0.8112781245 | AK15: =SUM(AK7:AK14) -> 1 | AL15: =-SUM(AL7:AL14) -> 0.9182958341 | AP15: =SUM(AP7:AP14) -> 1 | AQ15: =-SUM(AQ7:AQ14) -> 0.8112781245 | AU15: =SUM(AU7:AU14) -> 1 | AV15: =-SUM(AV7:AV14) -> 0
A16: 21 | B16: 1021 | C16: 11 | D16: 1031 | E16: 11 | F16: 1035 | K16: 0 | L16: 211 | P16: U= | Q16: =Q15/(LOG(Q4)/LOG(2)) -> 0.2367360989 | V16: U1= | W16: =W15/(LOG(W4)/LOG(2)) -> 0.2494977972 | AA16: U2= | AB16: =AB15/(LOG(AB4)/LOG(2)) -> 0.2442190503 | AF16: U3= | AG16: =AG15/(LOG(AG4)/LOG(2)) -> 0.2345119701 | AK16: U4= | AL16: =AL15/(LOG(AL4)/LOG(2)) -> 0.2764345909 | AP16: U5= | AQ16: =AQ15/(LOG(AQ4)/LOG(2)) -> 0.2345119701 | AU16: U6= | AV16: =AV15/(LOG(AV4)/LOG(2)) -> 0
A17: 21 | B17: 1129 | C17: 11 | D17: 1140 | E17: 11 | F17: 1147 | K17: 0 | L17: 211
A18: 12 | B18: 1246 | C18: 13 | D18: 1249 | E18: 13 | F18: 1255 | K18: 0 | L18: 111
A19: 12 | B19: 1359 | C19: 13 | D19: 1363 | E19: 13 | F19: 1373 | K19: 0 | L19: 111 | N19: Total Target Seq
A20: 21 | B20: 1466 | C20: 11 | D20: 1473 | E20: 11 | F20: 1477 | K20: 0 | L20: 211 | N20: =COUNTIF(L7:L69,G3) -> 38 | P20: 11 | Q20: 10 | R20: 11 | S20: 10 | T20: 11 | U20: 10
A21: 12 | B21: 1666 | C21: 24 | D21: 1677 | E21: 13 | F21: 1689 | K21: 0 | L21: 121 | P21: % of reinforcement given in 6 equal intervals based on number of trials
A22: 21 | B22: 1784 | C22: 11 | D22: 1790 | E22: 11 | F22: 1805 | K22: 0 | L22: 211 | P22: %_1 | Q22: %_2 | R22: %_3 | S22: %_4 | T22: %_5 | U22: %_6
A23: 21 | B23: 1899 | C23: 11 | D23: 1912 | E23: 11 | F23: 1918 | K23: 0 | L23: 211 | O23: target sequence | P23: =$G$3 -> 211 | Q23: 211 | R23: 211 | S23: 211 | T23: 211 | U23: 211
A24: 21 | B24: 2013 | C24: 11 | D24: 2023 | E24: 11 | F24: 2026 | K24: 0 | L24: 211 | O24: total reinforcement | P24: =U11 -> 4 | Q24: =Z11 -> 6 | R24: =AE11 -> 7 | S24: =AJ11 -> 7 | T24: =AO11 -> 7 | U24: =AT11 -> 7
A25: 21 | B25: 2118 | C25: 11 | D25: 2125 | E25: 11 | F25: 2131 | K25: 0 | L25: 211 | O25: % target
A26: 21 | B26: 2223 | C26: 11 | D26: 2233 | E26: 11 | F26: 2246 | K26: 0 | L26: 211 | O26: CCRF
A27: 12 | B27: 2349 | C27: 13 | D27: 2354 | E27: 13 | F27: 2361 | K27: 0 | L27: 111 | O27: % CCRf
A28: 12 | B28: 2464 | C28: 13 | D28: 2472 | E28: 13 | F28: 2479 | K28: 0 | L28: 111 | O28: average response rate | P28: =F17/P20 -> 104.2727273 | Q28: =(F27-F17)/Q20 -> 121.4 | R28: =(F38-F27)/R20 -> 111 | S28: =(F48-F38)/S20 -> 119 | T28: =(F59-F48)/T20 -> 112.2727273 | U28: =(F69-F59)/U20 -> 113.9
A29: 12 | B29: 2582 | C29: 13 | D29: 2586 | E29: 13 | F29: 2596 | K29: 0 | L29: 111
A30: 21 | B30: 2691 | C30: 11 | D30: 2700 | E30: 11 | F30: 2704 | K30: 0 | L30: 211
A31: 21 | B31: 2795 | C31: 11 | D31: 2809 | E31: 11 | F31: 2815 | K31: 0 | L31: 211
A32: 12 | B32: 2917 | C32: 13 | D32: 2924 | E32: 13 | F32: 2932 | K32: 0 | L32: 111
A33: 21 | B33: 3026 | C33: 22 | D33: 3029 | E33: 13 | F33: 3035 | K33: 0 | L33: 221
A34: 21 | B34: 3125 | C34: 11 | D34: 3132 | E34: 11 | F34: 3137 | K34: 0 | L34: 211
A35: 21 | B35: 3229 | C35: 11 | D35: 3242 | E35: 11 | F35: 3246 | K35: 0 | L35: 211
A36: 21 | B36: 3341 | C36: 11 | D36: 3350 | E36: 11 | F36: 3354 | K36: 0 | L36: 211
A37: 21 | B37: 3445 | C37: 11 | D37: 3455 | E37: 11 | F37: 3462 | K37: 0 | L37: 211
A38: 21 | B38: 3570 | C38: 11 | D38: 3578 | E38: 11 | F38: 3582 | K38: 0 | L38: 211
A39: 12 | B39: 3677 | C39: 13 | D39: 3681 | E39: 13 | F39: 3685 | K39: 0 | L39: 111
A40: 21 | B40: 3780 | C40: 11 | D40: 3787 | E40: 11 | F40: 3791 | K40: 0 | L40: 211
A41: 21 | B41: 3883 | C41: 22 | D41: 3886 | E41: 13 | F41: 3893 | K41: 0 | L41: 221
A42: 21 | B42: 3987 | C42: 11 | D42: 3996 | E42: 11 | F42: 4005 | K42: 0 | L42: 211
A43: 21 | B43: 4101 | C43: 11 | D43: 4109 | E43: 11 | F43: 4115 | K43: 0 | L43: 211
A44: 21 | B44: 4206 | C44: 11 | D44: 4215 | E44: 11 | F44: 4219 | K44: 0 | L44: 211
A45: 21 | B45: 4435 | C45: 11 | D45: 4443 | E45: 11 | F45: 4446 | K45: 0 | L45: 211
A46: 21 | B46: 4539 | C46: 11 | D46: 4549 | E46: 11 | F46: 4552 | K46: 0 | L46: 211
A47: 12 | B47: 4648 | C47: 13 | D47: 4652 | E47: 13 | F47: 4658 | K47: 0 | L47: 111
A48: 21 | B48: 4756 | C48: 11 | D48: 4764 | E48: 11 | F48: 4772 | K48: 0 | L48: 211
A49: 21 | B49: 4870 | C49: 11 | D49: 4881 | E49: 11 | F49: 4887 | K49: 0 | L49: 211
A50: 21 | B50: 4979 | C50: 11 | D50: 4990 | E50: 11 | F50: 4997 | K50: 0 | L50: 211
A51: 21 | B51: 5087 | C51: 11 | D51: 5099 | E51: 11 | F51: 5105 | K51: 0 | L51: 211
A52: 21 | B52: 5204 | C52: 11 | D52: 5213 | E52: 11 | F52: 5218 | K52: 0 | L52: 211
A53: 12 | B53: 5314 | C53: 13 | D53: 5318 | E53: 13 | F53: 5323 | K53: 0 | L53: 111
A54: 21 | B54: 5418 | C54: 11 | D54: 5425 | E54: 11 | F54: 5429 | K54: 0 | L54: 211
A55: 21 | B55: 5530 | C55: 22 | D55: 5533 | E55: 13 | F55: 5546 | K55: 0 | L55: 221
A56: 12 | B56: 5654 | C56: 13 | D56: 5658 | E56: 13 | F56: 5662 | K56: 0 | L56: 111
A57: 21 | B57: 5758 | C57: 11 | D57: 5766 | E57: 11 | F57: 5779 | K57: 0 | L57: 211
A58: 21 | B58: 5873 | C58: 11 | D58: 5881 | E58: 11 | F58: 5887 | K58: 0 | L58: 211
A59: 12 | B59: 5988 | C59: 13 | D59: 5995 | E59: 13 | F59: 6007 | K59: 0 | L59: 111
A60: 21 | B60: 6101 | C60: 11 | D60: 6109 | E60: 11 | F60: 6117 | K60: 0 | L60: 211
A61: 21 | B61: 6217 | C61: 22 | D61: 6221 | E61: 13 | F61: 6229 | K61: 0 | L61: 221
A62: 21 | B62: 6325 | C62: 11 | D62: 6333 | E62: 11 | F62: 6355 | K62: 0 | L62: 211
A63: 21 | B63: 6459 | C63: 22 | D63: 6462 | E63: 13 | F63: 6478 | K63: 0 | L63: 221
A64: 21 | B64: 6575 | C64: 11 | D64: 6585 | E64: 11 | F64: 6591 | K64: 0 | L64: 211
A65: 21 | B65: 6690 | C65: 11 | D65: 6700 | E65: 11 | F65: 6707 | K65: 0 | L65: 211
A66: 21 | B66: 6800 | C66: 22 | D66: 6803 | E66: 13 | F66: 6813 | K66: 0 | L66: 221
A67: 21 | B67: 6913 | C67: 11 | D67: 6920 | E67: 11 | F67: 6923 | K67: 0 | L67: 211
A68: 21 | B68: 7016 | C68: 11 | D68: 7029 | E68: 11 | F68: 7037 | K68: 0 | L68: 211
A69: 21 | B69: 7125 | C69: 11 | D69: 7140 | E69: 11 | F69: 7146 | K69: 1 | L69: 211

Sheet !N216A1T.AYL
A1: Report for:!N216A1T.AYL
A2: Date: | B2: <date>
A3: Hen: | B3: <hen> | F3: Correct Sequence | G3: =Start!J2 -> 211 | P3: Total Sequences in Data | Q3: =4994-COUNTBLANK(L7:L5000) -> 53 | V3: Total Sequences in Block Data | W3: =COUNTA(L7:L15) -> 9 | AA3: Total Sequences in Block Data | AB3: =COUNTA(L16:L24) -> 9 | AF3: Total Sequences in Block Data | AG3: =COUNTA(L25:L32) -> 8 | AK3: Total Sequences in Block Data | AL3: =COUNTA(L33:L41) -> 9 | AP3: Total Sequences in Block Data | AQ3: =COUNTA(L42:L50) -> 9 | AU3: Total Sequences in Block Data | AV3: =COUNTA(L51:L59) -> 9
P4: Total Sequences in Summary | Q4: =SUM(O7:O14) -> 53 | V4: Total Sequences in Block Summary | W4: =SUM(U7:U14) -> 9 | AA4: Total Sequences in Block Summary | AB4: =SUM(Z7:Z14) -> 9 | AF4: Total Sequences in Block Summary | AG4: =SUM(AE7:AE14) -> 8 | AK4: Total Sequences in Block Summary | AL4: =SUM(AJ7:AJ14) -> 9 | AP4: Total Sequences in Block Summary | AQ4: =SUM(AO7:AO14) -> 9 | AU4: Total Sequences in Block Summary | AV4: =SUM(AT7:AT14) -> 9
T5: Block 1 | Y5: Block 2 | AD5: Block 3 | AI5: Block 4 | AN5: Block 5 | AS5: Block 6
A6: Sequence Component 1 | B6: Time 1 | C6: Sequence Component 2 | D6: Time 2 | E6: Sequence Component 3 | F6: Time 3 | G6: Sequence Component 4 | H6: Time 4 | I6: Sequence Component 5 | J6: Time 5 | K6: Correct? 0=No 1=Yes | L6: Sequence | N6: Frequency | P6: Relative Frequency | Q6: Variability | T6: Frequency | V6: Relative Frequency | W6: Variability | Y6: Frequency | AA6: Relative Frequency | AB6: Variability | AD6: Frequency | AF6: Relative Frequency | AG6: Variability | AI6: Frequency | AK6: Relative Frequency | AL6: Variability | AN6: Frequency | AP6: Relative Frequency | AQ6: Variability | AS6: Frequency | AU6: Relative Frequency | AV6: Variability
A7: 12 | B7: 13 | C7: 13 | D7: 18 | E7: 13 | F7: 24 | K7: 0 | L7: 111 | N7: 111 | O7: =COUNTIF($L$7:$L$500,N7) -> 9 | P7: =O7/$Q$4 -> 0.1698113208 | Q7: =IF(P7=0,0,(P7*((LOG(P7))/LOG(2)))) -> -0.4343765864 | T7: =N7 -> 111 | U7: =COUNTIF(L7:L15,T7) -> 1 | V7: =U7/(W4-U11) -> 0.5 | W7: =IF(V7=0,0,(V7*((LOG(V7))/LOG(2)))) -> -0.5 | Y7: =N7 -> 111 | Z7: =COUNTIF(L16:L24,Y7) -> 2 | AA7: =Z7/(AB4-Z11) -> 0.6666666667 | AB7: =IF(AA7=0,0,(AA7*((LOG(AA7))/LOG(2)))) -> -0.3899750005 | AD7: =N7 -> 111 | AE7: =COUNTIF(L25:L32,AD7) -> 2 | AF7: =AE7/(AG4-AE11) -> 1 | AG7: =IF(AF7=0,0,(AF7*((LOG(AF7))/LOG(2)))) -> 0 | AI7: =N7 -> 111 | AJ7: =COUNTIF(L33:L41,AI7) -> 2 | AK7: =AJ7/(AL4-AJ11) -> 0.6666666667 | AL7: =IF(AK7=0,0,(AK7*((LOG(AK7))/LOG(2)))) -> -0.3899750005 | AN7: =N7 -> 111 | AO7: =COUNTIF(L42:L50,AN7) -> 1 | AP7: =AO7/(AQ4-AO11) -> 1 | AQ7: =IF(AP7=0,0,(AP7*((LOG(AP7))/LOG(2)))) -> 0 | AS7: =N7 -> 111 | AT7: =COUNTIF(L51:L59,AS7) -> 1 | AU7: =AT7/(AV4-AT11) -> 0.25 | AV7: =IF(AU7=0,0,(AU7*((LOG(AU7))/LOG(2)))) -> -0.5
A8: 21 | B8: 118 | C8: 11 | D8: 126 | E8: 11 | F8: 130 | K8: 0 | L8: 211 | N8: 112 | O8: 0 | P8: 0 | Q8: 0 | T8: 112 | U8: =COUNTIF(L7:L15,T8) -> 0 | V8: =U8/(W4-U11) -> 0 | W8: =IF(V8=0,0,(V8*((LOG(V8))/LOG(2)))) -> 0 | Y8: 112 | Z8: =COUNTIF(L16:L24,Y8) -> 0 | AA8: =Z8/(AB4-Z11) -> 0 | AB8: =IF(AA8=0,0,(AA8*((LOG(AA8))/LOG(2)))) -> 0 | AD8: 112 | AE8: =COUNTIF(L25:L32,AD8) -> 0 | AF8: =AE8/(AG4-AE11) -> 0 | AG8: =IF(AF8=0,0,(AF8*((LOG(AF8))/LOG(2)))) -> 0 | AI8: 112 | AJ8: =COUNTIF(L33:L41,AI8) -> 0 | AK8: =AJ8/(AL4-AJ11) -> 0 | AL8: =IF(AK8=0,0,(AK8*((LOG(AK8))/LOG(2)))) -> 0 | AN8: 112 | AO8: =COUNTIF(L42:L50,AN8) -> 0 | AP8: =AO8/(AQ4-AO11) -> 0 | AQ8: =IF(AP8=0,0,(AP8*((LOG(AP8))/LOG(2)))) -> 0 | AS8: 112 | AT8: =COUNTIF(L51:L59,AS8) -> 0 | AU8: =AT8/(AV4-AT11) -> 0 | AV8: =IF(AU8=0,0,(AU8*((LOG(AU8))/LOG(2)))) -> 0
A9: 21 | B9: 230 | C9: 11 | D9: 237 | E9: 11 | F9: 240 | K9: 0 | L9: 211 | N9: 121 | O9: 0 | P9: 0 | Q9: 0 | T9: 121 | U9: =COUNTIF(L7:L15,T9) -> 0 | V9: =U9/(W4-U11) -> 0 | W9: =IF(V9=0,0,(V9*((LOG(V9))/LOG(2)))) -> 0 | Y9: 121 | Z9: =COUNTIF(L16:L24,Y9) -> 0 | AA9: =Z9/(AB4-Z11) -> 0 | AB9: =IF(AA9=0,0,(AA9*((LOG(AA9))/LOG(2)))) -> 0 | AD9: 121 | AE9: =COUNTIF(L25:L32,AD9) -> 0 | AF9: =AE9/(AG4-AE11) -> 0 | AG9: =IF(AF9=0,0,(AF9*((LOG(AF9))/LOG(2)))) -> 0 | AI9: 121 | AJ9: =COUNTIF(L33:L41,AI9) -> 0 | AK9: =AJ9/(AL4-AJ11) -> 0 | AL9: =IF(AK9=0,0,(AK9*((LOG(AK9))/LOG(2)))) -> 0 | AN9: 121 | AO9: =COUNTIF(L42:L50,AN9) -> 0 | AP9: =AO9/(AQ4-AO11) -> 0 | AQ9: =IF(AP9=0,0,(AP9*((LOG(AP9))/LOG(2)))) -> 0 | AS9: 121 | AT9: =COUNTIF(L51:L59,AS9) -> 0 | AU9: =AT9/(AV4-AT11) -> 0 | AV9: =IF(AU9=0,0,(AU9*((LOG(AU9))/LOG(2)))) -> 0
A10: 21 | B10: 333 | C10: 11 | D10: 342 | E10: 11 | F10: 347 | K10: 0 | L10: 211 | N10: 122 | O10: 0 | P10: 0 | Q10: 0 | T10: 122 | U10: =COUNTIF(L7:L15,T10) -> 0 | V10: =U10/(W4-U11) -> 0 | W10: =IF(V10=0,0,(V10*((LOG(V10))/LOG(2)))) -> 0 | Y10: 122 | Z10: =COUNTIF(L16:L24,Y10) -> 0 | AA10: =Z10/(AB4-Z11) -> 0 | AB10: =IF(AA10=0,0,(AA10*((LOG(AA10))/LOG(2)))) -> 0 | AD10: 122 | AE10: =COUNTIF(L25:L32,AD10) -> 0 | AF10: =AE10/(AG4-AE11) -> 0 | AG10: =IF(AF10=0,0,(AF10*((LOG(AF10))/LOG(2)))) -> 0 | AI10: 122 | AJ10: =COUNTIF(L33:L41,AI10) -> 0 | AK10: =AJ10/(AL4-AJ11) -> 0 | AL10: =IF(AK10=0,0,(AK10*((LOG(AK10))/LOG(2)))) -> 0 | AN10: 122 | AO10: =COUNTIF(L42:L50,AN10) -> 0 | AP10: =AO10/(AQ4-AO11) -> 0 | AQ10: =IF(AP10=0,0,(AP10*((LOG(AP10))/LOG(2)))) -> 0 | AS10: 122 | AT10: =COUNTIF(L51:L59,AS10) -> 0 | AU10: =AT10/(AV4-AT11) -> 0 | AV10: =IF(AU10=0,0,(AU10*((LOG(AU10))/LOG(2)))) -> 0
A11: 21 | B11: 449 | C11: 11 | D11: 457 | E11: 11 | F11: 462 | K11: 0 | L11: 211 | N11: 211 | O11: 38 | P11: 0.7169811321 | Q11: -0.3441458823 | T11: 211 | U11: =COUNTIF(L7:L15,T11) -> 7 | Y11: 211 | Z11: =COUNTIF(L16:L24,Y11) -> 6 | AD11: 211 | AE11: =COUNTIF(L25:L32,AD11) -> 6 | AI11: 211 | AJ11: =COUNTIF(L33:L41,AI11) -> 6 | AN11: 211 | AO11: =COUNTIF(L42:L50,AN11) -> 8 | AS11: 211 | AT11: =COUNTIF(L51:L59,AS11) -> 5
